{"text_format":"1","workbook":"xlsx","n_sheets":9,"sheets":["Intructivo","Matriz consolidada","Matriz Calor Inherente","Matriz Calor Residual","Tabla probabilidad","Tabla Impacto","Tabla Valoración controles","Opciones Tratamiento","Hoja1"],"not_rendered":{"charts":0,"images":1,"macros":1,"external_links":1,"defined_names":0,"comments":0,"pivot_tables":0},"unopened":[],"bounds":{"document_bytes":16777216,"sheet_cells":100000,"rows_first":2000,"rows_last":500,"rows_between":2000,"halvings":0,"cell_chars":16384,"cell_head_chars":4096},"cells_cut":0,"cells_raw":0,"read":"whole","date_system":"1900"}

{"sheet":"Intructivo","index":0,"n_rows":37,"n_cols":5,"rows_kept":37,"cut":false,"hidden":false,"merged":[[10,2,10,3],[10,4,10,5],[11,4,11,5],[30,2,30,3],[26,4,26,5],[27,4,27,5],[28,4,28,5],[29,4,29,5],[30,4,30,5],[25,2,25,3],[26,2,26,3],[27,2,27,3],[28,2,28,3],[29,2,29,3],[7,2,7,3],[7,4,7,5],[8,2,8,3],[8,4,8,5],[9,2,9,3],[9,4,9,5],[1,1,1,7],[5,2,5,3],[5,4,5,5],[6,2,6,3],[6,4,6,5],[11,2,11,3],[12,2,12,3],[13,2,13,3],[14,2,14,3],[15,2,15,3],[16,2,16,3],[17,2,17,3],[12,4,12,5],[13,4,13,5],[14,4,14,5],[15,4,15,5],[16,4,16,5],[17,4,17,5],[18,4,18,5],[18,2,18,3],[19,2,19,3],[20,2,20,3],[21,2,21,3],[19,4,19,5],[20,4,20,5],[21,4,21,5],[22,4,22,5],[23,4,23,5],[25,4,25,5],[34,1,34,7],[35,1,35,7],[36,1,36,7],[22,2,22,3],[23,2,23,3],[24,2,24,3],[24,4,24,5],[32,1,32,7],[33,1,33,7]]}
[]
[null,"Matriz Mapa de Riesgos"]
[]
[]
[]
[null,null,"Columna",null,"Descripción - Lineamientos para el diligenciamiento"]
[null,null,"No.",null,"Escriba el código del riesgo que está siendo analizado por la matriz de riesgos."]
[null,null,"Tipo",null,"De esta lista de valores elija el tipo de riesgo que se está evaluando.  Esta lista corresponde a los valores TIPO del riesgo: Administrativo, Operativo, Financiero, Legal, Tecnológico, Seguridad de la Información, Corrupción."]
[null,null,"Proceso",null,"Es una lista de valores que contiene los nombres de los procesos institucionales. Elija el nombre del proceso al cual pertenecen el riesgo que se está evaluando."]
[null,null,"Impacto",null,"Analice las consecuencias que puede ocasionar a la organización la materialización del riesgo, redacte de la forma más concreta posible."]
[null,null,"Causa Inmediata",null,"Circunstancias bajo las cuales se presenta el riesgo, es la situación más evidente frente al riesgo, redacte de la forma más concreta posible."]
[null,null,"Causa Raíz",null,"Causa  principal  o básica, corresponde a las razones por la cuales se puede presentar  el riesgo, redacte de la forma más concreta posible."]
[null,null,"Descripción del Riesgo",null,"Consolida o resume los análisis sobre impacto + causa inmediata + causa raíz, permitiendo contar con una redacción clara y concreta del riesgo indentificado. Tenga en cuenta la estructura de alto nivel establecida en al guía, inicia con POSIBILIDAD DE + Impacto para la entidad (Qué) + Causa Inmediata (Cómo) + Causa Raíz (Por qué)"]
[null,null,"Clasificación del Riesgo",null,"Utilice la lista de despligue que se encuentra parametrizada, le aparecerán las opciones: i)Daños Activos Fisicos, ii)Ejecucion y Administracion de procesos, iii)Fallas Tecnologicas, iv)Fraude Externo, v)Fraude Interno, vi)Relaciones Laborales, vii)Usuarios, productos y practicas organizacionales."]
[null,null,"Frecuencia con la cual se lleva a cabo la actividad",null,"Defina el # de veces que se ejecuta la actividad durante el año, (Recuerde la probabilidad e ocurrencia del riesgo se defien como el No. de veces que se pasa por el punto de riesgo en el periodo de 1 año). La matriz automáticamente hará el cálculo para el nivel de probabilidad inherente (Columnas H-I)"]
[null,null,"Criterios de Impacto",null,"Utilice la lista de despligue que se encuentra parametrizada, le aparecerán las opciones de la tabla de Impacto en la Hoja 6 del presente documento. La matriz automáticamente hará el cálculo para el nivel de impacto inherente (Columnas L-M)"]
[null,null,"Zona de Riesgo Inherente",null,"Teniendo en cuenta que ingresó la información de PROBABILIDAD e IMPACTO, la matriz automáticamente hará el cálculo para la zona de riesgo inherente (Columna N)"]
[null,null,"Descripción del Control",null,"Recuerde que el control se define como la medida que permite reducir o mitigar un riesgo. Defina el control (es) que atacan la causa raíz del riesgo, considere la estructura explicada en la guía: Responsable de ejecutar el control + Acción + Complemento"]
[null,null,"Afectación",null,"Esta casilla no se diligencia, depende de la selección en la columna T."]
[null,null,"ATRIBUTOS EFICIENCIA\nTipo",null,"Utilice la lista de despligue que se encuentra parametrizada, le aparecerán las opciones: i)Preventivo, ii)Detectivo, iii)Correctivo."]
[null,null,"ATRIBUTOS EFICIENCIA\nImplementación",null,"Utilice la lista de despligue que se encuentra parametrizada, le aparecerán las opciones: i)Automático, ii)Manual."]
[null,null,"ATRIBUTOS EFICIENCIA\nImplementación",null,"Utilice la lista de despligue que se encuentra parametrizada, le aparecerán las opciones: i)Automático, ii)Manual."]
[null,null,"ATRIBUTOS EFICIENCIA\nCalificación",null,"La matriz automáticamente hará el cálculo para el control analizado (Columna T) "]
[null,null,"ATRIBUTOS INFORMATIVOS\nDocumentación",null,"Utilice la lista de despligue que se encuentra parametrizada, le aparecerán las opciones: i)Documentado, ii)Sin documentar."]
[null,null,"ATRIBUTOS INFORMATIVOS\nFrecuencia",null,"Utilice la lista de despligue que se encuentra parametrizada, le aparecerán las opciones: i)Continua, ii)Aleatoria."]
[null,null,"ATRIBUTOS INFORMATIVOS\nRegistro",null,"Utilice la lista de despligue que se encuentra parametrizada, le aparecerán las opciones: i)Con Registro, ii) Sin Registro."]
[null,null,"Evaluación del Nivel de Riesgo - Nivel de Riesgo Residual",null,"La matriz automáticamente hará el cálculo, acorde con el control o controles definidos con sus atributos analizados, lo que permitirá establecer el nivel de riesgo inherente (Columnas  AA -AB- AC-AD-AE)."]
[null,null,"Tratamiento",null,"Utilice la lista de despligue que se encuentra parametrizada, le aparecerán las opciones: i)Aceptar, ii)Evitar, iii)Reducir (compartir), iv)Reducir (mitigar)."]
[null,null,"Plan de Acción\nResponsable, fecha implementación, fecha seguimiento, seguimiento. ",null,"Esta casilla dependerá del tratamiento establecido, si es Aceptar no se requieren acciones adicionales, en caso de escoger Reducir (mitigar) se deben diligenciar las acciones que se adelantarán como complemento a los controles establecidos, no necesariamente son controles adicionales. Para Reducir (compartir), es viable diligenciar la acción que deriva de esta (ejemplo póliza seguros, terceración), indicando información relevante. "]
[null,null,"Estado",null,"Utilice la lista de despligue que se encuentra parametrizada, le aparecerán las opciones: i)Finalizado, ii)En curso, la selección en este caso dependerá de las acciones del plan que se hayan establecido en cada caso."]
[]
[]
[null," -  Hoja 3 Matriz de Calor Inherente:  En esta hoja, en la medida en que ese diligencia el Mapa Final, se verán reflejados los riesgos en su zona correspondiente. Esta hoja no se diligencia se genera de manera automática."]
[null," -  Hoja 4 Matriz de Calor Residual: En esta hoja, en la medida en que ese diligencia el Mapa Final, se verán reflejados los riesgos en su zona correspondiente. Esta hoja no se diligencia se genera de manera automática."]
[null," -  Hoja 5 Tabla de probabilidad: Tabla referente para todos los cálculos (no se diligencia)"]
[null," -  Hoja 6 Tabla de Impacto: Tabla referente para todos los cálculos (no se diligencia)"]
[null," -  Hoja 7 Tabla de Valoración de Controles: Tabla referente para todos los cálculos (no se diligencia)"]

{"sheet":"Matriz consolidada","index":1,"n_rows":70,"n_cols":40,"rows_kept":70,"cut":false,"hidden":false,"merged":[[68,8,68,10],[69,0,69,1],[51,0,51,3],[57,0,57,3],[58,0,58,3],[59,0,59,1],[60,0,60,1],[61,0,61,1],[62,0,62,1],[63,0,63,1],[64,0,64,1],[65,0,65,1],[66,0,66,1],[68,5,68,6],[6,39,7,39],[6,32,7,32],[6,33,7,33],[6,34,7,34],[6,35,7,35],[6,36,7,36],[6,37,7,37],[6,38,7,38],[5,25,5,31],[5,32,5,39],[0,0,3,5],[0,6,3,35],[0,36,0,39],[1,36,1,39],[2,36,2,39],[3,36,3,39],[5,0,5,8],[5,9,5,15],[5,16,5,24],[6,19,6,24],[6,5,7,5],[6,6,7,6],[6,7,7,7],[6,8,7,8],[6,9,7,9],[6,10,7,10],[6,11,7,11],[6,12,7,12],[6,13,7,13],[6,27,7,27],[6,28,7,28],[6,29,7,29],[6,30,7,30],[6,31,7,31],[6,17,7,17],[6,18,7,18],[6,0,7,0],[6,1,7,1],[6,2,7,2],[6,3,7,3],[6,4,7,4],[6,15,7,15],[6,16,7,16],[6,14,7,14]]}
[null,null,null,null,null,null,"FORMATO MATRIZ DE RIESGO ",null,null,null,null,null,null,null,null,null,null,null,null,null,null,null,null,null,null,null,null,null,null,null,null,null,null,null,null,null,"CODIGO: E-SGI-F006"]
[null,null,null,null,null,null,null,null,null,null,null,null,null,null,null,null,null,null,null,null,null,null,null,null,null,null,null,null,null,null,null,null,null,null,null,null,"VERSION: 7"]
[null,null,null,null,null,null,null,null,null,null,null,null,null,null,null,null,null,null,null,null,null,null,null,null,null,null,null,null,null,null,null,null,null,null,null,null,"FECHA: 24/03/2021"]
[null,null,null,null,null,null,null,null,null,null,null,null,null,null,null,null,null,null,null,null,null,null,null,null,null,null,null,null,null,null,null,null,null,null,null,null,"PAGINA 1 de 1"]
[]
["Identificación del riesgo",null,null,null,null,null,null,null,null,"Análisis del riesgo inherente",null,null,null,null,null,null,"Evaluación del riesgo - Valoración de los controles",null,null,null,null,null,null,null,null,"Evaluación del riesgo - Nivel del riesgo residual",null,null,null,null,null,null,"Plan de Acción"]
["Referencia ","Tipo","Proceso","Impacto","Causa Inmediata","Causa Raíz","Descripción del Riesgo","Clasificación del Riesgo","Frecuencia con la cual se realiza la actividad","Probabilidad Inherente","%","Criterios de impacto","Observación de criterio","Impacto \nInherente","%","Zona de Riesgo Inherente","No. Control","Descripción del Control","Afectación","Atributos ",null,null,null,null,null,"Probabilidad Residual",null,"%","Impacto Residual Final","%","Zona de Riesgo Final","Tratamiento","Plan de Acción","Responsable","Fecha Implementación","Fecha Seguimiento","Monitoreo 1","Monitoreo 2","Monitoreo 3","Estado"]
[null,null,null,null,null,null,null,null,null,null,null,null,null,null,null,null,null,null,null,"Tipo","Implementación","Calificación","Documentación","Frecuencia","Evidencia",null,"Probabilidad Residual Final"]
[]
[]
[]
[]
[]
[]
[]
[]
[]
[]
[]
[]
[]
[]
[]
[]
[]
[]
[]
[]
[]
[]
[]
[]
[]
[]
[]
[]
[]
[]
[]
[]
[]
[]
[]
[]
[]
[]
[]
[]
[]
[]
[]
["*Nota: La columna referencia se sugiere para mantener el consecutivo de riesgos, así el riesgo salga del mapa no existirá otro riesgo con el mismo número. Una entidad puede ir en el riesgo 150 pero tener 70 riesgos, lo que permite llevar una traza de los riesgos. Esta información la debe administrar la Oficina Asesora de Planeación o Gerencia de Riesgos.",null,null,null,null,null,null,null,null,null,{"$f":"IF(J52=\"\",\"\",IF(J52=\"Muy Baja\",0.2,IF(J52=\"Baja\",0.4,IF(J52=\"Media\",0.6,IF(J52=\"Alta\",0.8,IF(J52=\"Muy Alta\",1, ))))))","v":""},null,null,{"$f":"IF(OR(L52='Tabla Impacto'!$C$4,L52='Tabla Impacto'!$D$4),\"Leve\",IF(OR(L52='Tabla Impacto'!$C$5,L52='Tabla Impacto'!$D$5),\"Menor\",IF(OR(L52='Tabla Impacto'!$C$6,L52='Tabla Impacto'!$D$6),\"Moderado\",IF(OR(L52='Tabla Impacto'!$C$7,L52='Tabla Impacto'!$D$7),\"Mayor\",IF(OR(L52='Tabla Impacto'!$C$8,L52='Tabla Impacto'!$D$8),\"Catastrófico\",\"\")))))","v":""},{"$f":"IF(N52=\"\",\"\",IF(N52=\"Leve\",0.2,IF(N52=\"Menor\",0.4,IF(N52=\"Moderado\",0.6,IF(N52=\"Mayor\",0.8,IF(N52=\"Catastrófico\",1, ))))))","v":""},{"$f":"IF(OR(AND(J52=\"Muy Baja\",N52=\"Leve\"),AND(J52=\"Muy Baja\",N52=\"Menor\"),AND(J52=\"Baja\",N52=\"Leve\")),\"Bajo\",IF(OR(AND(J52=\"Muy baja\",N52=\"Moderado\"),AND(J52=\"Baja\",N52=\"Menor\"),AND(J52=\"Baja\",N52=\"Moderado\"),AND(J52=\"Media\",N52=\"Leve\"),AND(J52=\"Media\",N52=\"Menor\"),AND(J52=\"Media\",N52=\"Moderado\"),AND(J52=\"Alta\",N52=\"Leve\"),AND(J52=\"Alta\",N52=\"Menor\")),\"Moderado\",IF(OR(AND(J52=\"Muy Baja\",N52=\"Mayor\"),AND(J52=\"Baja\",N52=\"Mayor\"),AND(J52=\"Media\",N52=\"Mayor\"),AND(J52=\"Alta\",N52=\"Moderado\"),AND(J52=\"Alta\",N52=\"Mayor\"),AND(J52=\"Muy Alta\",N52=\"Leve\"),AND(J52=\"Muy Alta\",N52=\"Menor\"),AND(J52=\"Muy Alta\",N52=\"Moderado\"),AND(J52=\"Muy Alta\",N52=\"Mayor\")),\"Alto\",IF(OR(AND(J52=\"Muy Baja\",N52=\"Catastrófico\"),AND(J52=\"Baja\",N52=\"Catastrófico\"),AND(J52=\"Media\",N52=\"Catastrófico\"),AND(J52=\"Alta\",N52=\"Catastrófico\"),AND(J52=\"Muy Alta\",N52=\"Catastrófico\")),\"Extremo\",\"\"))))","v":""},null,null,{"$f":"IF(OR(T52=\"Preventivo\",T52=\"Detectivo\"),\"Probabilidad\",IF(T52=\"Correctivo\",\"Impacto\",\"\"))","v":""},null,null,{"$f":"IF(AND(T52=\"Preventivo\",U52=\"Automático\"),\"50%\",IF(AND(T52=\"Preventivo\",U52=\"Manual\"),\"40%\",IF(AND(T52=\"Detectivo\",U52=\"Automático\"),\"40%\",IF(AND(T52=\"Detectivo\",U52=\"Manual\"),\"30%\",IF(AND(T52=\"Correctivo\",U52=\"Automático\"),\"35%\",IF(AND(T52=\"Correctivo\",U52=\"Manual\"),\"25%\",\"\"))))))","v":""},null,null,null,{"$f":"IFERROR(IF(S52=\"Probabilidad\",(K52-(+K52*V52)),IF(S52=\"Impacto\",K52,\"\")),\"\")","v":""},{"$f":"IFERROR(IF(Z52=\"\",\"\",IF(Z52<=0.2,\"Muy Baja\",IF(Z52<=0.4,\"Baja\",IF(Z52<=0.6,\"Media\",IF(Z52<=0.8,\"Alta\",\"Muy Alta\"))))),\"\")","v":""},{"$f":"+Z52","v":""},{"$f":"IFERROR(IF(AD52=\"\",\"\",IF(AD52<=0.2,\"Leve\",IF(AD52<=0.4,\"Menor\",IF(AD52<=0.6,\"Moderado\",IF(AD52<=0.8,\"Mayor\",\"Catastrófico\"))))),\"\")","v":""},{"$f":"IFERROR(IF(S52=\"Impacto\",(O52-(+O52*V52)),IF(S52=\"Probabilidad\",O52,\"\")),\"\")","v":""},{"$f":"IFERROR(IF(OR(AND(AA52=\"Muy Baja\",AC52=\"Leve\"),AND(AA52=\"Muy Baja\",AC52=\"Menor\"),AND(AA52=\"Baja\",AC52=\"Leve\")),\"Bajo\",IF(OR(AND(AA52=\"Muy baja\",AC52=\"Moderado\"),AND(AA52=\"Baja\",AC52=\"Menor\"),AND(AA52=\"Baja\",AC52=\"Moderado\"),AND(AA52=\"Media\",AC52=\"Leve\"),AND(AA52=\"Media\",AC52=\"Menor\"),AND(AA52=\"Media\",AC52=\"Moderado\"),AND(AA52=\"Alta\",AC52=\"Leve\"),AND(AA52=\"Alta\",AC52=\"Menor\")),\"Moderado\",IF(OR(AND(AA52=\"Muy Baja\",AC52=\"Mayor\"),AND(AA52=\"Baja\",AC52=\"Mayor\"),AND(AA52=\"Media\",AC52=\"Mayor\"),AND(AA52=\"Alta\",AC52=\"Moderado\"),AND(AA52=\"Alta\",AC52=\"Mayor\"),AND(AA52=\"Muy Alta\",AC52=\"Leve\"),AND(AA52=\"Muy Alta\",AC52=\"Menor\"),AND(AA52=\"Muy Alta\",AC52=\"Moderado\"),AND(AA52=\"Muy Alta\",AC52=\"Mayor\")),\"Alto\",IF(OR(AND(AA52=\"Muy Baja\",AC52=\"Catastrófico\"),AND(AA52=\"Baja\",AC52=\"Catastrófico\"),AND(AA52=\"Media\",AC52=\"Catastrófico\"),AND(AA52=\"Alta\",AC52=\"Catastrófico\"),AND(AA52=\"Muy Alta\",AC52=\"Catastrófico\")),\"Extremo\",\"\")))),\"\")","v":""}]
["Fuente:  Adaptado de Curso Riesgo Operativo Universidad del Rosario por Dirección de Gestión y Desempeño Institucional de Función Pública,  2020."]
[]
[]
[]
[]
["HISTORIAL DE CAMBIOS"]
[]
["VERSIÓN",null,"FECHA","DESCRIPCIÓN"]
["01",null,"15/03/2012","Creación del documento"]
["02",null,"15/12/2014","Actualización del documento"]
["03",null,"22/09/2015","Actualización del documento"]
["04",null,"01/11/2016","Actualización del documento"]
["05",null,"02/05/2017","Actualización del documento por creación del Proceso Gestión del SGI"]
["06",null,"01/08/2020","Actualización del documento por creación del Proceso Gestión de Cooperación y Asuntos Internacionales e inclusión del mapa de calor  y Estratégias para el tratamiento del riesgo"]
["07",null,"24/03/2021","Actualizallización de la matriz de acuerdo a la metodología de administración de riesgos del DAFP Diciembre 2020"]
[]
[]
["ELABORÓ:\n\n\nDaniel Díaz Díaz\nContratista OAP Sistema de Gestión Integrado",null,"REVISÓ:     \n\n         \n\nTelly de Jesús Month\nJefe Oficina Asesora de Planeación.","APROBÓ:\n\n\n\nTelly de Jesús Month\nJefe Oficina Asesora de Planeación"]

{"sheet":"Matriz Calor Inherente","index":2,"n_rows":46,"n_cols":41,"rows_kept":46,"cut":false,"hidden":true,"merged":[[7,31,8,32],[7,33,8,34],[7,35,8,36],[9,11,10,12],[9,13,10,14],[5,15,6,16],[5,17,6,18],[9,15,10,16],[9,17,10,18],[9,19,10,20],[9,21,10,22],[9,23,10,24],[5,35,6,36],[7,13,8,14],[7,15,8,16],[7,17,8,18],[7,19,8,20],[7,21,8,22],[7,23,8,24],[7,25,8,26],[7,27,8,28],[7,29,8,30],[7,9,8,10],[7,11,8,12],[11,9,12,10],[11,11,12,12],[11,13,12,14],[11,15,12,16],[11,17,12,18],[5,9,6,10],[9,9,10,10],[11,29,12,30],[11,31,12,32],[11,33,12,34],[11,35,12,36],[11,37,12,38],[13,11,14,12],[13,13,14,14],[13,15,14,16],[13,17,14,18],[13,19,14,20],[13,21,14,22],[13,23,14,24],[13,25,14,26],[13,27,14,28],[13,29,14,30],[13,31,14,32],[13,33,14,34],[13,35,14,36],[13,37,14,38],[17,29,18,30],[17,31,18,32],[17,33,18,34],[35,13,36,14],[35,15,36,16],[35,17,36,18],[35,19,36,20],[35,21,36,22],[35,23,36,24],[17,19,18,20],[17,21,18,22],[35,27,36,28],[35,29,36,30],[35,31,36,32],[35,25,36,26],[23,29,24,30],[23,31,24,32],[27,13,28,14],[27,15,28,16],[27,17,28,18],[27,19,28,20],[27,21,28,22],[27,23,28,24],[27,25,28,26],[11,19,12,20],[11,21,12,22],[15,19,16,20],[15,21,16,22],[15,23,16,24],[15,25,16,26],[15,27,16,28],[17,11,18,12],[17,13,18,14],[17,15,18,16],[17,17,18,18],[17,23,18,24],[17,25,18,26],[17,27,18,28],[15,11,16,12],[15,13,16,14],[15,15,16,16],[15,17,16,18],[11,23,12,24],[11,25,12,26],[11,27,12,28],[17,35,18,36],[17,37,18,38],[19,11,20,12],[19,13,20,14],[15,35,16,36],[19,35,20,36],[29,40,36,45],[35,35,36,36],[35,37,36,38],[15,29,16,30],[15,31,16,32],[15,33,16,34],[19,29,20,30],[19,31,20,32],[19,33,20,34],[13,40,20,45],[21,40,28,45],[33,27,34,28],[33,29,34,30],[33,31,34,32],[33,33,34,34],[33,35,34,36],[33,37,34,38],[35,11,36,12],[5,37,6,38],[5,40,12,45],[9,35,10,36],[9,37,10,38],[15,37,16,38],[19,37,20,38],[5,19,6,20],[5,21,6,22],[19,19,20,20],[19,21,20,22],[19,23,20,24],[19,25,20,26],[19,27,20,28],[5,23,6,24],[5,25,6,26],[5,27,6,28],[5,29,6,30],[5,31,6,32],[5,33,6,34],[9,25,10,26],[9,27,10,28],[9,29,10,30],[9,31,10,32],[9,33,10,34],[29,4,36,8],[29,9,30,10],[31,9,32,10],[33,9,34,10],[35,9,36,10],[37,11,38,12],[37,13,38,14],[37,15,38,16],[37,17,38,18],[29,11,30,12],[29,13,30,14],[29,15,30,16],[29,17,30,18],[33,11,34,12],[33,13,34,14],[33,15,34,16],[33,17,34,18],[37,37,38,38],[39,11,40,12],[39,13,40,14],[39,15,40,16],[39,17,40,18],[39,19,40,20],[39,21,40,22],[39,23,40,24],[39,25,40,26],[39,27,40,28],[39,29,40,30],[39,31,40,32],[39,33,40,34],[39,35,40,36],[39,37,40,38],[37,19,38,20],[37,21,38,22],[37,23,38,24],[37,25,38,26],[37,27,38,28],[37,29,38,30],[37,31,38,32],[37,33,38,34],[37,35,38,36],[37,4,44,8],[37,9,38,10],[39,9,40,10],[41,9,42,10],[43,9,44,10],[43,35,44,36],[41,11,42,12],[41,13,42,14],[41,15,42,16],[41,17,42,18],[41,19,42,20],[41,21,42,22],[41,23,42,24],[41,25,42,26],[41,27,42,28],[43,37,44,38],[1,1,3,8],[1,9,3,38],[5,1,44,3],[5,4,12,8],[5,11,6,12],[5,13,6,14],[7,37,8,38],[41,35,42,36],[41,37,42,38],[43,11,44,12],[43,13,44,14],[43,27,44,28],[43,29,44,30],[21,37,22,38],[23,11,24,12],[23,13,24,14],[23,15,24,16],[23,17,24,18],[23,19,24,20],[23,21,24,22],[23,23,24,24],[23,25,24,26],[23,27,24,28],[21,33,22,34],[21,35,22,36],[45,9,50,14],[43,15,44,16],[43,17,44,18],[45,15,50,20],[43,19,44,20],[43,21,44,22],[43,23,44,24],[43,25,44,26],[45,21,50,26],[41,29,42,30],[41,31,42,32],[41,33,42,34],[35,33,36,34],[27,11,28,12],[27,27,28,28],[27,29,28,30],[29,19,30,20],[29,21,30,22],[25,35,26,36],[25,37,26,38],[45,27,50,32],[45,33,50,38],[43,31,44,32],[43,33,44,34],[13,4,20,8],[13,9,14,10],[15,9,16,10],[17,9,18,10],[19,9,20,10],[19,15,20,16],[19,17,20,18],[21,11,22,12],[21,13,22,14],[21,15,22,16],[21,17,22,18],[21,19,22,20],[21,21,22,22],[21,23,22,24],[21,25,22,26],[21,27,22,28],[21,29,22,30],[21,31,22,32],[21,4,28,8],[21,9,22,10],[23,9,24,10],[25,9,26,10],[27,9,28,10],[27,31,28,32],[27,33,28,34],[27,35,28,36],[27,37,28,38],[23,33,24,34],[23,35,24,36],[23,37,24,38],[25,11,26,12],[25,13,26,14],[25,15,26,16],[25,17,26,18],[25,19,26,20],[25,21,26,22],[25,23,26,24],[25,25,26,26],[25,27,26,28],[25,29,26,30],[25,31,26,32],[25,33,26,34],[29,33,30,34],[29,35,30,36],[29,37,30,38],[31,11,32,12],[31,13,32,14],[31,15,32,16],[31,17,32,18],[31,19,32,20],[31,21,32,22],[31,23,32,24],[31,25,32,26],[31,27,32,28],[31,29,32,30],[31,31,32,32],[31,33,32,34],[31,35,32,36],[31,37,32,38],[33,19,34,20],[33,21,34,22],[33,23,34,24],[33,25,34,26],[29,23,30,24],[29,25,30,26],[29,27,30,28],[29,29,30,30],[29,31,30,32]]}
[]
[null,"Matriz de Calor Inherente",null,null,null,null,null,null,null,"Impacto"]
[]
[]
[]
[null,"Probabilidad",null,null,"Muy Alta\n100%",null,null,null,null,{"$f":"IF(AND('[1]Mapa final'!$J$9=\"Muy Alta\",'[1]Mapa final'!$N$9=\"Leve\"),CONCATENATE(\"R\",'[1]Mapa final'!$A$9),\"\")","v":{"$error":"#REF!"}},null,{"$f":"IF(AND('[1]Mapa final'!$J$10=\"Muy Alta\",'[1]Mapa final'!$N$10=\"Leve\"),CONCATENATE(\"R\",'[1]Mapa final'!$A$10),\"\")","v":{"$error":"#REF!"}},null,{"$f":"IF(AND('[1]Mapa final'!$J$11=\"Muy Alta\",'[1]Mapa final'!$N$11=\"Leve\"),CONCATENATE(\"R\",'[1]Mapa final'!$A$11),\"\")","v":{"$error":"#REF!"}},null,{"$f":"IF(AND('[1]Mapa final'!$J$9=\"Muy Alta\",'[1]Mapa final'!$N$9=\"Menor\"),CONCATENATE(\"R\",'[1]Mapa final'!$A$9),\"\")","v":{"$error":"#REF!"}},null,{"$f":"IF(AND('[1]Mapa final'!$J$10=\"Muy Alta\",'[1]Mapa final'!$N$10=\"Menor\"),CONCATENATE(\"R\",'[1]Mapa final'!$A$10),\"\")","v":{"$error":"#REF!"}},null,{"$f":"IF(AND('[1]Mapa final'!$J$11=\"Muy Alta\",'[1]Mapa final'!$N$11=\"Menor\"),CONCATENATE(\"R\",'[1]Mapa final'!$A$11),\"\")","v":{"$error":"#REF!"}},null,{"$f":"IF(AND('[1]Mapa final'!$J$9=\"Muy Alta\",'[1]Mapa final'!$N$9=\"Moderado\"),CONCATENATE(\"R\",'[1]Mapa final'!$A$9),\"\")","v":{"$error":"#REF!"}},null,{"$f":"IF(AND('[1]Mapa final'!$J$10=\"Muy Alta\",'[1]Mapa final'!$N$10=\"Moderado\"),CONCATENATE(\"R\",'[1]Mapa final'!$A$10),\"\")","v":{"$error":"#REF!"}},null,{"$f":"IF(AND('[1]Mapa final'!$J$11=\"Muy Alta\",'[1]Mapa final'!$N$11=\"Moderado\"),CONCATENATE(\"R\",'[1]Mapa final'!$A$11),\"\")","v":{"$error":"#REF!"}},null,{"$f":"IF(AND('[1]Mapa final'!$J$9=\"Muy Alta\",'[1]Mapa final'!$N$9=\"Mayor\"),CONCATENATE(\"R\",'[1]Mapa final'!$A$9),\"\")","v":{"$error":"#REF!"}},null,{"$f":"IF(AND('[1]Mapa final'!$J$10=\"Muy Alta\",'[1]Mapa final'!$N$10=\"Mayor\"),CONCATENATE(\"R\",'[1]Mapa final'!$A$10),\"\")","v":{"$error":"#REF!"}},null,{"$f":"IF(AND('[1]Mapa final'!$J$11=\"Muy Alta\",'[1]Mapa final'!$N$11=\"Mayor\"),CONCATENATE(\"R\",'[1]Mapa final'!$A$11),\"\")","v":{"$error":"#REF!"}},null,{"$f":"IF(AND('[1]Mapa final'!$J$9=\"Muy Alta\",'[1]Mapa final'!$N$9=\"Catastrófico\"),CONCATENATE(\"R\",'[1]Mapa final'!$A$9),\"\")","v":{"$error":"#REF!"}},null,{"$f":"IF(AND('[1]Mapa final'!$J$10=\"Muy Alta\",'[1]Mapa final'!$N$10=\"Catastrófico\"),CONCATENATE(\"R\",'[1]Mapa final'!$A$10),\"\")","v":{"$error":"#REF!"}},null,{"$f":"IF(AND('[1]Mapa final'!$J$11=\"Muy Alta\",'[1]Mapa final'!$N$11=\"Catastrófico\"),CONCATENATE(\"R\",'[1]Mapa final'!$A$11),\"\")","v":{"$error":"#REF!"}},null,null,"Extremo"]
[]
[null,null,null,null,null,null,null,null,null,{"$f":"IF(AND('[1]Mapa final'!$J$13=\"Muy Alta\",'[1]Mapa final'!$N$13=\"Leve\"),CONCATENATE(\"R\",'[1]Mapa final'!$A$13),\"\")","v":{"$error":"#REF!"}},null,{"$f":"IF(AND('[1]Mapa final'!$J$14=\"Muy Alta\",'[1]Mapa final'!$N$14=\"Leve\"),CONCATENATE(\"R\",'[1]Mapa final'!$A$14),\"\")","v":{"$error":"#REF!"}},null,{"$f":"IF(AND('[1]Mapa final'!$K$17=\"Muy Alta\",'[1]Mapa final'!$O$17=\"Leve\"),CONCATENATE(\"R\",'[1]Mapa final'!$A$17),\"\")","v":{"$error":"#REF!"}},null,{"$f":"IF(AND('[1]Mapa final'!$J$13=\"Muy Alta\",'[1]Mapa final'!$N$13=\"Menor\"),CONCATENATE(\"R\",'[1]Mapa final'!$A$13),\"\")","v":{"$error":"#REF!"}},null,{"$f":"IF(AND('[1]Mapa final'!$J$14=\"Muy Alta\",'[1]Mapa final'!$N$14=\"Menor\"),CONCATENATE(\"R\",'[1]Mapa final'!$A$14),\"\")","v":{"$error":"#REF!"}},null,{"$f":"IF(AND('[1]Mapa final'!$K$17=\"Muy Alta\",'[1]Mapa final'!$O$17=\"Menor\"),CONCATENATE(\"R\",'[1]Mapa final'!$A$17),\"\")","v":{"$error":"#REF!"}},null,{"$f":"IF(AND('[1]Mapa final'!$J$13=\"Muy Alta\",'[1]Mapa final'!$N$13=\"Moderado\"),CONCATENATE(\"R\",'[1]Mapa final'!$A$13),\"\")","v":{"$error":"#REF!"}},null,{"$f":"IF(AND('[1]Mapa final'!$J$14=\"Muy Alta\",'[1]Mapa final'!$N$14=\"Moderado\"),CONCATENATE(\"R\",'[1]Mapa final'!$A$14),\"\")","v":{"$error":"#REF!"}},null,{"$f":"IF(AND('[1]Mapa final'!$K$17=\"Muy Alta\",'[1]Mapa final'!$O$17=\"Moderado\"),CONCATENATE(\"R\",'[1]Mapa final'!$A$17),\"\")","v":{"$error":"#REF!"}},null,{"$f":"IF(AND('[1]Mapa final'!$J$13=\"Muy Alta\",'[1]Mapa final'!$N$13=\"Mayor\"),CONCATENATE(\"R\",'[1]Mapa final'!$A$13),\"\")","v":{"$error":"#REF!"}},null,{"$f":"IF(AND('[1]Mapa final'!$J$14=\"Muy Alta\",'[1]Mapa final'!$N$14=\"Mayor\"),CONCATENATE(\"R\",'[1]Mapa final'!$A$14),\"\")","v":{"$error":"#REF!"}},null,{"$f":"IF(AND('[1]Mapa final'!$K$17=\"Muy Alta\",'[1]Mapa final'!$O$17=\"Mayor\"),CONCATENATE(\"R\",'[1]Mapa final'!$A$17),\"\")","v":{"$error":"#REF!"}},null,{"$f":"IF(AND('[1]Mapa final'!$J$13=\"Muy Alta\",'[1]Mapa final'!$N$13=\"Catastrófico\"),CONCATENATE(\"R\",'[1]Mapa final'!$A$13),\"\")","v":{"$error":"#REF!"}},null,{"$f":"IF(AND('[1]Mapa final'!$J$14=\"Muy Alta\",'[1]Mapa final'!$N$14=\"Catastrófico\"),CONCATENATE(\"R\",'[1]Mapa final'!$A$14),\"\")","v":{"$error":"#REF!"}},null,{"$f":"IF(AND('[1]Mapa final'!$K$17=\"Muy Alta\",'[1]Mapa final'!$O$17=\"Catastrófico\"),CONCATENATE(\"R\",'[1]Mapa final'!$A$17),\"\")","v":{"$error":"#REF!"}}]
[]
[null,null,null,null,null,null,null,null,null,{"$f":"IF(AND('[1]Mapa final'!$J$18=\"Muy Alta\",'[1]Mapa final'!$N$18=\"Leve\"),CONCATENATE(\"R\",'[1]Mapa final'!$A$18),\"\")","v":{"$error":"#REF!"}},null,{"$f":"IF(AND('[1]Mapa final'!$J$19=\"Muy Alta\",'[1]Mapa final'!$N$19=\"Leve\"),CONCATENATE(\"R\",'[1]Mapa final'!$A$19),\"\")","v":{"$error":"#REF!"}},null,{"$f":"IF(AND('[1]Mapa final'!$J$20=\"Muy Alta\",'[1]Mapa final'!$N$20=\"Leve\"),CONCATENATE(\"R\",'[1]Mapa final'!$A$20),\"\")","v":{"$error":"#REF!"}},null,{"$f":"IF(AND('[1]Mapa final'!$J$18=\"Muy Alta\",'[1]Mapa final'!$N$18=\"Menor\"),CONCATENATE(\"R\",'[1]Mapa final'!$A$18),\"\")","v":{"$error":"#REF!"}},null,{"$f":"IF(AND('[1]Mapa final'!$J$19=\"Muy Alta\",'[1]Mapa final'!$N$19=\"Menor\"),CONCATENATE(\"R\",'[1]Mapa final'!$A$19),\"\")","v":{"$error":"#REF!"}},null,{"$f":"IF(AND('[1]Mapa final'!$J$20=\"Muy Alta\",'[1]Mapa final'!$N$20=\"Menor\"),CONCATENATE(\"R\",'[1]Mapa final'!$A$20),\"\")","v":{"$error":"#REF!"}},null,{"$f":"IF(AND('[1]Mapa final'!$J$18=\"Muy Alta\",'[1]Mapa final'!$N$18=\"Moderado\"),CONCATENATE(\"R\",'[1]Mapa final'!$A$18),\"\")","v":{"$error":"#REF!"}},null,{"$f":"IF(AND('[1]Mapa final'!$J$19=\"Muy Alta\",'[1]Mapa final'!$N$19=\"Moderado\"),CONCATENATE(\"R\",'[1]Mapa final'!$A$19),\"\")","v":{"$error":"#REF!"}},null,{"$f":"IF(AND('[1]Mapa final'!$J$20=\"Muy Alta\",'[1]Mapa final'!$N$20=\"Moderado\"),CONCATENATE(\"R\",'[1]Mapa final'!$A$20),\"\")","v":{"$error":"#REF!"}},null,{"$f":"IF(AND('[1]Mapa final'!$J$18=\"Muy Alta\",'[1]Mapa final'!$N$18=\"Mayor\"),CONCATENATE(\"R\",'[1]Mapa final'!$A$18),\"\")","v":{"$error":"#REF!"}},null,{"$f":"IF(AND('[1]Mapa final'!$J$19=\"Muy Alta\",'[1]Mapa final'!$N$19=\"Mayor\"),CONCATENATE(\"R\",'[1]Mapa final'!$A$19),\"\")","v":{"$error":"#REF!"}},null,{"$f":"IF(AND('[1]Mapa final'!$J$20=\"Muy Alta\",'[1]Mapa final'!$N$20=\"Mayor\"),CONCATENATE(\"R\",'[1]Mapa final'!$A$20),\"\")","v":{"$error":"#REF!"}},null,{"$f":"IF(AND('[1]Mapa final'!$J$18=\"Muy Alta\",'[1]Mapa final'!$N$18=\"Catastrófico\"),CONCATENATE(\"R\",'[1]Mapa final'!$A$18),\"\")","v":{"$error":"#REF!"}},null,{"$f":"IF(AND('[1]Mapa final'!$J$19=\"Muy Alta\",'[1]Mapa final'!$N$19=\"Catastrófico\"),CONCATENATE(\"R\",'[1]Mapa final'!$A$19),\"\")","v":{"$error":"#REF!"}},null,{"$f":"IF(AND('[1]Mapa final'!$J$20=\"Muy Alta\",'[1]Mapa final'!$N$20=\"Catastrófico\"),CONCATENATE(\"R\",'[1]Mapa final'!$A$20),\"\")","v":{"$error":"#REF!"}}]
[]
[null,null,null,null,null,null,null,null,null,{"$f":"IF(AND('[1]Mapa final'!$J$21=\"Muy Alta\",'[1]Mapa final'!$N$21=\"Leve\"),CONCATENATE(\"R\",'[1]Mapa final'!$A$21),\"\")","v":{"$error":"#REF!"}},null,{"$f":"IF(AND('[1]Mapa final'!$J$149=\"Muy Alta\",'[1]Mapa final'!$N$149=\"Leve\"),CONCATENATE(\"R\",'[1]Mapa final'!#REF!),\"\")","v":{"$error":"#REF!"}},null,{"$f":"IF(AND('[1]Mapa final'!$J$155=\"Muy Alta\",'[1]Mapa final'!$N$155=\"Leve\"),CONCATENATE(\"R\",'[1]Mapa final'!#REF!),\"\")","v":{"$error":"#REF!"}},null,{"$f":"IF(AND('[1]Mapa final'!$J$21=\"Muy Alta\",'[1]Mapa final'!$N$21=\"Menor\"),CONCATENATE(\"R\",'[1]Mapa final'!$A$21),\"\")","v":{"$error":"#REF!"}},null,{"$f":"IF(AND('[1]Mapa final'!$J$149=\"Muy Alta\",'[1]Mapa final'!$N$149=\"Menor\"),CONCATENATE(\"R\",'[1]Mapa final'!#REF!),\"\")","v":{"$error":"#REF!"}},null,{"$f":"IF(AND('[1]Mapa final'!$J$155=\"Muy Alta\",'[1]Mapa final'!$N$155=\"Menor\"),CONCATENATE(\"R\",'[1]Mapa final'!#REF!),\"\")","v":{"$error":"#REF!"}},null,{"$f":"IF(AND('[1]Mapa final'!$J$21=\"Muy Alta\",'[1]Mapa final'!$N$21=\"Moderado\"),CONCATENATE(\"R\",'[1]Mapa final'!$A$21),\"\")","v":{"$error":"#REF!"}},null,{"$f":"IF(AND('[1]Mapa final'!$J$149=\"Muy Alta\",'[1]Mapa final'!$N$149=\"Moderado\"),CONCATENATE(\"R\",'[1]Mapa final'!#REF!),\"\")","v":{"$error":"#REF!"}},null,{"$f":"IF(AND('[1]Mapa final'!$J$155=\"Muy Alta\",'[1]Mapa final'!$N$155=\"Moderado\"),CONCATENATE(\"R\",'[1]Mapa final'!#REF!),\"\")","v":{"$error":"#REF!"}},null,{"$f":"IF(AND('[1]Mapa final'!$J$21=\"Muy Alta\",'[1]Mapa final'!$N$21=\"Mayor\"),CONCATENATE(\"R\",'[1]Mapa final'!$A$21),\"\")","v":{"$error":"#REF!"}},null,{"$f":"IF(AND('[1]Mapa final'!$J$149=\"Muy Alta\",'[1]Mapa final'!$N$149=\"Mayor\"),CONCATENATE(\"R\",'[1]Mapa final'!#REF!),\"\")","v":{"$error":"#REF!"}},null,{"$f":"IF(AND('[1]Mapa final'!$J$155=\"Muy Alta\",'[1]Mapa final'!$N$155=\"Mayor\"),CONCATENATE(\"R\",'[1]Mapa final'!#REF!),\"\")","v":{"$error":"#REF!"}},null,{"$f":"IF(AND('[1]Mapa final'!$J$21=\"Muy Alta\",'[1]Mapa final'!$N$21=\"Catastrófico\"),CONCATENATE(\"R\",'[1]Mapa final'!$A$21),\"\")","v":{"$error":"#REF!"}},null,{"$f":"IF(AND('[1]Mapa final'!$J$149=\"Muy Alta\",'[1]Mapa final'!$N$149=\"Catastrófico\"),CONCATENATE(\"R\",'[1]Mapa final'!#REF!),\"\")","v":{"$error":"#REF!"}},null,{"$f":"IF(AND('[1]Mapa final'!$J$155=\"Muy Alta\",'[1]Mapa final'!$N$155=\"Catastrófico\"),CONCATENATE(\"R\",'[1]Mapa final'!#REF!),\"\")","v":{"$error":"#REF!"}}]
[]
[null,null,null,null,"Alta\n80%",null,null,null,null,{"$f":"IF(AND('[1]Mapa final'!$J$9=\"Alta\",'[1]Mapa final'!$N$9=\"Leve\"),CONCATENATE(\"R\",'[1]Mapa final'!$A$9),\"\")","v":{"$error":"#REF!"}},null,{"$f":"IF(AND('[1]Mapa final'!$J$10=\"Alta\",'[1]Mapa final'!$N$10=\"Leve\"),CONCATENATE(\"R\",'[1]Mapa final'!$A$10),\"\")","v":{"$error":"#REF!"}},null,{"$f":"IF(AND('[1]Mapa final'!$J$11=\"Alta\",'[1]Mapa final'!$N$11=\"Leve\"),CONCATENATE(\"R\",'[1]Mapa final'!$A$11),\"\")","v":{"$error":"#REF!"}},null,{"$f":"IF(AND('[1]Mapa final'!$J$9=\"Alta\",'[1]Mapa final'!$N$9=\"Menor\"),CONCATENATE(\"R\",'[1]Mapa final'!$A$9),\"\")","v":{"$error":"#REF!"}},null,{"$f":"IF(AND('[1]Mapa final'!$J$10=\"Alta\",'[1]Mapa final'!$N$10=\"Menor\"),CONCATENATE(\"R\",'[1]Mapa final'!$A$10),\"\")","v":{"$error":"#REF!"}},null,{"$f":"IF(AND('[1]Mapa final'!$J$11=\"Alta\",'[1]Mapa final'!$N$11=\"Menor\"),CONCATENATE(\"R\",'[1]Mapa final'!$A$11),\"\")","v":{"$error":"#REF!"}},null,{"$f":"IF(AND('[1]Mapa final'!$J$9=\"Alta\",'[1]Mapa final'!$N$9=\"Moderado\"),CONCATENATE(\"R\",'[1]Mapa final'!$A$9),\"\")","v":{"$error":"#REF!"}},null,{"$f":"IF(AND('[1]Mapa final'!$J$10=\"Alta\",'[1]Mapa final'!$N$10=\"Moderado\"),CONCATENATE(\"R\",'[1]Mapa final'!$A$10),\"\")","v":{"$error":"#REF!"}},null,{"$f":"IF(AND('[1]Mapa final'!$J$11=\"Alta\",'[1]Mapa final'!$N$11=\"Moderado\"),CONCATENATE(\"R\",'[1]Mapa final'!$A$11),\"\")","v":{"$error":"#REF!"}},null,{"$f":"IF(AND('[1]Mapa final'!$J$9=\"Alta\",'[1]Mapa final'!$N$9=\"Mayor\"),CONCATENATE(\"R\",'[1]Mapa final'!$A$9),\"\")","v":{"$error":"#REF!"}},null,{"$f":"IF(AND('[1]Mapa final'!$J$10=\"Alta\",'[1]Mapa final'!$N$10=\"Mayor\"),CONCATENATE(\"R\",'[1]Mapa final'!$A$10),\"\")","v":{"$error":"#REF!"}},null,{"$f":"IF(AND('[1]Mapa final'!$J$11=\"Alta\",'[1]Mapa final'!$N$11=\"Mayor\"),CONCATENATE(\"R\",'[1]Mapa final'!$A$11),\"\")","v":{"$error":"#REF!"}},null,{"$f":"IF(AND('[1]Mapa final'!$J$9=\"Alta\",'[1]Mapa final'!$N$9=\"Catastrófico\"),CONCATENATE(\"R\",'[1]Mapa final'!$A$9),\"\")","v":{"$error":"#REF!"}},null,{"$f":"IF(AND('[1]Mapa final'!$J$10=\"Alta\",'[1]Mapa final'!$N$10=\"Catastrófico\"),CONCATENATE(\"R\",'[1]Mapa final'!$A$10),\"\")","v":{"$error":"#REF!"}},null,{"$f":"IF(AND('[1]Mapa final'!$J$11=\"Alta\",'[1]Mapa final'!$N$11=\"Catastrófico\"),CONCATENATE(\"R\",'[1]Mapa final'!$A$11),\"\")","v":{"$error":"#REF!"}},null,null,"Alto"]
[]
[null,null,null,null,null,null,null,null,null,{"$f":"IF(AND('[1]Mapa final'!$J$13=\"Alta\",'[1]Mapa final'!$N$13=\"Leve\"),CONCATENATE(\"R\",'[1]Mapa final'!$A$13),\"\")","v":{"$error":"#REF!"}},null,{"$f":"IF(AND('[1]Mapa final'!$J$14=\"Alta\",'[1]Mapa final'!$N$14=\"Leve\"),CONCATENATE(\"R\",'[1]Mapa final'!$A$14),\"\")","v":{"$error":"#REF!"}},null,{"$f":"IF(AND('[1]Mapa final'!$K$17=\"Alta\",'[1]Mapa final'!$O$17=\"Leve\"),CONCATENATE(\"R\",'[1]Mapa final'!$A$17),\"\")","v":{"$error":"#REF!"}},null,{"$f":"IF(AND('[1]Mapa final'!$J$13=\"Alta\",'[1]Mapa final'!$N$13=\"Menor\"),CONCATENATE(\"R\",'[1]Mapa final'!$A$13),\"\")","v":{"$error":"#REF!"}},null,{"$f":"IF(AND('[1]Mapa final'!$J$14=\"Alta\",'[1]Mapa final'!$N$14=\"Menor\"),CONCATENATE(\"R\",'[1]Mapa final'!$A$14),\"\")","v":{"$error":"#REF!"}},null,{"$f":"IF(AND('[1]Mapa final'!$K$17=\"Alta\",'[1]Mapa final'!$O$17=\"Menor\"),CONCATENATE(\"R\",'[1]Mapa final'!$A$17),\"\")","v":{"$error":"#REF!"}},null,{"$f":"IF(AND('[1]Mapa final'!$J$13=\"Alta\",'[1]Mapa final'!$N$13=\"Moderado\"),CONCATENATE(\"R\",'[1]Mapa final'!$A$13),\"\")","v":{"$error":"#REF!"}},null,{"$f":"IF(AND('[1]Mapa final'!$J$14=\"Alta\",'[1]Mapa final'!$N$14=\"Moderado\"),CONCATENATE(\"R\",'[1]Mapa final'!$A$14),\"\")","v":{"$error":"#REF!"}},null,{"$f":"IF(AND('[1]Mapa final'!$K$17=\"Alta\",'[1]Mapa final'!$O$17=\"Moderado\"),CONCATENATE(\"R\",'[1]Mapa final'!$A$17),\"\")","v":{"$error":"#REF!"}},null,{"$f":"IF(AND('[1]Mapa final'!$J$13=\"Alta\",'[1]Mapa final'!$N$13=\"Mayor\"),CONCATENATE(\"R\",'[1]Mapa final'!$A$13),\"\")","v":{"$error":"#REF!"}},null,{"$f":"IF(AND('[1]Mapa final'!$J$14=\"Alta\",'[1]Mapa final'!$N$14=\"Mayor\"),CONCATENATE(\"R\",'[1]Mapa final'!$A$14),\"\")","v":{"$error":"#REF!"}},null,{"$f":"IF(AND('[1]Mapa final'!$K$17=\"Alta\",'[1]Mapa final'!$O$17=\"Mayor\"),CONCATENATE(\"R\",'[1]Mapa final'!$A$17),\"\")","v":{"$error":"#REF!"}},null,{"$f":"IF(AND('[1]Mapa final'!$J$13=\"Alta\",'[1]Mapa final'!$N$13=\"Catastrófico\"),CONCATENATE(\"R\",'[1]Mapa final'!$A$13),\"\")","v":{"$error":"#REF!"}},null,{"$f":"IF(AND('[1]Mapa final'!$J$14=\"Alta\",'[1]Mapa final'!$N$14=\"Catastrófico\"),CONCATENATE(\"R\",'[1]Mapa final'!$A$14),\"\")","v":{"$error":"#REF!"}},null,{"$f":"IF(AND('[1]Mapa final'!$K$17=\"Alta\",'[1]Mapa final'!$O$17=\"Catastrófico\"),CONCATENATE(\"R\",'[1]Mapa final'!$A$17),\"\")","v":{"$error":"#REF!"}}]
[]
[null,null,null,null,null,null,null,null,null,{"$f":"IF(AND('[1]Mapa final'!$J$18=\"Alta\",'[1]Mapa final'!$N$18=\"Leve\"),CONCATENATE(\"R\",'[1]Mapa final'!$A$18),\"\")","v":{"$error":"#REF!"}},null,{"$f":"IF(AND('[1]Mapa final'!$J$19=\"Alta\",'[1]Mapa final'!$N$19=\"Leve\"),CONCATENATE(\"R\",'[1]Mapa final'!$A$19),\"\")","v":{"$error":"#REF!"}},null,{"$f":"IF(AND('[1]Mapa final'!$J$20=\"Alta\",'[1]Mapa final'!$N$20=\"Leve\"),CONCATENATE(\"R\",'[1]Mapa final'!$A$20),\"\")","v":{"$error":"#REF!"}},null,{"$f":"IF(AND('[1]Mapa final'!$J$18=\"Alta\",'[1]Mapa final'!$N$18=\"Menor\"),CONCATENATE(\"R\",'[1]Mapa final'!$A$18),\"\")","v":{"$error":"#REF!"}},null,{"$f":"IF(AND('[1]Mapa final'!$J$19=\"Alta\",'[1]Mapa final'!$N$19=\"Menor\"),CONCATENATE(\"R\",'[1]Mapa final'!$A$19),\"\")","v":{"$error":"#REF!"}},null,{"$f":"IF(AND('[1]Mapa final'!$J$20=\"Alta\",'[1]Mapa final'!$N$20=\"Menor\"),CONCATENATE(\"R\",'[1]Mapa final'!$A$20),\"\")","v":{"$error":"#REF!"}},null,{"$f":"IF(AND('[1]Mapa final'!$J$18=\"Alta\",'[1]Mapa final'!$N$18=\"Moderado\"),CONCATENATE(\"R\",'[1]Mapa final'!$A$18),\"\")","v":{"$error":"#REF!"}},null,{"$f":"IF(AND('[1]Mapa final'!$J$19=\"Alta\",'[1]Mapa final'!$N$19=\"Moderado\"),CONCATENATE(\"R\",'[1]Mapa final'!$A$19),\"\")","v":{"$error":"#REF!"}},null,{"$f":"IF(AND('[1]Mapa final'!$J$20=\"Alta\",'[1]Mapa final'!$N$20=\"Moderado\"),CONCATENATE(\"R\",'[1]Mapa final'!$A$20),\"\")","v":{"$error":"#REF!"}},null,{"$f":"IF(AND('[1]Mapa final'!$J$18=\"Alta\",'[1]Mapa final'!$N$18=\"Mayor\"),CONCATENATE(\"R\",'[1]Mapa final'!$A$18),\"\")","v":{"$error":"#REF!"}},null,{"$f":"IF(AND('[1]Mapa final'!$J$19=\"Alta\",'[1]Mapa final'!$N$19=\"Mayor\"),CONCATENATE(\"R\",'[1]Mapa final'!$A$19),\"\")","v":{"$error":"#REF!"}},null,{"$f":"IF(AND('[1]Mapa final'!$J$20=\"Alta\",'[1]Mapa final'!$N$20=\"Mayor\"),CONCATENATE(\"R\",'[1]Mapa final'!$A$20),\"\")","v":{"$error":"#REF!"}},null,{"$f":"IF(AND('[1]Mapa final'!$J$18=\"Alta\",'[1]Mapa final'!$N$18=\"Catastrófico\"),CONCATENATE(\"R\",'[1]Mapa final'!$A$18),\"\")","v":{"$error":"#REF!"}},null,{"$f":"IF(AND('[1]Mapa final'!$J$19=\"Alta\",'[1]Mapa final'!$N$19=\"Catastrófico\"),CONCATENATE(\"R\",'[1]Mapa final'!$A$19),\"\")","v":{"$error":"#REF!"}},null,{"$f":"IF(AND('[1]Mapa final'!$J$20=\"Alta\",'[1]Mapa final'!$N$20=\"Catastrófico\"),CONCATENATE(\"R\",'[1]Mapa final'!$A$20),\"\")","v":{"$error":"#REF!"}}]
[]
[null,null,null,null,null,null,null,null,null,{"$f":"IF(AND('[1]Mapa final'!$J$21=\"Alta\",'[1]Mapa final'!$N$21=\"Leve\"),CONCATENATE(\"R\",'[1]Mapa final'!$A$21),\"\")","v":{"$error":"#REF!"}},null,{"$f":"IF(AND('[1]Mapa final'!$J$149=\"Alta\",'[1]Mapa final'!$N$149=\"Leve\"),CONCATENATE(\"R\",'[1]Mapa final'!#REF!),\"\")","v":{"$error":"#REF!"}},null,{"$f":"IF(AND('[1]Mapa final'!$J$155=\"Alta\",'[1]Mapa final'!$N$155=\"Leve\"),CONCATENATE(\"R\",'[1]Mapa final'!#REF!),\"\")","v":{"$error":"#REF!"}},null,{"$f":"IF(AND('[1]Mapa final'!$J$21=\"Alta\",'[1]Mapa final'!$N$21=\"Menor\"),CONCATENATE(\"R\",'[1]Mapa final'!$A$21),\"\")","v":{"$error":"#REF!"}},null,{"$f":"IF(AND('[1]Mapa final'!$J$149=\"Alta\",'[1]Mapa final'!$N$149=\"Menor\"),CONCATENATE(\"R\",'[1]Mapa final'!#REF!),\"\")","v":{"$error":"#REF!"}},null,{"$f":"IF(AND('[1]Mapa final'!$J$155=\"Alta\",'[1]Mapa final'!$N$155=\"Menor\"),CONCATENATE(\"R\",'[1]Mapa final'!#REF!),\"\")","v":{"$error":"#REF!"}},null,{"$f":"IF(AND('[1]Mapa final'!$J$21=\"Alta\",'[1]Mapa final'!$N$21=\"Moderado\"),CONCATENATE(\"R\",'[1]Mapa final'!$A$21),\"\")","v":{"$error":"#REF!"}},null,{"$f":"IF(AND('[1]Mapa final'!$J$149=\"Alta\",'[1]Mapa final'!$N$149=\"Moderado\"),CONCATENATE(\"R\",'[1]Mapa final'!#REF!),\"\")","v":{"$error":"#REF!"}},null,{"$f":"IF(AND('[1]Mapa final'!$J$155=\"Alta\",'[1]Mapa final'!$N$155=\"Moderado\"),CONCATENATE(\"R\",'[1]Mapa final'!#REF!),\"\")","v":{"$error":"#REF!"}},null,{"$f":"IF(AND('[1]Mapa final'!$J$21=\"Alta\",'[1]Mapa final'!$N$21=\"Mayor\"),CONCATENATE(\"R\",'[1]Mapa final'!$A$21),\"\")","v":{"$error":"#REF!"}},null,{"$f":"IF(AND('[1]Mapa final'!$J$149=\"Alta\",'[1]Mapa final'!$N$149=\"Mayor\"),CONCATENATE(\"R\",'[1]Mapa final'!#REF!),\"\")","v":{"$error":"#REF!"}},null,{"$f":"IF(AND('[1]Mapa final'!$J$155=\"Alta\",'[1]Mapa final'!$N$155=\"Mayor\"),CONCATENATE(\"R\",'[1]Mapa final'!#REF!),\"\")","v":{"$error":"#REF!"}},null,{"$f":"IF(AND('[1]Mapa final'!$J$21=\"Alta\",'[1]Mapa final'!$N$21=\"Catastrófico\"),CONCATENATE(\"R\",'[1]Mapa final'!$A$21),\"\")","v":{"$error":"#REF!"}},null,{"$f":"IF(AND('[1]Mapa final'!$J$149=\"Alta\",'[1]Mapa final'!$N$149=\"Catastrófico\"),CONCATENATE(\"R\",'[1]Mapa final'!#REF!),\"\")","v":{"$error":"#REF!"}},null,{"$f":"IF(AND('[1]Mapa final'!$J$155=\"Alta\",'[1]Mapa final'!$N$155=\"Catastrófico\"),CONCATENATE(\"R\",'[1]Mapa final'!#REF!),\"\")","v":{"$error":"#REF!"}}]
[]
[null,null,null,null,"Media\n60%",null,null,null,null,{"$f":"IF(AND('[1]Mapa final'!$J$9=\"Media\",'[1]Mapa final'!$N$9=\"Leve\"),CONCATENATE(\"R\",'[1]Mapa final'!$A$9),\"\")","v":{"$error":"#REF!"}},null,{"$f":"IF(AND('[1]Mapa final'!$J$10=\"Media\",'[1]Mapa final'!$N$10=\"Leve\"),CONCATENATE(\"R\",'[1]Mapa final'!$A$10),\"\")","v":{"$error":"#REF!"}},null,{"$f":"IF(AND('[1]Mapa final'!$J$11=\"Media\",'[1]Mapa final'!$N$11=\"Leve\"),CONCATENATE(\"R\",'[1]Mapa final'!$A$11),\"\")","v":{"$error":"#REF!"}},null,{"$f":"IF(AND('[1]Mapa final'!$J$9=\"Media\",'[1]Mapa final'!$N$9=\"Menor\"),CONCATENATE(\"R\",'[1]Mapa final'!$A$9),\"\")","v":{"$error":"#REF!"}},null,{"$f":"IF(AND('[1]Mapa final'!$J$10=\"Media\",'[1]Mapa final'!$N$10=\"Menor\"),CONCATENATE(\"R\",'[1]Mapa final'!$A$10),\"\")","v":{"$error":"#REF!"}},null,{"$f":"IF(AND('[1]Mapa final'!$J$11=\"Media\",'[1]Mapa final'!$N$11=\"Menor\"),CONCATENATE(\"R\",'[1]Mapa final'!$A$11),\"\")","v":{"$error":"#REF!"}},null,{"$f":"IF(AND('[1]Mapa final'!$J$9=\"Media\",'[1]Mapa final'!$N$9=\"Moderado\"),CONCATENATE(\"R\",'[1]Mapa final'!$A$9),\"\")","v":{"$error":"#REF!"}},null,{"$f":"IF(AND('[1]Mapa final'!$J$10=\"Media\",'[1]Mapa final'!$N$10=\"Moderado\"),CONCATENATE(\"R\",'[1]Mapa final'!$A$10),\"\")","v":{"$error":"#REF!"}},null,{"$f":"IF(AND('[1]Mapa final'!$J$11=\"Media\",'[1]Mapa final'!$N$11=\"Moderado\"),CONCATENATE(\"R\",'[1]Mapa final'!$A$11),\"\")","v":{"$error":"#REF!"}},null,{"$f":"IF(AND('[1]Mapa final'!$J$9=\"Media\",'[1]Mapa final'!$N$9=\"Mayor\"),CONCATENATE(\"R\",'[1]Mapa final'!$A$9),\"\")","v":{"$error":"#REF!"}},null,{"$f":"IF(AND('[1]Mapa final'!$J$10=\"Media\",'[1]Mapa final'!$N$10=\"Mayor\"),CONCATENATE(\"R\",'[1]Mapa final'!$A$10),\"\")","v":{"$error":"#REF!"}},null,{"$f":"IF(AND('[1]Mapa final'!$J$11=\"Media\",'[1]Mapa final'!$N$11=\"Mayor\"),CONCATENATE(\"R\",'[1]Mapa final'!$A$11),\"\")","v":{"$error":"#REF!"}},null,{"$f":"IF(AND('[1]Mapa final'!$J$9=\"Media\",'[1]Mapa final'!$N$9=\"Catastrófico\"),CONCATENATE(\"R\",'[1]Mapa final'!$A$9),\"\")","v":{"$error":"#REF!"}},null,{"$f":"IF(AND('[1]Mapa final'!$J$10=\"Media\",'[1]Mapa final'!$N$10=\"Catastrófico\"),CONCATENATE(\"R\",'[1]Mapa final'!$A$10),\"\")","v":{"$error":"#REF!"}},null,{"$f":"IF(AND('[1]Mapa final'!$J$11=\"Media\",'[1]Mapa final'!$N$11=\"Catastrófico\"),CONCATENATE(\"R\",'[1]Mapa final'!$A$11),\"\")","v":{"$error":"#REF!"}},null,null,"Moderado"]
[]
[null,null,null,null,null,null,null,null,null,{"$f":"IF(AND('[1]Mapa final'!$J$13=\"Media\",'[1]Mapa final'!$N$13=\"Leve\"),CONCATENATE(\"R\",'[1]Mapa final'!$A$13),\"\")","v":{"$error":"#REF!"}},null,{"$f":"IF(AND('[1]Mapa final'!$J$14=\"Media\",'[1]Mapa final'!$N$14=\"Leve\"),CONCATENATE(\"R\",'[1]Mapa final'!$A$14),\"\")","v":{"$error":"#REF!"}},null,{"$f":"IF(AND('[1]Mapa final'!$K$17=\"Media\",'[1]Mapa final'!$O$17=\"Leve\"),CONCATENATE(\"R\",'[1]Mapa final'!$A$17),\"\")","v":{"$error":"#REF!"}},null,{"$f":"IF(AND('[1]Mapa final'!$J$13=\"Media\",'[1]Mapa final'!$N$13=\"Menor\"),CONCATENATE(\"R\",'[1]Mapa final'!$A$13),\"\")","v":{"$error":"#REF!"}},null,{"$f":"IF(AND('[1]Mapa final'!$J$14=\"Media\",'[1]Mapa final'!$N$14=\"Menor\"),CONCATENATE(\"R\",'[1]Mapa final'!$A$14),\"\")","v":{"$error":"#REF!"}},null,{"$f":"IF(AND('[1]Mapa final'!$K$17=\"Media\",'[1]Mapa final'!$O$17=\"Menor\"),CONCATENATE(\"R\",'[1]Mapa final'!$A$17),\"\")","v":{"$error":"#REF!"}},null,{"$f":"IF(AND('[1]Mapa final'!$J$13=\"Media\",'[1]Mapa final'!$N$13=\"Moderado\"),CONCATENATE(\"R\",'[1]Mapa final'!$A$13),\"\")","v":{"$error":"#REF!"}},null,{"$f":"IF(AND('[1]Mapa final'!$J$14=\"Media\",'[1]Mapa final'!$N$14=\"Moderado\"),CONCATENATE(\"R\",'[1]Mapa final'!$A$14),\"\")","v":{"$error":"#REF!"}},null,{"$f":"IF(AND('[1]Mapa final'!$K$17=\"Media\",'[1]Mapa final'!$O$17=\"Moderado\"),CONCATENATE(\"R\",'[1]Mapa final'!$A$17),\"\")","v":{"$error":"#REF!"}},null,{"$f":"IF(AND('[1]Mapa final'!$J$13=\"Media\",'[1]Mapa final'!$N$13=\"Mayor\"),CONCATENATE(\"R\",'[1]Mapa final'!$A$13),\"\")","v":{"$error":"#REF!"}},null,{"$f":"IF(AND('[1]Mapa final'!$J$14=\"Media\",'[1]Mapa final'!$N$14=\"Mayor\"),CONCATENATE(\"R\",'[1]Mapa final'!$A$14),\"\")","v":{"$error":"#REF!"}},null,{"$f":"IF(AND('[1]Mapa final'!$K$17=\"Media\",'[1]Mapa final'!$O$17=\"Mayor\"),CONCATENATE(\"R\",'[1]Mapa final'!$A$17),\"\")","v":{"$error":"#REF!"}},null,{"$f":"IF(AND('[1]Mapa final'!$J$13=\"Media\",'[1]Mapa final'!$N$13=\"Catastrófico\"),CONCATENATE(\"R\",'[1]Mapa final'!$A$13),\"\")","v":{"$error":"#REF!"}},null,{"$f":"IF(AND('[1]Mapa final'!$J$14=\"Media\",'[1]Mapa final'!$N$14=\"Catastrófico\"),CONCATENATE(\"R\",'[1]Mapa final'!$A$14),\"\")","v":{"$error":"#REF!"}},null,{"$f":"IF(AND('[1]Mapa final'!$K$17=\"Media\",'[1]Mapa final'!$O$17=\"Catastrófico\"),CONCATENATE(\"R\",'[1]Mapa final'!$A$17),\"\")","v":{"$error":"#REF!"}}]
[]
[null,null,null,null,null,null,null,null,null,{"$f":"IF(AND('[1]Mapa final'!$J$18=\"Media\",'[1]Mapa final'!$N$18=\"Leve\"),CONCATENATE(\"R\",'[1]Mapa final'!$A$18),\"\")","v":{"$error":"#REF!"}},null,{"$f":"IF(AND('[1]Mapa final'!$J$19=\"Media\",'[1]Mapa final'!$N$19=\"Leve\"),CONCATENATE(\"R\",'[1]Mapa final'!$A$19),\"\")","v":{"$error":"#REF!"}},null,{"$f":"IF(AND('[1]Mapa final'!$J$20=\"Media\",'[1]Mapa final'!$N$20=\"Leve\"),CONCATENATE(\"R\",'[1]Mapa final'!$A$20),\"\")","v":{"$error":"#REF!"}},null,{"$f":"IF(AND('[1]Mapa final'!$J$18=\"Media\",'[1]Mapa final'!$N$18=\"Menor\"),CONCATENATE(\"R\",'[1]Mapa final'!$A$18),\"\")","v":{"$error":"#REF!"}},null,{"$f":"IF(AND('[1]Mapa final'!$J$19=\"Media\",'[1]Mapa final'!$N$19=\"Menor\"),CONCATENATE(\"R\",'[1]Mapa final'!$A$19),\"\")","v":{"$error":"#REF!"}},null,{"$f":"IF(AND('[1]Mapa final'!$J$20=\"Media\",'[1]Mapa final'!$N$20=\"Menor\"),CONCATENATE(\"R\",'[1]Mapa final'!$A$20),\"\")","v":{"$error":"#REF!"}},null,{"$f":"IF(AND('[1]Mapa final'!$J$18=\"Media\",'[1]Mapa final'!$N$18=\"Moderado\"),CONCATENATE(\"R\",'[1]Mapa final'!$A$18),\"\")","v":{"$error":"#REF!"}},null,{"$f":"IF(AND('[1]Mapa final'!$J$19=\"Media\",'[1]Mapa final'!$N$19=\"Moderado\"),CONCATENATE(\"R\",'[1]Mapa final'!$A$19),\"\")","v":{"$error":"#REF!"}},null,{"$f":"IF(AND('[1]Mapa final'!$J$20=\"Media\",'[1]Mapa final'!$N$20=\"Moderado\"),CONCATENATE(\"R\",'[1]Mapa final'!$A$20),\"\")","v":{"$error":"#REF!"}},null,{"$f":"IF(AND('[1]Mapa final'!$J$18=\"Media\",'[1]Mapa final'!$N$18=\"Mayor\"),CONCATENATE(\"R\",'[1]Mapa final'!$A$18),\"\")","v":{"$error":"#REF!"}},null,{"$f":"IF(AND('[1]Mapa final'!$J$19=\"Media\",'[1]Mapa final'!$N$19=\"Mayor\"),CONCATENATE(\"R\",'[1]Mapa final'!$A$19),\"\")","v":{"$error":"#REF!"}},null,{"$f":"IF(AND('[1]Mapa final'!$J$20=\"Media\",'[1]Mapa final'!$N$20=\"Mayor\"),CONCATENATE(\"R\",'[1]Mapa final'!$A$20),\"\")","v":{"$error":"#REF!"}},null,{"$f":"IF(AND('[1]Mapa final'!$J$18=\"Media\",'[1]Mapa final'!$N$18=\"Catastrófico\"),CONCATENATE(\"R\",'[1]Mapa final'!$A$18),\"\")","v":{"$error":"#REF!"}},null,{"$f":"IF(AND('[1]Mapa final'!$J$19=\"Media\",'[1]Mapa final'!$N$19=\"Catastrófico\"),CONCATENATE(\"R\",'[1]Mapa final'!$A$19),\"\")","v":{"$error":"#REF!"}},null,{"$f":"IF(AND('[1]Mapa final'!$J$20=\"Media\",'[1]Mapa final'!$N$20=\"Catastrófico\"),CONCATENATE(\"R\",'[1]Mapa final'!$A$20),\"\")","v":{"$error":"#REF!"}}]
[]
[null,null,null,null,null,null,null,null,null,{"$f":"IF(AND('[1]Mapa final'!$J$21=\"Media\",'[1]Mapa final'!$N$21=\"Leve\"),CONCATENATE(\"R\",'[1]Mapa final'!$A$21),\"\")","v":{"$error":"#REF!"}},null,{"$f":"IF(AND('[1]Mapa final'!$J$149=\"Media\",'[1]Mapa final'!$N$149=\"Leve\"),CONCATENATE(\"R\",'[1]Mapa final'!#REF!),\"\")","v":{"$error":"#REF!"}},null,{"$f":"IF(AND('[1]Mapa final'!$J$155=\"Media\",'[1]Mapa final'!$N$155=\"Leve\"),CONCATENATE(\"R\",'[1]Mapa final'!#REF!),\"\")","v":{"$error":"#REF!"}},null,{"$f":"IF(AND('[1]Mapa final'!$J$21=\"Media\",'[1]Mapa final'!$N$21=\"Menor\"),CONCATENATE(\"R\",'[1]Mapa final'!$A$21),\"\")","v":{"$error":"#REF!"}},null,{"$f":"IF(AND('[1]Mapa final'!$J$149=\"Media\",'[1]Mapa final'!$N$149=\"Menor\"),CONCATENATE(\"R\",'[1]Mapa final'!#REF!),\"\")","v":{"$error":"#REF!"}},null,{"$f":"IF(AND('[1]Mapa final'!$J$155=\"Media\",'[1]Mapa final'!$N$155=\"Menor\"),CONCATENATE(\"R\",'[1]Mapa final'!#REF!),\"\")","v":{"$error":"#REF!"}},null,{"$f":"IF(AND('[1]Mapa final'!$J$21=\"Media\",'[1]Mapa final'!$N$21=\"Moderado\"),CONCATENATE(\"R\",'[1]Mapa final'!$A$21),\"\")","v":{"$error":"#REF!"}},null,{"$f":"IF(AND('[1]Mapa final'!$J$149=\"Media\",'[1]Mapa final'!$N$149=\"Moderado\"),CONCATENATE(\"R\",'[1]Mapa final'!#REF!),\"\")","v":{"$error":"#REF!"}},null,{"$f":"IF(AND('[1]Mapa final'!$J$155=\"Media\",'[1]Mapa final'!$N$155=\"Moderado\"),CONCATENATE(\"R\",'[1]Mapa final'!#REF!),\"\")","v":{"$error":"#REF!"}},null,{"$f":"IF(AND('[1]Mapa final'!$J$21=\"Media\",'[1]Mapa final'!$N$21=\"Mayor\"),CONCATENATE(\"R\",'[1]Mapa final'!$A$21),\"\")","v":{"$error":"#REF!"}},null,{"$f":"IF(AND('[1]Mapa final'!$J$149=\"Media\",'[1]Mapa final'!$N$149=\"Mayor\"),CONCATENATE(\"R\",'[1]Mapa final'!#REF!),\"\")","v":{"$error":"#REF!"}},null,{"$f":"IF(AND('[1]Mapa final'!$J$155=\"Media\",'[1]Mapa final'!$N$155=\"Mayor\"),CONCATENATE(\"R\",'[1]Mapa final'!#REF!),\"\")","v":{"$error":"#REF!"}},null,{"$f":"IF(AND('[1]Mapa final'!$J$21=\"Media\",'[1]Mapa final'!$N$21=\"Catastrófico\"),CONCATENATE(\"R\",'[1]Mapa final'!$A$21),\"\")","v":{"$error":"#REF!"}},null,{"$f":"IF(AND('[1]Mapa final'!$J$149=\"Media\",'[1]Mapa final'!$N$149=\"Catastrófico\"),CONCATENATE(\"R\",'[1]Mapa final'!#REF!),\"\")","v":{"$error":"#REF!"}},null,{"$f":"IF(AND('[1]Mapa final'!$J$155=\"Media\",'[1]Mapa final'!$N$155=\"Catastrófico\"),CONCATENATE(\"R\",'[1]Mapa final'!#REF!),\"\")","v":{"$error":"#REF!"}}]
[]
[null,null,null,null,"Baja\n40%",null,null,null,null,{"$f":"IF(AND('[1]Mapa final'!$J$9=\"Baja\",'[1]Mapa final'!$N$9=\"Leve\"),CONCATENATE(\"R\",'[1]Mapa final'!$A$9),\"\")","v":{"$error":"#REF!"}},null,{"$f":"IF(AND('[1]Mapa final'!$J$10=\"Baja\",'[1]Mapa final'!$N$10=\"Leve\"),CONCATENATE(\"R\",'[1]Mapa final'!$A$10),\"\")","v":{"$error":"#REF!"}},null,{"$f":"IF(AND('[1]Mapa final'!$J$11=\"Baja\",'[1]Mapa final'!$N$11=\"Leve\"),CONCATENATE(\"R\",'[1]Mapa final'!$A$11),\"\")","v":{"$error":"#REF!"}},null,{"$f":"IF(AND('[1]Mapa final'!$J$9=\"Baja\",'[1]Mapa final'!$N$9=\"Menor\"),CONCATENATE(\"R\",'[1]Mapa final'!$A$9),\"\")","v":{"$error":"#REF!"}},null,{"$f":"IF(AND('[1]Mapa final'!$J$10=\"Baja\",'[1]Mapa final'!$N$10=\"Menor\"),CONCATENATE(\"R\",'[1]Mapa final'!$A$10),\"\")","v":{"$error":"#REF!"}},null,{"$f":"IF(AND('[1]Mapa final'!$J$11=\"Baja\",'[1]Mapa final'!$N$11=\"Menor\"),CONCATENATE(\"R\",'[1]Mapa final'!$A$11),\"\")","v":{"$error":"#REF!"}},null,{"$f":"IF(AND('[1]Mapa final'!$J$9=\"Baja\",'[1]Mapa final'!$N$9=\"Moderado\"),CONCATENATE(\"R\",'[1]Mapa final'!$A$9),\"\")","v":{"$error":"#REF!"}},null,{"$f":"IF(AND('[1]Mapa final'!$J$10=\"Baja\",'[1]Mapa final'!$N$10=\"Moderado\"),CONCATENATE(\"R\",'[1]Mapa final'!$A$10),\"\")","v":{"$error":"#REF!"}},null,{"$f":"IF(AND('[1]Mapa final'!$J$11=\"Baja\",'[1]Mapa final'!$N$11=\"Moderado\"),CONCATENATE(\"R\",'[1]Mapa final'!$A$11),\"\")","v":{"$error":"#REF!"}},null,{"$f":"IF(AND('[1]Mapa final'!$J$9=\"Baja\",'[1]Mapa final'!$N$9=\"Mayor\"),CONCATENATE(\"R\",'[1]Mapa final'!$A$9),\"\")","v":{"$error":"#REF!"}},null,{"$f":"IF(AND('[1]Mapa final'!$J$10=\"Baja\",'[1]Mapa final'!$N$10=\"Mayor\"),CONCATENATE(\"R\",'[1]Mapa final'!$A$10),\"\")","v":{"$error":"#REF!"}},null,{"$f":"IF(AND('[1]Mapa final'!$J$11=\"Baja\",'[1]Mapa final'!$N$11=\"Mayor\"),CONCATENATE(\"R\",'[1]Mapa final'!$A$11),\"\")","v":{"$error":"#REF!"}},null,{"$f":"IF(AND('[1]Mapa final'!$J$9=\"Baja\",'[1]Mapa final'!$N$9=\"Catastrófico\"),CONCATENATE(\"R\",'[1]Mapa final'!$A$9),\"\")","v":{"$error":"#REF!"}},null,{"$f":"IF(AND('[1]Mapa final'!$J$10=\"Baja\",'[1]Mapa final'!$N$10=\"Catastrófico\"),CONCATENATE(\"R\",'[1]Mapa final'!$A$10),\"\")","v":{"$error":"#REF!"}},null,{"$f":"IF(AND('[1]Mapa final'!$J$11=\"Baja\",'[1]Mapa final'!$N$11=\"Catastrófico\"),CONCATENATE(\"R\",'[1]Mapa final'!$A$11),\"\")","v":{"$error":"#REF!"}},null,null,"Bajo"]
[]
[null,null,null,null,null,null,null,null,null,{"$f":"IF(AND('[1]Mapa final'!$J$13=\"Baja\",'[1]Mapa final'!$N$13=\"Leve\"),CONCATENATE(\"R\",'[1]Mapa final'!$A$13),\"\")","v":{"$error":"#REF!"}},null,{"$f":"IF(AND('[1]Mapa final'!$J$14=\"Baja\",'[1]Mapa final'!$N$14=\"Leve\"),CONCATENATE(\"R\",'[1]Mapa final'!$A$14),\"\")","v":{"$error":"#REF!"}},null,{"$f":"IF(AND('[1]Mapa final'!$K$17=\"Baja\",'[1]Mapa final'!$O$17=\"Leve\"),CONCATENATE(\"R\",'[1]Mapa final'!$A$17),\"\")","v":{"$error":"#REF!"}},null,{"$f":"IF(AND('[1]Mapa final'!$J$13=\"Baja\",'[1]Mapa final'!$N$13=\"Menor\"),CONCATENATE(\"R\",'[1]Mapa final'!$A$13),\"\")","v":{"$error":"#REF!"}},null,{"$f":"IF(AND('[1]Mapa final'!$J$14=\"Baja\",'[1]Mapa final'!$N$14=\"Menor\"),CONCATENATE(\"R\",'[1]Mapa final'!$A$14),\"\")","v":{"$error":"#REF!"}},null,{"$f":"IF(AND('[1]Mapa final'!$K$17=\"Baja\",'[1]Mapa final'!$O$17=\"Menor\"),CONCATENATE(\"R\",'[1]Mapa final'!$A$17),\"\")","v":{"$error":"#REF!"}},null,{"$f":"IF(AND('[1]Mapa final'!$J$13=\"Baja\",'[1]Mapa final'!$N$13=\"Moderado\"),CONCATENATE(\"R\",'[1]Mapa final'!$A$13),\"\")","v":{"$error":"#REF!"}},null,{"$f":"IF(AND('[1]Mapa final'!$J$14=\"Baja\",'[1]Mapa final'!$N$14=\"Moderado\"),CONCATENATE(\"R\",'[1]Mapa final'!$A$14),\"\")","v":{"$error":"#REF!"}},null,{"$f":"IF(AND('[1]Mapa final'!$K$17=\"Baja\",'[1]Mapa final'!$O$17=\"Moderado\"),CONCATENATE(\"R\",'[1]Mapa final'!$A$17),\"\")","v":{"$error":"#REF!"}},null,{"$f":"IF(AND('[1]Mapa final'!$J$13=\"Baja\",'[1]Mapa final'!$N$13=\"Mayor\"),CONCATENATE(\"R\",'[1]Mapa final'!$A$13),\"\")","v":{"$error":"#REF!"}},null,{"$f":"IF(AND('[1]Mapa final'!$J$14=\"Baja\",'[1]Mapa final'!$N$14=\"Mayor\"),CONCATENATE(\"R\",'[1]Mapa final'!$A$14),\"\")","v":{"$error":"#REF!"}},null,{"$f":"IF(AND('[1]Mapa final'!$K$17=\"Baja\",'[1]Mapa final'!$O$17=\"Mayor\"),CONCATENATE(\"R\",'[1]Mapa final'!$A$17),\"\")","v":{"$error":"#REF!"}},null,{"$f":"IF(AND('[1]Mapa final'!$J$13=\"Baja\",'[1]Mapa final'!$N$13=\"Catastrófico\"),CONCATENATE(\"R\",'[1]Mapa final'!$A$13),\"\")","v":{"$error":"#REF!"}},null,{"$f":"IF(AND('[1]Mapa final'!$J$14=\"Baja\",'[1]Mapa final'!$N$14=\"Catastrófico\"),CONCATENATE(\"R\",'[1]Mapa final'!$A$14),\"\")","v":{"$error":"#REF!"}},null,{"$f":"IF(AND('[1]Mapa final'!$K$17=\"Baja\",'[1]Mapa final'!$O$17=\"Catastrófico\"),CONCATENATE(\"R\",'[1]Mapa final'!$A$17),\"\")","v":{"$error":"#REF!"}}]
[]
[null,null,null,null,null,null,null,null,null,{"$f":"IF(AND('[1]Mapa final'!$J$18=\"Baja\",'[1]Mapa final'!$N$18=\"Leve\"),CONCATENATE(\"R\",'[1]Mapa final'!$A$18),\"\")","v":{"$error":"#REF!"}},null,{"$f":"IF(AND('[1]Mapa final'!$J$19=\"Baja\",'[1]Mapa final'!$N$19=\"Leve\"),CONCATENATE(\"R\",'[1]Mapa final'!$A$19),\"\")","v":{"$error":"#REF!"}},null,{"$f":"IF(AND('[1]Mapa final'!$J$20=\"Baja\",'[1]Mapa final'!$N$20=\"Leve\"),CONCATENATE(\"R\",'[1]Mapa final'!$A$20),\"\")","v":{"$error":"#REF!"}},null,{"$f":"IF(AND('[1]Mapa final'!$J$18=\"Baja\",'[1]Mapa final'!$N$18=\"Menor\"),CONCATENATE(\"R\",'[1]Mapa final'!$A$18),\"\")","v":{"$error":"#REF!"}},null,{"$f":"IF(AND('[1]Mapa final'!$J$19=\"Baja\",'[1]Mapa final'!$N$19=\"Menor\"),CONCATENATE(\"R\",'[1]Mapa final'!$A$19),\"\")","v":{"$error":"#REF!"}},null,{"$f":"IF(AND('[1]Mapa final'!$J$20=\"Baja\",'[1]Mapa final'!$N$20=\"Menor\"),CONCATENATE(\"R\",'[1]Mapa final'!$A$20),\"\")","v":{"$error":"#REF!"}},null,{"$f":"IF(AND('[1]Mapa final'!$J$18=\"Baja\",'[1]Mapa final'!$N$18=\"Moderado\"),CONCATENATE(\"R\",'[1]Mapa final'!$A$18),\"\")","v":{"$error":"#REF!"}},null,{"$f":"IF(AND('[1]Mapa final'!$J$19=\"Baja\",'[1]Mapa final'!$N$19=\"Moderado\"),CONCATENATE(\"R\",'[1]Mapa final'!$A$19),\"\")","v":{"$error":"#REF!"}},null,{"$f":"IF(AND('[1]Mapa final'!$J$20=\"Baja\",'[1]Mapa final'!$N$20=\"Moderado\"),CONCATENATE(\"R\",'[1]Mapa final'!$A$20),\"\")","v":{"$error":"#REF!"}},null,{"$f":"IF(AND('[1]Mapa final'!$J$18=\"Baja\",'[1]Mapa final'!$N$18=\"Mayor\"),CONCATENATE(\"R\",'[1]Mapa final'!$A$18),\"\")","v":{"$error":"#REF!"}},null,{"$f":"IF(AND('[1]Mapa final'!$J$19=\"Baja\",'[1]Mapa final'!$N$19=\"Mayor\"),CONCATENATE(\"R\",'[1]Mapa final'!$A$19),\"\")","v":{"$error":"#REF!"}},null,{"$f":"IF(AND('[1]Mapa final'!$J$20=\"Baja\",'[1]Mapa final'!$N$20=\"Mayor\"),CONCATENATE(\"R\",'[1]Mapa final'!$A$20),\"\")","v":{"$error":"#REF!"}},null,{"$f":"IF(AND('[1]Mapa final'!$J$18=\"Baja\",'[1]Mapa final'!$N$18=\"Catastrófico\"),CONCATENATE(\"R\",'[1]Mapa final'!$A$18),\"\")","v":{"$error":"#REF!"}},null,{"$f":"IF(AND('[1]Mapa final'!$J$19=\"Baja\",'[1]Mapa final'!$N$19=\"Catastrófico\"),CONCATENATE(\"R\",'[1]Mapa final'!$A$19),\"\")","v":{"$error":"#REF!"}},null,{"$f":"IF(AND('[1]Mapa final'!$J$20=\"Baja\",'[1]Mapa final'!$N$20=\"Catastrófico\"),CONCATENATE(\"R\",'[1]Mapa final'!$A$20),\"\")","v":{"$error":"#REF!"}}]
[]
[null,null,null,null,null,null,null,null,null,{"$f":"IF(AND('[1]Mapa final'!$J$21=\"Baja\",'[1]Mapa final'!$N$21=\"Leve\"),CONCATENATE(\"R\",'[1]Mapa final'!$A$21),\"\")","v":{"$error":"#REF!"}},null,{"$f":"IF(AND('[1]Mapa final'!$J$149=\"Baja\",'[1]Mapa final'!$N$149=\"Leve\"),CONCATENATE(\"R\",'[1]Mapa final'!#REF!),\"\")","v":{"$error":"#REF!"}},null,{"$f":"IF(AND('[1]Mapa final'!$J$155=\"Baja\",'[1]Mapa final'!$N$155=\"Leve\"),CONCATENATE(\"R\",'[1]Mapa final'!#REF!),\"\")","v":{"$error":"#REF!"}},null,{"$f":"IF(AND('[1]Mapa final'!$J$21=\"Baja\",'[1]Mapa final'!$N$21=\"Menor\"),CONCATENATE(\"R\",'[1]Mapa final'!$A$21),\"\")","v":{"$error":"#REF!"}},null,{"$f":"IF(AND('[1]Mapa final'!$J$149=\"Baja\",'[1]Mapa final'!$N$149=\"Menor\"),CONCATENATE(\"R\",'[1]Mapa final'!#REF!),\"\")","v":{"$error":"#REF!"}},null,{"$f":"IF(AND('[1]Mapa final'!$J$155=\"Baja\",'[1]Mapa final'!$N$155=\"Menor\"),CONCATENATE(\"R\",'[1]Mapa final'!#REF!),\"\")","v":{"$error":"#REF!"}},null,{"$f":"IF(AND('[1]Mapa final'!$J$21=\"Baja\",'[1]Mapa final'!$N$21=\"Moderado\"),CONCATENATE(\"R\",'[1]Mapa final'!$A$21),\"\")","v":{"$error":"#REF!"}},null,{"$f":"IF(AND('[1]Mapa final'!$J$149=\"Baja\",'[1]Mapa final'!$N$149=\"Moderado\"),CONCATENATE(\"R\",'[1]Mapa final'!#REF!),\"\")","v":{"$error":"#REF!"}},null,{"$f":"IF(AND('[1]Mapa final'!$J$155=\"Baja\",'[1]Mapa final'!$N$155=\"Moderado\"),CONCATENATE(\"R\",'[1]Mapa final'!#REF!),\"\")","v":{"$error":"#REF!"}},null,{"$f":"IF(AND('[1]Mapa final'!$J$21=\"Baja\",'[1]Mapa final'!$N$21=\"Mayor\"),CONCATENATE(\"R\",'[1]Mapa final'!$A$21),\"\")","v":{"$error":"#REF!"}},null,{"$f":"IF(AND('[1]Mapa final'!$J$149=\"Baja\",'[1]Mapa final'!$N$149=\"Mayor\"),CONCATENATE(\"R\",'[1]Mapa final'!#REF!),\"\")","v":{"$error":"#REF!"}},null,{"$f":"IF(AND('[1]Mapa final'!$J$155=\"Baja\",'[1]Mapa final'!$N$155=\"Mayor\"),CONCATENATE(\"R\",'[1]Mapa final'!#REF!),\"\")","v":{"$error":"#REF!"}},null,{"$f":"IF(AND('[1]Mapa final'!$J$21=\"Baja\",'[1]Mapa final'!$N$21=\"Catastrófico\"),CONCATENATE(\"R\",'[1]Mapa final'!$A$21),\"\")","v":{"$error":"#REF!"}},null,{"$f":"IF(AND('[1]Mapa final'!$J$149=\"Baja\",'[1]Mapa final'!$N$149=\"Catastrófico\"),CONCATENATE(\"R\",'[1]Mapa final'!#REF!),\"\")","v":{"$error":"#REF!"}},null,{"$f":"IF(AND('[1]Mapa final'!$J$155=\"Baja\",'[1]Mapa final'!$N$155=\"Catastrófico\"),CONCATENATE(\"R\",'[1]Mapa final'!#REF!),\"\")","v":{"$error":"#REF!"}}]
[]
[null,null,null,null,"Muy Baja\n20%",null,null,null,null,{"$f":"IF(AND('[1]Mapa final'!$J$9=\"Muy Baja\",'[1]Mapa final'!$N$9=\"Leve\"),CONCATENATE(\"R\",'[1]Mapa final'!$A$9),\"\")","v":{"$error":"#REF!"}},null,{"$f":"IF(AND('[1]Mapa final'!$J$10=\"Muy Baja\",'[1]Mapa final'!$N$10=\"Leve\"),CONCATENATE(\"R\",'[1]Mapa final'!$A$10),\"\")","v":{"$error":"#REF!"}},null,{"$f":"IF(AND('[1]Mapa final'!$J$11=\"Muy Baja\",'[1]Mapa final'!$N$11=\"Leve\"),CONCATENATE(\"R\",'[1]Mapa final'!$A$11),\"\")","v":{"$error":"#REF!"}},null,{"$f":"IF(AND('[1]Mapa final'!$J$9=\"Muy Baja\",'[1]Mapa final'!$N$9=\"Menor\"),CONCATENATE(\"R\",'[1]Mapa final'!$A$9),\"\")","v":{"$error":"#REF!"}},null,{"$f":"IF(AND('[1]Mapa final'!$J$10=\"Muy Baja\",'[1]Mapa final'!$N$10=\"Menor\"),CONCATENATE(\"R\",'[1]Mapa final'!$A$10),\"\")","v":{"$error":"#REF!"}},null,{"$f":"IF(AND('[1]Mapa final'!$J$11=\"Muy Baja\",'[1]Mapa final'!$N$11=\"Menor\"),CONCATENATE(\"R\",'[1]Mapa final'!$A$11),\"\")","v":{"$error":"#REF!"}},null,{"$f":"IF(AND('[1]Mapa final'!$J$9=\"Muy Baja\",'[1]Mapa final'!$N$9=\"Moderado\"),CONCATENATE(\"R\",'[1]Mapa final'!$A$9),\"\")","v":{"$error":"#REF!"}},null,{"$f":"IF(AND('[1]Mapa final'!$J$10=\"Muy Baja\",'[1]Mapa final'!$N$10=\"Moderado\"),CONCATENATE(\"R\",'[1]Mapa final'!$A$10),\"\")","v":{"$error":"#REF!"}},null,{"$f":"IF(AND('[1]Mapa final'!$J$11=\"Muy Baja\",'[1]Mapa final'!$N$11=\"Moderado\"),CONCATENATE(\"R\",'[1]Mapa final'!$A$11),\"\")","v":{"$error":"#REF!"}},null,{"$f":"IF(AND('[1]Mapa final'!$J$9=\"Muy Baja\",'[1]Mapa final'!$N$9=\"Mayor\"),CONCATENATE(\"R\",'[1]Mapa final'!$A$9),\"\")","v":{"$error":"#REF!"}},null,{"$f":"IF(AND('[1]Mapa final'!$J$10=\"Muy Baja\",'[1]Mapa final'!$N$10=\"Mayor\"),CONCATENATE(\"R\",'[1]Mapa final'!$A$10),\"\")","v":{"$error":"#REF!"}},null,{"$f":"IF(AND('[1]Mapa final'!$J$11=\"Muy Baja\",'[1]Mapa final'!$N$11=\"Mayor\"),CONCATENATE(\"R\",'[1]Mapa final'!$A$11),\"\")","v":{"$error":"#REF!"}},null,{"$f":"IF(AND('[1]Mapa final'!$J$9=\"Muy Baja\",'[1]Mapa final'!$N$9=\"Catastrófico\"),CONCATENATE(\"R\",'[1]Mapa final'!$A$9),\"\")","v":{"$error":"#REF!"}},null,{"$f":"IF(AND('[1]Mapa final'!$J$10=\"Muy Baja\",'[1]Mapa final'!$N$10=\"Catastrófico\"),CONCATENATE(\"R\",'[1]Mapa final'!$A$10),\"\")","v":{"$error":"#REF!"}},null,{"$f":"IF(AND('[1]Mapa final'!$J$11=\"Muy Baja\",'[1]Mapa final'!$N$11=\"Catastrófico\"),CONCATENATE(\"R\",'[1]Mapa final'!$A$11),\"\")","v":{"$error":"#REF!"}}]
[]
[null,null,null,null,null,null,null,null,null,{"$f":"IF(AND('[1]Mapa final'!$J$13=\"Muy Baja\",'[1]Mapa final'!$N$13=\"Leve\"),CONCATENATE(\"R\",'[1]Mapa final'!$A$13),\"\")","v":{"$error":"#REF!"}},null,{"$f":"IF(AND('[1]Mapa final'!$J$14=\"Muy Baja\",'[1]Mapa final'!$N$14=\"Leve\"),CONCATENATE(\"R\",'[1]Mapa final'!$A$14),\"\")","v":{"$error":"#REF!"}},null,{"$f":"IF(AND('[1]Mapa final'!$K$17=\"Muy Baja\",'[1]Mapa final'!$O$17=\"Leve\"),CONCATENATE(\"R\",'[1]Mapa final'!$A$17),\"\")","v":{"$error":"#REF!"}},null,{"$f":"IF(AND('[1]Mapa final'!$J$13=\"Muy Baja\",'[1]Mapa final'!$N$13=\"Menor\"),CONCATENATE(\"R\",'[1]Mapa final'!$A$13),\"\")","v":{"$error":"#REF!"}},null,{"$f":"IF(AND('[1]Mapa final'!$J$14=\"Muy Baja\",'[1]Mapa final'!$N$14=\"Menor\"),CONCATENATE(\"R\",'[1]Mapa final'!$A$14),\"\")","v":{"$error":"#REF!"}},null,{"$f":"IF(AND('[1]Mapa final'!$K$17=\"Muy Baja\",'[1]Mapa final'!$O$17=\"Menor\"),CONCATENATE(\"R\",'[1]Mapa final'!$A$17),\"\")","v":{"$error":"#REF!"}},null,{"$f":"IF(AND('[1]Mapa final'!$J$13=\"Muy Baja\",'[1]Mapa final'!$N$13=\"Moderado\"),CONCATENATE(\"R\",'[1]Mapa final'!$A$13),\"\")","v":{"$error":"#REF!"}},null,{"$f":"IF(AND('[1]Mapa final'!$J$14=\"Muy Baja\",'[1]Mapa final'!$N$14=\"Moderado\"),CONCATENATE(\"R\",'[1]Mapa final'!$A$14),\"\")","v":{"$error":"#REF!"}},null,{"$f":"IF(AND('[1]Mapa final'!$K$17=\"Muy Baja\",'[1]Mapa final'!$O$17=\"Moderado\"),CONCATENATE(\"R\",'[1]Mapa final'!$A$17),\"\")","v":{"$error":"#REF!"}},null,{"$f":"IF(AND('[1]Mapa final'!$J$13=\"Muy Baja\",'[1]Mapa final'!$N$13=\"Mayor\"),CONCATENATE(\"R\",'[1]Mapa final'!$A$13),\"\")","v":{"$error":"#REF!"}},null,{"$f":"IF(AND('[1]Mapa final'!$J$14=\"Muy Baja\",'[1]Mapa final'!$N$14=\"Mayor\"),CONCATENATE(\"R\",'[1]Mapa final'!$A$14),\"\")","v":{"$error":"#REF!"}},null,{"$f":"IF(AND('[1]Mapa final'!$K$17=\"Muy Baja\",'[1]Mapa final'!$O$17=\"Mayor\"),CONCATENATE(\"R\",'[1]Mapa final'!$A$17),\"\")","v":{"$error":"#REF!"}},null,{"$f":"IF(AND('[1]Mapa final'!$J$13=\"Muy Baja\",'[1]Mapa final'!$N$13=\"Catastrófico\"),CONCATENATE(\"R\",'[1]Mapa final'!$A$13),\"\")","v":{"$error":"#REF!"}},null,{"$f":"IF(AND('[1]Mapa final'!$J$14=\"Muy Baja\",'[1]Mapa final'!$N$14=\"Catastrófico\"),CONCATENATE(\"R\",'[1]Mapa final'!$A$14),\"\")","v":{"$error":"#REF!"}},null,{"$f":"IF(AND('[1]Mapa final'!$K$17=\"Muy Baja\",'[1]Mapa final'!$O$17=\"Catastrófico\"),CONCATENATE(\"R\",'[1]Mapa final'!$A$17),\"\")","v":{"$error":"#REF!"}}]
[]
[null,null,null,null,null,null,null,null,null,{"$f":"IF(AND('[1]Mapa final'!$J$18=\"Muy Baja\",'[1]Mapa final'!$N$18=\"Leve\"),CONCATENATE(\"R\",'[1]Mapa final'!$A$18),\"\")","v":{"$error":"#REF!"}},null,{"$f":"IF(AND('[1]Mapa final'!$J$19=\"Muy Baja\",'[1]Mapa final'!$N$19=\"Leve\"),CONCATENATE(\"R\",'[1]Mapa final'!$A$19),\"\")","v":{"$error":"#REF!"}},null,{"$f":"IF(AND('[1]Mapa final'!$J$20=\"Muy Baja\",'[1]Mapa final'!$N$20=\"Leve\"),CONCATENATE(\"R\",'[1]Mapa final'!$A$20),\"\")","v":{"$error":"#REF!"}},null,{"$f":"IF(AND('[1]Mapa final'!$J$18=\"Muy Baja\",'[1]Mapa final'!$N$18=\"Menor\"),CONCATENATE(\"R\",'[1]Mapa final'!$A$18),\"\")","v":{"$error":"#REF!"}},null,{"$f":"IF(AND('[1]Mapa final'!$J$19=\"Muy Baja\",'[1]Mapa final'!$N$19=\"Menor\"),CONCATENATE(\"R\",'[1]Mapa final'!$A$19),\"\")","v":{"$error":"#REF!"}},null,{"$f":"IF(AND('[1]Mapa final'!$J$20=\"Muy Baja\",'[1]Mapa final'!$N$20=\"Menor\"),CONCATENATE(\"R\",'[1]Mapa final'!$A$20),\"\")","v":{"$error":"#REF!"}},null,{"$f":"IF(AND('[1]Mapa final'!$J$18=\"Muy Baja\",'[1]Mapa final'!$N$18=\"Moderado\"),CONCATENATE(\"R\",'[1]Mapa final'!$A$18),\"\")","v":{"$error":"#REF!"}},null,{"$f":"IF(AND('[1]Mapa final'!$J$19=\"Muy Baja\",'[1]Mapa final'!$N$19=\"Moderado\"),CONCATENATE(\"R\",'[1]Mapa final'!$A$19),\"\")","v":{"$error":"#REF!"}},null,{"$f":"IF(AND('[1]Mapa final'!$J$20=\"Muy Baja\",'[1]Mapa final'!$N$20=\"Moderado\"),CONCATENATE(\"R\",'[1]Mapa final'!$A$20),\"\")","v":{"$error":"#REF!"}},null,{"$f":"IF(AND('[1]Mapa final'!$J$18=\"Muy Baja\",'[1]Mapa final'!$N$18=\"Mayor\"),CONCATENATE(\"R\",'[1]Mapa final'!$A$18),\"\")","v":{"$error":"#REF!"}},null,{"$f":"IF(AND('[1]Mapa final'!$J$19=\"Muy Baja\",'[1]Mapa final'!$N$19=\"Mayor\"),CONCATENATE(\"R\",'[1]Mapa final'!$A$19),\"\")","v":{"$error":"#REF!"}},null,{"$f":"IF(AND('[1]Mapa final'!$J$20=\"Muy Baja\",'[1]Mapa final'!$N$20=\"Mayor\"),CONCATENATE(\"R\",'[1]Mapa final'!$A$20),\"\")","v":{"$error":"#REF!"}},null,{"$f":"IF(AND('[1]Mapa final'!$J$18=\"Muy Baja\",'[1]Mapa final'!$N$18=\"Catastrófico\"),CONCATENATE(\"R\",'[1]Mapa final'!$A$18),\"\")","v":{"$error":"#REF!"}},null,{"$f":"IF(AND('[1]Mapa final'!$J$19=\"Muy Baja\",'[1]Mapa final'!$N$19=\"Catastrófico\"),CONCATENATE(\"R\",'[1]Mapa final'!$A$19),\"\")","v":{"$error":"#REF!"}},null,{"$f":"IF(AND('[1]Mapa final'!$J$20=\"Muy Baja\",'[1]Mapa final'!$N$20=\"Catastrófico\"),CONCATENATE(\"R\",'[1]Mapa final'!$A$20),\"\")","v":{"$error":"#REF!"}}]
[]
[null,null,null,null,null,null,null,null,null,{"$f":"IF(AND('[1]Mapa final'!$J$21=\"Muy Baja\",'[1]Mapa final'!$N$21=\"Leve\"),CONCATENATE(\"R\",'[1]Mapa final'!$A$21),\"\")","v":{"$error":"#REF!"}},null,{"$f":"IF(AND('[1]Mapa final'!$J$149=\"Muy Baja\",'[1]Mapa final'!$N$149=\"Leve\"),CONCATENATE(\"R\",'[1]Mapa final'!#REF!),\"\")","v":{"$error":"#REF!"}},null,{"$f":"IF(AND('[1]Mapa final'!$J$155=\"Muy Baja\",'[1]Mapa final'!$N$155=\"Leve\"),CONCATENATE(\"R\",'[1]Mapa final'!#REF!),\"\")","v":{"$error":"#REF!"}},null,{"$f":"IF(AND('[1]Mapa final'!$J$21=\"Muy Baja\",'[1]Mapa final'!$N$21=\"Menor\"),CONCATENATE(\"R\",'[1]Mapa final'!$A$21),\"\")","v":{"$error":"#REF!"}},null,{"$f":"IF(AND('[1]Mapa final'!$J$149=\"Muy Baja\",'[1]Mapa final'!$N$149=\"Menor\"),CONCATENATE(\"R\",'[1]Mapa final'!#REF!),\"\")","v":{"$error":"#REF!"}},null,{"$f":"IF(AND('[1]Mapa final'!$J$155=\"Muy Baja\",'[1]Mapa final'!$N$155=\"Menor\"),CONCATENATE(\"R\",'[1]Mapa final'!#REF!),\"\")","v":{"$error":"#REF!"}},null,{"$f":"IF(AND('[1]Mapa final'!$J$21=\"Muy Baja\",'[1]Mapa final'!$N$21=\"Moderado\"),CONCATENATE(\"R\",'[1]Mapa final'!$A$21),\"\")","v":{"$error":"#REF!"}},null,{"$f":"IF(AND('[1]Mapa final'!$J$149=\"Muy Baja\",'[1]Mapa final'!$N$149=\"Moderado\"),CONCATENATE(\"R\",'[1]Mapa final'!#REF!),\"\")","v":{"$error":"#REF!"}},null,{"$f":"IF(AND('[1]Mapa final'!$J$155=\"Muy Baja\",'[1]Mapa final'!$N$155=\"Moderado\"),CONCATENATE(\"R\",'[1]Mapa final'!#REF!),\"\")","v":{"$error":"#REF!"}},null,{"$f":"IF(AND('[1]Mapa final'!$J$21=\"Muy Baja\",'[1]Mapa final'!$N$21=\"Mayor\"),CONCATENATE(\"R\",'[1]Mapa final'!$A$21),\"\")","v":{"$error":"#REF!"}},null,{"$f":"IF(AND('[1]Mapa final'!$J$149=\"Muy Baja\",'[1]Mapa final'!$N$149=\"Mayor\"),CONCATENATE(\"R\",'[1]Mapa final'!#REF!),\"\")","v":{"$error":"#REF!"}},null,{"$f":"IF(AND('[1]Mapa final'!$J$155=\"Muy Baja\",'[1]Mapa final'!$N$155=\"Mayor\"),CONCATENATE(\"R\",'[1]Mapa final'!#REF!),\"\")","v":{"$error":"#REF!"}},null,{"$f":"IF(AND('[1]Mapa final'!$J$21=\"Muy Baja\",'[1]Mapa final'!$N$21=\"Catastrófico\"),CONCATENATE(\"R\",'[1]Mapa final'!$A$21),\"\")","v":{"$error":"#REF!"}},null,{"$f":"IF(AND('[1]Mapa final'!$J$149=\"Muy Baja\",'[1]Mapa final'!$N$149=\"Catastrófico\"),CONCATENATE(\"R\",'[1]Mapa final'!#REF!),\"\")","v":{"$error":"#REF!"}},null,{"$f":"IF(AND('[1]Mapa final'!$J$155=\"Muy Baja\",'[1]Mapa final'!$N$155=\"Catastrófico\"),CONCATENATE(\"R\",'[1]Mapa final'!#REF!),\"\")","v":{"$error":"#REF!"}}]
[]
[null,null,null,null,null,null,null,null,null,"Leve\n20%",null,null,null,null,null,"Menor\n40%",null,null,null,null,null,"Moderado\n60%",null,null,null,null,null,"Mayor\n80%",null,null,null,null,null,"Catastrófico\n100%"]

{"sheet":"Matriz Calor Residual","index":3,"n_rows":56,"n_cols":41,"rows_kept":56,"cut":false,"hidden":true,"merged":[[15,40,24,45],[25,40,34,45],[5,40,14,45],[35,40,44,45],[45,4,54,8],[55,9,60,14],[55,15,60,20],[55,21,60,26],[55,27,60,32],[55,33,60,38],[1,1,3,8],[1,9,3,38],[5,1,54,3],[5,4,14,8],[15,4,24,8],[25,4,34,8],[35,4,44,8]]}
[]
[null," Matriz de Calor Residual",null,null,null,null,null,null,null,"Impacto"]
[]
[]
[]
[null,"Probabilidad",null,null,"Muy Alta\n100%",null,null,null,null,{"$f":"IF(AND('[1]Mapa final'!$AA$9=\"Muy Alta\",'[1]Mapa final'!$AC$9=\"Leve\"),CONCATENATE(\"R1C\",'[1]Mapa final'!$Q$9),\"\")","v":{"$error":"#REF!"}},{"$f":"IF(AND('[1]Mapa final'!#REF!=\"Muy Alta\",'[1]Mapa final'!#REF!=\"Leve\"),CONCATENATE(\"R1C\",'[1]Mapa final'!#REF!),\"\")","v":{"$error":"#REF!"}},{"$f":"IF(AND('[1]Mapa final'!#REF!=\"Muy Alta\",'[1]Mapa final'!#REF!=\"Leve\"),CONCATENATE(\"R1C\",'[1]Mapa final'!#REF!),\"\")","v":{"$error":"#REF!"}},{"$f":"IF(AND('[1]Mapa final'!#REF!=\"Muy Alta\",'[1]Mapa final'!#REF!=\"Leve\"),CONCATENATE(\"R1C\",'[1]Mapa final'!#REF!),\"\")","v":{"$error":"#REF!"}},{"$f":"IF(AND('[1]Mapa final'!#REF!=\"Muy Alta\",'[1]Mapa final'!#REF!=\"Leve\"),CONCATENATE(\"R1C\",'[1]Mapa final'!#REF!),\"\")","v":{"$error":"#REF!"}},{"$f":"IF(AND('[1]Mapa final'!#REF!=\"Muy Alta\",'[1]Mapa final'!#REF!=\"Leve\"),CONCATENATE(\"R1C\",'[1]Mapa final'!#REF!),\"\")","v":{"$error":"#REF!"}},{"$f":"IF(AND('[1]Mapa final'!$AA$9=\"Muy Alta\",'[1]Mapa final'!$AC$9=\"Menor\"),CONCATENATE(\"R1C\",'[1]Mapa final'!$Q$9),\"\")","v":{"$error":"#REF!"}},{"$f":"IF(AND('[1]Mapa final'!#REF!=\"Muy Alta\",'[1]Mapa final'!#REF!=\"Menor\"),CONCATENATE(\"R1C\",'[1]Mapa final'!#REF!),\"\")","v":{"$error":"#REF!"}},{"$f":"IF(AND('[1]Mapa final'!#REF!=\"Muy Alta\",'[1]Mapa final'!#REF!=\"Menor\"),CONCATENATE(\"R1C\",'[1]Mapa final'!#REF!),\"\")","v":{"$error":"#REF!"}},{"$f":"IF(AND('[1]Mapa final'!#REF!=\"Muy Alta\",'[1]Mapa final'!#REF!=\"Menor\"),CONCATENATE(\"R1C\",'[1]Mapa final'!#REF!),\"\")","v":{"$error":"#REF!"}},{"$f":"IF(AND('[1]Mapa final'!#REF!=\"Muy Alta\",'[1]Mapa final'!#REF!=\"Menor\"),CONCATENATE(\"R1C\",'[1]Mapa final'!#REF!),\"\")","v":{"$error":"#REF!"}},{"$f":"IF(AND('[1]Mapa final'!#REF!=\"Muy Alta\",'[1]Mapa final'!#REF!=\"Menor\"),CONCATENATE(\"R1C\",'[1]Mapa final'!#REF!),\"\")","v":{"$error":"#REF!"}},{"$f":"IF(AND('[1]Mapa final'!$AA$9=\"Muy Alta\",'[1]Mapa final'!$AC$9=\"Moderado\"),CONCATENATE(\"R1C\",'[1]Mapa final'!$Q$9),\"\")","v":{"$error":"#REF!"}},{"$f":"IF(AND('[1]Mapa final'!#REF!=\"Muy Alta\",'[1]Mapa final'!#REF!=\"Moderado\"),CONCATENATE(\"R1C\",'[1]Mapa final'!#REF!),\"\")","v":{"$error":"#REF!"}},{"$f":"IF(AND('[1]Mapa final'!#REF!=\"Muy Alta\",'[1]Mapa final'!#REF!=\"Moderado\"),CONCATENATE(\"R1C\",'[1]Mapa final'!#REF!),\"\")","v":{"$error":"#REF!"}},{"$f":"IF(AND('[1]Mapa final'!#REF!=\"Muy Alta\",'[1]Mapa final'!#REF!=\"Moderado\"),CONCATENATE(\"R1C\",'[1]Mapa final'!#REF!),\"\")","v":{"$error":"#REF!"}},{"$f":"IF(AND('[1]Mapa final'!#REF!=\"Muy Alta\",'[1]Mapa final'!#REF!=\"Moderado\"),CONCATENATE(\"R1C\",'[1]Mapa final'!#REF!),\"\")","v":{"$error":"#REF!"}},{"$f":"IF(AND('[1]Mapa final'!#REF!=\"Muy Alta\",'[1]Mapa final'!#REF!=\"Moderado\"),CONCATENATE(\"R1C\",'[1]Mapa final'!#REF!),\"\")","v":{"$error":"#REF!"}},{"$f":"IF(AND('[1]Mapa final'!$AA$9=\"Muy Alta\",'[1]Mapa final'!$AC$9=\"Mayor\"),CONCATENATE(\"R1C\",'[1]Mapa final'!$Q$9),\"\")","v":{"$error":"#REF!"}},{"$f":"IF(AND('[1]Mapa final'!#REF!=\"Muy Alta\",'[1]Mapa final'!#REF!=\"Mayor\"),CONCATENATE(\"R1C\",'[1]Mapa final'!#REF!),\"\")","v":{"$error":"#REF!"}},{"$f":"IF(AND('[1]Mapa final'!#REF!=\"Muy Alta\",'[1]Mapa final'!#REF!=\"Mayor\"),CONCATENATE(\"R1C\",'[1]Mapa final'!#REF!),\"\")","v":{"$error":"#REF!"}},{"$f":"IF(AND('[1]Mapa final'!#REF!=\"Muy Alta\",'[1]Mapa final'!#REF!=\"Mayor\"),CONCATENATE(\"R1C\",'[1]Mapa final'!#REF!),\"\")","v":{"$error":"#REF!"}},{"$f":"IF(AND('[1]Mapa final'!#REF!=\"Muy Alta\",'[1]Mapa final'!#REF!=\"Mayor\"),CONCATENATE(\"R1C\",'[1]Mapa final'!#REF!),\"\")","v":{"$error":"#REF!"}},{"$f":"IF(AND('[1]Mapa final'!#REF!=\"Muy Alta\",'[1]Mapa final'!#REF!=\"Mayor\"),CONCATENATE(\"R1C\",'[1]Mapa final'!#REF!),\"\")","v":{"$error":"#REF!"}},{"$f":"IF(AND('[1]Mapa final'!$AA$9=\"Muy Alta\",'[1]Mapa final'!$AC$9=\"Catastrófico\"),CONCATENATE(\"R1C\",'[1]Mapa final'!$Q$9),\"\")","v":{"$error":"#REF!"}},{"$f":"IF(AND('[1]Mapa final'!#REF!=\"Muy Alta\",'[1]Mapa final'!#REF!=\"Catastrófico\"),CONCATENATE(\"R1C\",'[1]Mapa final'!#REF!),\"\")","v":{"$error":"#REF!"}},{"$f":"IF(AND('[1]Mapa final'!#REF!=\"Muy Alta\",'[1]Mapa final'!#REF!=\"Catastrófico\"),CONCATENATE(\"R1C\",'[1]Mapa final'!#REF!),\"\")","v":{"$error":"#REF!"}},{"$f":"IF(AND('[1]Mapa final'!#REF!=\"Muy Alta\",'[1]Mapa final'!#REF!=\"Catastrófico\"),CONCATENATE(\"R1C\",'[1]Mapa final'!#REF!),\"\")","v":{"$error":"#REF!"}},{"$f":"IF(AND('[1]Mapa final'!#REF!=\"Muy Alta\",'[1]Mapa final'!#REF!=\"Catastrófico\"),CONCATENATE(\"R1C\",'[1]Mapa final'!#REF!),\"\")","v":{"$error":"#REF!"}},{"$f":"IF(AND('[1]Mapa final'!#REF!=\"Muy Alta\",'[1]Mapa final'!#REF!=\"Catastrófico\"),CONCATENATE(\"R1C\",'[1]Mapa final'!#REF!),\"\")","v":{"$error":"#REF!"}},null,"Extremo"]
[null,null,null,null,null,null,null,null,null,{"$f":"IF(AND('[1]Mapa final'!$AA$10=\"Muy Alta\",'[1]Mapa final'!$AC$10=\"Leve\"),CONCATENATE(\"R2C\",'[1]Mapa final'!$Q$10),\"\")","v":{"$error":"#REF!"}},{"$f":"IF(AND('[1]Mapa final'!#REF!=\"Muy Alta\",'[1]Mapa final'!#REF!=\"Leve\"),CONCATENATE(\"R2C\",'[1]Mapa final'!#REF!),\"\")","v":{"$error":"#REF!"}},{"$f":"IF(AND('[1]Mapa final'!#REF!=\"Muy Alta\",'[1]Mapa final'!#REF!=\"Leve\"),CONCATENATE(\"R2C\",'[1]Mapa final'!#REF!),\"\")","v":{"$error":"#REF!"}},{"$f":"IF(AND('[1]Mapa final'!#REF!=\"Muy Alta\",'[1]Mapa final'!#REF!=\"Leve\"),CONCATENATE(\"R2C\",'[1]Mapa final'!#REF!),\"\")","v":{"$error":"#REF!"}},{"$f":"IF(AND('[1]Mapa final'!#REF!=\"Muy Alta\",'[1]Mapa final'!#REF!=\"Leve\"),CONCATENATE(\"R2C\",'[1]Mapa final'!#REF!),\"\")","v":{"$error":"#REF!"}},{"$f":"IF(AND('[1]Mapa final'!#REF!=\"Muy Alta\",'[1]Mapa final'!#REF!=\"Leve\"),CONCATENATE(\"R2C\",'[1]Mapa final'!#REF!),\"\")","v":{"$error":"#REF!"}},{"$f":"IF(AND('[1]Mapa final'!$AA$10=\"Muy Alta\",'[1]Mapa final'!$AC$10=\"Menor\"),CONCATENATE(\"R2C\",'[1]Mapa final'!$Q$10),\"\")","v":{"$error":"#REF!"}},{"$f":"IF(AND('[1]Mapa final'!#REF!=\"Muy Alta\",'[1]Mapa final'!#REF!=\"Menor\"),CONCATENATE(\"R2C\",'[1]Mapa final'!#REF!),\"\")","v":{"$error":"#REF!"}},{"$f":"IF(AND('[1]Mapa final'!#REF!=\"Muy Alta\",'[1]Mapa final'!#REF!=\"Menor\"),CONCATENATE(\"R2C\",'[1]Mapa final'!#REF!),\"\")","v":{"$error":"#REF!"}},{"$f":"IF(AND('[1]Mapa final'!#REF!=\"Muy Alta\",'[1]Mapa final'!#REF!=\"Menor\"),CONCATENATE(\"R2C\",'[1]Mapa final'!#REF!),\"\")","v":{"$error":"#REF!"}},{"$f":"IF(AND('[1]Mapa final'!#REF!=\"Muy Alta\",'[1]Mapa final'!#REF!=\"Menor\"),CONCATENATE(\"R2C\",'[1]Mapa final'!#REF!),\"\")","v":{"$error":"#REF!"}},{"$f":"IF(AND('[1]Mapa final'!#REF!=\"Muy Alta\",'[1]Mapa final'!#REF!=\"Menor\"),CONCATENATE(\"R2C\",'[1]Mapa final'!#REF!),\"\")","v":{"$error":"#REF!"}},{"$f":"IF(AND('[1]Mapa final'!$AA$10=\"Muy Alta\",'[1]Mapa final'!$AC$10=\"Moderado\"),CONCATENATE(\"R2C\",'[1]Mapa final'!$Q$10),\"\")","v":{"$error":"#REF!"}},{"$f":"IF(AND('[1]Mapa final'!#REF!=\"Muy Alta\",'[1]Mapa final'!#REF!=\"Moderado\"),CONCATENATE(\"R2C\",'[1]Mapa final'!#REF!),\"\")","v":{"$error":"#REF!"}},{"$f":"IF(AND('[1]Mapa final'!#REF!=\"Muy Alta\",'[1]Mapa final'!#REF!=\"Moderado\"),CONCATENATE(\"R2C\",'[1]Mapa final'!#REF!),\"\")","v":{"$error":"#REF!"}},{"$f":"IF(AND('[1]Mapa final'!#REF!=\"Muy Alta\",'[1]Mapa final'!#REF!=\"Moderado\"),CONCATENATE(\"R2C\",'[1]Mapa final'!#REF!),\"\")","v":{"$error":"#REF!"}},{"$f":"IF(AND('[1]Mapa final'!#REF!=\"Muy Alta\",'[1]Mapa final'!#REF!=\"Moderado\"),CONCATENATE(\"R2C\",'[1]Mapa final'!#REF!),\"\")","v":{"$error":"#REF!"}},{"$f":"IF(AND('[1]Mapa final'!#REF!=\"Muy Alta\",'[1]Mapa final'!#REF!=\"Moderado\"),CONCATENATE(\"R2C\",'[1]Mapa final'!#REF!),\"\")","v":{"$error":"#REF!"}},{"$f":"IF(AND('[1]Mapa final'!$AA$10=\"Muy Alta\",'[1]Mapa final'!$AC$10=\"Mayor\"),CONCATENATE(\"R2C\",'[1]Mapa final'!$Q$10),\"\")","v":{"$error":"#REF!"}},{"$f":"IF(AND('[1]Mapa final'!#REF!=\"Muy Alta\",'[1]Mapa final'!#REF!=\"Mayor\"),CONCATENATE(\"R2C\",'[1]Mapa final'!#REF!),\"\")","v":{"$error":"#REF!"}},{"$f":"IF(AND('[1]Mapa final'!#REF!=\"Muy Alta\",'[1]Mapa final'!#REF!=\"Mayor\"),CONCATENATE(\"R2C\",'[1]Mapa final'!#REF!),\"\")","v":{"$error":"#REF!"}},{"$f":"IF(AND('[1]Mapa final'!#REF!=\"Muy Alta\",'[1]Mapa final'!#REF!=\"Mayor\"),CONCATENATE(\"R2C\",'[1]Mapa final'!#REF!),\"\")","v":{"$error":"#REF!"}},{"$f":"IF(AND('[1]Mapa final'!#REF!=\"Muy Alta\",'[1]Mapa final'!#REF!=\"Mayor\"),CONCATENATE(\"R2C\",'[1]Mapa final'!#REF!),\"\")","v":{"$error":"#REF!"}},{"$f":"IF(AND('[1]Mapa final'!#REF!=\"Muy Alta\",'[1]Mapa final'!#REF!=\"Mayor\"),CONCATENATE(\"R2C\",'[1]Mapa final'!#REF!),\"\")","v":{"$error":"#REF!"}},{"$f":"IF(AND('[1]Mapa final'!$AA$10=\"Muy Alta\",'[1]Mapa final'!$AC$10=\"Catastrófico\"),CONCATENATE(\"R2C\",'[1]Mapa final'!$Q$10),\"\")","v":{"$error":"#REF!"}},{"$f":"IF(AND('[1]Mapa final'!#REF!=\"Muy Alta\",'[1]Mapa final'!#REF!=\"Catastrófico\"),CONCATENATE(\"R2C\",'[1]Mapa final'!#REF!),\"\")","v":{"$error":"#REF!"}},{"$f":"IF(AND('[1]Mapa final'!#REF!=\"Muy Alta\",'[1]Mapa final'!#REF!=\"Catastrófico\"),CONCATENATE(\"R2C\",'[1]Mapa final'!#REF!),\"\")","v":{"$error":"#REF!"}},{"$f":"IF(AND('[1]Mapa final'!#REF!=\"Muy Alta\",'[1]Mapa final'!#REF!=\"Catastrófico\"),CONCATENATE(\"R2C\",'[1]Mapa final'!#REF!),\"\")","v":{"$error":"#REF!"}},{"$f":"IF(AND('[1]Mapa final'!#REF!=\"Muy Alta\",'[1]Mapa final'!#REF!=\"Catastrófico\"),CONCATENATE(\"R2C\",'[1]Mapa final'!#REF!),\"\")","v":{"$error":"#REF!"}},{"$f":"IF(AND('[1]Mapa final'!#REF!=\"Muy Alta\",'[1]Mapa final'!#REF!=\"Catastrófico\"),CONCATENATE(\"R2C\",'[1]Mapa final'!#REF!),\"\")","v":{"$error":"#REF!"}}]
[null,null,null,null,null,null,null,null,null,{"$f":"IF(AND('[1]Mapa final'!$AA$11=\"Muy Alta\",'[1]Mapa final'!$AC$11=\"Leve\"),CONCATENATE(\"R3C\",'[1]Mapa final'!$Q$11),\"\")","v":{"$error":"#REF!"}},{"$f":"IF(AND('[1]Mapa final'!#REF!=\"Muy Alta\",'[1]Mapa final'!#REF!=\"Leve\"),CONCATENATE(\"R3C\",'[1]Mapa final'!#REF!),\"\")","v":{"$error":"#REF!"}},{"$f":"IF(AND('[1]Mapa final'!#REF!=\"Muy Alta\",'[1]Mapa final'!#REF!=\"Leve\"),CONCATENATE(\"R3C\",'[1]Mapa final'!#REF!),\"\")","v":{"$error":"#REF!"}},{"$f":"IF(AND('[1]Mapa final'!#REF!=\"Muy Alta\",'[1]Mapa final'!#REF!=\"Leve\"),CONCATENATE(\"R3C\",'[1]Mapa final'!#REF!),\"\")","v":{"$error":"#REF!"}},{"$f":"IF(AND('[1]Mapa final'!#REF!=\"Muy Alta\",'[1]Mapa final'!#REF!=\"Leve\"),CONCATENATE(\"R3C\",'[1]Mapa final'!#REF!),\"\")","v":{"$error":"#REF!"}},{"$f":"IF(AND('[1]Mapa final'!#REF!=\"Muy Alta\",'[1]Mapa final'!#REF!=\"Leve\"),CONCATENATE(\"R3C\",'[1]Mapa final'!#REF!),\"\")","v":{"$error":"#REF!"}},{"$f":"IF(AND('[1]Mapa final'!$AA$11=\"Muy Alta\",'[1]Mapa final'!$AC$11=\"Menor\"),CONCATENATE(\"R3C\",'[1]Mapa final'!$Q$11),\"\")","v":{"$error":"#REF!"}},{"$f":"IF(AND('[1]Mapa final'!#REF!=\"Muy Alta\",'[1]Mapa final'!#REF!=\"Menor\"),CONCATENATE(\"R3C\",'[1]Mapa final'!#REF!),\"\")","v":{"$error":"#REF!"}},{"$f":"IF(AND('[1]Mapa final'!#REF!=\"Muy Alta\",'[1]Mapa final'!#REF!=\"Menor\"),CONCATENATE(\"R3C\",'[1]Mapa final'!#REF!),\"\")","v":{"$error":"#REF!"}},{"$f":"IF(AND('[1]Mapa final'!#REF!=\"Muy Alta\",'[1]Mapa final'!#REF!=\"Menor\"),CONCATENATE(\"R3C\",'[1]Mapa final'!#REF!),\"\")","v":{"$error":"#REF!"}},{"$f":"IF(AND('[1]Mapa final'!#REF!=\"Muy Alta\",'[1]Mapa final'!#REF!=\"Menor\"),CONCATENATE(\"R3C\",'[1]Mapa final'!#REF!),\"\")","v":{"$error":"#REF!"}},{"$f":"IF(AND('[1]Mapa final'!#REF!=\"Muy Alta\",'[1]Mapa final'!#REF!=\"Menor\"),CONCATENATE(\"R3C\",'[1]Mapa final'!#REF!),\"\")","v":{"$error":"#REF!"}},{"$f":"IF(AND('[1]Mapa final'!$AA$11=\"Muy Alta\",'[1]Mapa final'!$AC$11=\"Moderado\"),CONCATENATE(\"R3C\",'[1]Mapa final'!$Q$11),\"\")","v":{"$error":"#REF!"}},{"$f":"IF(AND('[1]Mapa final'!#REF!=\"Muy Alta\",'[1]Mapa final'!#REF!=\"Moderado\"),CONCATENATE(\"R3C\",'[1]Mapa final'!#REF!),\"\")","v":{"$error":"#REF!"}},{"$f":"IF(AND('[1]Mapa final'!#REF!=\"Muy Alta\",'[1]Mapa final'!#REF!=\"Moderado\"),CONCATENATE(\"R3C\",'[1]Mapa final'!#REF!),\"\")","v":{"$error":"#REF!"}},{"$f":"IF(AND('[1]Mapa final'!#REF!=\"Muy Alta\",'[1]Mapa final'!#REF!=\"Moderado\"),CONCATENATE(\"R3C\",'[1]Mapa final'!#REF!),\"\")","v":{"$error":"#REF!"}},{"$f":"IF(AND('[1]Mapa final'!#REF!=\"Muy Alta\",'[1]Mapa final'!#REF!=\"Moderado\"),CONCATENATE(\"R3C\",'[1]Mapa final'!#REF!),\"\")","v":{"$error":"#REF!"}},{"$f":"IF(AND('[1]Mapa final'!#REF!=\"Muy Alta\",'[1]Mapa final'!#REF!=\"Moderado\"),CONCATENATE(\"R3C\",'[1]Mapa final'!#REF!),\"\")","v":{"$error":"#REF!"}},{"$f":"IF(AND('[1]Mapa final'!$AA$11=\"Muy Alta\",'[1]Mapa final'!$AC$11=\"Mayor\"),CONCATENATE(\"R3C\",'[1]Mapa final'!$Q$11),\"\")","v":{"$error":"#REF!"}},{"$f":"IF(AND('[1]Mapa final'!#REF!=\"Muy Alta\",'[1]Mapa final'!#REF!=\"Mayor\"),CONCATENATE(\"R3C\",'[1]Mapa final'!#REF!),\"\")","v":{"$error":"#REF!"}},{"$f":"IF(AND('[1]Mapa final'!#REF!=\"Muy Alta\",'[1]Mapa final'!#REF!=\"Mayor\"),CONCATENATE(\"R3C\",'[1]Mapa final'!#REF!),\"\")","v":{"$error":"#REF!"}},{"$f":"IF(AND('[1]Mapa final'!#REF!=\"Muy Alta\",'[1]Mapa final'!#REF!=\"Mayor\"),CONCATENATE(\"R3C\",'[1]Mapa final'!#REF!),\"\")","v":{"$error":"#REF!"}},{"$f":"IF(AND('[1]Mapa final'!#REF!=\"Muy Alta\",'[1]Mapa final'!#REF!=\"Mayor\"),CONCATENATE(\"R3C\",'[1]Mapa final'!#REF!),\"\")","v":{"$error":"#REF!"}},{"$f":"IF(AND('[1]Mapa final'!#REF!=\"Muy Alta\",'[1]Mapa final'!#REF!=\"Mayor\"),CONCATENATE(\"R3C\",'[1]Mapa final'!#REF!),\"\")","v":{"$error":"#REF!"}},{"$f":"IF(AND('[1]Mapa final'!$AA$11=\"Muy Alta\",'[1]Mapa final'!$AC$11=\"Catastrófico\"),CONCATENATE(\"R3C\",'[1]Mapa final'!$Q$11),\"\")","v":{"$error":"#REF!"}},{"$f":"IF(AND('[1]Mapa final'!#REF!=\"Muy Alta\",'[1]Mapa final'!#REF!=\"Catastrófico\"),CONCATENATE(\"R3C\",'[1]Mapa final'!#REF!),\"\")","v":{"$error":"#REF!"}},{"$f":"IF(AND('[1]Mapa final'!#REF!=\"Muy Alta\",'[1]Mapa final'!#REF!=\"Catastrófico\"),CONCATENATE(\"R3C\",'[1]Mapa final'!#REF!),\"\")","v":{"$error":"#REF!"}},{"$f":"IF(AND('[1]Mapa final'!#REF!=\"Muy Alta\",'[1]Mapa final'!#REF!=\"Catastrófico\"),CONCATENATE(\"R3C\",'[1]Mapa final'!#REF!),\"\")","v":{"$error":"#REF!"}},{"$f":"IF(AND('[1]Mapa final'!#REF!=\"Muy Alta\",'[1]Mapa final'!#REF!=\"Catastrófico\"),CONCATENATE(\"R3C\",'[1]Mapa final'!#REF!),\"\")","v":{"$error":"#REF!"}},{"$f":"IF(AND('[1]Mapa final'!#REF!=\"Muy Alta\",'[1]Mapa final'!#REF!=\"Catastrófico\"),CONCATENATE(\"R3C\",'[1]Mapa final'!#REF!),\"\")","v":{"$error":"#REF!"}}]
[null,null,null,null,null,null,null,null,null,{"$f":"IF(AND('[1]Mapa final'!$AA$13=\"Muy Alta\",'[1]Mapa final'!$AC$13=\"Leve\"),CONCATENATE(\"R4C\",'[1]Mapa final'!$Q$13),\"\")","v":{"$error":"#REF!"}},{"$f":"IF(AND('[1]Mapa final'!#REF!=\"Muy Alta\",'[1]Mapa final'!#REF!=\"Leve\"),CONCATENATE(\"R4C\",'[1]Mapa final'!#REF!),\"\")","v":{"$error":"#REF!"}},{"$f":"IF(AND('[1]Mapa final'!#REF!=\"Muy Alta\",'[1]Mapa final'!#REF!=\"Leve\"),CONCATENATE(\"R4C\",'[1]Mapa final'!#REF!),\"\")","v":{"$error":"#REF!"}},{"$f":"IF(AND('[1]Mapa final'!#REF!=\"Muy Alta\",'[1]Mapa final'!#REF!=\"Leve\"),CONCATENATE(\"R4C\",'[1]Mapa final'!#REF!),\"\")","v":{"$error":"#REF!"}},{"$f":"IF(AND('[1]Mapa final'!#REF!=\"Muy Alta\",'[1]Mapa final'!#REF!=\"Leve\"),CONCATENATE(\"R4C\",'[1]Mapa final'!#REF!),\"\")","v":{"$error":"#REF!"}},{"$f":"IF(AND('[1]Mapa final'!#REF!=\"Muy Alta\",'[1]Mapa final'!#REF!=\"Leve\"),CONCATENATE(\"R4C\",'[1]Mapa final'!#REF!),\"\")","v":{"$error":"#REF!"}},{"$f":"IF(AND('[1]Mapa final'!$AA$13=\"Muy Alta\",'[1]Mapa final'!$AC$13=\"Menor\"),CONCATENATE(\"R4C\",'[1]Mapa final'!$Q$13),\"\")","v":{"$error":"#REF!"}},{"$f":"IF(AND('[1]Mapa final'!#REF!=\"Muy Alta\",'[1]Mapa final'!#REF!=\"Menor\"),CONCATENATE(\"R4C\",'[1]Mapa final'!#REF!),\"\")","v":{"$error":"#REF!"}},{"$f":"IF(AND('[1]Mapa final'!#REF!=\"Muy Alta\",'[1]Mapa final'!#REF!=\"Menor\"),CONCATENATE(\"R4C\",'[1]Mapa final'!#REF!),\"\")","v":{"$error":"#REF!"}},{"$f":"IF(AND('[1]Mapa final'!#REF!=\"Muy Alta\",'[1]Mapa final'!#REF!=\"Menor\"),CONCATENATE(\"R4C\",'[1]Mapa final'!#REF!),\"\")","v":{"$error":"#REF!"}},{"$f":"IF(AND('[1]Mapa final'!#REF!=\"Muy Alta\",'[1]Mapa final'!#REF!=\"Menor\"),CONCATENATE(\"R4C\",'[1]Mapa final'!#REF!),\"\")","v":{"$error":"#REF!"}},{"$f":"IF(AND('[1]Mapa final'!#REF!=\"Muy Alta\",'[1]Mapa final'!#REF!=\"Menor\"),CONCATENATE(\"R4C\",'[1]Mapa final'!#REF!),\"\")","v":{"$error":"#REF!"}},{"$f":"IF(AND('[1]Mapa final'!$AA$13=\"Muy Alta\",'[1]Mapa final'!$AC$13=\"Moderado\"),CONCATENATE(\"R4C\",'[1]Mapa final'!$Q$13),\"\")","v":{"$error":"#REF!"}},{"$f":"IF(AND('[1]Mapa final'!#REF!=\"Muy Alta\",'[1]Mapa final'!#REF!=\"Moderado\"),CONCATENATE(\"R4C\",'[1]Mapa final'!#REF!),\"\")","v":{"$error":"#REF!"}},{"$f":"IF(AND('[1]Mapa final'!#REF!=\"Muy Alta\",'[1]Mapa final'!#REF!=\"Moderado\"),CONCATENATE(\"R4C\",'[1]Mapa final'!#REF!),\"\")","v":{"$error":"#REF!"}},{"$f":"IF(AND('[1]Mapa final'!#REF!=\"Muy Alta\",'[1]Mapa final'!#REF!=\"Moderado\"),CONCATENATE(\"R4C\",'[1]Mapa final'!#REF!),\"\")","v":{"$error":"#REF!"}},{"$f":"IF(AND('[1]Mapa final'!#REF!=\"Muy Alta\",'[1]Mapa final'!#REF!=\"Moderado\"),CONCATENATE(\"R4C\",'[1]Mapa final'!#REF!),\"\")","v":{"$error":"#REF!"}},{"$f":"IF(AND('[1]Mapa final'!#REF!=\"Muy Alta\",'[1]Mapa final'!#REF!=\"Moderado\"),CONCATENATE(\"R4C\",'[1]Mapa final'!#REF!),\"\")","v":{"$error":"#REF!"}},{"$f":"IF(AND('[1]Mapa final'!$AA$13=\"Muy Alta\",'[1]Mapa final'!$AC$13=\"Mayor\"),CONCATENATE(\"R4C\",'[1]Mapa final'!$Q$13),\"\")","v":{"$error":"#REF!"}},{"$f":"IF(AND('[1]Mapa final'!#REF!=\"Muy Alta\",'[1]Mapa final'!#REF!=\"Mayor\"),CONCATENATE(\"R4C\",'[1]Mapa final'!#REF!),\"\")","v":{"$error":"#REF!"}},{"$f":"IF(AND('[1]Mapa final'!#REF!=\"Muy Alta\",'[1]Mapa final'!#REF!=\"Mayor\"),CONCATENATE(\"R4C\",'[1]Mapa final'!#REF!),\"\")","v":{"$error":"#REF!"}},{"$f":"IF(AND('[1]Mapa final'!#REF!=\"Muy Alta\",'[1]Mapa final'!#REF!=\"Mayor\"),CONCATENATE(\"R4C\",'[1]Mapa final'!#REF!),\"\")","v":{"$error":"#REF!"}},{"$f":"IF(AND('[1]Mapa final'!#REF!=\"Muy Alta\",'[1]Mapa final'!#REF!=\"Mayor\"),CONCATENATE(\"R4C\",'[1]Mapa final'!#REF!),\"\")","v":{"$error":"#REF!"}},{"$f":"IF(AND('[1]Mapa final'!#REF!=\"Muy Alta\",'[1]Mapa final'!#REF!=\"Mayor\"),CONCATENATE(\"R4C\",'[1]Mapa final'!#REF!),\"\")","v":{"$error":"#REF!"}},{"$f":"IF(AND('[1]Mapa final'!$AA$13=\"Muy Alta\",'[1]Mapa final'!$AC$13=\"Catastrófico\"),CONCATENATE(\"R4C\",'[1]Mapa final'!$Q$13),\"\")","v":{"$error":"#REF!"}},{"$f":"IF(AND('[1]Mapa final'!#REF!=\"Muy Alta\",'[1]Mapa final'!#REF!=\"Catastrófico\"),CONCATENATE(\"R4C\",'[1]Mapa final'!#REF!),\"\")","v":{"$error":"#REF!"}},{"$f":"IF(AND('[1]Mapa final'!#REF!=\"Muy Alta\",'[1]Mapa final'!#REF!=\"Catastrófico\"),CONCATENATE(\"R4C\",'[1]Mapa final'!#REF!),\"\")","v":{"$error":"#REF!"}},{"$f":"IF(AND('[1]Mapa final'!#REF!=\"Muy Alta\",'[1]Mapa final'!#REF!=\"Catastrófico\"),CONCATENATE(\"R4C\",'[1]Mapa final'!#REF!),\"\")","v":{"$error":"#REF!"}},{"$f":"IF(AND('[1]Mapa final'!#REF!=\"Muy Alta\",'[1]Mapa final'!#REF!=\"Catastrófico\"),CONCATENATE(\"R4C\",'[1]Mapa final'!#REF!),\"\")","v":{"$error":"#REF!"}},{"$f":"IF(AND('[1]Mapa final'!#REF!=\"Muy Alta\",'[1]Mapa final'!#REF!=\"Catastrófico\"),CONCATENATE(\"R4C\",'[1]Mapa final'!#REF!),\"\")","v":{"$error":"#REF!"}}]
[null,null,null,null,null,null,null,null,null,{"$f":"IF(AND('[1]Mapa final'!$AA$14=\"Muy Alta\",'[1]Mapa final'!$AC$14=\"Leve\"),CONCATENATE(\"R5C\",'[1]Mapa final'!$Q$14),\"\")","v":{"$error":"#REF!"}},{"$f":"IF(AND('[1]Mapa final'!#REF!=\"Muy Alta\",'[1]Mapa final'!#REF!=\"Leve\"),CONCATENATE(\"R5C\",'[1]Mapa final'!#REF!),\"\")","v":{"$error":"#REF!"}},{"$f":"IF(AND('[1]Mapa final'!#REF!=\"Muy Alta\",'[1]Mapa final'!#REF!=\"Leve\"),CONCATENATE(\"R5C\",'[1]Mapa final'!#REF!),\"\")","v":{"$error":"#REF!"}},{"$f":"IF(AND('[1]Mapa final'!#REF!=\"Muy Alta\",'[1]Mapa final'!#REF!=\"Leve\"),CONCATENATE(\"R5C\",'[1]Mapa final'!#REF!),\"\")","v":{"$error":"#REF!"}},{"$f":"IF(AND('[1]Mapa final'!#REF!=\"Muy Alta\",'[1]Mapa final'!#REF!=\"Leve\"),CONCATENATE(\"R5C\",'[1]Mapa final'!#REF!),\"\")","v":{"$error":"#REF!"}},{"$f":"IF(AND('[1]Mapa final'!#REF!=\"Muy Alta\",'[1]Mapa final'!#REF!=\"Leve\"),CONCATENATE(\"R5C\",'[1]Mapa final'!#REF!),\"\")","v":{"$error":"#REF!"}},{"$f":"IF(AND('[1]Mapa final'!$AA$14=\"Muy Alta\",'[1]Mapa final'!$AC$14=\"Menor\"),CONCATENATE(\"R5C\",'[1]Mapa final'!$Q$14),\"\")","v":{"$error":"#REF!"}},{"$f":"IF(AND('[1]Mapa final'!#REF!=\"Muy Alta\",'[1]Mapa final'!#REF!=\"Menor\"),CONCATENATE(\"R5C\",'[1]Mapa final'!#REF!),\"\")","v":{"$error":"#REF!"}},{"$f":"IF(AND('[1]Mapa final'!#REF!=\"Muy Alta\",'[1]Mapa final'!#REF!=\"Menor\"),CONCATENATE(\"R5C\",'[1]Mapa final'!#REF!),\"\")","v":{"$error":"#REF!"}},{"$f":"IF(AND('[1]Mapa final'!#REF!=\"Muy Alta\",'[1]Mapa final'!#REF!=\"Menor\"),CONCATENATE(\"R5C\",'[1]Mapa final'!#REF!),\"\")","v":{"$error":"#REF!"}},{"$f":"IF(AND('[1]Mapa final'!#REF!=\"Muy Alta\",'[1]Mapa final'!#REF!=\"Menor\"),CONCATENATE(\"R5C\",'[1]Mapa final'!#REF!),\"\")","v":{"$error":"#REF!"}},{"$f":"IF(AND('[1]Mapa final'!#REF!=\"Muy Alta\",'[1]Mapa final'!#REF!=\"Menor\"),CONCATENATE(\"R5C\",'[1]Mapa final'!#REF!),\"\")","v":{"$error":"#REF!"}},{"$f":"IF(AND('[1]Mapa final'!$AA$14=\"Muy Alta\",'[1]Mapa final'!$AC$14=\"Moderado\"),CONCATENATE(\"R5C\",'[1]Mapa final'!$Q$14),\"\")","v":{"$error":"#REF!"}},{"$f":"IF(AND('[1]Mapa final'!#REF!=\"Muy Alta\",'[1]Mapa final'!#REF!=\"Moderado\"),CONCATENATE(\"R5C\",'[1]Mapa final'!#REF!),\"\")","v":{"$error":"#REF!"}},{"$f":"IF(AND('[1]Mapa final'!#REF!=\"Muy Alta\",'[1]Mapa final'!#REF!=\"Moderado\"),CONCATENATE(\"R5C\",'[1]Mapa final'!#REF!),\"\")","v":{"$error":"#REF!"}},{"$f":"IF(AND('[1]Mapa final'!#REF!=\"Muy Alta\",'[1]Mapa final'!#REF!=\"Moderado\"),CONCATENATE(\"R5C\",'[1]Mapa final'!#REF!),\"\")","v":{"$error":"#REF!"}},{"$f":"IF(AND('[1]Mapa final'!#REF!=\"Muy Alta\",'[1]Mapa final'!#REF!=\"Moderado\"),CONCATENATE(\"R5C\",'[1]Mapa final'!#REF!),\"\")","v":{"$error":"#REF!"}},{"$f":"IF(AND('[1]Mapa final'!#REF!=\"Muy Alta\",'[1]Mapa final'!#REF!=\"Moderado\"),CONCATENATE(\"R5C\",'[1]Mapa final'!#REF!),\"\")","v":{"$error":"#REF!"}},{"$f":"IF(AND('[1]Mapa final'!$AA$14=\"Muy Alta\",'[1]Mapa final'!$AC$14=\"Mayor\"),CONCATENATE(\"R5C\",'[1]Mapa final'!$Q$14),\"\")","v":{"$error":"#REF!"}},{"$f":"IF(AND('[1]Mapa final'!#REF!=\"Muy Alta\",'[1]Mapa final'!#REF!=\"Mayor\"),CONCATENATE(\"R5C\",'[1]Mapa final'!#REF!),\"\")","v":{"$error":"#REF!"}},{"$f":"IF(AND('[1]Mapa final'!#REF!=\"Muy Alta\",'[1]Mapa final'!#REF!=\"Mayor\"),CONCATENATE(\"R5C\",'[1]Mapa final'!#REF!),\"\")","v":{"$error":"#REF!"}},{"$f":"IF(AND('[1]Mapa final'!#REF!=\"Muy Alta\",'[1]Mapa final'!#REF!=\"Mayor\"),CONCATENATE(\"R5C\",'[1]Mapa final'!#REF!),\"\")","v":{"$error":"#REF!"}},{"$f":"IF(AND('[1]Mapa final'!#REF!=\"Muy Alta\",'[1]Mapa final'!#REF!=\"Mayor\"),CONCATENATE(\"R5C\",'[1]Mapa final'!#REF!),\"\")","v":{"$error":"#REF!"}},{"$f":"IF(AND('[1]Mapa final'!#REF!=\"Muy Alta\",'[1]Mapa final'!#REF!=\"Mayor\"),CONCATENATE(\"R5C\",'[1]Mapa final'!#REF!),\"\")","v":{"$error":"#REF!"}},{"$f":"IF(AND('[1]Mapa final'!$AA$14=\"Muy Alta\",'[1]Mapa final'!$AC$14=\"Catastrófico\"),CONCATENATE(\"R5C\",'[1]Mapa final'!$Q$14),\"\")","v":{"$error":"#REF!"}},{"$f":"IF(AND('[1]Mapa final'!#REF!=\"Muy Alta\",'[1]Mapa final'!#REF!=\"Catastrófico\"),CONCATENATE(\"R5C\",'[1]Mapa final'!#REF!),\"\")","v":{"$error":"#REF!"}},{"$f":"IF(AND('[1]Mapa final'!#REF!=\"Muy Alta\",'[1]Mapa final'!#REF!=\"Catastrófico\"),CONCATENATE(\"R5C\",'[1]Mapa final'!#REF!),\"\")","v":{"$error":"#REF!"}},{"$f":"IF(AND('[1]Mapa final'!#REF!=\"Muy Alta\",'[1]Mapa final'!#REF!=\"Catastrófico\"),CONCATENATE(\"R5C\",'[1]Mapa final'!#REF!),\"\")","v":{"$error":"#REF!"}},{"$f":"IF(AND('[1]Mapa final'!#REF!=\"Muy Alta\",'[1]Mapa final'!#REF!=\"Catastrófico\"),CONCATENATE(\"R5C\",'[1]Mapa final'!#REF!),\"\")","v":{"$error":"#REF!"}},{"$f":"IF(AND('[1]Mapa final'!#REF!=\"Muy Alta\",'[1]Mapa final'!#REF!=\"Catastrófico\"),CONCATENATE(\"R5C\",'[1]Mapa final'!#REF!),\"\")","v":{"$error":"#REF!"}}]
[null,null,null,null,null,null,null,null,null,{"$f":"IF(AND('[1]Mapa final'!$AB$17=\"Muy Alta\",'[1]Mapa final'!$AD$17=\"Leve\"),CONCATENATE(\"R6C\",'[1]Mapa final'!$R$17),\"\")","v":{"$error":"#REF!"}},{"$f":"IF(AND('[1]Mapa final'!#REF!=\"Muy Alta\",'[1]Mapa final'!#REF!=\"Leve\"),CONCATENATE(\"R6C\",'[1]Mapa final'!#REF!),\"\")","v":{"$error":"#REF!"}},{"$f":"IF(AND('[1]Mapa final'!#REF!=\"Muy Alta\",'[1]Mapa final'!#REF!=\"Leve\"),CONCATENATE(\"R6C\",'[1]Mapa final'!#REF!),\"\")","v":{"$error":"#REF!"}},{"$f":"IF(AND('[1]Mapa final'!#REF!=\"Muy Alta\",'[1]Mapa final'!#REF!=\"Leve\"),CONCATENATE(\"R6C\",'[1]Mapa final'!#REF!),\"\")","v":{"$error":"#REF!"}},{"$f":"IF(AND('[1]Mapa final'!#REF!=\"Muy Alta\",'[1]Mapa final'!#REF!=\"Leve\"),CONCATENATE(\"R6C\",'[1]Mapa final'!#REF!),\"\")","v":{"$error":"#REF!"}},{"$f":"IF(AND('[1]Mapa final'!#REF!=\"Muy Alta\",'[1]Mapa final'!#REF!=\"Leve\"),CONCATENATE(\"R6C\",'[1]Mapa final'!#REF!),\"\")","v":{"$error":"#REF!"}},{"$f":"IF(AND('[1]Mapa final'!$AB$17=\"Muy Alta\",'[1]Mapa final'!$AD$17=\"Menor\"),CONCATENATE(\"R6C\",'[1]Mapa final'!$R$17),\"\")","v":{"$error":"#REF!"}},{"$f":"IF(AND('[1]Mapa final'!#REF!=\"Muy Alta\",'[1]Mapa final'!#REF!=\"Menor\"),CONCATENATE(\"R6C\",'[1]Mapa final'!#REF!),\"\")","v":{"$error":"#REF!"}},{"$f":"IF(AND('[1]Mapa final'!#REF!=\"Muy Alta\",'[1]Mapa final'!#REF!=\"Menor\"),CONCATENATE(\"R6C\",'[1]Mapa final'!#REF!),\"\")","v":{"$error":"#REF!"}},{"$f":"IF(AND('[1]Mapa final'!#REF!=\"Muy Alta\",'[1]Mapa final'!#REF!=\"Menor\"),CONCATENATE(\"R6C\",'[1]Mapa final'!#REF!),\"\")","v":{"$error":"#REF!"}},{"$f":"IF(AND('[1]Mapa final'!#REF!=\"Muy Alta\",'[1]Mapa final'!#REF!=\"Menor\"),CONCATENATE(\"R6C\",'[1]Mapa final'!#REF!),\"\")","v":{"$error":"#REF!"}},{"$f":"IF(AND('[1]Mapa final'!#REF!=\"Muy Alta\",'[1]Mapa final'!#REF!=\"Menor\"),CONCATENATE(\"R6C\",'[1]Mapa final'!#REF!),\"\")","v":{"$error":"#REF!"}},{"$f":"IF(AND('[1]Mapa final'!$AB$17=\"Muy Alta\",'[1]Mapa final'!$AD$17=\"Moderado\"),CONCATENATE(\"R6C\",'[1]Mapa final'!$R$17),\"\")","v":{"$error":"#REF!"}},{"$f":"IF(AND('[1]Mapa final'!#REF!=\"Muy Alta\",'[1]Mapa final'!#REF!=\"Moderado\"),CONCATENATE(\"R6C\",'[1]Mapa final'!#REF!),\"\")","v":{"$error":"#REF!"}},{"$f":"IF(AND('[1]Mapa final'!#REF!=\"Muy Alta\",'[1]Mapa final'!#REF!=\"Moderado\"),CONCATENATE(\"R6C\",'[1]Mapa final'!#REF!),\"\")","v":{"$error":"#REF!"}},{"$f":"IF(AND('[1]Mapa final'!#REF!=\"Muy Alta\",'[1]Mapa final'!#REF!=\"Moderado\"),CONCATENATE(\"R6C\",'[1]Mapa final'!#REF!),\"\")","v":{"$error":"#REF!"}},{"$f":"IF(AND('[1]Mapa final'!#REF!=\"Muy Alta\",'[1]Mapa final'!#REF!=\"Moderado\"),CONCATENATE(\"R6C\",'[1]Mapa final'!#REF!),\"\")","v":{"$error":"#REF!"}},{"$f":"IF(AND('[1]Mapa final'!#REF!=\"Muy Alta\",'[1]Mapa final'!#REF!=\"Moderado\"),CONCATENATE(\"R6C\",'[1]Mapa final'!#REF!),\"\")","v":{"$error":"#REF!"}},{"$f":"IF(AND('[1]Mapa final'!$AB$17=\"Muy Alta\",'[1]Mapa final'!$AD$17=\"Mayor\"),CONCATENATE(\"R6C\",'[1]Mapa final'!$R$17),\"\")","v":{"$error":"#REF!"}},{"$f":"IF(AND('[1]Mapa final'!#REF!=\"Muy Alta\",'[1]Mapa final'!#REF!=\"Mayor\"),CONCATENATE(\"R6C\",'[1]Mapa final'!#REF!),\"\")","v":{"$error":"#REF!"}},{"$f":"IF(AND('[1]Mapa final'!#REF!=\"Muy Alta\",'[1]Mapa final'!#REF!=\"Mayor\"),CONCATENATE(\"R6C\",'[1]Mapa final'!#REF!),\"\")","v":{"$error":"#REF!"}},{"$f":"IF(AND('[1]Mapa final'!#REF!=\"Muy Alta\",'[1]Mapa final'!#REF!=\"Mayor\"),CONCATENATE(\"R6C\",'[1]Mapa final'!#REF!),\"\")","v":{"$error":"#REF!"}},{"$f":"IF(AND('[1]Mapa final'!#REF!=\"Muy Alta\",'[1]Mapa final'!#REF!=\"Mayor\"),CONCATENATE(\"R6C\",'[1]Mapa final'!#REF!),\"\")","v":{"$error":"#REF!"}},{"$f":"IF(AND('[1]Mapa final'!#REF!=\"Muy Alta\",'[1]Mapa final'!#REF!=\"Mayor\"),CONCATENATE(\"R6C\",'[1]Mapa final'!#REF!),\"\")","v":{"$error":"#REF!"}},{"$f":"IF(AND('[1]Mapa final'!$AB$17=\"Muy Alta\",'[1]Mapa final'!$AD$17=\"Catastrófico\"),CONCATENATE(\"R6C\",'[1]Mapa final'!$R$17),\"\")","v":{"$error":"#REF!"}},{"$f":"IF(AND('[1]Mapa final'!#REF!=\"Muy Alta\",'[1]Mapa final'!#REF!=\"Catastrófico\"),CONCATENATE(\"R6C\",'[1]Mapa final'!#REF!),\"\")","v":{"$error":"#REF!"}},{"$f":"IF(AND('[1]Mapa final'!#REF!=\"Muy Alta\",'[1]Mapa final'!#REF!=\"Catastrófico\"),CONCATENATE(\"R6C\",'[1]Mapa final'!#REF!),\"\")","v":{"$error":"#REF!"}},{"$f":"IF(AND('[1]Mapa final'!#REF!=\"Muy Alta\",'[1]Mapa final'!#REF!=\"Catastrófico\"),CONCATENATE(\"R6C\",'[1]Mapa final'!#REF!),\"\")","v":{"$error":"#REF!"}},{"$f":"IF(AND('[1]Mapa final'!#REF!=\"Muy Alta\",'[1]Mapa final'!#REF!=\"Catastrófico\"),CONCATENATE(\"R6C\",'[1]Mapa final'!#REF!),\"\")","v":{"$error":"#REF!"}},{"$f":"IF(AND('[1]Mapa final'!#REF!=\"Muy Alta\",'[1]Mapa final'!#REF!=\"Catastrófico\"),CONCATENATE(\"R6C\",'[1]Mapa final'!#REF!),\"\")","v":{"$error":"#REF!"}}]
[null,null,null,null,null,null,null,null,null,{"$f":"IF(AND('[1]Mapa final'!$AA$18=\"Muy Alta\",'[1]Mapa final'!$AC$18=\"Leve\"),CONCATENATE(\"R7C\",'[1]Mapa final'!$Q$18),\"\")","v":{"$error":"#REF!"}},{"$f":"IF(AND('[1]Mapa final'!#REF!=\"Muy Alta\",'[1]Mapa final'!#REF!=\"Leve\"),CONCATENATE(\"R7C\",'[1]Mapa final'!#REF!),\"\")","v":{"$error":"#REF!"}},{"$f":"IF(AND('[1]Mapa final'!#REF!=\"Muy Alta\",'[1]Mapa final'!#REF!=\"Leve\"),CONCATENATE(\"R7C\",'[1]Mapa final'!#REF!),\"\")","v":{"$error":"#REF!"}},{"$f":"IF(AND('[1]Mapa final'!#REF!=\"Muy Alta\",'[1]Mapa final'!#REF!=\"Leve\"),CONCATENATE(\"R7C\",'[1]Mapa final'!#REF!),\"\")","v":{"$error":"#REF!"}},{"$f":"IF(AND('[1]Mapa final'!#REF!=\"Muy Alta\",'[1]Mapa final'!#REF!=\"Leve\"),CONCATENATE(\"R7C\",'[1]Mapa final'!#REF!),\"\")","v":{"$error":"#REF!"}},{"$f":"IF(AND('[1]Mapa final'!#REF!=\"Muy Alta\",'[1]Mapa final'!#REF!=\"Leve\"),CONCATENATE(\"R7C\",'[1]Mapa final'!#REF!),\"\")","v":{"$error":"#REF!"}},{"$f":"IF(AND('[1]Mapa final'!$AA$18=\"Muy Alta\",'[1]Mapa final'!$AC$18=\"Menor\"),CONCATENATE(\"R7C\",'[1]Mapa final'!$Q$18),\"\")","v":{"$error":"#REF!"}},{"$f":"IF(AND('[1]Mapa final'!#REF!=\"Muy Alta\",'[1]Mapa final'!#REF!=\"Menor\"),CONCATENATE(\"R7C\",'[1]Mapa final'!#REF!),\"\")","v":{"$error":"#REF!"}},{"$f":"IF(AND('[1]Mapa final'!#REF!=\"Muy Alta\",'[1]Mapa final'!#REF!=\"Menor\"),CONCATENATE(\"R7C\",'[1]Mapa final'!#REF!),\"\")","v":{"$error":"#REF!"}},{"$f":"IF(AND('[1]Mapa final'!#REF!=\"Muy Alta\",'[1]Mapa final'!#REF!=\"Menor\"),CONCATENATE(\"R7C\",'[1]Mapa final'!#REF!),\"\")","v":{"$error":"#REF!"}},{"$f":"IF(AND('[1]Mapa final'!#REF!=\"Muy Alta\",'[1]Mapa final'!#REF!=\"Menor\"),CONCATENATE(\"R7C\",'[1]Mapa final'!#REF!),\"\")","v":{"$error":"#REF!"}},{"$f":"IF(AND('[1]Mapa final'!#REF!=\"Muy Alta\",'[1]Mapa final'!#REF!=\"Menor\"),CONCATENATE(\"R7C\",'[1]Mapa final'!#REF!),\"\")","v":{"$error":"#REF!"}},{"$f":"IF(AND('[1]Mapa final'!$AA$18=\"Muy Alta\",'[1]Mapa final'!$AC$18=\"Moderado\"),CONCATENATE(\"R7C\",'[1]Mapa final'!$Q$18),\"\")","v":{"$error":"#REF!"}},{"$f":"IF(AND('[1]Mapa final'!#REF!=\"Muy Alta\",'[1]Mapa final'!#REF!=\"Moderado\"),CONCATENATE(\"R7C\",'[1]Mapa final'!#REF!),\"\")","v":{"$error":"#REF!"}},{"$f":"IF(AND('[1]Mapa final'!#REF!=\"Muy Alta\",'[1]Mapa final'!#REF!=\"Moderado\"),CONCATENATE(\"R7C\",'[1]Mapa final'!#REF!),\"\")","v":{"$error":"#REF!"}},{"$f":"IF(AND('[1]Mapa final'!#REF!=\"Muy Alta\",'[1]Mapa final'!#REF!=\"Moderado\"),CONCATENATE(\"R7C\",'[1]Mapa final'!#REF!),\"\")","v":{"$error":"#REF!"}},{"$f":"IF(AND('[1]Mapa final'!#REF!=\"Muy Alta\",'[1]Mapa final'!#REF!=\"Moderado\"),CONCATENATE(\"R7C\",'[1]Mapa final'!#REF!),\"\")","v":{"$error":"#REF!"}},{"$f":"IF(AND('[1]Mapa final'!#REF!=\"Muy Alta\",'[1]Mapa final'!#REF!=\"Moderado\"),CONCATENATE(\"R7C\",'[1]Mapa final'!#REF!),\"\")","v":{"$error":"#REF!"}},{"$f":"IF(AND('[1]Mapa final'!$AA$18=\"Muy Alta\",'[1]Mapa final'!$AC$18=\"Mayor\"),CONCATENATE(\"R7C\",'[1]Mapa final'!$Q$18),\"\")","v":{"$error":"#REF!"}},{"$f":"IF(AND('[1]Mapa final'!#REF!=\"Muy Alta\",'[1]Mapa final'!#REF!=\"Mayor\"),CONCATENATE(\"R7C\",'[1]Mapa final'!#REF!),\"\")","v":{"$error":"#REF!"}},{"$f":"IF(AND('[1]Mapa final'!#REF!=\"Muy Alta\",'[1]Mapa final'!#REF!=\"Mayor\"),CONCATENATE(\"R7C\",'[1]Mapa final'!#REF!),\"\")","v":{"$error":"#REF!"}},{"$f":"IF(AND('[1]Mapa final'!#REF!=\"Muy Alta\",'[1]Mapa final'!#REF!=\"Mayor\"),CONCATENATE(\"R7C\",'[1]Mapa final'!#REF!),\"\")","v":{"$error":"#REF!"}},{"$f":"IF(AND('[1]Mapa final'!#REF!=\"Muy Alta\",'[1]Mapa final'!#REF!=\"Mayor\"),CONCATENATE(\"R7C\",'[1]Mapa final'!#REF!),\"\")","v":{"$error":"#REF!"}},{"$f":"IF(AND('[1]Mapa final'!#REF!=\"Muy Alta\",'[1]Mapa final'!#REF!=\"Mayor\"),CONCATENATE(\"R7C\",'[1]Mapa final'!#REF!),\"\")","v":{"$error":"#REF!"}},{"$f":"IF(AND('[1]Mapa final'!$AA$18=\"Muy Alta\",'[1]Mapa final'!$AC$18=\"Catastrófico\"),CONCATENATE(\"R7C\",'[1]Mapa final'!$Q$18),\"\")","v":{"$error":"#REF!"}},{"$f":"IF(AND('[1]Mapa final'!#REF!=\"Muy Alta\",'[1]Mapa final'!#REF!=\"Catastrófico\"),CONCATENATE(\"R7C\",'[1]Mapa final'!#REF!),\"\")","v":{"$error":"#REF!"}},{"$f":"IF(AND('[1]Mapa final'!#REF!=\"Muy Alta\",'[1]Mapa final'!#REF!=\"Catastrófico\"),CONCATENATE(\"R7C\",'[1]Mapa final'!#REF!),\"\")","v":{"$error":"#REF!"}},{"$f":"IF(AND('[1]Mapa final'!#REF!=\"Muy Alta\",'[1]Mapa final'!#REF!=\"Catastrófico\"),CONCATENATE(\"R7C\",'[1]Mapa final'!#REF!),\"\")","v":{"$error":"#REF!"}},{"$f":"IF(AND('[1]Mapa final'!#REF!=\"Muy Alta\",'[1]Mapa final'!#REF!=\"Catastrófico\"),CONCATENATE(\"R7C\",'[1]Mapa final'!#REF!),\"\")","v":{"$error":"#REF!"}},{"$f":"IF(AND('[1]Mapa final'!#REF!=\"Muy Alta\",'[1]Mapa final'!#REF!=\"Catastrófico\"),CONCATENATE(\"R7C\",'[1]Mapa final'!#REF!),\"\")","v":{"$error":"#REF!"}}]
[null,null,null,null,null,null,null,null,null,{"$f":"IF(AND('[1]Mapa final'!$AA$19=\"Muy Alta\",'[1]Mapa final'!$AC$19=\"Leve\"),CONCATENATE(\"R8C\",'[1]Mapa final'!$Q$19),\"\")","v":{"$error":"#REF!"}},{"$f":"IF(AND('[1]Mapa final'!#REF!=\"Muy Alta\",'[1]Mapa final'!#REF!=\"Leve\"),CONCATENATE(\"R8C\",'[1]Mapa final'!#REF!),\"\")","v":{"$error":"#REF!"}},{"$f":"IF(AND('[1]Mapa final'!#REF!=\"Muy Alta\",'[1]Mapa final'!#REF!=\"Leve\"),CONCATENATE(\"R8C\",'[1]Mapa final'!#REF!),\"\")","v":{"$error":"#REF!"}},{"$f":"IF(AND('[1]Mapa final'!#REF!=\"Muy Alta\",'[1]Mapa final'!#REF!=\"Leve\"),CONCATENATE(\"R8C\",'[1]Mapa final'!#REF!),\"\")","v":{"$error":"#REF!"}},{"$f":"IF(AND('[1]Mapa final'!#REF!=\"Muy Alta\",'[1]Mapa final'!#REF!=\"Leve\"),CONCATENATE(\"R8C\",'[1]Mapa final'!#REF!),\"\")","v":{"$error":"#REF!"}},{"$f":"IF(AND('[1]Mapa final'!#REF!=\"Muy Alta\",'[1]Mapa final'!#REF!=\"Leve\"),CONCATENATE(\"R8C\",'[1]Mapa final'!#REF!),\"\")","v":{"$error":"#REF!"}},{"$f":"IF(AND('[1]Mapa final'!$AA$19=\"Muy Alta\",'[1]Mapa final'!$AC$19=\"Menor\"),CONCATENATE(\"R8C\",'[1]Mapa final'!$Q$19),\"\")","v":{"$error":"#REF!"}},{"$f":"IF(AND('[1]Mapa final'!#REF!=\"Muy Alta\",'[1]Mapa final'!#REF!=\"Menor\"),CONCATENATE(\"R8C\",'[1]Mapa final'!#REF!),\"\")","v":{"$error":"#REF!"}},{"$f":"IF(AND('[1]Mapa final'!#REF!=\"Muy Alta\",'[1]Mapa final'!#REF!=\"Menor\"),CONCATENATE(\"R8C\",'[1]Mapa final'!#REF!),\"\")","v":{"$error":"#REF!"}},{"$f":"IF(AND('[1]Mapa final'!#REF!=\"Muy Alta\",'[1]Mapa final'!#REF!=\"Menor\"),CONCATENATE(\"R8C\",'[1]Mapa final'!#REF!),\"\")","v":{"$error":"#REF!"}},{"$f":"IF(AND('[1]Mapa final'!#REF!=\"Muy Alta\",'[1]Mapa final'!#REF!=\"Menor\"),CONCATENATE(\"R8C\",'[1]Mapa final'!#REF!),\"\")","v":{"$error":"#REF!"}},{"$f":"IF(AND('[1]Mapa final'!#REF!=\"Muy Alta\",'[1]Mapa final'!#REF!=\"Menor\"),CONCATENATE(\"R8C\",'[1]Mapa final'!#REF!),\"\")","v":{"$error":"#REF!"}},{"$f":"IF(AND('[1]Mapa final'!$AA$19=\"Muy Alta\",'[1]Mapa final'!$AC$19=\"Moderado\"),CONCATENATE(\"R8C\",'[1]Mapa final'!$Q$19),\"\")","v":{"$error":"#REF!"}},{"$f":"IF(AND('[1]Mapa final'!#REF!=\"Muy Alta\",'[1]Mapa final'!#REF!=\"Moderado\"),CONCATENATE(\"R8C\",'[1]Mapa final'!#REF!),\"\")","v":{"$error":"#REF!"}},{"$f":"IF(AND('[1]Mapa final'!#REF!=\"Muy Alta\",'[1]Mapa final'!#REF!=\"Moderado\"),CONCATENATE(\"R8C\",'[1]Mapa final'!#REF!),\"\")","v":{"$error":"#REF!"}},{"$f":"IF(AND('[1]Mapa final'!#REF!=\"Muy Alta\",'[1]Mapa final'!#REF!=\"Moderado\"),CONCATENATE(\"R8C\",'[1]Mapa final'!#REF!),\"\")","v":{"$error":"#REF!"}},{"$f":"IF(AND('[1]Mapa final'!#REF!=\"Muy Alta\",'[1]Mapa final'!#REF!=\"Moderado\"),CONCATENATE(\"R8C\",'[1]Mapa final'!#REF!),\"\")","v":{"$error":"#REF!"}},{"$f":"IF(AND('[1]Mapa final'!#REF!=\"Muy Alta\",'[1]Mapa final'!#REF!=\"Moderado\"),CONCATENATE(\"R8C\",'[1]Mapa final'!#REF!),\"\")","v":{"$error":"#REF!"}},{"$f":"IF(AND('[1]Mapa final'!$AA$19=\"Muy Alta\",'[1]Mapa final'!$AC$19=\"Mayor\"),CONCATENATE(\"R8C\",'[1]Mapa final'!$Q$19),\"\")","v":{"$error":"#REF!"}},{"$f":"IF(AND('[1]Mapa final'!#REF!=\"Muy Alta\",'[1]Mapa final'!#REF!=\"Mayor\"),CONCATENATE(\"R8C\",'[1]Mapa final'!#REF!),\"\")","v":{"$error":"#REF!"}},{"$f":"IF(AND('[1]Mapa final'!#REF!=\"Muy Alta\",'[1]Mapa final'!#REF!=\"Mayor\"),CONCATENATE(\"R8C\",'[1]Mapa final'!#REF!),\"\")","v":{"$error":"#REF!"}},{"$f":"IF(AND('[1]Mapa final'!#REF!=\"Muy Alta\",'[1]Mapa final'!#REF!=\"Mayor\"),CONCATENATE(\"R8C\",'[1]Mapa final'!#REF!),\"\")","v":{"$error":"#REF!"}},{"$f":"IF(AND('[1]Mapa final'!#REF!=\"Muy Alta\",'[1]Mapa final'!#REF!=\"Mayor\"),CONCATENATE(\"R8C\",'[1]Mapa final'!#REF!),\"\")","v":{"$error":"#REF!"}},{"$f":"IF(AND('[1]Mapa final'!#REF!=\"Muy Alta\",'[1]Mapa final'!#REF!=\"Mayor\"),CONCATENATE(\"R8C\",'[1]Mapa final'!#REF!),\"\")","v":{"$error":"#REF!"}},{"$f":"IF(AND('[1]Mapa final'!$AA$19=\"Muy Alta\",'[1]Mapa final'!$AC$19=\"Catastrófico\"),CONCATENATE(\"R8C\",'[1]Mapa final'!$Q$19),\"\")","v":{"$error":"#REF!"}},{"$f":"IF(AND('[1]Mapa final'!#REF!=\"Muy Alta\",'[1]Mapa final'!#REF!=\"Catastrófico\"),CONCATENATE(\"R8C\",'[1]Mapa final'!#REF!),\"\")","v":{"$error":"#REF!"}},{"$f":"IF(AND('[1]Mapa final'!#REF!=\"Muy Alta\",'[1]Mapa final'!#REF!=\"Catastrófico\"),CONCATENATE(\"R8C\",'[1]Mapa final'!#REF!),\"\")","v":{"$error":"#REF!"}},{"$f":"IF(AND('[1]Mapa final'!#REF!=\"Muy Alta\",'[1]Mapa final'!#REF!=\"Catastrófico\"),CONCATENATE(\"R8C\",'[1]Mapa final'!#REF!),\"\")","v":{"$error":"#REF!"}},{"$f":"IF(AND('[1]Mapa final'!#REF!=\"Muy Alta\",'[1]Mapa final'!#REF!=\"Catastrófico\"),CONCATENATE(\"R8C\",'[1]Mapa final'!#REF!),\"\")","v":{"$error":"#REF!"}},{"$f":"IF(AND('[1]Mapa final'!#REF!=\"Muy Alta\",'[1]Mapa final'!#REF!=\"Catastrófico\"),CONCATENATE(\"R8C\",'[1]Mapa final'!#REF!),\"\")","v":{"$error":"#REF!"}}]
[null,null,null,null,null,null,null,null,null,{"$f":"IF(AND('[1]Mapa final'!$AA$20=\"Muy Alta\",'[1]Mapa final'!$AC$20=\"Leve\"),CONCATENATE(\"R9C\",'[1]Mapa final'!$Q$20),\"\")","v":{"$error":"#REF!"}},{"$f":"IF(AND('[1]Mapa final'!#REF!=\"Muy Alta\",'[1]Mapa final'!#REF!=\"Leve\"),CONCATENATE(\"R9C\",'[1]Mapa final'!#REF!),\"\")","v":{"$error":"#REF!"}},{"$f":"IF(AND('[1]Mapa final'!#REF!=\"Muy Alta\",'[1]Mapa final'!#REF!=\"Leve\"),CONCATENATE(\"R9C\",'[1]Mapa final'!#REF!),\"\")","v":{"$error":"#REF!"}},{"$f":"IF(AND('[1]Mapa final'!#REF!=\"Muy Alta\",'[1]Mapa final'!#REF!=\"Leve\"),CONCATENATE(\"R9C\",'[1]Mapa final'!#REF!),\"\")","v":{"$error":"#REF!"}},{"$f":"IF(AND('[1]Mapa final'!#REF!=\"Muy Alta\",'[1]Mapa final'!#REF!=\"Leve\"),CONCATENATE(\"R9C\",'[1]Mapa final'!#REF!),\"\")","v":{"$error":"#REF!"}},{"$f":"IF(AND('[1]Mapa final'!#REF!=\"Muy Alta\",'[1]Mapa final'!#REF!=\"Leve\"),CONCATENATE(\"R9C\",'[1]Mapa final'!#REF!),\"\")","v":{"$error":"#REF!"}},{"$f":"IF(AND('[1]Mapa final'!$AA$20=\"Muy Alta\",'[1]Mapa final'!$AC$20=\"Menor\"),CONCATENATE(\"R9C\",'[1]Mapa final'!$Q$20),\"\")","v":{"$error":"#REF!"}},{"$f":"IF(AND('[1]Mapa final'!#REF!=\"Muy Alta\",'[1]Mapa final'!#REF!=\"Menor\"),CONCATENATE(\"R9C\",'[1]Mapa final'!#REF!),\"\")","v":{"$error":"#REF!"}},{"$f":"IF(AND('[1]Mapa final'!#REF!=\"Muy Alta\",'[1]Mapa final'!#REF!=\"Menor\"),CONCATENATE(\"R9C\",'[1]Mapa final'!#REF!),\"\")","v":{"$error":"#REF!"}},{"$f":"IF(AND('[1]Mapa final'!#REF!=\"Muy Alta\",'[1]Mapa final'!#REF!=\"Menor\"),CONCATENATE(\"R9C\",'[1]Mapa final'!#REF!),\"\")","v":{"$error":"#REF!"}},{"$f":"IF(AND('[1]Mapa final'!#REF!=\"Muy Alta\",'[1]Mapa final'!#REF!=\"Menor\"),CONCATENATE(\"R9C\",'[1]Mapa final'!#REF!),\"\")","v":{"$error":"#REF!"}},{"$f":"IF(AND('[1]Mapa final'!#REF!=\"Muy Alta\",'[1]Mapa final'!#REF!=\"Menor\"),CONCATENATE(\"R9C\",'[1]Mapa final'!#REF!),\"\")","v":{"$error":"#REF!"}},{"$f":"IF(AND('[1]Mapa final'!$AA$20=\"Muy Alta\",'[1]Mapa final'!$AC$20=\"Moderado\"),CONCATENATE(\"R9C\",'[1]Mapa final'!$Q$20),\"\")","v":{"$error":"#REF!"}},{"$f":"IF(AND('[1]Mapa final'!#REF!=\"Muy Alta\",'[1]Mapa final'!#REF!=\"Moderado\"),CONCATENATE(\"R9C\",'[1]Mapa final'!#REF!),\"\")","v":{"$error":"#REF!"}},{"$f":"IF(AND('[1]Mapa final'!#REF!=\"Muy Alta\",'[1]Mapa final'!#REF!=\"Moderado\"),CONCATENATE(\"R9C\",'[1]Mapa final'!#REF!),\"\")","v":{"$error":"#REF!"}},{"$f":"IF(AND('[1]Mapa final'!#REF!=\"Muy Alta\",'[1]Mapa final'!#REF!=\"Moderado\"),CONCATENATE(\"R9C\",'[1]Mapa final'!#REF!),\"\")","v":{"$error":"#REF!"}},{"$f":"IF(AND('[1]Mapa final'!#REF!=\"Muy Alta\",'[1]Mapa final'!#REF!=\"Moderado\"),CONCATENATE(\"R9C\",'[1]Mapa final'!#REF!),\"\")","v":{"$error":"#REF!"}},{"$f":"IF(AND('[1]Mapa final'!#REF!=\"Muy Alta\",'[1]Mapa final'!#REF!=\"Moderado\"),CONCATENATE(\"R9C\",'[1]Mapa final'!#REF!),\"\")","v":{"$error":"#REF!"}},{"$f":"IF(AND('[1]Mapa final'!$AA$20=\"Muy Alta\",'[1]Mapa final'!$AC$20=\"Mayor\"),CONCATENATE(\"R9C\",'[1]Mapa final'!$Q$20),\"\")","v":{"$error":"#REF!"}},{"$f":"IF(AND('[1]Mapa final'!#REF!=\"Muy Alta\",'[1]Mapa final'!#REF!=\"Mayor\"),CONCATENATE(\"R9C\",'[1]Mapa final'!#REF!),\"\")","v":{"$error":"#REF!"}},{"$f":"IF(AND('[1]Mapa final'!#REF!=\"Muy Alta\",'[1]Mapa final'!#REF!=\"Mayor\"),CONCATENATE(\"R9C\",'[1]Mapa final'!#REF!),\"\")","v":{"$error":"#REF!"}},{"$f":"IF(AND('[1]Mapa final'!#REF!=\"Muy Alta\",'[1]Mapa final'!#REF!=\"Mayor\"),CONCATENATE(\"R9C\",'[1]Mapa final'!#REF!),\"\")","v":{"$error":"#REF!"}},{"$f":"IF(AND('[1]Mapa final'!#REF!=\"Muy Alta\",'[1]Mapa final'!#REF!=\"Mayor\"),CONCATENATE(\"R9C\",'[1]Mapa final'!#REF!),\"\")","v":{"$error":"#REF!"}},{"$f":"IF(AND('[1]Mapa final'!#REF!=\"Muy Alta\",'[1]Mapa final'!#REF!=\"Mayor\"),CONCATENATE(\"R9C\",'[1]Mapa final'!#REF!),\"\")","v":{"$error":"#REF!"}},{"$f":"IF(AND('[1]Mapa final'!$AA$20=\"Muy Alta\",'[1]Mapa final'!$AC$20=\"Catastrófico\"),CONCATENATE(\"R9C\",'[1]Mapa final'!$Q$20),\"\")","v":{"$error":"#REF!"}},{"$f":"IF(AND('[1]Mapa final'!#REF!=\"Muy Alta\",'[1]Mapa final'!#REF!=\"Catastrófico\"),CONCATENATE(\"R9C\",'[1]Mapa final'!#REF!),\"\")","v":{"$error":"#REF!"}},{"$f":"IF(AND('[1]Mapa final'!#REF!=\"Muy Alta\",'[1]Mapa final'!#REF!=\"Catastrófico\"),CONCATENATE(\"R9C\",'[1]Mapa final'!#REF!),\"\")","v":{"$error":"#REF!"}},{"$f":"IF(AND('[1]Mapa final'!#REF!=\"Muy Alta\",'[1]Mapa final'!#REF!=\"Catastrófico\"),CONCATENATE(\"R9C\",'[1]Mapa final'!#REF!),\"\")","v":{"$error":"#REF!"}},{"$f":"IF(AND('[1]Mapa final'!#REF!=\"Muy Alta\",'[1]Mapa final'!#REF!=\"Catastrófico\"),CONCATENATE(\"R9C\",'[1]Mapa final'!#REF!),\"\")","v":{"$error":"#REF!"}},{"$f":"IF(AND('[1]Mapa final'!#REF!=\"Muy Alta\",'[1]Mapa final'!#REF!=\"Catastrófico\"),CONCATENATE(\"R9C\",'[1]Mapa final'!#REF!),\"\")","v":{"$error":"#REF!"}}]
[null,null,null,null,null,null,null,null,null,{"$f":"IF(AND('[1]Mapa final'!$AA$21=\"Muy Alta\",'[1]Mapa final'!$AC$21=\"Leve\"),CONCATENATE(\"R10C\",'[1]Mapa final'!$Q$21),\"\")","v":{"$error":"#REF!"}},{"$f":"IF(AND('[1]Mapa final'!#REF!=\"Muy Alta\",'[1]Mapa final'!#REF!=\"Leve\"),CONCATENATE(\"R10C\",'[1]Mapa final'!#REF!),\"\")","v":{"$error":"#REF!"}},{"$f":"IF(AND('[1]Mapa final'!#REF!=\"Muy Alta\",'[1]Mapa final'!#REF!=\"Leve\"),CONCATENATE(\"R10C\",'[1]Mapa final'!#REF!),\"\")","v":{"$error":"#REF!"}},{"$f":"IF(AND('[1]Mapa final'!#REF!=\"Muy Alta\",'[1]Mapa final'!#REF!=\"Leve\"),CONCATENATE(\"R10C\",'[1]Mapa final'!#REF!),\"\")","v":{"$error":"#REF!"}},{"$f":"IF(AND('[1]Mapa final'!#REF!=\"Muy Alta\",'[1]Mapa final'!#REF!=\"Leve\"),CONCATENATE(\"R10C\",'[1]Mapa final'!#REF!),\"\")","v":{"$error":"#REF!"}},{"$f":"IF(AND('[1]Mapa final'!#REF!=\"Muy Alta\",'[1]Mapa final'!#REF!=\"Leve\"),CONCATENATE(\"R10C\",'[1]Mapa final'!#REF!),\"\")","v":{"$error":"#REF!"}},{"$f":"IF(AND('[1]Mapa final'!$AA$21=\"Muy Alta\",'[1]Mapa final'!$AC$21=\"Menor\"),CONCATENATE(\"R10C\",'[1]Mapa final'!$Q$21),\"\")","v":{"$error":"#REF!"}},{"$f":"IF(AND('[1]Mapa final'!#REF!=\"Muy Alta\",'[1]Mapa final'!#REF!=\"Menor\"),CONCATENATE(\"R10C\",'[1]Mapa final'!#REF!),\"\")","v":{"$error":"#REF!"}},{"$f":"IF(AND('[1]Mapa final'!#REF!=\"Muy Alta\",'[1]Mapa final'!#REF!=\"Menor\"),CONCATENATE(\"R10C\",'[1]Mapa final'!#REF!),\"\")","v":{"$error":"#REF!"}},{"$f":"IF(AND('[1]Mapa final'!#REF!=\"Muy Alta\",'[1]Mapa final'!#REF!=\"Menor\"),CONCATENATE(\"R10C\",'[1]Mapa final'!#REF!),\"\")","v":{"$error":"#REF!"}},{"$f":"IF(AND('[1]Mapa final'!#REF!=\"Muy Alta\",'[1]Mapa final'!#REF!=\"Menor\"),CONCATENATE(\"R10C\",'[1]Mapa final'!#REF!),\"\")","v":{"$error":"#REF!"}},{"$f":"IF(AND('[1]Mapa final'!#REF!=\"Muy Alta\",'[1]Mapa final'!#REF!=\"Menor\"),CONCATENATE(\"R10C\",'[1]Mapa final'!#REF!),\"\")","v":{"$error":"#REF!"}},{"$f":"IF(AND('[1]Mapa final'!$AA$21=\"Muy Alta\",'[1]Mapa final'!$AC$21=\"Moderado\"),CONCATENATE(\"R10C\",'[1]Mapa final'!$Q$21),\"\")","v":{"$error":"#REF!"}},{"$f":"IF(AND('[1]Mapa final'!#REF!=\"Muy Alta\",'[1]Mapa final'!#REF!=\"Moderado\"),CONCATENATE(\"R10C\",'[1]Mapa final'!#REF!),\"\")","v":{"$error":"#REF!"}},{"$f":"IF(AND('[1]Mapa final'!#REF!=\"Muy Alta\",'[1]Mapa final'!#REF!=\"Moderado\"),CONCATENATE(\"R10C\",'[1]Mapa final'!#REF!),\"\")","v":{"$error":"#REF!"}},{"$f":"IF(AND('[1]Mapa final'!#REF!=\"Muy Alta\",'[1]Mapa final'!#REF!=\"Moderado\"),CONCATENATE(\"R10C\",'[1]Mapa final'!#REF!),\"\")","v":{"$error":"#REF!"}},{"$f":"IF(AND('[1]Mapa final'!#REF!=\"Muy Alta\",'[1]Mapa final'!#REF!=\"Moderado\"),CONCATENATE(\"R10C\",'[1]Mapa final'!#REF!),\"\")","v":{"$error":"#REF!"}},{"$f":"IF(AND('[1]Mapa final'!#REF!=\"Muy Alta\",'[1]Mapa final'!#REF!=\"Moderado\"),CONCATENATE(\"R10C\",'[1]Mapa final'!#REF!),\"\")","v":{"$error":"#REF!"}},{"$f":"IF(AND('[1]Mapa final'!$AA$21=\"Muy Alta\",'[1]Mapa final'!$AC$21=\"Mayor\"),CONCATENATE(\"R10C\",'[1]Mapa final'!$Q$21),\"\")","v":{"$error":"#REF!"}},{"$f":"IF(AND('[1]Mapa final'!#REF!=\"Muy Alta\",'[1]Mapa final'!#REF!=\"Mayor\"),CONCATENATE(\"R10C\",'[1]Mapa final'!#REF!),\"\")","v":{"$error":"#REF!"}},{"$f":"IF(AND('[1]Mapa final'!#REF!=\"Muy Alta\",'[1]Mapa final'!#REF!=\"Mayor\"),CONCATENATE(\"R10C\",'[1]Mapa final'!#REF!),\"\")","v":{"$error":"#REF!"}},{"$f":"IF(AND('[1]Mapa final'!#REF!=\"Muy Alta\",'[1]Mapa final'!#REF!=\"Mayor\"),CONCATENATE(\"R10C\",'[1]Mapa final'!#REF!),\"\")","v":{"$error":"#REF!"}},{"$f":"IF(AND('[1]Mapa final'!#REF!=\"Muy Alta\",'[1]Mapa final'!#REF!=\"Mayor\"),CONCATENATE(\"R10C\",'[1]Mapa final'!#REF!),\"\")","v":{"$error":"#REF!"}},{"$f":"IF(AND('[1]Mapa final'!#REF!=\"Muy Alta\",'[1]Mapa final'!#REF!=\"Mayor\"),CONCATENATE(\"R10C\",'[1]Mapa final'!#REF!),\"\")","v":{"$error":"#REF!"}},{"$f":"IF(AND('[1]Mapa final'!$AA$21=\"Muy Alta\",'[1]Mapa final'!$AC$21=\"Catastrófico\"),CONCATENATE(\"R10C\",'[1]Mapa final'!$Q$21),\"\")","v":{"$error":"#REF!"}},{"$f":"IF(AND('[1]Mapa final'!#REF!=\"Muy Alta\",'[1]Mapa final'!#REF!=\"Catastrófico\"),CONCATENATE(\"R10C\",'[1]Mapa final'!#REF!),\"\")","v":{"$error":"#REF!"}},{"$f":"IF(AND('[1]Mapa final'!#REF!=\"Muy Alta\",'[1]Mapa final'!#REF!=\"Catastrófico\"),CONCATENATE(\"R10C\",'[1]Mapa final'!#REF!),\"\")","v":{"$error":"#REF!"}},{"$f":"IF(AND('[1]Mapa final'!#REF!=\"Muy Alta\",'[1]Mapa final'!#REF!=\"Catastrófico\"),CONCATENATE(\"R10C\",'[1]Mapa final'!#REF!),\"\")","v":{"$error":"#REF!"}},{"$f":"IF(AND('[1]Mapa final'!#REF!=\"Muy Alta\",'[1]Mapa final'!#REF!=\"Catastrófico\"),CONCATENATE(\"R10C\",'[1]Mapa final'!#REF!),\"\")","v":{"$error":"#REF!"}},{"$f":"IF(AND('[1]Mapa final'!#REF!=\"Muy Alta\",'[1]Mapa final'!#REF!=\"Catastrófico\"),CONCATENATE(\"R10C\",'[1]Mapa final'!#REF!),\"\")","v":{"$error":"#REF!"}}]
[null,null,null,null,"Alta\n80%",null,null,null,null,{"$f":"IF(AND('[1]Mapa final'!$AA$9=\"Alta\",'[1]Mapa final'!$AC$9=\"Leve\"),CONCATENATE(\"R1C\",'[1]Mapa final'!$Q$9),\"\")","v":{"$error":"#REF!"}},{"$f":"IF(AND('[1]Mapa final'!#REF!=\"Alta\",'[1]Mapa final'!#REF!=\"Leve\"),CONCATENATE(\"R1C\",'[1]Mapa final'!#REF!),\"\")","v":{"$error":"#REF!"}},{"$f":"IF(AND('[1]Mapa final'!#REF!=\"Alta\",'[1]Mapa final'!#REF!=\"Leve\"),CONCATENATE(\"R1C\",'[1]Mapa final'!#REF!),\"\")","v":{"$error":"#REF!"}},{"$f":"IF(AND('[1]Mapa final'!#REF!=\"Alta\",'[1]Mapa final'!#REF!=\"Leve\"),CONCATENATE(\"R1C\",'[1]Mapa final'!#REF!),\"\")","v":{"$error":"#REF!"}},{"$f":"IF(AND('[1]Mapa final'!#REF!=\"Alta\",'[1]Mapa final'!#REF!=\"Leve\"),CONCATENATE(\"R1C\",'[1]Mapa final'!#REF!),\"\")","v":{"$error":"#REF!"}},{"$f":"IF(AND('[1]Mapa final'!#REF!=\"Alta\",'[1]Mapa final'!#REF!=\"Leve\"),CONCATENATE(\"R1C\",'[1]Mapa final'!#REF!),\"\")","v":{"$error":"#REF!"}},{"$f":"IF(AND('[1]Mapa final'!$AA$9=\"Alta\",'[1]Mapa final'!$AC$9=\"Menor\"),CONCATENATE(\"R1C\",'[1]Mapa final'!$Q$9),\"\")","v":{"$error":"#REF!"}},{"$f":"IF(AND('[1]Mapa final'!#REF!=\"Alta\",'[1]Mapa final'!#REF!=\"Menor\"),CONCATENATE(\"R1C\",'[1]Mapa final'!#REF!),\"\")","v":{"$error":"#REF!"}},{"$f":"IF(AND('[1]Mapa final'!#REF!=\"Alta\",'[1]Mapa final'!#REF!=\"Menor\"),CONCATENATE(\"R1C\",'[1]Mapa final'!#REF!),\"\")","v":{"$error":"#REF!"}},{"$f":"IF(AND('[1]Mapa final'!#REF!=\"Alta\",'[1]Mapa final'!#REF!=\"Menor\"),CONCATENATE(\"R1C\",'[1]Mapa final'!#REF!),\"\")","v":{"$error":"#REF!"}},{"$f":"IF(AND('[1]Mapa final'!#REF!=\"Alta\",'[1]Mapa final'!#REF!=\"Menor\"),CONCATENATE(\"R1C\",'[1]Mapa final'!#REF!),\"\")","v":{"$error":"#REF!"}},{"$f":"IF(AND('[1]Mapa final'!#REF!=\"Alta\",'[1]Mapa final'!#REF!=\"Menor\"),CONCATENATE(\"R1C\",'[1]Mapa final'!#REF!),\"\")","v":{"$error":"#REF!"}},{"$f":"IF(AND('[1]Mapa final'!$AA$9=\"Alta\",'[1]Mapa final'!$AC$9=\"Moderado\"),CONCATENATE(\"R1C\",'[1]Mapa final'!$Q$9),\"\")","v":{"$error":"#REF!"}},{"$f":"IF(AND('[1]Mapa final'!#REF!=\"Alta\",'[1]Mapa final'!#REF!=\"Moderado\"),CONCATENATE(\"R1C\",'[1]Mapa final'!#REF!),\"\")","v":{"$error":"#REF!"}},{"$f":"IF(AND('[1]Mapa final'!#REF!=\"Alta\",'[1]Mapa final'!#REF!=\"Moderado\"),CONCATENATE(\"R1C\",'[1]Mapa final'!#REF!),\"\")","v":{"$error":"#REF!"}},{"$f":"IF(AND('[1]Mapa final'!#REF!=\"Alta\",'[1]Mapa final'!#REF!=\"Moderado\"),CONCATENATE(\"R1C\",'[1]Mapa final'!#REF!),\"\")","v":{"$error":"#REF!"}},{"$f":"IF(AND('[1]Mapa final'!#REF!=\"Alta\",'[1]Mapa final'!#REF!=\"Moderado\"),CONCATENATE(\"R1C\",'[1]Mapa final'!#REF!),\"\")","v":{"$error":"#REF!"}},{"$f":"IF(AND('[1]Mapa final'!#REF!=\"Alta\",'[1]Mapa final'!#REF!=\"Moderado\"),CONCATENATE(\"R1C\",'[1]Mapa final'!#REF!),\"\")","v":{"$error":"#REF!"}},{"$f":"IF(AND('[1]Mapa final'!$AA$9=\"Alta\",'[1]Mapa final'!$AC$9=\"Mayor\"),CONCATENATE(\"R1C\",'[1]Mapa final'!$Q$9),\"\")","v":{"$error":"#REF!"}},{"$f":"IF(AND('[1]Mapa final'!#REF!=\"Alta\",'[1]Mapa final'!#REF!=\"Mayor\"),CONCATENATE(\"R1C\",'[1]Mapa final'!#REF!),\"\")","v":{"$error":"#REF!"}},{"$f":"IF(AND('[1]Mapa final'!#REF!=\"Alta\",'[1]Mapa final'!#REF!=\"Mayor\"),CONCATENATE(\"R1C\",'[1]Mapa final'!#REF!),\"\")","v":{"$error":"#REF!"}},{"$f":"IF(AND('[1]Mapa final'!#REF!=\"Alta\",'[1]Mapa final'!#REF!=\"Mayor\"),CONCATENATE(\"R1C\",'[1]Mapa final'!#REF!),\"\")","v":{"$error":"#REF!"}},{"$f":"IF(AND('[1]Mapa final'!#REF!=\"Alta\",'[1]Mapa final'!#REF!=\"Mayor\"),CONCATENATE(\"R1C\",'[1]Mapa final'!#REF!),\"\")","v":{"$error":"#REF!"}},{"$f":"IF(AND('[1]Mapa final'!#REF!=\"Alta\",'[1]Mapa final'!#REF!=\"Mayor\"),CONCATENATE(\"R1C\",'[1]Mapa final'!#REF!),\"\")","v":{"$error":"#REF!"}},{"$f":"IF(AND('[1]Mapa final'!$AA$9=\"Alta\",'[1]Mapa final'!$AC$9=\"Catastrófico\"),CONCATENATE(\"R1C\",'[1]Mapa final'!$Q$9),\"\")","v":{"$error":"#REF!"}},{"$f":"IF(AND('[1]Mapa final'!#REF!=\"Alta\",'[1]Mapa final'!#REF!=\"Catastrófico\"),CONCATENATE(\"R1C\",'[1]Mapa final'!#REF!),\"\")","v":{"$error":"#REF!"}},{"$f":"IF(AND('[1]Mapa final'!#REF!=\"Alta\",'[1]Mapa final'!#REF!=\"Catastrófico\"),CONCATENATE(\"R1C\",'[1]Mapa final'!#REF!),\"\")","v":{"$error":"#REF!"}},{"$f":"IF(AND('[1]Mapa final'!#REF!=\"Alta\",'[1]Mapa final'!#REF!=\"Catastrófico\"),CONCATENATE(\"R1C\",'[1]Mapa final'!#REF!),\"\")","v":{"$error":"#REF!"}},{"$f":"IF(AND('[1]Mapa final'!#REF!=\"Alta\",'[1]Mapa final'!#REF!=\"Catastrófico\"),CONCATENATE(\"R1C\",'[1]Mapa final'!#REF!),\"\")","v":{"$error":"#REF!"}},{"$f":"IF(AND('[1]Mapa final'!#REF!=\"Alta\",'[1]Mapa final'!#REF!=\"Catastrófico\"),CONCATENATE(\"R1C\",'[1]Mapa final'!#REF!),\"\")","v":{"$error":"#REF!"}},null,"Alto"]
[null,null,null,null,null,null,null,null,null,{"$f":"IF(AND('[1]Mapa final'!$AA$10=\"Alta\",'[1]Mapa final'!$AC$10=\"Leve\"),CONCATENATE(\"R2C\",'[1]Mapa final'!$Q$10),\"\")","v":{"$error":"#REF!"}},{"$f":"IF(AND('[1]Mapa final'!#REF!=\"Alta\",'[1]Mapa final'!#REF!=\"Leve\"),CONCATENATE(\"R2C\",'[1]Mapa final'!#REF!),\"\")","v":{"$error":"#REF!"}},{"$f":"IF(AND('[1]Mapa final'!#REF!=\"Alta\",'[1]Mapa final'!#REF!=\"Leve\"),CONCATENATE(\"R2C\",'[1]Mapa final'!#REF!),\"\")","v":{"$error":"#REF!"}},{"$f":"IF(AND('[1]Mapa final'!#REF!=\"Alta\",'[1]Mapa final'!#REF!=\"Leve\"),CONCATENATE(\"R2C\",'[1]Mapa final'!#REF!),\"\")","v":{"$error":"#REF!"}},{"$f":"IF(AND('[1]Mapa final'!#REF!=\"Alta\",'[1]Mapa final'!#REF!=\"Leve\"),CONCATENATE(\"R2C\",'[1]Mapa final'!#REF!),\"\")","v":{"$error":"#REF!"}},{"$f":"IF(AND('[1]Mapa final'!#REF!=\"Alta\",'[1]Mapa final'!#REF!=\"Leve\"),CONCATENATE(\"R2C\",'[1]Mapa final'!#REF!),\"\")","v":{"$error":"#REF!"}},{"$f":"IF(AND('[1]Mapa final'!$AA$10=\"Alta\",'[1]Mapa final'!$AC$10=\"Menor\"),CONCATENATE(\"R2C\",'[1]Mapa final'!$Q$10),\"\")","v":{"$error":"#REF!"}},{"$f":"IF(AND('[1]Mapa final'!#REF!=\"Alta\",'[1]Mapa final'!#REF!=\"Menor\"),CONCATENATE(\"R2C\",'[1]Mapa final'!#REF!),\"\")","v":{"$error":"#REF!"}},{"$f":"IF(AND('[1]Mapa final'!#REF!=\"Alta\",'[1]Mapa final'!#REF!=\"Menor\"),CONCATENATE(\"R2C\",'[1]Mapa final'!#REF!),\"\")","v":{"$error":"#REF!"}},{"$f":"IF(AND('[1]Mapa final'!#REF!=\"Alta\",'[1]Mapa final'!#REF!=\"Menor\"),CONCATENATE(\"R2C\",'[1]Mapa final'!#REF!),\"\")","v":{"$error":"#REF!"}},{"$f":"IF(AND('[1]Mapa final'!#REF!=\"Alta\",'[1]Mapa final'!#REF!=\"Menor\"),CONCATENATE(\"R2C\",'[1]Mapa final'!#REF!),\"\")","v":{"$error":"#REF!"}},{"$f":"IF(AND('[1]Mapa final'!#REF!=\"Alta\",'[1]Mapa final'!#REF!=\"Menor\"),CONCATENATE(\"R2C\",'[1]Mapa final'!#REF!),\"\")","v":{"$error":"#REF!"}},{"$f":"IF(AND('[1]Mapa final'!$AA$10=\"Alta\",'[1]Mapa final'!$AC$10=\"Moderado\"),CONCATENATE(\"R2C\",'[1]Mapa final'!$Q$10),\"\")","v":{"$error":"#REF!"}},{"$f":"IF(AND('[1]Mapa final'!#REF!=\"Alta\",'[1]Mapa final'!#REF!=\"Moderado\"),CONCATENATE(\"R2C\",'[1]Mapa final'!#REF!),\"\")","v":{"$error":"#REF!"}},{"$f":"IF(AND('[1]Mapa final'!#REF!=\"Alta\",'[1]Mapa final'!#REF!=\"Moderado\"),CONCATENATE(\"R2C\",'[1]Mapa final'!#REF!),\"\")","v":{"$error":"#REF!"}},{"$f":"IF(AND('[1]Mapa final'!#REF!=\"Alta\",'[1]Mapa final'!#REF!=\"Moderado\"),CONCATENATE(\"R2C\",'[1]Mapa final'!#REF!),\"\")","v":{"$error":"#REF!"}},{"$f":"IF(AND('[1]Mapa final'!#REF!=\"Alta\",'[1]Mapa final'!#REF!=\"Moderado\"),CONCATENATE(\"R2C\",'[1]Mapa final'!#REF!),\"\")","v":{"$error":"#REF!"}},{"$f":"IF(AND('[1]Mapa final'!#REF!=\"Alta\",'[1]Mapa final'!#REF!=\"Moderado\"),CONCATENATE(\"R2C\",'[1]Mapa final'!#REF!),\"\")","v":{"$error":"#REF!"}},{"$f":"IF(AND('[1]Mapa final'!$AA$10=\"Alta\",'[1]Mapa final'!$AC$10=\"Mayor\"),CONCATENATE(\"R2C\",'[1]Mapa final'!$Q$10),\"\")","v":{"$error":"#REF!"}},{"$f":"IF(AND('[1]Mapa final'!#REF!=\"Alta\",'[1]Mapa final'!#REF!=\"Mayor\"),CONCATENATE(\"R2C\",'[1]Mapa final'!#REF!),\"\")","v":{"$error":"#REF!"}},{"$f":"IF(AND('[1]Mapa final'!#REF!=\"Alta\",'[1]Mapa final'!#REF!=\"Mayor\"),CONCATENATE(\"R2C\",'[1]Mapa final'!#REF!),\"\")","v":{"$error":"#REF!"}},{"$f":"IF(AND('[1]Mapa final'!#REF!=\"Alta\",'[1]Mapa final'!#REF!=\"Mayor\"),CONCATENATE(\"R2C\",'[1]Mapa final'!#REF!),\"\")","v":{"$error":"#REF!"}},{"$f":"IF(AND('[1]Mapa final'!#REF!=\"Alta\",'[1]Mapa final'!#REF!=\"Mayor\"),CONCATENATE(\"R2C\",'[1]Mapa final'!#REF!),\"\")","v":{"$error":"#REF!"}},{"$f":"IF(AND('[1]Mapa final'!#REF!=\"Alta\",'[1]Mapa final'!#REF!=\"Mayor\"),CONCATENATE(\"R2C\",'[1]Mapa final'!#REF!),\"\")","v":{"$error":"#REF!"}},{"$f":"IF(AND('[1]Mapa final'!$AA$10=\"Alta\",'[1]Mapa final'!$AC$10=\"Catastrófico\"),CONCATENATE(\"R2C\",'[1]Mapa final'!$Q$10),\"\")","v":{"$error":"#REF!"}},{"$f":"IF(AND('[1]Mapa final'!#REF!=\"Alta\",'[1]Mapa final'!#REF!=\"Catastrófico\"),CONCATENATE(\"R2C\",'[1]Mapa final'!#REF!),\"\")","v":{"$error":"#REF!"}},{"$f":"IF(AND('[1]Mapa final'!#REF!=\"Alta\",'[1]Mapa final'!#REF!=\"Catastrófico\"),CONCATENATE(\"R2C\",'[1]Mapa final'!#REF!),\"\")","v":{"$error":"#REF!"}},{"$f":"IF(AND('[1]Mapa final'!#REF!=\"Alta\",'[1]Mapa final'!#REF!=\"Catastrófico\"),CONCATENATE(\"R2C\",'[1]Mapa final'!#REF!),\"\")","v":{"$error":"#REF!"}},{"$f":"IF(AND('[1]Mapa final'!#REF!=\"Alta\",'[1]Mapa final'!#REF!=\"Catastrófico\"),CONCATENATE(\"R2C\",'[1]Mapa final'!#REF!),\"\")","v":{"$error":"#REF!"}},{"$f":"IF(AND('[1]Mapa final'!#REF!=\"Alta\",'[1]Mapa final'!#REF!=\"Catastrófico\"),CONCATENATE(\"R2C\",'[1]Mapa final'!#REF!),\"\")","v":{"$error":"#REF!"}}]
[null,null,null,null,null,null,null,null,null,{"$f":"IF(AND('[1]Mapa final'!$AA$11=\"Alta\",'[1]Mapa final'!$AC$11=\"Leve\"),CONCATENATE(\"R3C\",'[1]Mapa final'!$Q$11),\"\")","v":{"$error":"#REF!"}},{"$f":"IF(AND('[1]Mapa final'!#REF!=\"Alta\",'[1]Mapa final'!#REF!=\"Leve\"),CONCATENATE(\"R3C\",'[1]Mapa final'!#REF!),\"\")","v":{"$error":"#REF!"}},{"$f":"IF(AND('[1]Mapa final'!#REF!=\"Alta\",'[1]Mapa final'!#REF!=\"Leve\"),CONCATENATE(\"R3C\",'[1]Mapa final'!#REF!),\"\")","v":{"$error":"#REF!"}},{"$f":"IF(AND('[1]Mapa final'!#REF!=\"Alta\",'[1]Mapa final'!#REF!=\"Leve\"),CONCATENATE(\"R3C\",'[1]Mapa final'!#REF!),\"\")","v":{"$error":"#REF!"}},{"$f":"IF(AND('[1]Mapa final'!#REF!=\"Alta\",'[1]Mapa final'!#REF!=\"Leve\"),CONCATENATE(\"R3C\",'[1]Mapa final'!#REF!),\"\")","v":{"$error":"#REF!"}},{"$f":"IF(AND('[1]Mapa final'!#REF!=\"Alta\",'[1]Mapa final'!#REF!=\"Leve\"),CONCATENATE(\"R3C\",'[1]Mapa final'!#REF!),\"\")","v":{"$error":"#REF!"}},{"$f":"IF(AND('[1]Mapa final'!$AA$11=\"Alta\",'[1]Mapa final'!$AC$11=\"Menor\"),CONCATENATE(\"R3C\",'[1]Mapa final'!$Q$11),\"\")","v":{"$error":"#REF!"}},{"$f":"IF(AND('[1]Mapa final'!#REF!=\"Alta\",'[1]Mapa final'!#REF!=\"Menor\"),CONCATENATE(\"R3C\",'[1]Mapa final'!#REF!),\"\")","v":{"$error":"#REF!"}},{"$f":"IF(AND('[1]Mapa final'!#REF!=\"Alta\",'[1]Mapa final'!#REF!=\"Menor\"),CONCATENATE(\"R3C\",'[1]Mapa final'!#REF!),\"\")","v":{"$error":"#REF!"}},{"$f":"IF(AND('[1]Mapa final'!#REF!=\"Alta\",'[1]Mapa final'!#REF!=\"Menor\"),CONCATENATE(\"R3C\",'[1]Mapa final'!#REF!),\"\")","v":{"$error":"#REF!"}},{"$f":"IF(AND('[1]Mapa final'!#REF!=\"Alta\",'[1]Mapa final'!#REF!=\"Menor\"),CONCATENATE(\"R3C\",'[1]Mapa final'!#REF!),\"\")","v":{"$error":"#REF!"}},{"$f":"IF(AND('[1]Mapa final'!#REF!=\"Alta\",'[1]Mapa final'!#REF!=\"Menor\"),CONCATENATE(\"R3C\",'[1]Mapa final'!#REF!),\"\")","v":{"$error":"#REF!"}},{"$f":"IF(AND('[1]Mapa final'!$AA$11=\"Alta\",'[1]Mapa final'!$AC$11=\"Moderado\"),CONCATENATE(\"R3C\",'[1]Mapa final'!$Q$11),\"\")","v":{"$error":"#REF!"}},{"$f":"IF(AND('[1]Mapa final'!#REF!=\"Alta\",'[1]Mapa final'!#REF!=\"Moderado\"),CONCATENATE(\"R3C\",'[1]Mapa final'!#REF!),\"\")","v":{"$error":"#REF!"}},{"$f":"IF(AND('[1]Mapa final'!#REF!=\"Alta\",'[1]Mapa final'!#REF!=\"Moderado\"),CONCATENATE(\"R3C\",'[1]Mapa final'!#REF!),\"\")","v":{"$error":"#REF!"}},{"$f":"IF(AND('[1]Mapa final'!#REF!=\"Alta\",'[1]Mapa final'!#REF!=\"Moderado\"),CONCATENATE(\"R3C\",'[1]Mapa final'!#REF!),\"\")","v":{"$error":"#REF!"}},{"$f":"IF(AND('[1]Mapa final'!#REF!=\"Alta\",'[1]Mapa final'!#REF!=\"Moderado\"),CONCATENATE(\"R3C\",'[1]Mapa final'!#REF!),\"\")","v":{"$error":"#REF!"}},{"$f":"IF(AND('[1]Mapa final'!#REF!=\"Alta\",'[1]Mapa final'!#REF!=\"Moderado\"),CONCATENATE(\"R3C\",'[1]Mapa final'!#REF!),\"\")","v":{"$error":"#REF!"}},{"$f":"IF(AND('[1]Mapa final'!$AA$11=\"Alta\",'[1]Mapa final'!$AC$11=\"Mayor\"),CONCATENATE(\"R3C\",'[1]Mapa final'!$Q$11),\"\")","v":{"$error":"#REF!"}},{"$f":"IF(AND('[1]Mapa final'!#REF!=\"Alta\",'[1]Mapa final'!#REF!=\"Mayor\"),CONCATENATE(\"R3C\",'[1]Mapa final'!#REF!),\"\")","v":{"$error":"#REF!"}},{"$f":"IF(AND('[1]Mapa final'!#REF!=\"Alta\",'[1]Mapa final'!#REF!=\"Mayor\"),CONCATENATE(\"R3C\",'[1]Mapa final'!#REF!),\"\")","v":{"$error":"#REF!"}},{"$f":"IF(AND('[1]Mapa final'!#REF!=\"Alta\",'[1]Mapa final'!#REF!=\"Mayor\"),CONCATENATE(\"R3C\",'[1]Mapa final'!#REF!),\"\")","v":{"$error":"#REF!"}},{"$f":"IF(AND('[1]Mapa final'!#REF!=\"Alta\",'[1]Mapa final'!#REF!=\"Mayor\"),CONCATENATE(\"R3C\",'[1]Mapa final'!#REF!),\"\")","v":{"$error":"#REF!"}},{"$f":"IF(AND('[1]Mapa final'!#REF!=\"Alta\",'[1]Mapa final'!#REF!=\"Mayor\"),CONCATENATE(\"R3C\",'[1]Mapa final'!#REF!),\"\")","v":{"$error":"#REF!"}},{"$f":"IF(AND('[1]Mapa final'!$AA$11=\"Alta\",'[1]Mapa final'!$AC$11=\"Catastrófico\"),CONCATENATE(\"R3C\",'[1]Mapa final'!$Q$11),\"\")","v":{"$error":"#REF!"}},{"$f":"IF(AND('[1]Mapa final'!#REF!=\"Alta\",'[1]Mapa final'!#REF!=\"Catastrófico\"),CONCATENATE(\"R3C\",'[1]Mapa final'!#REF!),\"\")","v":{"$error":"#REF!"}},{"$f":"IF(AND('[1]Mapa final'!#REF!=\"Alta\",'[1]Mapa final'!#REF!=\"Catastrófico\"),CONCATENATE(\"R3C\",'[1]Mapa final'!#REF!),\"\")","v":{"$error":"#REF!"}},{"$f":"IF(AND('[1]Mapa final'!#REF!=\"Alta\",'[1]Mapa final'!#REF!=\"Catastrófico\"),CONCATENATE(\"R3C\",'[1]Mapa final'!#REF!),\"\")","v":{"$error":"#REF!"}},{"$f":"IF(AND('[1]Mapa final'!#REF!=\"Alta\",'[1]Mapa final'!#REF!=\"Catastrófico\"),CONCATENATE(\"R3C\",'[1]Mapa final'!#REF!),\"\")","v":{"$error":"#REF!"}},{"$f":"IF(AND('[1]Mapa final'!#REF!=\"Alta\",'[1]Mapa final'!#REF!=\"Catastrófico\"),CONCATENATE(\"R3C\",'[1]Mapa final'!#REF!),\"\")","v":{"$error":"#REF!"}}]
[null,null,null,null,null,null,null,null,null,{"$f":"IF(AND('[1]Mapa final'!$AA$13=\"Alta\",'[1]Mapa final'!$AC$13=\"Leve\"),CONCATENATE(\"R4C\",'[1]Mapa final'!$Q$13),\"\")","v":{"$error":"#REF!"}},{"$f":"IF(AND('[1]Mapa final'!#REF!=\"Alta\",'[1]Mapa final'!#REF!=\"Leve\"),CONCATENATE(\"R4C\",'[1]Mapa final'!#REF!),\"\")","v":{"$error":"#REF!"}},{"$f":"IF(AND('[1]Mapa final'!#REF!=\"Alta\",'[1]Mapa final'!#REF!=\"Leve\"),CONCATENATE(\"R4C\",'[1]Mapa final'!#REF!),\"\")","v":{"$error":"#REF!"}},{"$f":"IF(AND('[1]Mapa final'!#REF!=\"Alta\",'[1]Mapa final'!#REF!=\"Leve\"),CONCATENATE(\"R4C\",'[1]Mapa final'!#REF!),\"\")","v":{"$error":"#REF!"}},{"$f":"IF(AND('[1]Mapa final'!#REF!=\"Alta\",'[1]Mapa final'!#REF!=\"Leve\"),CONCATENATE(\"R4C\",'[1]Mapa final'!#REF!),\"\")","v":{"$error":"#REF!"}},{"$f":"IF(AND('[1]Mapa final'!#REF!=\"Alta\",'[1]Mapa final'!#REF!=\"Leve\"),CONCATENATE(\"R4C\",'[1]Mapa final'!#REF!),\"\")","v":{"$error":"#REF!"}},{"$f":"IF(AND('[1]Mapa final'!$AA$13=\"Alta\",'[1]Mapa final'!$AC$13=\"Menor\"),CONCATENATE(\"R4C\",'[1]Mapa final'!$Q$13),\"\")","v":{"$error":"#REF!"}},{"$f":"IF(AND('[1]Mapa final'!#REF!=\"Alta\",'[1]Mapa final'!#REF!=\"Menor\"),CONCATENATE(\"R4C\",'[1]Mapa final'!#REF!),\"\")","v":{"$error":"#REF!"}},{"$f":"IF(AND('[1]Mapa final'!#REF!=\"Alta\",'[1]Mapa final'!#REF!=\"Menor\"),CONCATENATE(\"R4C\",'[1]Mapa final'!#REF!),\"\")","v":{"$error":"#REF!"}},{"$f":"IF(AND('[1]Mapa final'!#REF!=\"Alta\",'[1]Mapa final'!#REF!=\"Menor\"),CONCATENATE(\"R4C\",'[1]Mapa final'!#REF!),\"\")","v":{"$error":"#REF!"}},{"$f":"IF(AND('[1]Mapa final'!#REF!=\"Alta\",'[1]Mapa final'!#REF!=\"Menor\"),CONCATENATE(\"R4C\",'[1]Mapa final'!#REF!),\"\")","v":{"$error":"#REF!"}},{"$f":"IF(AND('[1]Mapa final'!#REF!=\"Alta\",'[1]Mapa final'!#REF!=\"Menor\"),CONCATENATE(\"R4C\",'[1]Mapa final'!#REF!),\"\")","v":{"$error":"#REF!"}},{"$f":"IF(AND('[1]Mapa final'!$AA$13=\"Alta\",'[1]Mapa final'!$AC$13=\"Moderado\"),CONCATENATE(\"R4C\",'[1]Mapa final'!$Q$13),\"\")","v":{"$error":"#REF!"}},{"$f":"IF(AND('[1]Mapa final'!#REF!=\"Alta\",'[1]Mapa final'!#REF!=\"Moderado\"),CONCATENATE(\"R4C\",'[1]Mapa final'!#REF!),\"\")","v":{"$error":"#REF!"}},{"$f":"IF(AND('[1]Mapa final'!#REF!=\"Alta\",'[1]Mapa final'!#REF!=\"Moderado\"),CONCATENATE(\"R4C\",'[1]Mapa final'!#REF!),\"\")","v":{"$error":"#REF!"}},{"$f":"IF(AND('[1]Mapa final'!#REF!=\"Alta\",'[1]Mapa final'!#REF!=\"Moderado\"),CONCATENATE(\"R4C\",'[1]Mapa final'!#REF!),\"\")","v":{"$error":"#REF!"}},{"$f":"IF(AND('[1]Mapa final'!#REF!=\"Alta\",'[1]Mapa final'!#REF!=\"Moderado\"),CONCATENATE(\"R4C\",'[1]Mapa final'!#REF!),\"\")","v":{"$error":"#REF!"}},{"$f":"IF(AND('[1]Mapa final'!#REF!=\"Alta\",'[1]Mapa final'!#REF!=\"Moderado\"),CONCATENATE(\"R4C\",'[1]Mapa final'!#REF!),\"\")","v":{"$error":"#REF!"}},{"$f":"IF(AND('[1]Mapa final'!$AA$13=\"Alta\",'[1]Mapa final'!$AC$13=\"Mayor\"),CONCATENATE(\"R4C\",'[1]Mapa final'!$Q$13),\"\")","v":{"$error":"#REF!"}},{"$f":"IF(AND('[1]Mapa final'!#REF!=\"Alta\",'[1]Mapa final'!#REF!=\"Mayor\"),CONCATENATE(\"R4C\",'[1]Mapa final'!#REF!),\"\")","v":{"$error":"#REF!"}},{"$f":"IF(AND('[1]Mapa final'!#REF!=\"Alta\",'[1]Mapa final'!#REF!=\"Mayor\"),CONCATENATE(\"R4C\",'[1]Mapa final'!#REF!),\"\")","v":{"$error":"#REF!"}},{"$f":"IF(AND('[1]Mapa final'!#REF!=\"Alta\",'[1]Mapa final'!#REF!=\"Mayor\"),CONCATENATE(\"R4C\",'[1]Mapa final'!#REF!),\"\")","v":{"$error":"#REF!"}},{"$f":"IF(AND('[1]Mapa final'!#REF!=\"Alta\",'[1]Mapa final'!#REF!=\"Mayor\"),CONCATENATE(\"R4C\",'[1]Mapa final'!#REF!),\"\")","v":{"$error":"#REF!"}},{"$f":"IF(AND('[1]Mapa final'!#REF!=\"Alta\",'[1]Mapa final'!#REF!=\"Mayor\"),CONCATENATE(\"R4C\",'[1]Mapa final'!#REF!),\"\")","v":{"$error":"#REF!"}},{"$f":"IF(AND('[1]Mapa final'!$AA$13=\"Alta\",'[1]Mapa final'!$AC$13=\"Catastrófico\"),CONCATENATE(\"R4C\",'[1]Mapa final'!$Q$13),\"\")","v":{"$error":"#REF!"}},{"$f":"IF(AND('[1]Mapa final'!#REF!=\"Alta\",'[1]Mapa final'!#REF!=\"Catastrófico\"),CONCATENATE(\"R4C\",'[1]Mapa final'!#REF!),\"\")","v":{"$error":"#REF!"}},{"$f":"IF(AND('[1]Mapa final'!#REF!=\"Alta\",'[1]Mapa final'!#REF!=\"Catastrófico\"),CONCATENATE(\"R4C\",'[1]Mapa final'!#REF!),\"\")","v":{"$error":"#REF!"}},{"$f":"IF(AND('[1]Mapa final'!#REF!=\"Alta\",'[1]Mapa final'!#REF!=\"Catastrófico\"),CONCATENATE(\"R4C\",'[1]Mapa final'!#REF!),\"\")","v":{"$error":"#REF!"}},{"$f":"IF(AND('[1]Mapa final'!#REF!=\"Alta\",'[1]Mapa final'!#REF!=\"Catastrófico\"),CONCATENATE(\"R4C\",'[1]Mapa final'!#REF!),\"\")","v":{"$error":"#REF!"}},{"$f":"IF(AND('[1]Mapa final'!#REF!=\"Alta\",'[1]Mapa final'!#REF!=\"Catastrófico\"),CONCATENATE(\"R4C\",'[1]Mapa final'!#REF!),\"\")","v":{"$error":"#REF!"}}]
[null,null,null,null,null,null,null,null,null,{"$f":"IF(AND('[1]Mapa final'!$AA$14=\"Alta\",'[1]Mapa final'!$AC$14=\"Leve\"),CONCATENATE(\"R5C\",'[1]Mapa final'!$Q$14),\"\")","v":{"$error":"#REF!"}},{"$f":"IF(AND('[1]Mapa final'!#REF!=\"Alta\",'[1]Mapa final'!#REF!=\"Leve\"),CONCATENATE(\"R5C\",'[1]Mapa final'!#REF!),\"\")","v":{"$error":"#REF!"}},{"$f":"IF(AND('[1]Mapa final'!#REF!=\"Alta\",'[1]Mapa final'!#REF!=\"Leve\"),CONCATENATE(\"R5C\",'[1]Mapa final'!#REF!),\"\")","v":{"$error":"#REF!"}},{"$f":"IF(AND('[1]Mapa final'!#REF!=\"Alta\",'[1]Mapa final'!#REF!=\"Leve\"),CONCATENATE(\"R5C\",'[1]Mapa final'!#REF!),\"\")","v":{"$error":"#REF!"}},{"$f":"IF(AND('[1]Mapa final'!#REF!=\"Alta\",'[1]Mapa final'!#REF!=\"Leve\"),CONCATENATE(\"R5C\",'[1]Mapa final'!#REF!),\"\")","v":{"$error":"#REF!"}},{"$f":"IF(AND('[1]Mapa final'!#REF!=\"Alta\",'[1]Mapa final'!#REF!=\"Leve\"),CONCATENATE(\"R5C\",'[1]Mapa final'!#REF!),\"\")","v":{"$error":"#REF!"}},{"$f":"IF(AND('[1]Mapa final'!$AA$14=\"Alta\",'[1]Mapa final'!$AC$14=\"Menor\"),CONCATENATE(\"R5C\",'[1]Mapa final'!$Q$14),\"\")","v":{"$error":"#REF!"}},{"$f":"IF(AND('[1]Mapa final'!#REF!=\"Alta\",'[1]Mapa final'!#REF!=\"Menor\"),CONCATENATE(\"R5C\",'[1]Mapa final'!#REF!),\"\")","v":{"$error":"#REF!"}},{"$f":"IF(AND('[1]Mapa final'!#REF!=\"Alta\",'[1]Mapa final'!#REF!=\"Menor\"),CONCATENATE(\"R5C\",'[1]Mapa final'!#REF!),\"\")","v":{"$error":"#REF!"}},{"$f":"IF(AND('[1]Mapa final'!#REF!=\"Alta\",'[1]Mapa final'!#REF!=\"Menor\"),CONCATENATE(\"R5C\",'[1]Mapa final'!#REF!),\"\")","v":{"$error":"#REF!"}},{"$f":"IF(AND('[1]Mapa final'!#REF!=\"Alta\",'[1]Mapa final'!#REF!=\"Menor\"),CONCATENATE(\"R5C\",'[1]Mapa final'!#REF!),\"\")","v":{"$error":"#REF!"}},{"$f":"IF(AND('[1]Mapa final'!#REF!=\"Alta\",'[1]Mapa final'!#REF!=\"Menor\"),CONCATENATE(\"R5C\",'[1]Mapa final'!#REF!),\"\")","v":{"$error":"#REF!"}},{"$f":"IF(AND('[1]Mapa final'!$AA$14=\"Alta\",'[1]Mapa final'!$AC$14=\"Moderado\"),CONCATENATE(\"R5C\",'[1]Mapa final'!$Q$14),\"\")","v":{"$error":"#REF!"}},{"$f":"IF(AND('[1]Mapa final'!#REF!=\"Alta\",'[1]Mapa final'!#REF!=\"Moderado\"),CONCATENATE(\"R5C\",'[1]Mapa final'!#REF!),\"\")","v":{"$error":"#REF!"}},{"$f":"IF(AND('[1]Mapa final'!#REF!=\"Alta\",'[1]Mapa final'!#REF!=\"Moderado\"),CONCATENATE(\"R5C\",'[1]Mapa final'!#REF!),\"\")","v":{"$error":"#REF!"}},{"$f":"IF(AND('[1]Mapa final'!#REF!=\"Alta\",'[1]Mapa final'!#REF!=\"Moderado\"),CONCATENATE(\"R5C\",'[1]Mapa final'!#REF!),\"\")","v":{"$error":"#REF!"}},{"$f":"IF(AND('[1]Mapa final'!#REF!=\"Alta\",'[1]Mapa final'!#REF!=\"Moderado\"),CONCATENATE(\"R5C\",'[1]Mapa final'!#REF!),\"\")","v":{"$error":"#REF!"}},{"$f":"IF(AND('[1]Mapa final'!#REF!=\"Alta\",'[1]Mapa final'!#REF!=\"Moderado\"),CONCATENATE(\"R5C\",'[1]Mapa final'!#REF!),\"\")","v":{"$error":"#REF!"}},{"$f":"IF(AND('[1]Mapa final'!$AA$14=\"Alta\",'[1]Mapa final'!$AC$14=\"Mayor\"),CONCATENATE(\"R5C\",'[1]Mapa final'!$Q$14),\"\")","v":{"$error":"#REF!"}},{"$f":"IF(AND('[1]Mapa final'!#REF!=\"Alta\",'[1]Mapa final'!#REF!=\"Mayor\"),CONCATENATE(\"R5C\",'[1]Mapa final'!#REF!),\"\")","v":{"$error":"#REF!"}},{"$f":"IF(AND('[1]Mapa final'!#REF!=\"Alta\",'[1]Mapa final'!#REF!=\"Mayor\"),CONCATENATE(\"R5C\",'[1]Mapa final'!#REF!),\"\")","v":{"$error":"#REF!"}},{"$f":"IF(AND('[1]Mapa final'!#REF!=\"Alta\",'[1]Mapa final'!#REF!=\"Mayor\"),CONCATENATE(\"R5C\",'[1]Mapa final'!#REF!),\"\")","v":{"$error":"#REF!"}},{"$f":"IF(AND('[1]Mapa final'!#REF!=\"Alta\",'[1]Mapa final'!#REF!=\"Mayor\"),CONCATENATE(\"R5C\",'[1]Mapa final'!#REF!),\"\")","v":{"$error":"#REF!"}},{"$f":"IF(AND('[1]Mapa final'!#REF!=\"Alta\",'[1]Mapa final'!#REF!=\"Mayor\"),CONCATENATE(\"R5C\",'[1]Mapa final'!#REF!),\"\")","v":{"$error":"#REF!"}},{"$f":"IF(AND('[1]Mapa final'!$AA$14=\"Alta\",'[1]Mapa final'!$AC$14=\"Catastrófico\"),CONCATENATE(\"R5C\",'[1]Mapa final'!$Q$14),\"\")","v":{"$error":"#REF!"}},{"$f":"IF(AND('[1]Mapa final'!#REF!=\"Alta\",'[1]Mapa final'!#REF!=\"Catastrófico\"),CONCATENATE(\"R5C\",'[1]Mapa final'!#REF!),\"\")","v":{"$error":"#REF!"}},{"$f":"IF(AND('[1]Mapa final'!#REF!=\"Alta\",'[1]Mapa final'!#REF!=\"Catastrófico\"),CONCATENATE(\"R5C\",'[1]Mapa final'!#REF!),\"\")","v":{"$error":"#REF!"}},{"$f":"IF(AND('[1]Mapa final'!#REF!=\"Alta\",'[1]Mapa final'!#REF!=\"Catastrófico\"),CONCATENATE(\"R5C\",'[1]Mapa final'!#REF!),\"\")","v":{"$error":"#REF!"}},{"$f":"IF(AND('[1]Mapa final'!#REF!=\"Alta\",'[1]Mapa final'!#REF!=\"Catastrófico\"),CONCATENATE(\"R5C\",'[1]Mapa final'!#REF!),\"\")","v":{"$error":"#REF!"}},{"$f":"IF(AND('[1]Mapa final'!#REF!=\"Alta\",'[1]Mapa final'!#REF!=\"Catastrófico\"),CONCATENATE(\"R5C\",'[1]Mapa final'!#REF!),\"\")","v":{"$error":"#REF!"}}]
[null,null,null,null,null,null,null,null,null,{"$f":"IF(AND('[1]Mapa final'!$AB$17=\"Alta\",'[1]Mapa final'!$AD$17=\"Leve\"),CONCATENATE(\"R6C\",'[1]Mapa final'!$R$17),\"\")","v":{"$error":"#REF!"}},{"$f":"IF(AND('[1]Mapa final'!#REF!=\"Alta\",'[1]Mapa final'!#REF!=\"Leve\"),CONCATENATE(\"R6C\",'[1]Mapa final'!#REF!),\"\")","v":{"$error":"#REF!"}},{"$f":"IF(AND('[1]Mapa final'!#REF!=\"Alta\",'[1]Mapa final'!#REF!=\"Leve\"),CONCATENATE(\"R6C\",'[1]Mapa final'!#REF!),\"\")","v":{"$error":"#REF!"}},{"$f":"IF(AND('[1]Mapa final'!#REF!=\"Alta\",'[1]Mapa final'!#REF!=\"Leve\"),CONCATENATE(\"R6C\",'[1]Mapa final'!#REF!),\"\")","v":{"$error":"#REF!"}},{"$f":"IF(AND('[1]Mapa final'!#REF!=\"Alta\",'[1]Mapa final'!#REF!=\"Leve\"),CONCATENATE(\"R6C\",'[1]Mapa final'!#REF!),\"\")","v":{"$error":"#REF!"}},{"$f":"IF(AND('[1]Mapa final'!#REF!=\"Alta\",'[1]Mapa final'!#REF!=\"Leve\"),CONCATENATE(\"R6C\",'[1]Mapa final'!#REF!),\"\")","v":{"$error":"#REF!"}},{"$f":"IF(AND('[1]Mapa final'!$AB$17=\"Alta\",'[1]Mapa final'!$AD$17=\"Menor\"),CONCATENATE(\"R6C\",'[1]Mapa final'!$R$17),\"\")","v":{"$error":"#REF!"}},{"$f":"IF(AND('[1]Mapa final'!#REF!=\"Alta\",'[1]Mapa final'!#REF!=\"Menor\"),CONCATENATE(\"R6C\",'[1]Mapa final'!#REF!),\"\")","v":{"$error":"#REF!"}},{"$f":"IF(AND('[1]Mapa final'!#REF!=\"Alta\",'[1]Mapa final'!#REF!=\"Menor\"),CONCATENATE(\"R6C\",'[1]Mapa final'!#REF!),\"\")","v":{"$error":"#REF!"}},{"$f":"IF(AND('[1]Mapa final'!#REF!=\"Alta\",'[1]Mapa final'!#REF!=\"Menor\"),CONCATENATE(\"R6C\",'[1]Mapa final'!#REF!),\"\")","v":{"$error":"#REF!"}},{"$f":"IF(AND('[1]Mapa final'!#REF!=\"Alta\",'[1]Mapa final'!#REF!=\"Menor\"),CONCATENATE(\"R6C\",'[1]Mapa final'!#REF!),\"\")","v":{"$error":"#REF!"}},{"$f":"IF(AND('[1]Mapa final'!#REF!=\"Alta\",'[1]Mapa final'!#REF!=\"Menor\"),CONCATENATE(\"R6C\",'[1]Mapa final'!#REF!),\"\")","v":{"$error":"#REF!"}},{"$f":"IF(AND('[1]Mapa final'!$AB$17=\"Alta\",'[1]Mapa final'!$AD$17=\"Moderado\"),CONCATENATE(\"R6C\",'[1]Mapa final'!$R$17),\"\")","v":{"$error":"#REF!"}},{"$f":"IF(AND('[1]Mapa final'!#REF!=\"Alta\",'[1]Mapa final'!#REF!=\"Moderado\"),CONCATENATE(\"R6C\",'[1]Mapa final'!#REF!),\"\")","v":{"$error":"#REF!"}},{"$f":"IF(AND('[1]Mapa final'!#REF!=\"Alta\",'[1]Mapa final'!#REF!=\"Moderado\"),CONCATENATE(\"R6C\",'[1]Mapa final'!#REF!),\"\")","v":{"$error":"#REF!"}},{"$f":"IF(AND('[1]Mapa final'!#REF!=\"Alta\",'[1]Mapa final'!#REF!=\"Moderado\"),CONCATENATE(\"R6C\",'[1]Mapa final'!#REF!),\"\")","v":{"$error":"#REF!"}},{"$f":"IF(AND('[1]Mapa final'!#REF!=\"Alta\",'[1]Mapa final'!#REF!=\"Moderado\"),CONCATENATE(\"R6C\",'[1]Mapa final'!#REF!),\"\")","v":{"$error":"#REF!"}},{"$f":"IF(AND('[1]Mapa final'!#REF!=\"Alta\",'[1]Mapa final'!#REF!=\"Moderado\"),CONCATENATE(\"R6C\",'[1]Mapa final'!#REF!),\"\")","v":{"$error":"#REF!"}},{"$f":"IF(AND('[1]Mapa final'!$AB$17=\"Alta\",'[1]Mapa final'!$AD$17=\"Mayor\"),CONCATENATE(\"R6C\",'[1]Mapa final'!$R$17),\"\")","v":{"$error":"#REF!"}},{"$f":"IF(AND('[1]Mapa final'!#REF!=\"Alta\",'[1]Mapa final'!#REF!=\"Mayor\"),CONCATENATE(\"R6C\",'[1]Mapa final'!#REF!),\"\")","v":{"$error":"#REF!"}},{"$f":"IF(AND('[1]Mapa final'!#REF!=\"Alta\",'[1]Mapa final'!#REF!=\"Mayor\"),CONCATENATE(\"R6C\",'[1]Mapa final'!#REF!),\"\")","v":{"$error":"#REF!"}},{"$f":"IF(AND('[1]Mapa final'!#REF!=\"Alta\",'[1]Mapa final'!#REF!=\"Mayor\"),CONCATENATE(\"R6C\",'[1]Mapa final'!#REF!),\"\")","v":{"$error":"#REF!"}},{"$f":"IF(AND('[1]Mapa final'!#REF!=\"Alta\",'[1]Mapa final'!#REF!=\"Mayor\"),CONCATENATE(\"R6C\",'[1]Mapa final'!#REF!),\"\")","v":{"$error":"#REF!"}},{"$f":"IF(AND('[1]Mapa final'!#REF!=\"Alta\",'[1]Mapa final'!#REF!=\"Mayor\"),CONCATENATE(\"R6C\",'[1]Mapa final'!#REF!),\"\")","v":{"$error":"#REF!"}},{"$f":"IF(AND('[1]Mapa final'!$AB$17=\"Alta\",'[1]Mapa final'!$AD$17=\"Catastrófico\"),CONCATENATE(\"R6C\",'[1]Mapa final'!$R$17),\"\")","v":{"$error":"#REF!"}},{"$f":"IF(AND('[1]Mapa final'!#REF!=\"Alta\",'[1]Mapa final'!#REF!=\"Catastrófico\"),CONCATENATE(\"R6C\",'[1]Mapa final'!#REF!),\"\")","v":{"$error":"#REF!"}},{"$f":"IF(AND('[1]Mapa final'!#REF!=\"Alta\",'[1]Mapa final'!#REF!=\"Catastrófico\"),CONCATENATE(\"R6C\",'[1]Mapa final'!#REF!),\"\")","v":{"$error":"#REF!"}},{"$f":"IF(AND('[1]Mapa final'!#REF!=\"Alta\",'[1]Mapa final'!#REF!=\"Catastrófico\"),CONCATENATE(\"R6C\",'[1]Mapa final'!#REF!),\"\")","v":{"$error":"#REF!"}},{"$f":"IF(AND('[1]Mapa final'!#REF!=\"Alta\",'[1]Mapa final'!#REF!=\"Catastrófico\"),CONCATENATE(\"R6C\",'[1]Mapa final'!#REF!),\"\")","v":{"$error":"#REF!"}},{"$f":"IF(AND('[1]Mapa final'!#REF!=\"Alta\",'[1]Mapa final'!#REF!=\"Catastrófico\"),CONCATENATE(\"R6C\",'[1]Mapa final'!#REF!),\"\")","v":{"$error":"#REF!"}}]
[null,null,null,null,null,null,null,null,null,{"$f":"IF(AND('[1]Mapa final'!$AA$18=\"Alta\",'[1]Mapa final'!$AC$18=\"Leve\"),CONCATENATE(\"R7C\",'[1]Mapa final'!$Q$18),\"\")","v":{"$error":"#REF!"}},{"$f":"IF(AND('[1]Mapa final'!#REF!=\"Alta\",'[1]Mapa final'!#REF!=\"Leve\"),CONCATENATE(\"R7C\",'[1]Mapa final'!#REF!),\"\")","v":{"$error":"#REF!"}},{"$f":"IF(AND('[1]Mapa final'!#REF!=\"Alta\",'[1]Mapa final'!#REF!=\"Leve\"),CONCATENATE(\"R7C\",'[1]Mapa final'!#REF!),\"\")","v":{"$error":"#REF!"}},{"$f":"IF(AND('[1]Mapa final'!#REF!=\"Alta\",'[1]Mapa final'!#REF!=\"Leve\"),CONCATENATE(\"R7C\",'[1]Mapa final'!#REF!),\"\")","v":{"$error":"#REF!"}},{"$f":"IF(AND('[1]Mapa final'!#REF!=\"Alta\",'[1]Mapa final'!#REF!=\"Leve\"),CONCATENATE(\"R7C\",'[1]Mapa final'!#REF!),\"\")","v":{"$error":"#REF!"}},{"$f":"IF(AND('[1]Mapa final'!#REF!=\"Alta\",'[1]Mapa final'!#REF!=\"Leve\"),CONCATENATE(\"R7C\",'[1]Mapa final'!#REF!),\"\")","v":{"$error":"#REF!"}},{"$f":"IF(AND('[1]Mapa final'!$AA$18=\"Alta\",'[1]Mapa final'!$AC$18=\"Menor\"),CONCATENATE(\"R7C\",'[1]Mapa final'!$Q$18),\"\")","v":{"$error":"#REF!"}},{"$f":"IF(AND('[1]Mapa final'!#REF!=\"Alta\",'[1]Mapa final'!#REF!=\"Menor\"),CONCATENATE(\"R7C\",'[1]Mapa final'!#REF!),\"\")","v":{"$error":"#REF!"}},{"$f":"IF(AND('[1]Mapa final'!#REF!=\"Alta\",'[1]Mapa final'!#REF!=\"Menor\"),CONCATENATE(\"R7C\",'[1]Mapa final'!#REF!),\"\")","v":{"$error":"#REF!"}},{"$f":"IF(AND('[1]Mapa final'!#REF!=\"Alta\",'[1]Mapa final'!#REF!=\"Menor\"),CONCATENATE(\"R7C\",'[1]Mapa final'!#REF!),\"\")","v":{"$error":"#REF!"}},{"$f":"IF(AND('[1]Mapa final'!#REF!=\"Alta\",'[1]Mapa final'!#REF!=\"Menor\"),CONCATENATE(\"R7C\",'[1]Mapa final'!#REF!),\"\")","v":{"$error":"#REF!"}},{"$f":"IF(AND('[1]Mapa final'!#REF!=\"Alta\",'[1]Mapa final'!#REF!=\"Menor\"),CONCATENATE(\"R7C\",'[1]Mapa final'!#REF!),\"\")","v":{"$error":"#REF!"}},{"$f":"IF(AND('[1]Mapa final'!$AA$18=\"Alta\",'[1]Mapa final'!$AC$18=\"Moderado\"),CONCATENATE(\"R7C\",'[1]Mapa final'!$Q$18),\"\")","v":{"$error":"#REF!"}},{"$f":"IF(AND('[1]Mapa final'!#REF!=\"Alta\",'[1]Mapa final'!#REF!=\"Moderado\"),CONCATENATE(\"R7C\",'[1]Mapa final'!#REF!),\"\")","v":{"$error":"#REF!"}},{"$f":"IF(AND('[1]Mapa final'!#REF!=\"Alta\",'[1]Mapa final'!#REF!=\"Moderado\"),CONCATENATE(\"R7C\",'[1]Mapa final'!#REF!),\"\")","v":{"$error":"#REF!"}},{"$f":"IF(AND('[1]Mapa final'!#REF!=\"Alta\",'[1]Mapa final'!#REF!=\"Moderado\"),CONCATENATE(\"R7C\",'[1]Mapa final'!#REF!),\"\")","v":{"$error":"#REF!"}},{"$f":"IF(AND('[1]Mapa final'!#REF!=\"Alta\",'[1]Mapa final'!#REF!=\"Moderado\"),CONCATENATE(\"R7C\",'[1]Mapa final'!#REF!),\"\")","v":{"$error":"#REF!"}},{"$f":"IF(AND('[1]Mapa final'!#REF!=\"Alta\",'[1]Mapa final'!#REF!=\"Moderado\"),CONCATENATE(\"R7C\",'[1]Mapa final'!#REF!),\"\")","v":{"$error":"#REF!"}},{"$f":"IF(AND('[1]Mapa final'!$AA$18=\"Alta\",'[1]Mapa final'!$AC$18=\"Mayor\"),CONCATENATE(\"R7C\",'[1]Mapa final'!$Q$18),\"\")","v":{"$error":"#REF!"}},{"$f":"IF(AND('[1]Mapa final'!#REF!=\"Alta\",'[1]Mapa final'!#REF!=\"Mayor\"),CONCATENATE(\"R7C\",'[1]Mapa final'!#REF!),\"\")","v":{"$error":"#REF!"}},{"$f":"IF(AND('[1]Mapa final'!#REF!=\"Alta\",'[1]Mapa final'!#REF!=\"Mayor\"),CONCATENATE(\"R7C\",'[1]Mapa final'!#REF!),\"\")","v":{"$error":"#REF!"}},{"$f":"IF(AND('[1]Mapa final'!#REF!=\"Alta\",'[1]Mapa final'!#REF!=\"Mayor\"),CONCATENATE(\"R7C\",'[1]Mapa final'!#REF!),\"\")","v":{"$error":"#REF!"}},{"$f":"IF(AND('[1]Mapa final'!#REF!=\"Alta\",'[1]Mapa final'!#REF!=\"Mayor\"),CONCATENATE(\"R7C\",'[1]Mapa final'!#REF!),\"\")","v":{"$error":"#REF!"}},{"$f":"IF(AND('[1]Mapa final'!#REF!=\"Alta\",'[1]Mapa final'!#REF!=\"Mayor\"),CONCATENATE(\"R7C\",'[1]Mapa final'!#REF!),\"\")","v":{"$error":"#REF!"}},{"$f":"IF(AND('[1]Mapa final'!$AA$18=\"Alta\",'[1]Mapa final'!$AC$18=\"Catastrófico\"),CONCATENATE(\"R7C\",'[1]Mapa final'!$Q$18),\"\")","v":{"$error":"#REF!"}},{"$f":"IF(AND('[1]Mapa final'!#REF!=\"Alta\",'[1]Mapa final'!#REF!=\"Catastrófico\"),CONCATENATE(\"R7C\",'[1]Mapa final'!#REF!),\"\")","v":{"$error":"#REF!"}},{"$f":"IF(AND('[1]Mapa final'!#REF!=\"Alta\",'[1]Mapa final'!#REF!=\"Catastrófico\"),CONCATENATE(\"R7C\",'[1]Mapa final'!#REF!),\"\")","v":{"$error":"#REF!"}},{"$f":"IF(AND('[1]Mapa final'!#REF!=\"Alta\",'[1]Mapa final'!#REF!=\"Catastrófico\"),CONCATENATE(\"R7C\",'[1]Mapa final'!#REF!),\"\")","v":{"$error":"#REF!"}},{"$f":"IF(AND('[1]Mapa final'!#REF!=\"Alta\",'[1]Mapa final'!#REF!=\"Catastrófico\"),CONCATENATE(\"R7C\",'[1]Mapa final'!#REF!),\"\")","v":{"$error":"#REF!"}},{"$f":"IF(AND('[1]Mapa final'!#REF!=\"Alta\",'[1]Mapa final'!#REF!=\"Catastrófico\"),CONCATENATE(\"R7C\",'[1]Mapa final'!#REF!),\"\")","v":{"$error":"#REF!"}}]
[null,null,null,null,null,null,null,null,null,{"$f":"IF(AND('[1]Mapa final'!$AA$19=\"Alta\",'[1]Mapa final'!$AC$19=\"Leve\"),CONCATENATE(\"R8C\",'[1]Mapa final'!$Q$19),\"\")","v":{"$error":"#REF!"}},{"$f":"IF(AND('[1]Mapa final'!#REF!=\"Alta\",'[1]Mapa final'!#REF!=\"Leve\"),CONCATENATE(\"R8C\",'[1]Mapa final'!#REF!),\"\")","v":{"$error":"#REF!"}},{"$f":"IF(AND('[1]Mapa final'!#REF!=\"Alta\",'[1]Mapa final'!#REF!=\"Leve\"),CONCATENATE(\"R8C\",'[1]Mapa final'!#REF!),\"\")","v":{"$error":"#REF!"}},{"$f":"IF(AND('[1]Mapa final'!#REF!=\"Alta\",'[1]Mapa final'!#REF!=\"Leve\"),CONCATENATE(\"R8C\",'[1]Mapa final'!#REF!),\"\")","v":{"$error":"#REF!"}},{"$f":"IF(AND('[1]Mapa final'!#REF!=\"Alta\",'[1]Mapa final'!#REF!=\"Leve\"),CONCATENATE(\"R8C\",'[1]Mapa final'!#REF!),\"\")","v":{"$error":"#REF!"}},{"$f":"IF(AND('[1]Mapa final'!#REF!=\"Alta\",'[1]Mapa final'!#REF!=\"Leve\"),CONCATENATE(\"R8C\",'[1]Mapa final'!#REF!),\"\")","v":{"$error":"#REF!"}},{"$f":"IF(AND('[1]Mapa final'!$AA$19=\"Alta\",'[1]Mapa final'!$AC$19=\"Menor\"),CONCATENATE(\"R8C\",'[1]Mapa final'!$Q$19),\"\")","v":{"$error":"#REF!"}},{"$f":"IF(AND('[1]Mapa final'!#REF!=\"Alta\",'[1]Mapa final'!#REF!=\"Menor\"),CONCATENATE(\"R8C\",'[1]Mapa final'!#REF!),\"\")","v":{"$error":"#REF!"}},{"$f":"IF(AND('[1]Mapa final'!#REF!=\"Alta\",'[1]Mapa final'!#REF!=\"Menor\"),CONCATENATE(\"R8C\",'[1]Mapa final'!#REF!),\"\")","v":{"$error":"#REF!"}},{"$f":"IF(AND('[1]Mapa final'!#REF!=\"Alta\",'[1]Mapa final'!#REF!=\"Menor\"),CONCATENATE(\"R8C\",'[1]Mapa final'!#REF!),\"\")","v":{"$error":"#REF!"}},{"$f":"IF(AND('[1]Mapa final'!#REF!=\"Alta\",'[1]Mapa final'!#REF!=\"Menor\"),CONCATENATE(\"R8C\",'[1]Mapa final'!#REF!),\"\")","v":{"$error":"#REF!"}},{"$f":"IF(AND('[1]Mapa final'!#REF!=\"Alta\",'[1]Mapa final'!#REF!=\"Menor\"),CONCATENATE(\"R8C\",'[1]Mapa final'!#REF!),\"\")","v":{"$error":"#REF!"}},{"$f":"IF(AND('[1]Mapa final'!$AA$19=\"Alta\",'[1]Mapa final'!$AC$19=\"Moderado\"),CONCATENATE(\"R8C\",'[1]Mapa final'!$Q$19),\"\")","v":{"$error":"#REF!"}},{"$f":"IF(AND('[1]Mapa final'!#REF!=\"Alta\",'[1]Mapa final'!#REF!=\"Moderado\"),CONCATENATE(\"R8C\",'[1]Mapa final'!#REF!),\"\")","v":{"$error":"#REF!"}},{"$f":"IF(AND('[1]Mapa final'!#REF!=\"Alta\",'[1]Mapa final'!#REF!=\"Moderado\"),CONCATENATE(\"R8C\",'[1]Mapa final'!#REF!),\"\")","v":{"$error":"#REF!"}},{"$f":"IF(AND('[1]Mapa final'!#REF!=\"Alta\",'[1]Mapa final'!#REF!=\"Moderado\"),CONCATENATE(\"R8C\",'[1]Mapa final'!#REF!),\"\")","v":{"$error":"#REF!"}},{"$f":"IF(AND('[1]Mapa final'!#REF!=\"Alta\",'[1]Mapa final'!#REF!=\"Moderado\"),CONCATENATE(\"R8C\",'[1]Mapa final'!#REF!),\"\")","v":{"$error":"#REF!"}},{"$f":"IF(AND('[1]Mapa final'!#REF!=\"Alta\",'[1]Mapa final'!#REF!=\"Moderado\"),CONCATENATE(\"R8C\",'[1]Mapa final'!#REF!),\"\")","v":{"$error":"#REF!"}},{"$f":"IF(AND('[1]Mapa final'!$AA$19=\"Alta\",'[1]Mapa final'!$AC$19=\"Mayor\"),CONCATENATE(\"R8C\",'[1]Mapa final'!$Q$19),\"\")","v":{"$error":"#REF!"}},{"$f":"IF(AND('[1]Mapa final'!#REF!=\"Alta\",'[1]Mapa final'!#REF!=\"Mayor\"),CONCATENATE(\"R8C\",'[1]Mapa final'!#REF!),\"\")","v":{"$error":"#REF!"}},{"$f":"IF(AND('[1]Mapa final'!#REF!=\"Alta\",'[1]Mapa final'!#REF!=\"Mayor\"),CONCATENATE(\"R8C\",'[1]Mapa final'!#REF!),\"\")","v":{"$error":"#REF!"}},{"$f":"IF(AND('[1]Mapa final'!#REF!=\"Alta\",'[1]Mapa final'!#REF!=\"Mayor\"),CONCATENATE(\"R8C\",'[1]Mapa final'!#REF!),\"\")","v":{"$error":"#REF!"}},{"$f":"IF(AND('[1]Mapa final'!#REF!=\"Alta\",'[1]Mapa final'!#REF!=\"Mayor\"),CONCATENATE(\"R8C\",'[1]Mapa final'!#REF!),\"\")","v":{"$error":"#REF!"}},{"$f":"IF(AND('[1]Mapa final'!#REF!=\"Alta\",'[1]Mapa final'!#REF!=\"Mayor\"),CONCATENATE(\"R8C\",'[1]Mapa final'!#REF!),\"\")","v":{"$error":"#REF!"}},{"$f":"IF(AND('[1]Mapa final'!$AA$19=\"Alta\",'[1]Mapa final'!$AC$19=\"Catastrófico\"),CONCATENATE(\"R8C\",'[1]Mapa final'!$Q$19),\"\")","v":{"$error":"#REF!"}},{"$f":"IF(AND('[1]Mapa final'!#REF!=\"Alta\",'[1]Mapa final'!#REF!=\"Catastrófico\"),CONCATENATE(\"R8C\",'[1]Mapa final'!#REF!),\"\")","v":{"$error":"#REF!"}},{"$f":"IF(AND('[1]Mapa final'!#REF!=\"Alta\",'[1]Mapa final'!#REF!=\"Catastrófico\"),CONCATENATE(\"R8C\",'[1]Mapa final'!#REF!),\"\")","v":{"$error":"#REF!"}},{"$f":"IF(AND('[1]Mapa final'!#REF!=\"Alta\",'[1]Mapa final'!#REF!=\"Catastrófico\"),CONCATENATE(\"R8C\",'[1]Mapa final'!#REF!),\"\")","v":{"$error":"#REF!"}},{"$f":"IF(AND('[1]Mapa final'!#REF!=\"Alta\",'[1]Mapa final'!#REF!=\"Catastrófico\"),CONCATENATE(\"R8C\",'[1]Mapa final'!#REF!),\"\")","v":{"$error":"#REF!"}},{"$f":"IF(AND('[1]Mapa final'!#REF!=\"Alta\",'[1]Mapa final'!#REF!=\"Catastrófico\"),CONCATENATE(\"R8C\",'[1]Mapa final'!#REF!),\"\")","v":{"$error":"#REF!"}}]
[null,null,null,null,null,null,null,null,null,{"$f":"IF(AND('[1]Mapa final'!$AA$20=\"Alta\",'[1]Mapa final'!$AC$20=\"Leve\"),CONCATENATE(\"R9C\",'[1]Mapa final'!$Q$20),\"\")","v":{"$error":"#REF!"}},{"$f":"IF(AND('[1]Mapa final'!#REF!=\"Alta\",'[1]Mapa final'!#REF!=\"Leve\"),CONCATENATE(\"R9C\",'[1]Mapa final'!#REF!),\"\")","v":{"$error":"#REF!"}},{"$f":"IF(AND('[1]Mapa final'!#REF!=\"Alta\",'[1]Mapa final'!#REF!=\"Leve\"),CONCATENATE(\"R9C\",'[1]Mapa final'!#REF!),\"\")","v":{"$error":"#REF!"}},{"$f":"IF(AND('[1]Mapa final'!#REF!=\"Alta\",'[1]Mapa final'!#REF!=\"Leve\"),CONCATENATE(\"R9C\",'[1]Mapa final'!#REF!),\"\")","v":{"$error":"#REF!"}},{"$f":"IF(AND('[1]Mapa final'!#REF!=\"Alta\",'[1]Mapa final'!#REF!=\"Leve\"),CONCATENATE(\"R9C\",'[1]Mapa final'!#REF!),\"\")","v":{"$error":"#REF!"}},{"$f":"IF(AND('[1]Mapa final'!#REF!=\"Alta\",'[1]Mapa final'!#REF!=\"Leve\"),CONCATENATE(\"R9C\",'[1]Mapa final'!#REF!),\"\")","v":{"$error":"#REF!"}},{"$f":"IF(AND('[1]Mapa final'!$AA$20=\"Alta\",'[1]Mapa final'!$AC$20=\"Menor\"),CONCATENATE(\"R9C\",'[1]Mapa final'!$Q$20),\"\")","v":{"$error":"#REF!"}},{"$f":"IF(AND('[1]Mapa final'!#REF!=\"Alta\",'[1]Mapa final'!#REF!=\"Menor\"),CONCATENATE(\"R9C\",'[1]Mapa final'!#REF!),\"\")","v":{"$error":"#REF!"}},{"$f":"IF(AND('[1]Mapa final'!#REF!=\"Alta\",'[1]Mapa final'!#REF!=\"Menor\"),CONCATENATE(\"R9C\",'[1]Mapa final'!#REF!),\"\")","v":{"$error":"#REF!"}},{"$f":"IF(AND('[1]Mapa final'!#REF!=\"Alta\",'[1]Mapa final'!#REF!=\"Menor\"),CONCATENATE(\"R9C\",'[1]Mapa final'!#REF!),\"\")","v":{"$error":"#REF!"}},{"$f":"IF(AND('[1]Mapa final'!#REF!=\"Alta\",'[1]Mapa final'!#REF!=\"Menor\"),CONCATENATE(\"R9C\",'[1]Mapa final'!#REF!),\"\")","v":{"$error":"#REF!"}},{"$f":"IF(AND('[1]Mapa final'!#REF!=\"Alta\",'[1]Mapa final'!#REF!=\"Menor\"),CONCATENATE(\"R9C\",'[1]Mapa final'!#REF!),\"\")","v":{"$error":"#REF!"}},{"$f":"IF(AND('[1]Mapa final'!$AA$20=\"Alta\",'[1]Mapa final'!$AC$20=\"Moderado\"),CONCATENATE(\"R9C\",'[1]Mapa final'!$Q$20),\"\")","v":{"$error":"#REF!"}},{"$f":"IF(AND('[1]Mapa final'!#REF!=\"Alta\",'[1]Mapa final'!#REF!=\"Moderado\"),CONCATENATE(\"R9C\",'[1]Mapa final'!#REF!),\"\")","v":{"$error":"#REF!"}},{"$f":"IF(AND('[1]Mapa final'!#REF!=\"Alta\",'[1]Mapa final'!#REF!=\"Moderado\"),CONCATENATE(\"R9C\",'[1]Mapa final'!#REF!),\"\")","v":{"$error":"#REF!"}},{"$f":"IF(AND('[1]Mapa final'!#REF!=\"Alta\",'[1]Mapa final'!#REF!=\"Moderado\"),CONCATENATE(\"R9C\",'[1]Mapa final'!#REF!),\"\")","v":{"$error":"#REF!"}},{"$f":"IF(AND('[1]Mapa final'!#REF!=\"Alta\",'[1]Mapa final'!#REF!=\"Moderado\"),CONCATENATE(\"R9C\",'[1]Mapa final'!#REF!),\"\")","v":{"$error":"#REF!"}},{"$f":"IF(AND('[1]Mapa final'!#REF!=\"Alta\",'[1]Mapa final'!#REF!=\"Moderado\"),CONCATENATE(\"R9C\",'[1]Mapa final'!#REF!),\"\")","v":{"$error":"#REF!"}},{"$f":"IF(AND('[1]Mapa final'!$AA$20=\"Alta\",'[1]Mapa final'!$AC$20=\"Mayor\"),CONCATENATE(\"R9C\",'[1]Mapa final'!$Q$20),\"\")","v":{"$error":"#REF!"}},{"$f":"IF(AND('[1]Mapa final'!#REF!=\"Alta\",'[1]Mapa final'!#REF!=\"Mayor\"),CONCATENATE(\"R9C\",'[1]Mapa final'!#REF!),\"\")","v":{"$error":"#REF!"}},{"$f":"IF(AND('[1]Mapa final'!#REF!=\"Alta\",'[1]Mapa final'!#REF!=\"Mayor\"),CONCATENATE(\"R9C\",'[1]Mapa final'!#REF!),\"\")","v":{"$error":"#REF!"}},{"$f":"IF(AND('[1]Mapa final'!#REF!=\"Alta\",'[1]Mapa final'!#REF!=\"Mayor\"),CONCATENATE(\"R9C\",'[1]Mapa final'!#REF!),\"\")","v":{"$error":"#REF!"}},{"$f":"IF(AND('[1]Mapa final'!#REF!=\"Alta\",'[1]Mapa final'!#REF!=\"Mayor\"),CONCATENATE(\"R9C\",'[1]Mapa final'!#REF!),\"\")","v":{"$error":"#REF!"}},{"$f":"IF(AND('[1]Mapa final'!#REF!=\"Alta\",'[1]Mapa final'!#REF!=\"Mayor\"),CONCATENATE(\"R9C\",'[1]Mapa final'!#REF!),\"\")","v":{"$error":"#REF!"}},{"$f":"IF(AND('[1]Mapa final'!$AA$20=\"Alta\",'[1]Mapa final'!$AC$20=\"Catastrófico\"),CONCATENATE(\"R9C\",'[1]Mapa final'!$Q$20),\"\")","v":{"$error":"#REF!"}},{"$f":"IF(AND('[1]Mapa final'!#REF!=\"Alta\",'[1]Mapa final'!#REF!=\"Catastrófico\"),CONCATENATE(\"R9C\",'[1]Mapa final'!#REF!),\"\")","v":{"$error":"#REF!"}},{"$f":"IF(AND('[1]Mapa final'!#REF!=\"Alta\",'[1]Mapa final'!#REF!=\"Catastrófico\"),CONCATENATE(\"R9C\",'[1]Mapa final'!#REF!),\"\")","v":{"$error":"#REF!"}},{"$f":"IF(AND('[1]Mapa final'!#REF!=\"Alta\",'[1]Mapa final'!#REF!=\"Catastrófico\"),CONCATENATE(\"R9C\",'[1]Mapa final'!#REF!),\"\")","v":{"$error":"#REF!"}},{"$f":"IF(AND('[1]Mapa final'!#REF!=\"Alta\",'[1]Mapa final'!#REF!=\"Catastrófico\"),CONCATENATE(\"R9C\",'[1]Mapa final'!#REF!),\"\")","v":{"$error":"#REF!"}},{"$f":"IF(AND('[1]Mapa final'!#REF!=\"Alta\",'[1]Mapa final'!#REF!=\"Catastrófico\"),CONCATENATE(\"R9C\",'[1]Mapa final'!#REF!),\"\")","v":{"$error":"#REF!"}}]
[null,null,null,null,null,null,null,null,null,{"$f":"IF(AND('[1]Mapa final'!$AA$21=\"Alta\",'[1]Mapa final'!$AC$21=\"Leve\"),CONCATENATE(\"R10C\",'[1]Mapa final'!$Q$21),\"\")","v":{"$error":"#REF!"}},{"$f":"IF(AND('[1]Mapa final'!#REF!=\"Alta\",'[1]Mapa final'!#REF!=\"Leve\"),CONCATENATE(\"R10C\",'[1]Mapa final'!#REF!),\"\")","v":{"$error":"#REF!"}},{"$f":"IF(AND('[1]Mapa final'!#REF!=\"Alta\",'[1]Mapa final'!#REF!=\"Leve\"),CONCATENATE(\"R10C\",'[1]Mapa final'!#REF!),\"\")","v":{"$error":"#REF!"}},{"$f":"IF(AND('[1]Mapa final'!#REF!=\"Alta\",'[1]Mapa final'!#REF!=\"Leve\"),CONCATENATE(\"R10C\",'[1]Mapa final'!#REF!),\"\")","v":{"$error":"#REF!"}},{"$f":"IF(AND('[1]Mapa final'!#REF!=\"Alta\",'[1]Mapa final'!#REF!=\"Leve\"),CONCATENATE(\"R10C\",'[1]Mapa final'!#REF!),\"\")","v":{"$error":"#REF!"}},{"$f":"IF(AND('[1]Mapa final'!#REF!=\"Alta\",'[1]Mapa final'!#REF!=\"Leve\"),CONCATENATE(\"R10C\",'[1]Mapa final'!#REF!),\"\")","v":{"$error":"#REF!"}},{"$f":"IF(AND('[1]Mapa final'!$AA$21=\"Alta\",'[1]Mapa final'!$AC$21=\"Menor\"),CONCATENATE(\"R10C\",'[1]Mapa final'!$Q$21),\"\")","v":{"$error":"#REF!"}},{"$f":"IF(AND('[1]Mapa final'!#REF!=\"Alta\",'[1]Mapa final'!#REF!=\"Menor\"),CONCATENATE(\"R10C\",'[1]Mapa final'!#REF!),\"\")","v":{"$error":"#REF!"}},{"$f":"IF(AND('[1]Mapa final'!#REF!=\"Alta\",'[1]Mapa final'!#REF!=\"Menor\"),CONCATENATE(\"R10C\",'[1]Mapa final'!#REF!),\"\")","v":{"$error":"#REF!"}},{"$f":"IF(AND('[1]Mapa final'!#REF!=\"Alta\",'[1]Mapa final'!#REF!=\"Menor\"),CONCATENATE(\"R10C\",'[1]Mapa final'!#REF!),\"\")","v":{"$error":"#REF!"}},{"$f":"IF(AND('[1]Mapa final'!#REF!=\"Alta\",'[1]Mapa final'!#REF!=\"Menor\"),CONCATENATE(\"R10C\",'[1]Mapa final'!#REF!),\"\")","v":{"$error":"#REF!"}},{"$f":"IF(AND('[1]Mapa final'!#REF!=\"Alta\",'[1]Mapa final'!#REF!=\"Menor\"),CONCATENATE(\"R10C\",'[1]Mapa final'!#REF!),\"\")","v":{"$error":"#REF!"}},{"$f":"IF(AND('[1]Mapa final'!$AA$21=\"Alta\",'[1]Mapa final'!$AC$21=\"Moderado\"),CONCATENATE(\"R10C\",'[1]Mapa final'!$Q$21),\"\")","v":{"$error":"#REF!"}},{"$f":"IF(AND('[1]Mapa final'!#REF!=\"Alta\",'[1]Mapa final'!#REF!=\"Moderado\"),CONCATENATE(\"R10C\",'[1]Mapa final'!#REF!),\"\")","v":{"$error":"#REF!"}},{"$f":"IF(AND('[1]Mapa final'!#REF!=\"Alta\",'[1]Mapa final'!#REF!=\"Moderado\"),CONCATENATE(\"R10C\",'[1]Mapa final'!#REF!),\"\")","v":{"$error":"#REF!"}},{"$f":"IF(AND('[1]Mapa final'!#REF!=\"Alta\",'[1]Mapa final'!#REF!=\"Moderado\"),CONCATENATE(\"R10C\",'[1]Mapa final'!#REF!),\"\")","v":{"$error":"#REF!"}},{"$f":"IF(AND('[1]Mapa final'!#REF!=\"Alta\",'[1]Mapa final'!#REF!=\"Moderado\"),CONCATENATE(\"R10C\",'[1]Mapa final'!#REF!),\"\")","v":{"$error":"#REF!"}},{"$f":"IF(AND('[1]Mapa final'!#REF!=\"Alta\",'[1]Mapa final'!#REF!=\"Moderado\"),CONCATENATE(\"R10C\",'[1]Mapa final'!#REF!),\"\")","v":{"$error":"#REF!"}},{"$f":"IF(AND('[1]Mapa final'!$AA$21=\"Alta\",'[1]Mapa final'!$AC$21=\"Mayor\"),CONCATENATE(\"R10C\",'[1]Mapa final'!$Q$21),\"\")","v":{"$error":"#REF!"}},{"$f":"IF(AND('[1]Mapa final'!#REF!=\"Alta\",'[1]Mapa final'!#REF!=\"Mayor\"),CONCATENATE(\"R10C\",'[1]Mapa final'!#REF!),\"\")","v":{"$error":"#REF!"}},{"$f":"IF(AND('[1]Mapa final'!#REF!=\"Alta\",'[1]Mapa final'!#REF!=\"Mayor\"),CONCATENATE(\"R10C\",'[1]Mapa final'!#REF!),\"\")","v":{"$error":"#REF!"}},{"$f":"IF(AND('[1]Mapa final'!#REF!=\"Alta\",'[1]Mapa final'!#REF!=\"Mayor\"),CONCATENATE(\"R10C\",'[1]Mapa final'!#REF!),\"\")","v":{"$error":"#REF!"}},{"$f":"IF(AND('[1]Mapa final'!#REF!=\"Alta\",'[1]Mapa final'!#REF!=\"Mayor\"),CONCATENATE(\"R10C\",'[1]Mapa final'!#REF!),\"\")","v":{"$error":"#REF!"}},{"$f":"IF(AND('[1]Mapa final'!#REF!=\"Alta\",'[1]Mapa final'!#REF!=\"Mayor\"),CONCATENATE(\"R10C\",'[1]Mapa final'!#REF!),\"\")","v":{"$error":"#REF!"}},{"$f":"IF(AND('[1]Mapa final'!$AA$21=\"Alta\",'[1]Mapa final'!$AC$21=\"Catastrófico\"),CONCATENATE(\"R10C\",'[1]Mapa final'!$Q$21),\"\")","v":{"$error":"#REF!"}},{"$f":"IF(AND('[1]Mapa final'!#REF!=\"Alta\",'[1]Mapa final'!#REF!=\"Catastrófico\"),CONCATENATE(\"R10C\",'[1]Mapa final'!#REF!),\"\")","v":{"$error":"#REF!"}},{"$f":"IF(AND('[1]Mapa final'!#REF!=\"Alta\",'[1]Mapa final'!#REF!=\"Catastrófico\"),CONCATENATE(\"R10C\",'[1]Mapa final'!#REF!),\"\")","v":{"$error":"#REF!"}},{"$f":"IF(AND('[1]Mapa final'!#REF!=\"Alta\",'[1]Mapa final'!#REF!=\"Catastrófico\"),CONCATENATE(\"R10C\",'[1]Mapa final'!#REF!),\"\")","v":{"$error":"#REF!"}},{"$f":"IF(AND('[1]Mapa final'!#REF!=\"Alta\",'[1]Mapa final'!#REF!=\"Catastrófico\"),CONCATENATE(\"R10C\",'[1]Mapa final'!#REF!),\"\")","v":{"$error":"#REF!"}},{"$f":"IF(AND('[1]Mapa final'!#REF!=\"Alta\",'[1]Mapa final'!#REF!=\"Catastrófico\"),CONCATENATE(\"R10C\",'[1]Mapa final'!#REF!),\"\")","v":{"$error":"#REF!"}}]
[null,null,null,null,"Media\n60%",null,null,null,null,{"$f":"IF(AND('[1]Mapa final'!$AA$9=\"Media\",'[1]Mapa final'!$AC$9=\"Leve\"),CONCATENATE(\"R1C\",'[1]Mapa final'!$Q$9),\"\")","v":{"$error":"#REF!"}},{"$f":"IF(AND('[1]Mapa final'!#REF!=\"Media\",'[1]Mapa final'!#REF!=\"Leve\"),CONCATENATE(\"R1C\",'[1]Mapa final'!#REF!),\"\")","v":{"$error":"#REF!"}},{"$f":"IF(AND('[1]Mapa final'!#REF!=\"Media\",'[1]Mapa final'!#REF!=\"Leve\"),CONCATENATE(\"R1C\",'[1]Mapa final'!#REF!),\"\")","v":{"$error":"#REF!"}},{"$f":"IF(AND('[1]Mapa final'!#REF!=\"Media\",'[1]Mapa final'!#REF!=\"Leve\"),CONCATENATE(\"R1C\",'[1]Mapa final'!#REF!),\"\")","v":{"$error":"#REF!"}},{"$f":"IF(AND('[1]Mapa final'!#REF!=\"Media\",'[1]Mapa final'!#REF!=\"Leve\"),CONCATENATE(\"R1C\",'[1]Mapa final'!#REF!),\"\")","v":{"$error":"#REF!"}},{"$f":"IF(AND('[1]Mapa final'!#REF!=\"Media\",'[1]Mapa final'!#REF!=\"Leve\"),CONCATENATE(\"R1C\",'[1]Mapa final'!#REF!),\"\")","v":{"$error":"#REF!"}},{"$f":"IF(AND('[1]Mapa final'!$AA$9=\"Media\",'[1]Mapa final'!$AC$9=\"Menor\"),CONCATENATE(\"R1C\",'[1]Mapa final'!$Q$9),\"\")","v":{"$error":"#REF!"}},{"$f":"IF(AND('[1]Mapa final'!#REF!=\"Media\",'[1]Mapa final'!#REF!=\"Menor\"),CONCATENATE(\"R1C\",'[1]Mapa final'!#REF!),\"\")","v":{"$error":"#REF!"}},{"$f":"IF(AND('[1]Mapa final'!#REF!=\"Media\",'[1]Mapa final'!#REF!=\"Menor\"),CONCATENATE(\"R1C\",'[1]Mapa final'!#REF!),\"\")","v":{"$error":"#REF!"}},{"$f":"IF(AND('[1]Mapa final'!#REF!=\"Media\",'[1]Mapa final'!#REF!=\"Menor\"),CONCATENATE(\"R1C\",'[1]Mapa final'!#REF!),\"\")","v":{"$error":"#REF!"}},{"$f":"IF(AND('[1]Mapa final'!#REF!=\"Media\",'[1]Mapa final'!#REF!=\"Menor\"),CONCATENATE(\"R1C\",'[1]Mapa final'!#REF!),\"\")","v":{"$error":"#REF!"}},{"$f":"IF(AND('[1]Mapa final'!#REF!=\"Media\",'[1]Mapa final'!#REF!=\"Menor\"),CONCATENATE(\"R1C\",'[1]Mapa final'!#REF!),\"\")","v":{"$error":"#REF!"}},{"$f":"IF(AND('[1]Mapa final'!$AA$9=\"Media\",'[1]Mapa final'!$AC$9=\"Moderado\"),CONCATENATE(\"R1C\",'[1]Mapa final'!$Q$9),\"\")","v":{"$error":"#REF!"}},{"$f":"IF(AND('[1]Mapa final'!#REF!=\"Media\",'[1]Mapa final'!#REF!=\"Moderado\"),CONCATENATE(\"R1C\",'[1]Mapa final'!#REF!),\"\")","v":{"$error":"#REF!"}},{"$f":"IF(AND('[1]Mapa final'!#REF!=\"Media\",'[1]Mapa final'!#REF!=\"Moderado\"),CONCATENATE(\"R1C\",'[1]Mapa final'!#REF!),\"\")","v":{"$error":"#REF!"}},{"$f":"IF(AND('[1]Mapa final'!#REF!=\"Media\",'[1]Mapa final'!#REF!=\"Moderado\"),CONCATENATE(\"R1C\",'[1]Mapa final'!#REF!),\"\")","v":{"$error":"#REF!"}},{"$f":"IF(AND('[1]Mapa final'!#REF!=\"Media\",'[1]Mapa final'!#REF!=\"Moderado\"),CONCATENATE(\"R1C\",'[1]Mapa final'!#REF!),\"\")","v":{"$error":"#REF!"}},{"$f":"IF(AND('[1]Mapa final'!#REF!=\"Media\",'[1]Mapa final'!#REF!=\"Moderado\"),CONCATENATE(\"R1C\",'[1]Mapa final'!#REF!),\"\")","v":{"$error":"#REF!"}},{"$f":"IF(AND('[1]Mapa final'!$AA$9=\"Media\",'[1]Mapa final'!$AC$9=\"Mayor\"),CONCATENATE(\"R1C\",'[1]Mapa final'!$Q$9),\"\")","v":{"$error":"#REF!"}},{"$f":"IF(AND('[1]Mapa final'!#REF!=\"Media\",'[1]Mapa final'!#REF!=\"Mayor\"),CONCATENATE(\"R1C\",'[1]Mapa final'!#REF!),\"\")","v":{"$error":"#REF!"}},{"$f":"IF(AND('[1]Mapa final'!#REF!=\"Media\",'[1]Mapa final'!#REF!=\"Mayor\"),CONCATENATE(\"R1C\",'[1]Mapa final'!#REF!),\"\")","v":{"$error":"#REF!"}},{"$f":"IF(AND('[1]Mapa final'!#REF!=\"Media\",'[1]Mapa final'!#REF!=\"Mayor\"),CONCATENATE(\"R1C\",'[1]Mapa final'!#REF!),\"\")","v":{"$error":"#REF!"}},{"$f":"IF(AND('[1]Mapa final'!#REF!=\"Media\",'[1]Mapa final'!#REF!=\"Mayor\"),CONCATENATE(\"R1C\",'[1]Mapa final'!#REF!),\"\")","v":{"$error":"#REF!"}},{"$f":"IF(AND('[1]Mapa final'!#REF!=\"Media\",'[1]Mapa final'!#REF!=\"Mayor\"),CONCATENATE(\"R1C\",'[1]Mapa final'!#REF!),\"\")","v":{"$error":"#REF!"}},{"$f":"IF(AND('[1]Mapa final'!$AA$9=\"Media\",'[1]Mapa final'!$AC$9=\"Catastrófico\"),CONCATENATE(\"R1C\",'[1]Mapa final'!$Q$9),\"\")","v":{"$error":"#REF!"}},{"$f":"IF(AND('[1]Mapa final'!#REF!=\"Media\",'[1]Mapa final'!#REF!=\"Catastrófico\"),CONCATENATE(\"R1C\",'[1]Mapa final'!#REF!),\"\")","v":{"$error":"#REF!"}},{"$f":"IF(AND('[1]Mapa final'!#REF!=\"Media\",'[1]Mapa final'!#REF!=\"Catastrófico\"),CONCATENATE(\"R1C\",'[1]Mapa final'!#REF!),\"\")","v":{"$error":"#REF!"}},{"$f":"IF(AND('[1]Mapa final'!#REF!=\"Media\",'[1]Mapa final'!#REF!=\"Catastrófico\"),CONCATENATE(\"R1C\",'[1]Mapa final'!#REF!),\"\")","v":{"$error":"#REF!"}},{"$f":"IF(AND('[1]Mapa final'!#REF!=\"Media\",'[1]Mapa final'!#REF!=\"Catastrófico\"),CONCATENATE(\"R1C\",'[1]Mapa final'!#REF!),\"\")","v":{"$error":"#REF!"}},{"$f":"IF(AND('[1]Mapa final'!#REF!=\"Media\",'[1]Mapa final'!#REF!=\"Catastrófico\"),CONCATENATE(\"R1C\",'[1]Mapa final'!#REF!),\"\")","v":{"$error":"#REF!"}},null,"Moderado"]
[null,null,null,null,null,null,null,null,null,{"$f":"IF(AND('[1]Mapa final'!$AA$10=\"Media\",'[1]Mapa final'!$AC$10=\"Leve\"),CONCATENATE(\"R2C\",'[1]Mapa final'!$Q$10),\"\")","v":{"$error":"#REF!"}},{"$f":"IF(AND('[1]Mapa final'!#REF!=\"Media\",'[1]Mapa final'!#REF!=\"Leve\"),CONCATENATE(\"R2C\",'[1]Mapa final'!#REF!),\"\")","v":{"$error":"#REF!"}},{"$f":"IF(AND('[1]Mapa final'!#REF!=\"Media\",'[1]Mapa final'!#REF!=\"Leve\"),CONCATENATE(\"R2C\",'[1]Mapa final'!#REF!),\"\")","v":{"$error":"#REF!"}},{"$f":"IF(AND('[1]Mapa final'!#REF!=\"Media\",'[1]Mapa final'!#REF!=\"Leve\"),CONCATENATE(\"R2C\",'[1]Mapa final'!#REF!),\"\")","v":{"$error":"#REF!"}},{"$f":"IF(AND('[1]Mapa final'!#REF!=\"Media\",'[1]Mapa final'!#REF!=\"Leve\"),CONCATENATE(\"R2C\",'[1]Mapa final'!#REF!),\"\")","v":{"$error":"#REF!"}},{"$f":"IF(AND('[1]Mapa final'!#REF!=\"Media\",'[1]Mapa final'!#REF!=\"Leve\"),CONCATENATE(\"R2C\",'[1]Mapa final'!#REF!),\"\")","v":{"$error":"#REF!"}},{"$f":"IF(AND('[1]Mapa final'!$AA$10=\"Media\",'[1]Mapa final'!$AC$10=\"Menor\"),CONCATENATE(\"R2C\",'[1]Mapa final'!$Q$10),\"\")","v":{"$error":"#REF!"}},{"$f":"IF(AND('[1]Mapa final'!#REF!=\"Media\",'[1]Mapa final'!#REF!=\"Menor\"),CONCATENATE(\"R2C\",'[1]Mapa final'!#REF!),\"\")","v":{"$error":"#REF!"}},{"$f":"IF(AND('[1]Mapa final'!#REF!=\"Media\",'[1]Mapa final'!#REF!=\"Menor\"),CONCATENATE(\"R2C\",'[1]Mapa final'!#REF!),\"\")","v":{"$error":"#REF!"}},{"$f":"IF(AND('[1]Mapa final'!#REF!=\"Media\",'[1]Mapa final'!#REF!=\"Menor\"),CONCATENATE(\"R2C\",'[1]Mapa final'!#REF!),\"\")","v":{"$error":"#REF!"}},{"$f":"IF(AND('[1]Mapa final'!#REF!=\"Media\",'[1]Mapa final'!#REF!=\"Menor\"),CONCATENATE(\"R2C\",'[1]Mapa final'!#REF!),\"\")","v":{"$error":"#REF!"}},{"$f":"IF(AND('[1]Mapa final'!#REF!=\"Media\",'[1]Mapa final'!#REF!=\"Menor\"),CONCATENATE(\"R2C\",'[1]Mapa final'!#REF!),\"\")","v":{"$error":"#REF!"}},{"$f":"IF(AND('[1]Mapa final'!$AA$10=\"Media\",'[1]Mapa final'!$AC$10=\"Moderado\"),CONCATENATE(\"R2C\",'[1]Mapa final'!$Q$10),\"\")","v":{"$error":"#REF!"}},{"$f":"IF(AND('[1]Mapa final'!#REF!=\"Media\",'[1]Mapa final'!#REF!=\"Moderado\"),CONCATENATE(\"R2C\",'[1]Mapa final'!#REF!),\"\")","v":{"$error":"#REF!"}},{"$f":"IF(AND('[1]Mapa final'!#REF!=\"Media\",'[1]Mapa final'!#REF!=\"Moderado\"),CONCATENATE(\"R2C\",'[1]Mapa final'!#REF!),\"\")","v":{"$error":"#REF!"}},{"$f":"IF(AND('[1]Mapa final'!#REF!=\"Media\",'[1]Mapa final'!#REF!=\"Moderado\"),CONCATENATE(\"R2C\",'[1]Mapa final'!#REF!),\"\")","v":{"$error":"#REF!"}},{"$f":"IF(AND('[1]Mapa final'!#REF!=\"Media\",'[1]Mapa final'!#REF!=\"Moderado\"),CONCATENATE(\"R2C\",'[1]Mapa final'!#REF!),\"\")","v":{"$error":"#REF!"}},{"$f":"IF(AND('[1]Mapa final'!#REF!=\"Media\",'[1]Mapa final'!#REF!=\"Moderado\"),CONCATENATE(\"R2C\",'[1]Mapa final'!#REF!),\"\")","v":{"$error":"#REF!"}},{"$f":"IF(AND('[1]Mapa final'!$AA$10=\"Media\",'[1]Mapa final'!$AC$10=\"Mayor\"),CONCATENATE(\"R2C\",'[1]Mapa final'!$Q$10),\"\")","v":{"$error":"#REF!"}},{"$f":"IF(AND('[1]Mapa final'!#REF!=\"Media\",'[1]Mapa final'!#REF!=\"Mayor\"),CONCATENATE(\"R2C\",'[1]Mapa final'!#REF!),\"\")","v":{"$error":"#REF!"}},{"$f":"IF(AND('[1]Mapa final'!#REF!=\"Media\",'[1]Mapa final'!#REF!=\"Mayor\"),CONCATENATE(\"R2C\",'[1]Mapa final'!#REF!),\"\")","v":{"$error":"#REF!"}},{"$f":"IF(AND('[1]Mapa final'!#REF!=\"Media\",'[1]Mapa final'!#REF!=\"Mayor\"),CONCATENATE(\"R2C\",'[1]Mapa final'!#REF!),\"\")","v":{"$error":"#REF!"}},{"$f":"IF(AND('[1]Mapa final'!#REF!=\"Media\",'[1]Mapa final'!#REF!=\"Mayor\"),CONCATENATE(\"R2C\",'[1]Mapa final'!#REF!),\"\")","v":{"$error":"#REF!"}},{"$f":"IF(AND('[1]Mapa final'!#REF!=\"Media\",'[1]Mapa final'!#REF!=\"Mayor\"),CONCATENATE(\"R2C\",'[1]Mapa final'!#REF!),\"\")","v":{"$error":"#REF!"}},{"$f":"IF(AND('[1]Mapa final'!$AA$10=\"Media\",'[1]Mapa final'!$AC$10=\"Catastrófico\"),CONCATENATE(\"R2C\",'[1]Mapa final'!$Q$10),\"\")","v":{"$error":"#REF!"}},{"$f":"IF(AND('[1]Mapa final'!#REF!=\"Media\",'[1]Mapa final'!#REF!=\"Catastrófico\"),CONCATENATE(\"R2C\",'[1]Mapa final'!#REF!),\"\")","v":{"$error":"#REF!"}},{"$f":"IF(AND('[1]Mapa final'!#REF!=\"Media\",'[1]Mapa final'!#REF!=\"Catastrófico\"),CONCATENATE(\"R2C\",'[1]Mapa final'!#REF!),\"\")","v":{"$error":"#REF!"}},{"$f":"IF(AND('[1]Mapa final'!#REF!=\"Media\",'[1]Mapa final'!#REF!=\"Catastrófico\"),CONCATENATE(\"R2C\",'[1]Mapa final'!#REF!),\"\")","v":{"$error":"#REF!"}},{"$f":"IF(AND('[1]Mapa final'!#REF!=\"Media\",'[1]Mapa final'!#REF!=\"Catastrófico\"),CONCATENATE(\"R2C\",'[1]Mapa final'!#REF!),\"\")","v":{"$error":"#REF!"}},{"$f":"IF(AND('[1]Mapa final'!#REF!=\"Media\",'[1]Mapa final'!#REF!=\"Catastrófico\"),CONCATENATE(\"R2C\",'[1]Mapa final'!#REF!),\"\")","v":{"$error":"#REF!"}}]
[null,null,null,null,null,null,null,null,null,{"$f":"IF(AND('[1]Mapa final'!$AA$11=\"Media\",'[1]Mapa final'!$AC$11=\"Leve\"),CONCATENATE(\"R3C\",'[1]Mapa final'!$Q$11),\"\")","v":{"$error":"#REF!"}},{"$f":"IF(AND('[1]Mapa final'!#REF!=\"Media\",'[1]Mapa final'!#REF!=\"Leve\"),CONCATENATE(\"R3C\",'[1]Mapa final'!#REF!),\"\")","v":{"$error":"#REF!"}},{"$f":"IF(AND('[1]Mapa final'!#REF!=\"Media\",'[1]Mapa final'!#REF!=\"Leve\"),CONCATENATE(\"R3C\",'[1]Mapa final'!#REF!),\"\")","v":{"$error":"#REF!"}},{"$f":"IF(AND('[1]Mapa final'!#REF!=\"Media\",'[1]Mapa final'!#REF!=\"Leve\"),CONCATENATE(\"R3C\",'[1]Mapa final'!#REF!),\"\")","v":{"$error":"#REF!"}},{"$f":"IF(AND('[1]Mapa final'!#REF!=\"Media\",'[1]Mapa final'!#REF!=\"Leve\"),CONCATENATE(\"R3C\",'[1]Mapa final'!#REF!),\"\")","v":{"$error":"#REF!"}},{"$f":"IF(AND('[1]Mapa final'!#REF!=\"Media\",'[1]Mapa final'!#REF!=\"Leve\"),CONCATENATE(\"R3C\",'[1]Mapa final'!#REF!),\"\")","v":{"$error":"#REF!"}},{"$f":"IF(AND('[1]Mapa final'!$AA$11=\"Media\",'[1]Mapa final'!$AC$11=\"Menor\"),CONCATENATE(\"R3C\",'[1]Mapa final'!$Q$11),\"\")","v":{"$error":"#REF!"}},{"$f":"IF(AND('[1]Mapa final'!#REF!=\"Media\",'[1]Mapa final'!#REF!=\"Menor\"),CONCATENATE(\"R3C\",'[1]Mapa final'!#REF!),\"\")","v":{"$error":"#REF!"}},{"$f":"IF(AND('[1]Mapa final'!#REF!=\"Media\",'[1]Mapa final'!#REF!=\"Menor\"),CONCATENATE(\"R3C\",'[1]Mapa final'!#REF!),\"\")","v":{"$error":"#REF!"}},{"$f":"IF(AND('[1]Mapa final'!#REF!=\"Media\",'[1]Mapa final'!#REF!=\"Menor\"),CONCATENATE(\"R3C\",'[1]Mapa final'!#REF!),\"\")","v":{"$error":"#REF!"}},{"$f":"IF(AND('[1]Mapa final'!#REF!=\"Media\",'[1]Mapa final'!#REF!=\"Menor\"),CONCATENATE(\"R3C\",'[1]Mapa final'!#REF!),\"\")","v":{"$error":"#REF!"}},{"$f":"IF(AND('[1]Mapa final'!#REF!=\"Media\",'[1]Mapa final'!#REF!=\"Menor\"),CONCATENATE(\"R3C\",'[1]Mapa final'!#REF!),\"\")","v":{"$error":"#REF!"}},{"$f":"IF(AND('[1]Mapa final'!$AA$11=\"Media\",'[1]Mapa final'!$AC$11=\"Moderado\"),CONCATENATE(\"R3C\",'[1]Mapa final'!$Q$11),\"\")","v":{"$error":"#REF!"}},{"$f":"IF(AND('[1]Mapa final'!#REF!=\"Media\",'[1]Mapa final'!#REF!=\"Moderado\"),CONCATENATE(\"R3C\",'[1]Mapa final'!#REF!),\"\")","v":{"$error":"#REF!"}},{"$f":"IF(AND('[1]Mapa final'!#REF!=\"Media\",'[1]Mapa final'!#REF!=\"Moderado\"),CONCATENATE(\"R3C\",'[1]Mapa final'!#REF!),\"\")","v":{"$error":"#REF!"}},{"$f":"IF(AND('[1]Mapa final'!#REF!=\"Media\",'[1]Mapa final'!#REF!=\"Moderado\"),CONCATENATE(\"R3C\",'[1]Mapa final'!#REF!),\"\")","v":{"$error":"#REF!"}},{"$f":"IF(AND('[1]Mapa final'!#REF!=\"Media\",'[1]Mapa final'!#REF!=\"Moderado\"),CONCATENATE(\"R3C\",'[1]Mapa final'!#REF!),\"\")","v":{"$error":"#REF!"}},{"$f":"IF(AND('[1]Mapa final'!#REF!=\"Media\",'[1]Mapa final'!#REF!=\"Moderado\"),CONCATENATE(\"R3C\",'[1]Mapa final'!#REF!),\"\")","v":{"$error":"#REF!"}},{"$f":"IF(AND('[1]Mapa final'!$AA$11=\"Media\",'[1]Mapa final'!$AC$11=\"Mayor\"),CONCATENATE(\"R3C\",'[1]Mapa final'!$Q$11),\"\")","v":{"$error":"#REF!"}},{"$f":"IF(AND('[1]Mapa final'!#REF!=\"Media\",'[1]Mapa final'!#REF!=\"Mayor\"),CONCATENATE(\"R3C\",'[1]Mapa final'!#REF!),\"\")","v":{"$error":"#REF!"}},{"$f":"IF(AND('[1]Mapa final'!#REF!=\"Media\",'[1]Mapa final'!#REF!=\"Mayor\"),CONCATENATE(\"R3C\",'[1]Mapa final'!#REF!),\"\")","v":{"$error":"#REF!"}},{"$f":"IF(AND('[1]Mapa final'!#REF!=\"Media\",'[1]Mapa final'!#REF!=\"Mayor\"),CONCATENATE(\"R3C\",'[1]Mapa final'!#REF!),\"\")","v":{"$error":"#REF!"}},{"$f":"IF(AND('[1]Mapa final'!#REF!=\"Media\",'[1]Mapa final'!#REF!=\"Mayor\"),CONCATENATE(\"R3C\",'[1]Mapa final'!#REF!),\"\")","v":{"$error":"#REF!"}},{"$f":"IF(AND('[1]Mapa final'!#REF!=\"Media\",'[1]Mapa final'!#REF!=\"Mayor\"),CONCATENATE(\"R3C\",'[1]Mapa final'!#REF!),\"\")","v":{"$error":"#REF!"}},{"$f":"IF(AND('[1]Mapa final'!$AA$11=\"Media\",'[1]Mapa final'!$AC$11=\"Catastrófico\"),CONCATENATE(\"R3C\",'[1]Mapa final'!$Q$11),\"\")","v":{"$error":"#REF!"}},{"$f":"IF(AND('[1]Mapa final'!#REF!=\"Media\",'[1]Mapa final'!#REF!=\"Catastrófico\"),CONCATENATE(\"R3C\",'[1]Mapa final'!#REF!),\"\")","v":{"$error":"#REF!"}},{"$f":"IF(AND('[1]Mapa final'!#REF!=\"Media\",'[1]Mapa final'!#REF!=\"Catastrófico\"),CONCATENATE(\"R3C\",'[1]Mapa final'!#REF!),\"\")","v":{"$error":"#REF!"}},{"$f":"IF(AND('[1]Mapa final'!#REF!=\"Media\",'[1]Mapa final'!#REF!=\"Catastrófico\"),CONCATENATE(\"R3C\",'[1]Mapa final'!#REF!),\"\")","v":{"$error":"#REF!"}},{"$f":"IF(AND('[1]Mapa final'!#REF!=\"Media\",'[1]Mapa final'!#REF!=\"Catastrófico\"),CONCATENATE(\"R3C\",'[1]Mapa final'!#REF!),\"\")","v":{"$error":"#REF!"}},{"$f":"IF(AND('[1]Mapa final'!#REF!=\"Media\",'[1]Mapa final'!#REF!=\"Catastrófico\"),CONCATENATE(\"R3C\",'[1]Mapa final'!#REF!),\"\")","v":{"$error":"#REF!"}}]
[null,null,null,null,null,null,null,null,null,{"$f":"IF(AND('[1]Mapa final'!$AA$13=\"Media\",'[1]Mapa final'!$AC$13=\"Leve\"),CONCATENATE(\"R4C\",'[1]Mapa final'!$Q$13),\"\")","v":{"$error":"#REF!"}},{"$f":"IF(AND('[1]Mapa final'!#REF!=\"Media\",'[1]Mapa final'!#REF!=\"Leve\"),CONCATENATE(\"R4C\",'[1]Mapa final'!#REF!),\"\")","v":{"$error":"#REF!"}},{"$f":"IF(AND('[1]Mapa final'!#REF!=\"Media\",'[1]Mapa final'!#REF!=\"Leve\"),CONCATENATE(\"R4C\",'[1]Mapa final'!#REF!),\"\")","v":{"$error":"#REF!"}},{"$f":"IF(AND('[1]Mapa final'!#REF!=\"Media\",'[1]Mapa final'!#REF!=\"Leve\"),CONCATENATE(\"R4C\",'[1]Mapa final'!#REF!),\"\")","v":{"$error":"#REF!"}},{"$f":"IF(AND('[1]Mapa final'!#REF!=\"Media\",'[1]Mapa final'!#REF!=\"Leve\"),CONCATENATE(\"R4C\",'[1]Mapa final'!#REF!),\"\")","v":{"$error":"#REF!"}},{"$f":"IF(AND('[1]Mapa final'!#REF!=\"Media\",'[1]Mapa final'!#REF!=\"Leve\"),CONCATENATE(\"R4C\",'[1]Mapa final'!#REF!),\"\")","v":{"$error":"#REF!"}},{"$f":"IF(AND('[1]Mapa final'!$AA$13=\"Media\",'[1]Mapa final'!$AC$13=\"Menor\"),CONCATENATE(\"R4C\",'[1]Mapa final'!$Q$13),\"\")","v":{"$error":"#REF!"}},{"$f":"IF(AND('[1]Mapa final'!#REF!=\"Media\",'[1]Mapa final'!#REF!=\"Menor\"),CONCATENATE(\"R4C\",'[1]Mapa final'!#REF!),\"\")","v":{"$error":"#REF!"}},{"$f":"IF(AND('[1]Mapa final'!#REF!=\"Media\",'[1]Mapa final'!#REF!=\"Menor\"),CONCATENATE(\"R4C\",'[1]Mapa final'!#REF!),\"\")","v":{"$error":"#REF!"}},{"$f":"IF(AND('[1]Mapa final'!#REF!=\"Media\",'[1]Mapa final'!#REF!=\"Menor\"),CONCATENATE(\"R4C\",'[1]Mapa final'!#REF!),\"\")","v":{"$error":"#REF!"}},{"$f":"IF(AND('[1]Mapa final'!#REF!=\"Media\",'[1]Mapa final'!#REF!=\"Menor\"),CONCATENATE(\"R4C\",'[1]Mapa final'!#REF!),\"\")","v":{"$error":"#REF!"}},{"$f":"IF(AND('[1]Mapa final'!#REF!=\"Media\",'[1]Mapa final'!#REF!=\"Menor\"),CONCATENATE(\"R4C\",'[1]Mapa final'!#REF!),\"\")","v":{"$error":"#REF!"}},{"$f":"IF(AND('[1]Mapa final'!$AA$13=\"Media\",'[1]Mapa final'!$AC$13=\"Moderado\"),CONCATENATE(\"R4C\",'[1]Mapa final'!$Q$13),\"\")","v":{"$error":"#REF!"}},{"$f":"IF(AND('[1]Mapa final'!#REF!=\"Media\",'[1]Mapa final'!#REF!=\"Moderado\"),CONCATENATE(\"R4C\",'[1]Mapa final'!#REF!),\"\")","v":{"$error":"#REF!"}},{"$f":"IF(AND('[1]Mapa final'!#REF!=\"Media\",'[1]Mapa final'!#REF!=\"Moderado\"),CONCATENATE(\"R4C\",'[1]Mapa final'!#REF!),\"\")","v":{"$error":"#REF!"}},{"$f":"IF(AND('[1]Mapa final'!#REF!=\"Media\",'[1]Mapa final'!#REF!=\"Moderado\"),CONCATENATE(\"R4C\",'[1]Mapa final'!#REF!),\"\")","v":{"$error":"#REF!"}},{"$f":"IF(AND('[1]Mapa final'!#REF!=\"Media\",'[1]Mapa final'!#REF!=\"Moderado\"),CONCATENATE(\"R4C\",'[1]Mapa final'!#REF!),\"\")","v":{"$error":"#REF!"}},{"$f":"IF(AND('[1]Mapa final'!#REF!=\"Media\",'[1]Mapa final'!#REF!=\"Moderado\"),CONCATENATE(\"R4C\",'[1]Mapa final'!#REF!),\"\")","v":{"$error":"#REF!"}},{"$f":"IF(AND('[1]Mapa final'!$AA$13=\"Media\",'[1]Mapa final'!$AC$13=\"Mayor\"),CONCATENATE(\"R4C\",'[1]Mapa final'!$Q$13),\"\")","v":{"$error":"#REF!"}},{"$f":"IF(AND('[1]Mapa final'!#REF!=\"Media\",'[1]Mapa final'!#REF!=\"Mayor\"),CONCATENATE(\"R4C\",'[1]Mapa final'!#REF!),\"\")","v":{"$error":"#REF!"}},{"$f":"IF(AND('[1]Mapa final'!#REF!=\"Media\",'[1]Mapa final'!#REF!=\"Mayor\"),CONCATENATE(\"R4C\",'[1]Mapa final'!#REF!),\"\")","v":{"$error":"#REF!"}},{"$f":"IF(AND('[1]Mapa final'!#REF!=\"Media\",'[1]Mapa final'!#REF!=\"Mayor\"),CONCATENATE(\"R4C\",'[1]Mapa final'!#REF!),\"\")","v":{"$error":"#REF!"}},{"$f":"IF(AND('[1]Mapa final'!#REF!=\"Media\",'[1]Mapa final'!#REF!=\"Mayor\"),CONCATENATE(\"R4C\",'[1]Mapa final'!#REF!),\"\")","v":{"$error":"#REF!"}},{"$f":"IF(AND('[1]Mapa final'!#REF!=\"Media\",'[1]Mapa final'!#REF!=\"Mayor\"),CONCATENATE(\"R4C\",'[1]Mapa final'!#REF!),\"\")","v":{"$error":"#REF!"}},{"$f":"IF(AND('[1]Mapa final'!$AA$13=\"Media\",'[1]Mapa final'!$AC$13=\"Catastrófico\"),CONCATENATE(\"R4C\",'[1]Mapa final'!$Q$13),\"\")","v":{"$error":"#REF!"}},{"$f":"IF(AND('[1]Mapa final'!#REF!=\"Media\",'[1]Mapa final'!#REF!=\"Catastrófico\"),CONCATENATE(\"R4C\",'[1]Mapa final'!#REF!),\"\")","v":{"$error":"#REF!"}},{"$f":"IF(AND('[1]Mapa final'!#REF!=\"Media\",'[1]Mapa final'!#REF!=\"Catastrófico\"),CONCATENATE(\"R4C\",'[1]Mapa final'!#REF!),\"\")","v":{"$error":"#REF!"}},{"$f":"IF(AND('[1]Mapa final'!#REF!=\"Media\",'[1]Mapa final'!#REF!=\"Catastrófico\"),CONCATENATE(\"R4C\",'[1]Mapa final'!#REF!),\"\")","v":{"$error":"#REF!"}},{"$f":"IF(AND('[1]Mapa final'!#REF!=\"Media\",'[1]Mapa final'!#REF!=\"Catastrófico\"),CONCATENATE(\"R4C\",'[1]Mapa final'!#REF!),\"\")","v":{"$error":"#REF!"}},{"$f":"IF(AND('[1]Mapa final'!#REF!=\"Media\",'[1]Mapa final'!#REF!=\"Catastrófico\"),CONCATENATE(\"R4C\",'[1]Mapa final'!#REF!),\"\")","v":{"$error":"#REF!"}}]
[null,null,null,null,null,null,null,null,null,{"$f":"IF(AND('[1]Mapa final'!$AA$14=\"Media\",'[1]Mapa final'!$AC$14=\"Leve\"),CONCATENATE(\"R5C\",'[1]Mapa final'!$Q$14),\"\")","v":{"$error":"#REF!"}},{"$f":"IF(AND('[1]Mapa final'!#REF!=\"Media\",'[1]Mapa final'!#REF!=\"Leve\"),CONCATENATE(\"R5C\",'[1]Mapa final'!#REF!),\"\")","v":{"$error":"#REF!"}},{"$f":"IF(AND('[1]Mapa final'!#REF!=\"Media\",'[1]Mapa final'!#REF!=\"Leve\"),CONCATENATE(\"R5C\",'[1]Mapa final'!#REF!),\"\")","v":{"$error":"#REF!"}},{"$f":"IF(AND('[1]Mapa final'!#REF!=\"Media\",'[1]Mapa final'!#REF!=\"Leve\"),CONCATENATE(\"R5C\",'[1]Mapa final'!#REF!),\"\")","v":{"$error":"#REF!"}},{"$f":"IF(AND('[1]Mapa final'!#REF!=\"Media\",'[1]Mapa final'!#REF!=\"Leve\"),CONCATENATE(\"R5C\",'[1]Mapa final'!#REF!),\"\")","v":{"$error":"#REF!"}},{"$f":"IF(AND('[1]Mapa final'!#REF!=\"Media\",'[1]Mapa final'!#REF!=\"Leve\"),CONCATENATE(\"R5C\",'[1]Mapa final'!#REF!),\"\")","v":{"$error":"#REF!"}},{"$f":"IF(AND('[1]Mapa final'!$AA$14=\"Media\",'[1]Mapa final'!$AC$14=\"Menor\"),CONCATENATE(\"R5C\",'[1]Mapa final'!$Q$14),\"\")","v":{"$error":"#REF!"}},{"$f":"IF(AND('[1]Mapa final'!#REF!=\"Media\",'[1]Mapa final'!#REF!=\"Menor\"),CONCATENATE(\"R5C\",'[1]Mapa final'!#REF!),\"\")","v":{"$error":"#REF!"}},{"$f":"IF(AND('[1]Mapa final'!#REF!=\"Media\",'[1]Mapa final'!#REF!=\"Menor\"),CONCATENATE(\"R5C\",'[1]Mapa final'!#REF!),\"\")","v":{"$error":"#REF!"}},{"$f":"IF(AND('[1]Mapa final'!#REF!=\"Media\",'[1]Mapa final'!#REF!=\"Menor\"),CONCATENATE(\"R5C\",'[1]Mapa final'!#REF!),\"\")","v":{"$error":"#REF!"}},{"$f":"IF(AND('[1]Mapa final'!#REF!=\"Media\",'[1]Mapa final'!#REF!=\"Menor\"),CONCATENATE(\"R5C\",'[1]Mapa final'!#REF!),\"\")","v":{"$error":"#REF!"}},{"$f":"IF(AND('[1]Mapa final'!#REF!=\"Media\",'[1]Mapa final'!#REF!=\"Menor\"),CONCATENATE(\"R5C\",'[1]Mapa final'!#REF!),\"\")","v":{"$error":"#REF!"}},{"$f":"IF(AND('[1]Mapa final'!$AA$14=\"Media\",'[1]Mapa final'!$AC$14=\"Moderado\"),CONCATENATE(\"R5C\",'[1]Mapa final'!$Q$14),\"\")","v":{"$error":"#REF!"}},{"$f":"IF(AND('[1]Mapa final'!#REF!=\"Media\",'[1]Mapa final'!#REF!=\"Moderado\"),CONCATENATE(\"R5C\",'[1]Mapa final'!#REF!),\"\")","v":{"$error":"#REF!"}},{"$f":"IF(AND('[1]Mapa final'!#REF!=\"Media\",'[1]Mapa final'!#REF!=\"Moderado\"),CONCATENATE(\"R5C\",'[1]Mapa final'!#REF!),\"\")","v":{"$error":"#REF!"}},{"$f":"IF(AND('[1]Mapa final'!#REF!=\"Media\",'[1]Mapa final'!#REF!=\"Moderado\"),CONCATENATE(\"R5C\",'[1]Mapa final'!#REF!),\"\")","v":{"$error":"#REF!"}},{"$f":"IF(AND('[1]Mapa final'!#REF!=\"Media\",'[1]Mapa final'!#REF!=\"Moderado\"),CONCATENATE(\"R5C\",'[1]Mapa final'!#REF!),\"\")","v":{"$error":"#REF!"}},{"$f":"IF(AND('[1]Mapa final'!#REF!=\"Media\",'[1]Mapa final'!#REF!=\"Moderado\"),CONCATENATE(\"R5C\",'[1]Mapa final'!#REF!),\"\")","v":{"$error":"#REF!"}},{"$f":"IF(AND('[1]Mapa final'!$AA$14=\"Media\",'[1]Mapa final'!$AC$14=\"Mayor\"),CONCATENATE(\"R5C\",'[1]Mapa final'!$Q$14),\"\")","v":{"$error":"#REF!"}},{"$f":"IF(AND('[1]Mapa final'!#REF!=\"Media\",'[1]Mapa final'!#REF!=\"Mayor\"),CONCATENATE(\"R5C\",'[1]Mapa final'!#REF!),\"\")","v":{"$error":"#REF!"}},{"$f":"IF(AND('[1]Mapa final'!#REF!=\"Media\",'[1]Mapa final'!#REF!=\"Mayor\"),CONCATENATE(\"R5C\",'[1]Mapa final'!#REF!),\"\")","v":{"$error":"#REF!"}},{"$f":"IF(AND('[1]Mapa final'!#REF!=\"Media\",'[1]Mapa final'!#REF!=\"Mayor\"),CONCATENATE(\"R5C\",'[1]Mapa final'!#REF!),\"\")","v":{"$error":"#REF!"}},{"$f":"IF(AND('[1]Mapa final'!#REF!=\"Media\",'[1]Mapa final'!#REF!=\"Mayor\"),CONCATENATE(\"R5C\",'[1]Mapa final'!#REF!),\"\")","v":{"$error":"#REF!"}},{"$f":"IF(AND('[1]Mapa final'!#REF!=\"Media\",'[1]Mapa final'!#REF!=\"Mayor\"),CONCATENATE(\"R5C\",'[1]Mapa final'!#REF!),\"\")","v":{"$error":"#REF!"}},{"$f":"IF(AND('[1]Mapa final'!$AA$14=\"Media\",'[1]Mapa final'!$AC$14=\"Catastrófico\"),CONCATENATE(\"R5C\",'[1]Mapa final'!$Q$14),\"\")","v":{"$error":"#REF!"}},{"$f":"IF(AND('[1]Mapa final'!#REF!=\"Media\",'[1]Mapa final'!#REF!=\"Catastrófico\"),CONCATENATE(\"R5C\",'[1]Mapa final'!#REF!),\"\")","v":{"$error":"#REF!"}},{"$f":"IF(AND('[1]Mapa final'!#REF!=\"Media\",'[1]Mapa final'!#REF!=\"Catastrófico\"),CONCATENATE(\"R5C\",'[1]Mapa final'!#REF!),\"\")","v":{"$error":"#REF!"}},{"$f":"IF(AND('[1]Mapa final'!#REF!=\"Media\",'[1]Mapa final'!#REF!=\"Catastrófico\"),CONCATENATE(\"R5C\",'[1]Mapa final'!#REF!),\"\")","v":{"$error":"#REF!"}},{"$f":"IF(AND('[1]Mapa final'!#REF!=\"Media\",'[1]Mapa final'!#REF!=\"Catastrófico\"),CONCATENATE(\"R5C\",'[1]Mapa final'!#REF!),\"\")","v":{"$error":"#REF!"}},{"$f":"IF(AND('[1]Mapa final'!#REF!=\"Media\",'[1]Mapa final'!#REF!=\"Catastrófico\"),CONCATENATE(\"R5C\",'[1]Mapa final'!#REF!),\"\")","v":{"$error":"#REF!"}}]
[null,null,null,null,null,null,null,null,null,{"$f":"IF(AND('[1]Mapa final'!$AB$17=\"Media\",'[1]Mapa final'!$AD$17=\"Leve\"),CONCATENATE(\"R6C\",'[1]Mapa final'!$R$17),\"\")","v":{"$error":"#REF!"}},{"$f":"IF(AND('[1]Mapa final'!#REF!=\"Media\",'[1]Mapa final'!#REF!=\"Leve\"),CONCATENATE(\"R6C\",'[1]Mapa final'!#REF!),\"\")","v":{"$error":"#REF!"}},{"$f":"IF(AND('[1]Mapa final'!#REF!=\"Media\",'[1]Mapa final'!#REF!=\"Leve\"),CONCATENATE(\"R6C\",'[1]Mapa final'!#REF!),\"\")","v":{"$error":"#REF!"}},{"$f":"IF(AND('[1]Mapa final'!#REF!=\"Media\",'[1]Mapa final'!#REF!=\"Leve\"),CONCATENATE(\"R6C\",'[1]Mapa final'!#REF!),\"\")","v":{"$error":"#REF!"}},{"$f":"IF(AND('[1]Mapa final'!#REF!=\"Media\",'[1]Mapa final'!#REF!=\"Leve\"),CONCATENATE(\"R6C\",'[1]Mapa final'!#REF!),\"\")","v":{"$error":"#REF!"}},{"$f":"IF(AND('[1]Mapa final'!#REF!=\"Media\",'[1]Mapa final'!#REF!=\"Leve\"),CONCATENATE(\"R6C\",'[1]Mapa final'!#REF!),\"\")","v":{"$error":"#REF!"}},{"$f":"IF(AND('[1]Mapa final'!$AB$17=\"Media\",'[1]Mapa final'!$AD$17=\"Menor\"),CONCATENATE(\"R6C\",'[1]Mapa final'!$R$17),\"\")","v":{"$error":"#REF!"}},{"$f":"IF(AND('[1]Mapa final'!#REF!=\"Media\",'[1]Mapa final'!#REF!=\"Menor\"),CONCATENATE(\"R6C\",'[1]Mapa final'!#REF!),\"\")","v":{"$error":"#REF!"}},{"$f":"IF(AND('[1]Mapa final'!#REF!=\"Media\",'[1]Mapa final'!#REF!=\"Menor\"),CONCATENATE(\"R6C\",'[1]Mapa final'!#REF!),\"\")","v":{"$error":"#REF!"}},{"$f":"IF(AND('[1]Mapa final'!#REF!=\"Media\",'[1]Mapa final'!#REF!=\"Menor\"),CONCATENATE(\"R6C\",'[1]Mapa final'!#REF!),\"\")","v":{"$error":"#REF!"}},{"$f":"IF(AND('[1]Mapa final'!#REF!=\"Media\",'[1]Mapa final'!#REF!=\"Menor\"),CONCATENATE(\"R6C\",'[1]Mapa final'!#REF!),\"\")","v":{"$error":"#REF!"}},{"$f":"IF(AND('[1]Mapa final'!#REF!=\"Media\",'[1]Mapa final'!#REF!=\"Menor\"),CONCATENATE(\"R6C\",'[1]Mapa final'!#REF!),\"\")","v":{"$error":"#REF!"}},{"$f":"IF(AND('[1]Mapa final'!$AB$17=\"Media\",'[1]Mapa final'!$AD$17=\"Moderado\"),CONCATENATE(\"R6C\",'[1]Mapa final'!$R$17),\"\")","v":{"$error":"#REF!"}},{"$f":"IF(AND('[1]Mapa final'!#REF!=\"Media\",'[1]Mapa final'!#REF!=\"Moderado\"),CONCATENATE(\"R6C\",'[1]Mapa final'!#REF!),\"\")","v":{"$error":"#REF!"}},{"$f":"IF(AND('[1]Mapa final'!#REF!=\"Media\",'[1]Mapa final'!#REF!=\"Moderado\"),CONCATENATE(\"R6C\",'[1]Mapa final'!#REF!),\"\")","v":{"$error":"#REF!"}},{"$f":"IF(AND('[1]Mapa final'!#REF!=\"Media\",'[1]Mapa final'!#REF!=\"Moderado\"),CONCATENATE(\"R6C\",'[1]Mapa final'!#REF!),\"\")","v":{"$error":"#REF!"}},{"$f":"IF(AND('[1]Mapa final'!#REF!=\"Media\",'[1]Mapa final'!#REF!=\"Moderado\"),CONCATENATE(\"R6C\",'[1]Mapa final'!#REF!),\"\")","v":{"$error":"#REF!"}},{"$f":"IF(AND('[1]Mapa final'!#REF!=\"Media\",'[1]Mapa final'!#REF!=\"Moderado\"),CONCATENATE(\"R6C\",'[1]Mapa final'!#REF!),\"\")","v":{"$error":"#REF!"}},{"$f":"IF(AND('[1]Mapa final'!$AB$17=\"Media\",'[1]Mapa final'!$AD$17=\"Mayor\"),CONCATENATE(\"R6C\",'[1]Mapa final'!$R$17),\"\")","v":{"$error":"#REF!"}},{"$f":"IF(AND('[1]Mapa final'!#REF!=\"Media\",'[1]Mapa final'!#REF!=\"Mayor\"),CONCATENATE(\"R6C\",'[1]Mapa final'!#REF!),\"\")","v":{"$error":"#REF!"}},{"$f":"IF(AND('[1]Mapa final'!#REF!=\"Media\",'[1]Mapa final'!#REF!=\"Mayor\"),CONCATENATE(\"R6C\",'[1]Mapa final'!#REF!),\"\")","v":{"$error":"#REF!"}},{"$f":"IF(AND('[1]Mapa final'!#REF!=\"Media\",'[1]Mapa final'!#REF!=\"Mayor\"),CONCATENATE(\"R6C\",'[1]Mapa final'!#REF!),\"\")","v":{"$error":"#REF!"}},{"$f":"IF(AND('[1]Mapa final'!#REF!=\"Media\",'[1]Mapa final'!#REF!=\"Mayor\"),CONCATENATE(\"R6C\",'[1]Mapa final'!#REF!),\"\")","v":{"$error":"#REF!"}},{"$f":"IF(AND('[1]Mapa final'!#REF!=\"Media\",'[1]Mapa final'!#REF!=\"Mayor\"),CONCATENATE(\"R6C\",'[1]Mapa final'!#REF!),\"\")","v":{"$error":"#REF!"}},{"$f":"IF(AND('[1]Mapa final'!$AB$17=\"Media\",'[1]Mapa final'!$AD$17=\"Catastrófico\"),CONCATENATE(\"R6C\",'[1]Mapa final'!$R$17),\"\")","v":{"$error":"#REF!"}},{"$f":"IF(AND('[1]Mapa final'!#REF!=\"Media\",'[1]Mapa final'!#REF!=\"Catastrófico\"),CONCATENATE(\"R6C\",'[1]Mapa final'!#REF!),\"\")","v":{"$error":"#REF!"}},{"$f":"IF(AND('[1]Mapa final'!#REF!=\"Media\",'[1]Mapa final'!#REF!=\"Catastrófico\"),CONCATENATE(\"R6C\",'[1]Mapa final'!#REF!),\"\")","v":{"$error":"#REF!"}},{"$f":"IF(AND('[1]Mapa final'!#REF!=\"Media\",'[1]Mapa final'!#REF!=\"Catastrófico\"),CONCATENATE(\"R6C\",'[1]Mapa final'!#REF!),\"\")","v":{"$error":"#REF!"}},{"$f":"IF(AND('[1]Mapa final'!#REF!=\"Media\",'[1]Mapa final'!#REF!=\"Catastrófico\"),CONCATENATE(\"R6C\",'[1]Mapa final'!#REF!),\"\")","v":{"$error":"#REF!"}},{"$f":"IF(AND('[1]Mapa final'!#REF!=\"Media\",'[1]Mapa final'!#REF!=\"Catastrófico\"),CONCATENATE(\"R6C\",'[1]Mapa final'!#REF!),\"\")","v":{"$error":"#REF!"}}]
[null,null,null,null,null,null,null,null,null,{"$f":"IF(AND('[1]Mapa final'!$AA$18=\"Media\",'[1]Mapa final'!$AC$18=\"Leve\"),CONCATENATE(\"R7C\",'[1]Mapa final'!$Q$18),\"\")","v":{"$error":"#REF!"}},{"$f":"IF(AND('[1]Mapa final'!#REF!=\"Media\",'[1]Mapa final'!#REF!=\"Leve\"),CONCATENATE(\"R7C\",'[1]Mapa final'!#REF!),\"\")","v":{"$error":"#REF!"}},{"$f":"IF(AND('[1]Mapa final'!#REF!=\"Media\",'[1]Mapa final'!#REF!=\"Leve\"),CONCATENATE(\"R7C\",'[1]Mapa final'!#REF!),\"\")","v":{"$error":"#REF!"}},{"$f":"IF(AND('[1]Mapa final'!#REF!=\"Media\",'[1]Mapa final'!#REF!=\"Leve\"),CONCATENATE(\"R7C\",'[1]Mapa final'!#REF!),\"\")","v":{"$error":"#REF!"}},{"$f":"IF(AND('[1]Mapa final'!#REF!=\"Media\",'[1]Mapa final'!#REF!=\"Leve\"),CONCATENATE(\"R7C\",'[1]Mapa final'!#REF!),\"\")","v":{"$error":"#REF!"}},{"$f":"IF(AND('[1]Mapa final'!#REF!=\"Media\",'[1]Mapa final'!#REF!=\"Leve\"),CONCATENATE(\"R7C\",'[1]Mapa final'!#REF!),\"\")","v":{"$error":"#REF!"}},{"$f":"IF(AND('[1]Mapa final'!$AA$18=\"Media\",'[1]Mapa final'!$AC$18=\"Menor\"),CONCATENATE(\"R7C\",'[1]Mapa final'!$Q$18),\"\")","v":{"$error":"#REF!"}},{"$f":"IF(AND('[1]Mapa final'!#REF!=\"Media\",'[1]Mapa final'!#REF!=\"Menor\"),CONCATENATE(\"R7C\",'[1]Mapa final'!#REF!),\"\")","v":{"$error":"#REF!"}},{"$f":"IF(AND('[1]Mapa final'!#REF!=\"Media\",'[1]Mapa final'!#REF!=\"Menor\"),CONCATENATE(\"R7C\",'[1]Mapa final'!#REF!),\"\")","v":{"$error":"#REF!"}},{"$f":"IF(AND('[1]Mapa final'!#REF!=\"Media\",'[1]Mapa final'!#REF!=\"Menor\"),CONCATENATE(\"R7C\",'[1]Mapa final'!#REF!),\"\")","v":{"$error":"#REF!"}},{"$f":"IF(AND('[1]Mapa final'!#REF!=\"Media\",'[1]Mapa final'!#REF!=\"Menor\"),CONCATENATE(\"R7C\",'[1]Mapa final'!#REF!),\"\")","v":{"$error":"#REF!"}},{"$f":"IF(AND('[1]Mapa final'!#REF!=\"Media\",'[1]Mapa final'!#REF!=\"Menor\"),CONCATENATE(\"R7C\",'[1]Mapa final'!#REF!),\"\")","v":{"$error":"#REF!"}},{"$f":"IF(AND('[1]Mapa final'!$AA$18=\"Media\",'[1]Mapa final'!$AC$18=\"Moderado\"),CONCATENATE(\"R7C\",'[1]Mapa final'!$Q$18),\"\")","v":{"$error":"#REF!"}},{"$f":"IF(AND('[1]Mapa final'!#REF!=\"Media\",'[1]Mapa final'!#REF!=\"Moderado\"),CONCATENATE(\"R7C\",'[1]Mapa final'!#REF!),\"\")","v":{"$error":"#REF!"}},{"$f":"IF(AND('[1]Mapa final'!#REF!=\"Media\",'[1]Mapa final'!#REF!=\"Moderado\"),CONCATENATE(\"R7C\",'[1]Mapa final'!#REF!),\"\")","v":{"$error":"#REF!"}},{"$f":"IF(AND('[1]Mapa final'!#REF!=\"Media\",'[1]Mapa final'!#REF!=\"Moderado\"),CONCATENATE(\"R7C\",'[1]Mapa final'!#REF!),\"\")","v":{"$error":"#REF!"}},{"$f":"IF(AND('[1]Mapa final'!#REF!=\"Media\",'[1]Mapa final'!#REF!=\"Moderado\"),CONCATENATE(\"R7C\",'[1]Mapa final'!#REF!),\"\")","v":{"$error":"#REF!"}},{"$f":"IF(AND('[1]Mapa final'!#REF!=\"Media\",'[1]Mapa final'!#REF!=\"Moderado\"),CONCATENATE(\"R7C\",'[1]Mapa final'!#REF!),\"\")","v":{"$error":"#REF!"}},{"$f":"IF(AND('[1]Mapa final'!$AA$18=\"Media\",'[1]Mapa final'!$AC$18=\"Mayor\"),CONCATENATE(\"R7C\",'[1]Mapa final'!$Q$18),\"\")","v":{"$error":"#REF!"}},{"$f":"IF(AND('[1]Mapa final'!#REF!=\"Media\",'[1]Mapa final'!#REF!=\"Mayor\"),CONCATENATE(\"R7C\",'[1]Mapa final'!#REF!),\"\")","v":{"$error":"#REF!"}},{"$f":"IF(AND('[1]Mapa final'!#REF!=\"Media\",'[1]Mapa final'!#REF!=\"Mayor\"),CONCATENATE(\"R7C\",'[1]Mapa final'!#REF!),\"\")","v":{"$error":"#REF!"}},{"$f":"IF(AND('[1]Mapa final'!#REF!=\"Media\",'[1]Mapa final'!#REF!=\"Mayor\"),CONCATENATE(\"R7C\",'[1]Mapa final'!#REF!),\"\")","v":{"$error":"#REF!"}},{"$f":"IF(AND('[1]Mapa final'!#REF!=\"Media\",'[1]Mapa final'!#REF!=\"Mayor\"),CONCATENATE(\"R7C\",'[1]Mapa final'!#REF!),\"\")","v":{"$error":"#REF!"}},{"$f":"IF(AND('[1]Mapa final'!#REF!=\"Media\",'[1]Mapa final'!#REF!=\"Mayor\"),CONCATENATE(\"R7C\",'[1]Mapa final'!#REF!),\"\")","v":{"$error":"#REF!"}},{"$f":"IF(AND('[1]Mapa final'!$AA$18=\"Media\",'[1]Mapa final'!$AC$18=\"Catastrófico\"),CONCATENATE(\"R7C\",'[1]Mapa final'!$Q$18),\"\")","v":{"$error":"#REF!"}},{"$f":"IF(AND('[1]Mapa final'!#REF!=\"Media\",'[1]Mapa final'!#REF!=\"Catastrófico\"),CONCATENATE(\"R7C\",'[1]Mapa final'!#REF!),\"\")","v":{"$error":"#REF!"}},{"$f":"IF(AND('[1]Mapa final'!#REF!=\"Media\",'[1]Mapa final'!#REF!=\"Catastrófico\"),CONCATENATE(\"R7C\",'[1]Mapa final'!#REF!),\"\")","v":{"$error":"#REF!"}},{"$f":"IF(AND('[1]Mapa final'!#REF!=\"Media\",'[1]Mapa final'!#REF!=\"Catastrófico\"),CONCATENATE(\"R7C\",'[1]Mapa final'!#REF!),\"\")","v":{"$error":"#REF!"}},{"$f":"IF(AND('[1]Mapa final'!#REF!=\"Media\",'[1]Mapa final'!#REF!=\"Catastrófico\"),CONCATENATE(\"R7C\",'[1]Mapa final'!#REF!),\"\")","v":{"$error":"#REF!"}},{"$f":"IF(AND('[1]Mapa final'!#REF!=\"Media\",'[1]Mapa final'!#REF!=\"Catastrófico\"),CONCATENATE(\"R7C\",'[1]Mapa final'!#REF!),\"\")","v":{"$error":"#REF!"}}]
[null,null,null,null,null,null,null,null,null,{"$f":"IF(AND('[1]Mapa final'!$AA$19=\"Media\",'[1]Mapa final'!$AC$19=\"Leve\"),CONCATENATE(\"R8C\",'[1]Mapa final'!$Q$19),\"\")","v":{"$error":"#REF!"}},{"$f":"IF(AND('[1]Mapa final'!#REF!=\"Media\",'[1]Mapa final'!#REF!=\"Leve\"),CONCATENATE(\"R8C\",'[1]Mapa final'!#REF!),\"\")","v":{"$error":"#REF!"}},{"$f":"IF(AND('[1]Mapa final'!#REF!=\"Media\",'[1]Mapa final'!#REF!=\"Leve\"),CONCATENATE(\"R8C\",'[1]Mapa final'!#REF!),\"\")","v":{"$error":"#REF!"}},{"$f":"IF(AND('[1]Mapa final'!#REF!=\"Media\",'[1]Mapa final'!#REF!=\"Leve\"),CONCATENATE(\"R8C\",'[1]Mapa final'!#REF!),\"\")","v":{"$error":"#REF!"}},{"$f":"IF(AND('[1]Mapa final'!#REF!=\"Media\",'[1]Mapa final'!#REF!=\"Leve\"),CONCATENATE(\"R8C\",'[1]Mapa final'!#REF!),\"\")","v":{"$error":"#REF!"}},{"$f":"IF(AND('[1]Mapa final'!#REF!=\"Media\",'[1]Mapa final'!#REF!=\"Leve\"),CONCATENATE(\"R8C\",'[1]Mapa final'!#REF!),\"\")","v":{"$error":"#REF!"}},{"$f":"IF(AND('[1]Mapa final'!$AA$19=\"Media\",'[1]Mapa final'!$AC$19=\"Menor\"),CONCATENATE(\"R8C\",'[1]Mapa final'!$Q$19),\"\")","v":{"$error":"#REF!"}},{"$f":"IF(AND('[1]Mapa final'!#REF!=\"Media\",'[1]Mapa final'!#REF!=\"Menor\"),CONCATENATE(\"R8C\",'[1]Mapa final'!#REF!),\"\")","v":{"$error":"#REF!"}},{"$f":"IF(AND('[1]Mapa final'!#REF!=\"Media\",'[1]Mapa final'!#REF!=\"Menor\"),CONCATENATE(\"R8C\",'[1]Mapa final'!#REF!),\"\")","v":{"$error":"#REF!"}},{"$f":"IF(AND('[1]Mapa final'!#REF!=\"Media\",'[1]Mapa final'!#REF!=\"Menor\"),CONCATENATE(\"R8C\",'[1]Mapa final'!#REF!),\"\")","v":{"$error":"#REF!"}},{"$f":"IF(AND('[1]Mapa final'!#REF!=\"Media\",'[1]Mapa final'!#REF!=\"Menor\"),CONCATENATE(\"R8C\",'[1]Mapa final'!#REF!),\"\")","v":{"$error":"#REF!"}},{"$f":"IF(AND('[1]Mapa final'!#REF!=\"Media\",'[1]Mapa final'!#REF!=\"Menor\"),CONCATENATE(\"R8C\",'[1]Mapa final'!#REF!),\"\")","v":{"$error":"#REF!"}},{"$f":"IF(AND('[1]Mapa final'!$AA$19=\"Media\",'[1]Mapa final'!$AC$19=\"Moderado\"),CONCATENATE(\"R8C\",'[1]Mapa final'!$Q$19),\"\")","v":{"$error":"#REF!"}},{"$f":"IF(AND('[1]Mapa final'!#REF!=\"Media\",'[1]Mapa final'!#REF!=\"Moderado\"),CONCATENATE(\"R8C\",'[1]Mapa final'!#REF!),\"\")","v":{"$error":"#REF!"}},{"$f":"IF(AND('[1]Mapa final'!#REF!=\"Media\",'[1]Mapa final'!#REF!=\"Moderado\"),CONCATENATE(\"R8C\",'[1]Mapa final'!#REF!),\"\")","v":{"$error":"#REF!"}},{"$f":"IF(AND('[1]Mapa final'!#REF!=\"Media\",'[1]Mapa final'!#REF!=\"Moderado\"),CONCATENATE(\"R8C\",'[1]Mapa final'!#REF!),\"\")","v":{"$error":"#REF!"}},{"$f":"IF(AND('[1]Mapa final'!#REF!=\"Media\",'[1]Mapa final'!#REF!=\"Moderado\"),CONCATENATE(\"R8C\",'[1]Mapa final'!#REF!),\"\")","v":{"$error":"#REF!"}},{"$f":"IF(AND('[1]Mapa final'!#REF!=\"Media\",'[1]Mapa final'!#REF!=\"Moderado\"),CONCATENATE(\"R8C\",'[1]Mapa final'!#REF!),\"\")","v":{"$error":"#REF!"}},{"$f":"IF(AND('[1]Mapa final'!$AA$19=\"Media\",'[1]Mapa final'!$AC$19=\"Mayor\"),CONCATENATE(\"R8C\",'[1]Mapa final'!$Q$19),\"\")","v":{"$error":"#REF!"}},{"$f":"IF(AND('[1]Mapa final'!#REF!=\"Media\",'[1]Mapa final'!#REF!=\"Mayor\"),CONCATENATE(\"R8C\",'[1]Mapa final'!#REF!),\"\")","v":{"$error":"#REF!"}},{"$f":"IF(AND('[1]Mapa final'!#REF!=\"Media\",'[1]Mapa final'!#REF!=\"Mayor\"),CONCATENATE(\"R8C\",'[1]Mapa final'!#REF!),\"\")","v":{"$error":"#REF!"}},{"$f":"IF(AND('[1]Mapa final'!#REF!=\"Media\",'[1]Mapa final'!#REF!=\"Mayor\"),CONCATENATE(\"R8C\",'[1]Mapa final'!#REF!),\"\")","v":{"$error":"#REF!"}},{"$f":"IF(AND('[1]Mapa final'!#REF!=\"Media\",'[1]Mapa final'!#REF!=\"Mayor\"),CONCATENATE(\"R8C\",'[1]Mapa final'!#REF!),\"\")","v":{"$error":"#REF!"}},{"$f":"IF(AND('[1]Mapa final'!#REF!=\"Media\",'[1]Mapa final'!#REF!=\"Mayor\"),CONCATENATE(\"R8C\",'[1]Mapa final'!#REF!),\"\")","v":{"$error":"#REF!"}},{"$f":"IF(AND('[1]Mapa final'!$AA$19=\"Media\",'[1]Mapa final'!$AC$19=\"Catastrófico\"),CONCATENATE(\"R8C\",'[1]Mapa final'!$Q$19),\"\")","v":{"$error":"#REF!"}},{"$f":"IF(AND('[1]Mapa final'!#REF!=\"Media\",'[1]Mapa final'!#REF!=\"Catastrófico\"),CONCATENATE(\"R8C\",'[1]Mapa final'!#REF!),\"\")","v":{"$error":"#REF!"}},{"$f":"IF(AND('[1]Mapa final'!#REF!=\"Media\",'[1]Mapa final'!#REF!=\"Catastrófico\"),CONCATENATE(\"R8C\",'[1]Mapa final'!#REF!),\"\")","v":{"$error":"#REF!"}},{"$f":"IF(AND('[1]Mapa final'!#REF!=\"Media\",'[1]Mapa final'!#REF!=\"Catastrófico\"),CONCATENATE(\"R8C\",'[1]Mapa final'!#REF!),\"\")","v":{"$error":"#REF!"}},{"$f":"IF(AND('[1]Mapa final'!#REF!=\"Media\",'[1]Mapa final'!#REF!=\"Catastrófico\"),CONCATENATE(\"R8C\",'[1]Mapa final'!#REF!),\"\")","v":{"$error":"#REF!"}},{"$f":"IF(AND('[1]Mapa final'!#REF!=\"Media\",'[1]Mapa final'!#REF!=\"Catastrófico\"),CONCATENATE(\"R8C\",'[1]Mapa final'!#REF!),\"\")","v":{"$error":"#REF!"}}]
[null,null,null,null,null,null,null,null,null,{"$f":"IF(AND('[1]Mapa final'!$AA$20=\"Media\",'[1]Mapa final'!$AC$20=\"Leve\"),CONCATENATE(\"R9C\",'[1]Mapa final'!$Q$20),\"\")","v":{"$error":"#REF!"}},{"$f":"IF(AND('[1]Mapa final'!#REF!=\"Media\",'[1]Mapa final'!#REF!=\"Leve\"),CONCATENATE(\"R9C\",'[1]Mapa final'!#REF!),\"\")","v":{"$error":"#REF!"}},{"$f":"IF(AND('[1]Mapa final'!#REF!=\"Media\",'[1]Mapa final'!#REF!=\"Leve\"),CONCATENATE(\"R9C\",'[1]Mapa final'!#REF!),\"\")","v":{"$error":"#REF!"}},{"$f":"IF(AND('[1]Mapa final'!#REF!=\"Media\",'[1]Mapa final'!#REF!=\"Leve\"),CONCATENATE(\"R9C\",'[1]Mapa final'!#REF!),\"\")","v":{"$error":"#REF!"}},{"$f":"IF(AND('[1]Mapa final'!#REF!=\"Media\",'[1]Mapa final'!#REF!=\"Leve\"),CONCATENATE(\"R9C\",'[1]Mapa final'!#REF!),\"\")","v":{"$error":"#REF!"}},{"$f":"IF(AND('[1]Mapa final'!#REF!=\"Media\",'[1]Mapa final'!#REF!=\"Leve\"),CONCATENATE(\"R9C\",'[1]Mapa final'!#REF!),\"\")","v":{"$error":"#REF!"}},{"$f":"IF(AND('[1]Mapa final'!$AA$20=\"Media\",'[1]Mapa final'!$AC$20=\"Menor\"),CONCATENATE(\"R9C\",'[1]Mapa final'!$Q$20),\"\")","v":{"$error":"#REF!"}},{"$f":"IF(AND('[1]Mapa final'!#REF!=\"Media\",'[1]Mapa final'!#REF!=\"Menor\"),CONCATENATE(\"R9C\",'[1]Mapa final'!#REF!),\"\")","v":{"$error":"#REF!"}},{"$f":"IF(AND('[1]Mapa final'!#REF!=\"Media\",'[1]Mapa final'!#REF!=\"Menor\"),CONCATENATE(\"R9C\",'[1]Mapa final'!#REF!),\"\")","v":{"$error":"#REF!"}},{"$f":"IF(AND('[1]Mapa final'!#REF!=\"Media\",'[1]Mapa final'!#REF!=\"Menor\"),CONCATENATE(\"R9C\",'[1]Mapa final'!#REF!),\"\")","v":{"$error":"#REF!"}},{"$f":"IF(AND('[1]Mapa final'!#REF!=\"Media\",'[1]Mapa final'!#REF!=\"Menor\"),CONCATENATE(\"R9C\",'[1]Mapa final'!#REF!),\"\")","v":{"$error":"#REF!"}},{"$f":"IF(AND('[1]Mapa final'!#REF!=\"Media\",'[1]Mapa final'!#REF!=\"Menor\"),CONCATENATE(\"R9C\",'[1]Mapa final'!#REF!),\"\")","v":{"$error":"#REF!"}},{"$f":"IF(AND('[1]Mapa final'!$AA$20=\"Media\",'[1]Mapa final'!$AC$20=\"Moderado\"),CONCATENATE(\"R9C\",'[1]Mapa final'!$Q$20),\"\")","v":{"$error":"#REF!"}},{"$f":"IF(AND('[1]Mapa final'!#REF!=\"Media\",'[1]Mapa final'!#REF!=\"Moderado\"),CONCATENATE(\"R9C\",'[1]Mapa final'!#REF!),\"\")","v":{"$error":"#REF!"}},{"$f":"IF(AND('[1]Mapa final'!#REF!=\"Media\",'[1]Mapa final'!#REF!=\"Moderado\"),CONCATENATE(\"R9C\",'[1]Mapa final'!#REF!),\"\")","v":{"$error":"#REF!"}},{"$f":"IF(AND('[1]Mapa final'!#REF!=\"Media\",'[1]Mapa final'!#REF!=\"Moderado\"),CONCATENATE(\"R9C\",'[1]Mapa final'!#REF!),\"\")","v":{"$error":"#REF!"}},{"$f":"IF(AND('[1]Mapa final'!#REF!=\"Media\",'[1]Mapa final'!#REF!=\"Moderado\"),CONCATENATE(\"R9C\",'[1]Mapa final'!#REF!),\"\")","v":{"$error":"#REF!"}},{"$f":"IF(AND('[1]Mapa final'!#REF!=\"Media\",'[1]Mapa final'!#REF!=\"Moderado\"),CONCATENATE(\"R9C\",'[1]Mapa final'!#REF!),\"\")","v":{"$error":"#REF!"}},{"$f":"IF(AND('[1]Mapa final'!$AA$20=\"Media\",'[1]Mapa final'!$AC$20=\"Mayor\"),CONCATENATE(\"R9C\",'[1]Mapa final'!$Q$20),\"\")","v":{"$error":"#REF!"}},{"$f":"IF(AND('[1]Mapa final'!#REF!=\"Media\",'[1]Mapa final'!#REF!=\"Mayor\"),CONCATENATE(\"R9C\",'[1]Mapa final'!#REF!),\"\")","v":{"$error":"#REF!"}},{"$f":"IF(AND('[1]Mapa final'!#REF!=\"Media\",'[1]Mapa final'!#REF!=\"Mayor\"),CONCATENATE(\"R9C\",'[1]Mapa final'!#REF!),\"\")","v":{"$error":"#REF!"}},{"$f":"IF(AND('[1]Mapa final'!#REF!=\"Media\",'[1]Mapa final'!#REF!=\"Mayor\"),CONCATENATE(\"R9C\",'[1]Mapa final'!#REF!),\"\")","v":{"$error":"#REF!"}},{"$f":"IF(AND('[1]Mapa final'!#REF!=\"Media\",'[1]Mapa final'!#REF!=\"Mayor\"),CONCATENATE(\"R9C\",'[1]Mapa final'!#REF!),\"\")","v":{"$error":"#REF!"}},{"$f":"IF(AND('[1]Mapa final'!#REF!=\"Media\",'[1]Mapa final'!#REF!=\"Mayor\"),CONCATENATE(\"R9C\",'[1]Mapa final'!#REF!),\"\")","v":{"$error":"#REF!"}},{"$f":"IF(AND('[1]Mapa final'!$AA$20=\"Media\",'[1]Mapa final'!$AC$20=\"Catastrófico\"),CONCATENATE(\"R9C\",'[1]Mapa final'!$Q$20),\"\")","v":{"$error":"#REF!"}},{"$f":"IF(AND('[1]Mapa final'!#REF!=\"Media\",'[1]Mapa final'!#REF!=\"Catastrófico\"),CONCATENATE(\"R9C\",'[1]Mapa final'!#REF!),\"\")","v":{"$error":"#REF!"}},{"$f":"IF(AND('[1]Mapa final'!#REF!=\"Media\",'[1]Mapa final'!#REF!=\"Catastrófico\"),CONCATENATE(\"R9C\",'[1]Mapa final'!#REF!),\"\")","v":{"$error":"#REF!"}},{"$f":"IF(AND('[1]Mapa final'!#REF!=\"Media\",'[1]Mapa final'!#REF!=\"Catastrófico\"),CONCATENATE(\"R9C\",'[1]Mapa final'!#REF!),\"\")","v":{"$error":"#REF!"}},{"$f":"IF(AND('[1]Mapa final'!#REF!=\"Media\",'[1]Mapa final'!#REF!=\"Catastrófico\"),CONCATENATE(\"R9C\",'[1]Mapa final'!#REF!),\"\")","v":{"$error":"#REF!"}},{"$f":"IF(AND('[1]Mapa final'!#REF!=\"Media\",'[1]Mapa final'!#REF!=\"Catastrófico\"),CONCATENATE(\"R9C\",'[1]Mapa final'!#REF!),\"\")","v":{"$error":"#REF!"}}]
[null,null,null,null,null,null,null,null,null,{"$f":"IF(AND('[1]Mapa final'!$AA$21=\"Media\",'[1]Mapa final'!$AC$21=\"Leve\"),CONCATENATE(\"R10C\",'[1]Mapa final'!$Q$21),\"\")","v":{"$error":"#REF!"}},{"$f":"IF(AND('[1]Mapa final'!#REF!=\"Media\",'[1]Mapa final'!#REF!=\"Leve\"),CONCATENATE(\"R10C\",'[1]Mapa final'!#REF!),\"\")","v":{"$error":"#REF!"}},{"$f":"IF(AND('[1]Mapa final'!#REF!=\"Media\",'[1]Mapa final'!#REF!=\"Leve\"),CONCATENATE(\"R10C\",'[1]Mapa final'!#REF!),\"\")","v":{"$error":"#REF!"}},{"$f":"IF(AND('[1]Mapa final'!#REF!=\"Media\",'[1]Mapa final'!#REF!=\"Leve\"),CONCATENATE(\"R10C\",'[1]Mapa final'!#REF!),\"\")","v":{"$error":"#REF!"}},{"$f":"IF(AND('[1]Mapa final'!#REF!=\"Media\",'[1]Mapa final'!#REF!=\"Leve\"),CONCATENATE(\"R10C\",'[1]Mapa final'!#REF!),\"\")","v":{"$error":"#REF!"}},{"$f":"IF(AND('[1]Mapa final'!#REF!=\"Media\",'[1]Mapa final'!#REF!=\"Leve\"),CONCATENATE(\"R10C\",'[1]Mapa final'!#REF!),\"\")","v":{"$error":"#REF!"}},{"$f":"IF(AND('[1]Mapa final'!$AA$21=\"Media\",'[1]Mapa final'!$AC$21=\"Menor\"),CONCATENATE(\"R10C\",'[1]Mapa final'!$Q$21),\"\")","v":{"$error":"#REF!"}},{"$f":"IF(AND('[1]Mapa final'!#REF!=\"Media\",'[1]Mapa final'!#REF!=\"Menor\"),CONCATENATE(\"R10C\",'[1]Mapa final'!#REF!),\"\")","v":{"$error":"#REF!"}},{"$f":"IF(AND('[1]Mapa final'!#REF!=\"Media\",'[1]Mapa final'!#REF!=\"Menor\"),CONCATENATE(\"R10C\",'[1]Mapa final'!#REF!),\"\")","v":{"$error":"#REF!"}},{"$f":"IF(AND('[1]Mapa final'!#REF!=\"Media\",'[1]Mapa final'!#REF!=\"Menor\"),CONCATENATE(\"R10C\",'[1]Mapa final'!#REF!),\"\")","v":{"$error":"#REF!"}},{"$f":"IF(AND('[1]Mapa final'!#REF!=\"Media\",'[1]Mapa final'!#REF!=\"Menor\"),CONCATENATE(\"R10C\",'[1]Mapa final'!#REF!),\"\")","v":{"$error":"#REF!"}},{"$f":"IF(AND('[1]Mapa final'!#REF!=\"Media\",'[1]Mapa final'!#REF!=\"Menor\"),CONCATENATE(\"R10C\",'[1]Mapa final'!#REF!),\"\")","v":{"$error":"#REF!"}},{"$f":"IF(AND('[1]Mapa final'!$AA$21=\"Media\",'[1]Mapa final'!$AC$21=\"Moderado\"),CONCATENATE(\"R10C\",'[1]Mapa final'!$Q$21),\"\")","v":{"$error":"#REF!"}},{"$f":"IF(AND('[1]Mapa final'!#REF!=\"Media\",'[1]Mapa final'!#REF!=\"Moderado\"),CONCATENATE(\"R10C\",'[1]Mapa final'!#REF!),\"\")","v":{"$error":"#REF!"}},{"$f":"IF(AND('[1]Mapa final'!#REF!=\"Media\",'[1]Mapa final'!#REF!=\"Moderado\"),CONCATENATE(\"R10C\",'[1]Mapa final'!#REF!),\"\")","v":{"$error":"#REF!"}},{"$f":"IF(AND('[1]Mapa final'!#REF!=\"Media\",'[1]Mapa final'!#REF!=\"Moderado\"),CONCATENATE(\"R10C\",'[1]Mapa final'!#REF!),\"\")","v":{"$error":"#REF!"}},{"$f":"IF(AND('[1]Mapa final'!#REF!=\"Media\",'[1]Mapa final'!#REF!=\"Moderado\"),CONCATENATE(\"R10C\",'[1]Mapa final'!#REF!),\"\")","v":{"$error":"#REF!"}},{"$f":"IF(AND('[1]Mapa final'!#REF!=\"Media\",'[1]Mapa final'!#REF!=\"Moderado\"),CONCATENATE(\"R10C\",'[1]Mapa final'!#REF!),\"\")","v":{"$error":"#REF!"}},{"$f":"IF(AND('[1]Mapa final'!$AA$21=\"Media\",'[1]Mapa final'!$AC$21=\"Mayor\"),CONCATENATE(\"R10C\",'[1]Mapa final'!$Q$21),\"\")","v":{"$error":"#REF!"}},{"$f":"IF(AND('[1]Mapa final'!#REF!=\"Media\",'[1]Mapa final'!#REF!=\"Mayor\"),CONCATENATE(\"R10C\",'[1]Mapa final'!#REF!),\"\")","v":{"$error":"#REF!"}},{"$f":"IF(AND('[1]Mapa final'!#REF!=\"Media\",'[1]Mapa final'!#REF!=\"Mayor\"),CONCATENATE(\"R10C\",'[1]Mapa final'!#REF!),\"\")","v":{"$error":"#REF!"}},{"$f":"IF(AND('[1]Mapa final'!#REF!=\"Media\",'[1]Mapa final'!#REF!=\"Mayor\"),CONCATENATE(\"R10C\",'[1]Mapa final'!#REF!),\"\")","v":{"$error":"#REF!"}},{"$f":"IF(AND('[1]Mapa final'!#REF!=\"Media\",'[1]Mapa final'!#REF!=\"Mayor\"),CONCATENATE(\"R10C\",'[1]Mapa final'!#REF!),\"\")","v":{"$error":"#REF!"}},{"$f":"IF(AND('[1]Mapa final'!#REF!=\"Media\",'[1]Mapa final'!#REF!=\"Mayor\"),CONCATENATE(\"R10C\",'[1]Mapa final'!#REF!),\"\")","v":{"$error":"#REF!"}},{"$f":"IF(AND('[1]Mapa final'!$AA$21=\"Media\",'[1]Mapa final'!$AC$21=\"Catastrófico\"),CONCATENATE(\"R10C\",'[1]Mapa final'!$Q$21),\"\")","v":{"$error":"#REF!"}},{"$f":"IF(AND('[1]Mapa final'!#REF!=\"Media\",'[1]Mapa final'!#REF!=\"Catastrófico\"),CONCATENATE(\"R10C\",'[1]Mapa final'!#REF!),\"\")","v":{"$error":"#REF!"}},{"$f":"IF(AND('[1]Mapa final'!#REF!=\"Media\",'[1]Mapa final'!#REF!=\"Catastrófico\"),CONCATENATE(\"R10C\",'[1]Mapa final'!#REF!),\"\")","v":{"$error":"#REF!"}},{"$f":"IF(AND('[1]Mapa final'!#REF!=\"Media\",'[1]Mapa final'!#REF!=\"Catastrófico\"),CONCATENATE(\"R10C\",'[1]Mapa final'!#REF!),\"\")","v":{"$error":"#REF!"}},{"$f":"IF(AND('[1]Mapa final'!#REF!=\"Media\",'[1]Mapa final'!#REF!=\"Catastrófico\"),CONCATENATE(\"R10C\",'[1]Mapa final'!#REF!),\"\")","v":{"$error":"#REF!"}},{"$f":"IF(AND('[1]Mapa final'!#REF!=\"Media\",'[1]Mapa final'!#REF!=\"Catastrófico\"),CONCATENATE(\"R10C\",'[1]Mapa final'!#REF!),\"\")","v":{"$error":"#REF!"}}]
[null,null,null,null,"Baja\n40%",null,null,null,null,{"$f":"IF(AND('[1]Mapa final'!$AA$9=\"Baja\",'[1]Mapa final'!$AC$9=\"Leve\"),CONCATENATE(\"R1C\",'[1]Mapa final'!$Q$9),\"\")","v":{"$error":"#REF!"}},{"$f":"IF(AND('[1]Mapa final'!#REF!=\"Baja\",'[1]Mapa final'!#REF!=\"Leve\"),CONCATENATE(\"R1C\",'[1]Mapa final'!#REF!),\"\")","v":{"$error":"#REF!"}},{"$f":"IF(AND('[1]Mapa final'!#REF!=\"Baja\",'[1]Mapa final'!#REF!=\"Leve\"),CONCATENATE(\"R1C\",'[1]Mapa final'!#REF!),\"\")","v":{"$error":"#REF!"}},{"$f":"IF(AND('[1]Mapa final'!#REF!=\"Baja\",'[1]Mapa final'!#REF!=\"Leve\"),CONCATENATE(\"R1C\",'[1]Mapa final'!#REF!),\"\")","v":{"$error":"#REF!"}},{"$f":"IF(AND('[1]Mapa final'!#REF!=\"Baja\",'[1]Mapa final'!#REF!=\"Leve\"),CONCATENATE(\"R1C\",'[1]Mapa final'!#REF!),\"\")","v":{"$error":"#REF!"}},{"$f":"IF(AND('[1]Mapa final'!#REF!=\"Baja\",'[1]Mapa final'!#REF!=\"Leve\"),CONCATENATE(\"R1C\",'[1]Mapa final'!#REF!),\"\")","v":{"$error":"#REF!"}},{"$f":"IF(AND('[1]Mapa final'!$AA$9=\"Baja\",'[1]Mapa final'!$AC$9=\"Menor\"),CONCATENATE(\"R1C\",'[1]Mapa final'!$Q$9),\"\")","v":{"$error":"#REF!"}},{"$f":"IF(AND('[1]Mapa final'!#REF!=\"Baja\",'[1]Mapa final'!#REF!=\"Menor\"),CONCATENATE(\"R1C\",'[1]Mapa final'!#REF!),\"\")","v":{"$error":"#REF!"}},{"$f":"IF(AND('[1]Mapa final'!#REF!=\"Baja\",'[1]Mapa final'!#REF!=\"Menor\"),CONCATENATE(\"R1C\",'[1]Mapa final'!#REF!),\"\")","v":{"$error":"#REF!"}},{"$f":"IF(AND('[1]Mapa final'!#REF!=\"Baja\",'[1]Mapa final'!#REF!=\"Menor\"),CONCATENATE(\"R1C\",'[1]Mapa final'!#REF!),\"\")","v":{"$error":"#REF!"}},{"$f":"IF(AND('[1]Mapa final'!#REF!=\"Baja\",'[1]Mapa final'!#REF!=\"Menor\"),CONCATENATE(\"R1C\",'[1]Mapa final'!#REF!),\"\")","v":{"$error":"#REF!"}},{"$f":"IF(AND('[1]Mapa final'!#REF!=\"Baja\",'[1]Mapa final'!#REF!=\"Menor\"),CONCATENATE(\"R1C\",'[1]Mapa final'!#REF!),\"\")","v":{"$error":"#REF!"}},{"$f":"IF(AND('[1]Mapa final'!$AA$9=\"Baja\",'[1]Mapa final'!$AC$9=\"Moderado\"),CONCATENATE(\"R1C\",'[1]Mapa final'!$Q$9),\"\")","v":{"$error":"#REF!"}},{"$f":"IF(AND('[1]Mapa final'!#REF!=\"Baja\",'[1]Mapa final'!#REF!=\"Moderado\"),CONCATENATE(\"R1C\",'[1]Mapa final'!#REF!),\"\")","v":{"$error":"#REF!"}},{"$f":"IF(AND('[1]Mapa final'!#REF!=\"Baja\",'[1]Mapa final'!#REF!=\"Moderado\"),CONCATENATE(\"R1C\",'[1]Mapa final'!#REF!),\"\")","v":{"$error":"#REF!"}},{"$f":"IF(AND('[1]Mapa final'!#REF!=\"Baja\",'[1]Mapa final'!#REF!=\"Moderado\"),CONCATENATE(\"R1C\",'[1]Mapa final'!#REF!),\"\")","v":{"$error":"#REF!"}},{"$f":"IF(AND('[1]Mapa final'!#REF!=\"Baja\",'[1]Mapa final'!#REF!=\"Moderado\"),CONCATENATE(\"R1C\",'[1]Mapa final'!#REF!),\"\")","v":{"$error":"#REF!"}},{"$f":"IF(AND('[1]Mapa final'!#REF!=\"Baja\",'[1]Mapa final'!#REF!=\"Moderado\"),CONCATENATE(\"R1C\",'[1]Mapa final'!#REF!),\"\")","v":{"$error":"#REF!"}},{"$f":"IF(AND('[1]Mapa final'!$AA$9=\"Baja\",'[1]Mapa final'!$AC$9=\"Mayor\"),CONCATENATE(\"R1C\",'[1]Mapa final'!$Q$9),\"\")","v":{"$error":"#REF!"}},{"$f":"IF(AND('[1]Mapa final'!#REF!=\"Baja\",'[1]Mapa final'!#REF!=\"Mayor\"),CONCATENATE(\"R1C\",'[1]Mapa final'!#REF!),\"\")","v":{"$error":"#REF!"}},{"$f":"IF(AND('[1]Mapa final'!#REF!=\"Baja\",'[1]Mapa final'!#REF!=\"Mayor\"),CONCATENATE(\"R1C\",'[1]Mapa final'!#REF!),\"\")","v":{"$error":"#REF!"}},{"$f":"IF(AND('[1]Mapa final'!#REF!=\"Baja\",'[1]Mapa final'!#REF!=\"Mayor\"),CONCATENATE(\"R1C\",'[1]Mapa final'!#REF!),\"\")","v":{"$error":"#REF!"}},{"$f":"IF(AND('[1]Mapa final'!#REF!=\"Baja\",'[1]Mapa final'!#REF!=\"Mayor\"),CONCATENATE(\"R1C\",'[1]Mapa final'!#REF!),\"\")","v":{"$error":"#REF!"}},{"$f":"IF(AND('[1]Mapa final'!#REF!=\"Baja\",'[1]Mapa final'!#REF!=\"Mayor\"),CONCATENATE(\"R1C\",'[1]Mapa final'!#REF!),\"\")","v":{"$error":"#REF!"}},{"$f":"IF(AND('[1]Mapa final'!$AA$9=\"Baja\",'[1]Mapa final'!$AC$9=\"Catastrófico\"),CONCATENATE(\"R1C\",'[1]Mapa final'!$Q$9),\"\")","v":{"$error":"#REF!"}},{"$f":"IF(AND('[1]Mapa final'!#REF!=\"Baja\",'[1]Mapa final'!#REF!=\"Catastrófico\"),CONCATENATE(\"R1C\",'[1]Mapa final'!#REF!),\"\")","v":{"$error":"#REF!"}},{"$f":"IF(AND('[1]Mapa final'!#REF!=\"Baja\",'[1]Mapa final'!#REF!=\"Catastrófico\"),CONCATENATE(\"R1C\",'[1]Mapa final'!#REF!),\"\")","v":{"$error":"#REF!"}},{"$f":"IF(AND('[1]Mapa final'!#REF!=\"Baja\",'[1]Mapa final'!#REF!=\"Catastrófico\"),CONCATENATE(\"R1C\",'[1]Mapa final'!#REF!),\"\")","v":{"$error":"#REF!"}},{"$f":"IF(AND('[1]Mapa final'!#REF!=\"Baja\",'[1]Mapa final'!#REF!=\"Catastrófico\"),CONCATENATE(\"R1C\",'[1]Mapa final'!#REF!),\"\")","v":{"$error":"#REF!"}},{"$f":"IF(AND('[1]Mapa final'!#REF!=\"Baja\",'[1]Mapa final'!#REF!=\"Catastrófico\"),CONCATENATE(\"R1C\",'[1]Mapa final'!#REF!),\"\")","v":{"$error":"#REF!"}},null,"Bajo"]
[null,null,null,null,null,null,null,null,null,{"$f":"IF(AND('[1]Mapa final'!$AA$10=\"Baja\",'[1]Mapa final'!$AC$10=\"Leve\"),CONCATENATE(\"R2C\",'[1]Mapa final'!$Q$10),\"\")","v":{"$error":"#REF!"}},{"$f":"IF(AND('[1]Mapa final'!#REF!=\"Baja\",'[1]Mapa final'!#REF!=\"Leve\"),CONCATENATE(\"R2C\",'[1]Mapa final'!#REF!),\"\")","v":{"$error":"#REF!"}},{"$f":"IF(AND('[1]Mapa final'!#REF!=\"Baja\",'[1]Mapa final'!#REF!=\"Leve\"),CONCATENATE(\"R2C\",'[1]Mapa final'!#REF!),\"\")","v":{"$error":"#REF!"}},{"$f":"IF(AND('[1]Mapa final'!#REF!=\"Baja\",'[1]Mapa final'!#REF!=\"Leve\"),CONCATENATE(\"R2C\",'[1]Mapa final'!#REF!),\"\")","v":{"$error":"#REF!"}},{"$f":"IF(AND('[1]Mapa final'!#REF!=\"Baja\",'[1]Mapa final'!#REF!=\"Leve\"),CONCATENATE(\"R2C\",'[1]Mapa final'!#REF!),\"\")","v":{"$error":"#REF!"}},{"$f":"IF(AND('[1]Mapa final'!#REF!=\"Baja\",'[1]Mapa final'!#REF!=\"Leve\"),CONCATENATE(\"R2C\",'[1]Mapa final'!#REF!),\"\")","v":{"$error":"#REF!"}},{"$f":"IF(AND('[1]Mapa final'!$AA$10=\"Baja\",'[1]Mapa final'!$AC$10=\"Menor\"),CONCATENATE(\"R2C\",'[1]Mapa final'!$Q$10),\"\")","v":{"$error":"#REF!"}},{"$f":"IF(AND('[1]Mapa final'!#REF!=\"Baja\",'[1]Mapa final'!#REF!=\"Menor\"),CONCATENATE(\"R2C\",'[1]Mapa final'!#REF!),\"\")","v":{"$error":"#REF!"}},{"$f":"IF(AND('[1]Mapa final'!#REF!=\"Baja\",'[1]Mapa final'!#REF!=\"Menor\"),CONCATENATE(\"R2C\",'[1]Mapa final'!#REF!),\"\")","v":{"$error":"#REF!"}},{"$f":"IF(AND('[1]Mapa final'!#REF!=\"Baja\",'[1]Mapa final'!#REF!=\"Menor\"),CONCATENATE(\"R2C\",'[1]Mapa final'!#REF!),\"\")","v":{"$error":"#REF!"}},{"$f":"IF(AND('[1]Mapa final'!#REF!=\"Baja\",'[1]Mapa final'!#REF!=\"Menor\"),CONCATENATE(\"R2C\",'[1]Mapa final'!#REF!),\"\")","v":{"$error":"#REF!"}},{"$f":"IF(AND('[1]Mapa final'!#REF!=\"Baja\",'[1]Mapa final'!#REF!=\"Menor\"),CONCATENATE(\"R2C\",'[1]Mapa final'!#REF!),\"\")","v":{"$error":"#REF!"}},{"$f":"IF(AND('[1]Mapa final'!$AA$10=\"Baja\",'[1]Mapa final'!$AC$10=\"Moderado\"),CONCATENATE(\"R2C\",'[1]Mapa final'!$Q$10),\"\")","v":{"$error":"#REF!"}},{"$f":"IF(AND('[1]Mapa final'!#REF!=\"Baja\",'[1]Mapa final'!#REF!=\"Moderado\"),CONCATENATE(\"R2C\",'[1]Mapa final'!#REF!),\"\")","v":{"$error":"#REF!"}},{"$f":"IF(AND('[1]Mapa final'!#REF!=\"Baja\",'[1]Mapa final'!#REF!=\"Moderado\"),CONCATENATE(\"R2C\",'[1]Mapa final'!#REF!),\"\")","v":{"$error":"#REF!"}},{"$f":"IF(AND('[1]Mapa final'!#REF!=\"Baja\",'[1]Mapa final'!#REF!=\"Moderado\"),CONCATENATE(\"R2C\",'[1]Mapa final'!#REF!),\"\")","v":{"$error":"#REF!"}},{"$f":"IF(AND('[1]Mapa final'!#REF!=\"Baja\",'[1]Mapa final'!#REF!=\"Moderado\"),CONCATENATE(\"R2C\",'[1]Mapa final'!#REF!),\"\")","v":{"$error":"#REF!"}},{"$f":"IF(AND('[1]Mapa final'!#REF!=\"Baja\",'[1]Mapa final'!#REF!=\"Moderado\"),CONCATENATE(\"R2C\",'[1]Mapa final'!#REF!),\"\")","v":{"$error":"#REF!"}},{"$f":"IF(AND('[1]Mapa final'!$AA$10=\"Baja\",'[1]Mapa final'!$AC$10=\"Mayor\"),CONCATENATE(\"R2C\",'[1]Mapa final'!$Q$10),\"\")","v":{"$error":"#REF!"}},{"$f":"IF(AND('[1]Mapa final'!#REF!=\"Baja\",'[1]Mapa final'!#REF!=\"Mayor\"),CONCATENATE(\"R2C\",'[1]Mapa final'!#REF!),\"\")","v":{"$error":"#REF!"}},{"$f":"IF(AND('[1]Mapa final'!#REF!=\"Baja\",'[1]Mapa final'!#REF!=\"Mayor\"),CONCATENATE(\"R2C\",'[1]Mapa final'!#REF!),\"\")","v":{"$error":"#REF!"}},{"$f":"IF(AND('[1]Mapa final'!#REF!=\"Baja\",'[1]Mapa final'!#REF!=\"Mayor\"),CONCATENATE(\"R2C\",'[1]Mapa final'!#REF!),\"\")","v":{"$error":"#REF!"}},{"$f":"IF(AND('[1]Mapa final'!#REF!=\"Baja\",'[1]Mapa final'!#REF!=\"Mayor\"),CONCATENATE(\"R2C\",'[1]Mapa final'!#REF!),\"\")","v":{"$error":"#REF!"}},{"$f":"IF(AND('[1]Mapa final'!#REF!=\"Baja\",'[1]Mapa final'!#REF!=\"Mayor\"),CONCATENATE(\"R2C\",'[1]Mapa final'!#REF!),\"\")","v":{"$error":"#REF!"}},{"$f":"IF(AND('[1]Mapa final'!$AA$10=\"Baja\",'[1]Mapa final'!$AC$10=\"Catastrófico\"),CONCATENATE(\"R2C\",'[1]Mapa final'!$Q$10),\"\")","v":{"$error":"#REF!"}},{"$f":"IF(AND('[1]Mapa final'!#REF!=\"Baja\",'[1]Mapa final'!#REF!=\"Catastrófico\"),CONCATENATE(\"R2C\",'[1]Mapa final'!#REF!),\"\")","v":{"$error":"#REF!"}},{"$f":"IF(AND('[1]Mapa final'!#REF!=\"Baja\",'[1]Mapa final'!#REF!=\"Catastrófico\"),CONCATENATE(\"R2C\",'[1]Mapa final'!#REF!),\"\")","v":{"$error":"#REF!"}},{"$f":"IF(AND('[1]Mapa final'!#REF!=\"Baja\",'[1]Mapa final'!#REF!=\"Catastrófico\"),CONCATENATE(\"R2C\",'[1]Mapa final'!#REF!),\"\")","v":{"$error":"#REF!"}},{"$f":"IF(AND('[1]Mapa final'!#REF!=\"Baja\",'[1]Mapa final'!#REF!=\"Catastrófico\"),CONCATENATE(\"R2C\",'[1]Mapa final'!#REF!),\"\")","v":{"$error":"#REF!"}},{"$f":"IF(AND('[1]Mapa final'!#REF!=\"Baja\",'[1]Mapa final'!#REF!=\"Catastrófico\"),CONCATENATE(\"R2C\",'[1]Mapa final'!#REF!),\"\")","v":{"$error":"#REF!"}}]
[null,null,null,null,null,null,null,null,null,{"$f":"IF(AND('[1]Mapa final'!$AA$11=\"Baja\",'[1]Mapa final'!$AC$11=\"Leve\"),CONCATENATE(\"R3C\",'[1]Mapa final'!$Q$11),\"\")","v":{"$error":"#REF!"}},{"$f":"IF(AND('[1]Mapa final'!#REF!=\"Baja\",'[1]Mapa final'!#REF!=\"Leve\"),CONCATENATE(\"R3C\",'[1]Mapa final'!#REF!),\"\")","v":{"$error":"#REF!"}},{"$f":"IF(AND('[1]Mapa final'!#REF!=\"Baja\",'[1]Mapa final'!#REF!=\"Leve\"),CONCATENATE(\"R3C\",'[1]Mapa final'!#REF!),\"\")","v":{"$error":"#REF!"}},{"$f":"IF(AND('[1]Mapa final'!#REF!=\"Baja\",'[1]Mapa final'!#REF!=\"Leve\"),CONCATENATE(\"R3C\",'[1]Mapa final'!#REF!),\"\")","v":{"$error":"#REF!"}},{"$f":"IF(AND('[1]Mapa final'!#REF!=\"Baja\",'[1]Mapa final'!#REF!=\"Leve\"),CONCATENATE(\"R3C\",'[1]Mapa final'!#REF!),\"\")","v":{"$error":"#REF!"}},{"$f":"IF(AND('[1]Mapa final'!#REF!=\"Baja\",'[1]Mapa final'!#REF!=\"Leve\"),CONCATENATE(\"R3C\",'[1]Mapa final'!#REF!),\"\")","v":{"$error":"#REF!"}},{"$f":"IF(AND('[1]Mapa final'!$AA$11=\"Baja\",'[1]Mapa final'!$AC$11=\"Menor\"),CONCATENATE(\"R3C\",'[1]Mapa final'!$Q$11),\"\")","v":{"$error":"#REF!"}},{"$f":"IF(AND('[1]Mapa final'!#REF!=\"Baja\",'[1]Mapa final'!#REF!=\"Menor\"),CONCATENATE(\"R3C\",'[1]Mapa final'!#REF!),\"\")","v":{"$error":"#REF!"}},{"$f":"IF(AND('[1]Mapa final'!#REF!=\"Baja\",'[1]Mapa final'!#REF!=\"Menor\"),CONCATENATE(\"R3C\",'[1]Mapa final'!#REF!),\"\")","v":{"$error":"#REF!"}},{"$f":"IF(AND('[1]Mapa final'!#REF!=\"Baja\",'[1]Mapa final'!#REF!=\"Menor\"),CONCATENATE(\"R3C\",'[1]Mapa final'!#REF!),\"\")","v":{"$error":"#REF!"}},{"$f":"IF(AND('[1]Mapa final'!#REF!=\"Baja\",'[1]Mapa final'!#REF!=\"Menor\"),CONCATENATE(\"R3C\",'[1]Mapa final'!#REF!),\"\")","v":{"$error":"#REF!"}},{"$f":"IF(AND('[1]Mapa final'!#REF!=\"Baja\",'[1]Mapa final'!#REF!=\"Menor\"),CONCATENATE(\"R3C\",'[1]Mapa final'!#REF!),\"\")","v":{"$error":"#REF!"}},{"$f":"IF(AND('[1]Mapa final'!$AA$11=\"Baja\",'[1]Mapa final'!$AC$11=\"Moderado\"),CONCATENATE(\"R3C\",'[1]Mapa final'!$Q$11),\"\")","v":{"$error":"#REF!"}},{"$f":"IF(AND('[1]Mapa final'!#REF!=\"Baja\",'[1]Mapa final'!#REF!=\"Moderado\"),CONCATENATE(\"R3C\",'[1]Mapa final'!#REF!),\"\")","v":{"$error":"#REF!"}},{"$f":"IF(AND('[1]Mapa final'!#REF!=\"Baja\",'[1]Mapa final'!#REF!=\"Moderado\"),CONCATENATE(\"R3C\",'[1]Mapa final'!#REF!),\"\")","v":{"$error":"#REF!"}},{"$f":"IF(AND('[1]Mapa final'!#REF!=\"Baja\",'[1]Mapa final'!#REF!=\"Moderado\"),CONCATENATE(\"R3C\",'[1]Mapa final'!#REF!),\"\")","v":{"$error":"#REF!"}},{"$f":"IF(AND('[1]Mapa final'!#REF!=\"Baja\",'[1]Mapa final'!#REF!=\"Moderado\"),CONCATENATE(\"R3C\",'[1]Mapa final'!#REF!),\"\")","v":{"$error":"#REF!"}},{"$f":"IF(AND('[1]Mapa final'!#REF!=\"Baja\",'[1]Mapa final'!#REF!=\"Moderado\"),CONCATENATE(\"R3C\",'[1]Mapa final'!#REF!),\"\")","v":{"$error":"#REF!"}},{"$f":"IF(AND('[1]Mapa final'!$AA$11=\"Baja\",'[1]Mapa final'!$AC$11=\"Mayor\"),CONCATENATE(\"R3C\",'[1]Mapa final'!$Q$11),\"\")","v":{"$error":"#REF!"}},{"$f":"IF(AND('[1]Mapa final'!#REF!=\"Baja\",'[1]Mapa final'!#REF!=\"Mayor\"),CONCATENATE(\"R3C\",'[1]Mapa final'!#REF!),\"\")","v":{"$error":"#REF!"}},{"$f":"IF(AND('[1]Mapa final'!#REF!=\"Baja\",'[1]Mapa final'!#REF!=\"Mayor\"),CONCATENATE(\"R3C\",'[1]Mapa final'!#REF!),\"\")","v":{"$error":"#REF!"}},{"$f":"IF(AND('[1]Mapa final'!#REF!=\"Baja\",'[1]Mapa final'!#REF!=\"Mayor\"),CONCATENATE(\"R3C\",'[1]Mapa final'!#REF!),\"\")","v":{"$error":"#REF!"}},{"$f":"IF(AND('[1]Mapa final'!#REF!=\"Baja\",'[1]Mapa final'!#REF!=\"Mayor\"),CONCATENATE(\"R3C\",'[1]Mapa final'!#REF!),\"\")","v":{"$error":"#REF!"}},{"$f":"IF(AND('[1]Mapa final'!#REF!=\"Baja\",'[1]Mapa final'!#REF!=\"Mayor\"),CONCATENATE(\"R3C\",'[1]Mapa final'!#REF!),\"\")","v":{"$error":"#REF!"}},{"$f":"IF(AND('[1]Mapa final'!$AA$11=\"Baja\",'[1]Mapa final'!$AC$11=\"Catastrófico\"),CONCATENATE(\"R3C\",'[1]Mapa final'!$Q$11),\"\")","v":{"$error":"#REF!"}},{"$f":"IF(AND('[1]Mapa final'!#REF!=\"Baja\",'[1]Mapa final'!#REF!=\"Catastrófico\"),CONCATENATE(\"R3C\",'[1]Mapa final'!#REF!),\"\")","v":{"$error":"#REF!"}},{"$f":"IF(AND('[1]Mapa final'!#REF!=\"Baja\",'[1]Mapa final'!#REF!=\"Catastrófico\"),CONCATENATE(\"R3C\",'[1]Mapa final'!#REF!),\"\")","v":{"$error":"#REF!"}},{"$f":"IF(AND('[1]Mapa final'!#REF!=\"Baja\",'[1]Mapa final'!#REF!=\"Catastrófico\"),CONCATENATE(\"R3C\",'[1]Mapa final'!#REF!),\"\")","v":{"$error":"#REF!"}},{"$f":"IF(AND('[1]Mapa final'!#REF!=\"Baja\",'[1]Mapa final'!#REF!=\"Catastrófico\"),CONCATENATE(\"R3C\",'[1]Mapa final'!#REF!),\"\")","v":{"$error":"#REF!"}},{"$f":"IF(AND('[1]Mapa final'!#REF!=\"Baja\",'[1]Mapa final'!#REF!=\"Catastrófico\"),CONCATENATE(\"R3C\",'[1]Mapa final'!#REF!),\"\")","v":{"$error":"#REF!"}}]
[null,null,null,null,null,null,null,null,null,{"$f":"IF(AND('[1]Mapa final'!$AA$13=\"Baja\",'[1]Mapa final'!$AC$13=\"Leve\"),CONCATENATE(\"R4C\",'[1]Mapa final'!$Q$13),\"\")","v":{"$error":"#REF!"}},{"$f":"IF(AND('[1]Mapa final'!#REF!=\"Baja\",'[1]Mapa final'!#REF!=\"Leve\"),CONCATENATE(\"R4C\",'[1]Mapa final'!#REF!),\"\")","v":{"$error":"#REF!"}},{"$f":"IF(AND('[1]Mapa final'!#REF!=\"Baja\",'[1]Mapa final'!#REF!=\"Leve\"),CONCATENATE(\"R4C\",'[1]Mapa final'!#REF!),\"\")","v":{"$error":"#REF!"}},{"$f":"IF(AND('[1]Mapa final'!#REF!=\"Baja\",'[1]Mapa final'!#REF!=\"Leve\"),CONCATENATE(\"R4C\",'[1]Mapa final'!#REF!),\"\")","v":{"$error":"#REF!"}},{"$f":"IF(AND('[1]Mapa final'!#REF!=\"Baja\",'[1]Mapa final'!#REF!=\"Leve\"),CONCATENATE(\"R4C\",'[1]Mapa final'!#REF!),\"\")","v":{"$error":"#REF!"}},{"$f":"IF(AND('[1]Mapa final'!#REF!=\"Baja\",'[1]Mapa final'!#REF!=\"Leve\"),CONCATENATE(\"R4C\",'[1]Mapa final'!#REF!),\"\")","v":{"$error":"#REF!"}},{"$f":"IF(AND('[1]Mapa final'!$AA$13=\"Baja\",'[1]Mapa final'!$AC$13=\"Menor\"),CONCATENATE(\"R4C\",'[1]Mapa final'!$Q$13),\"\")","v":{"$error":"#REF!"}},{"$f":"IF(AND('[1]Mapa final'!#REF!=\"Baja\",'[1]Mapa final'!#REF!=\"Menor\"),CONCATENATE(\"R4C\",'[1]Mapa final'!#REF!),\"\")","v":{"$error":"#REF!"}},{"$f":"IF(AND('[1]Mapa final'!#REF!=\"Baja\",'[1]Mapa final'!#REF!=\"Menor\"),CONCATENATE(\"R4C\",'[1]Mapa final'!#REF!),\"\")","v":{"$error":"#REF!"}},{"$f":"IF(AND('[1]Mapa final'!#REF!=\"Baja\",'[1]Mapa final'!#REF!=\"Menor\"),CONCATENATE(\"R4C\",'[1]Mapa final'!#REF!),\"\")","v":{"$error":"#REF!"}},{"$f":"IF(AND('[1]Mapa final'!#REF!=\"Baja\",'[1]Mapa final'!#REF!=\"Menor\"),CONCATENATE(\"R4C\",'[1]Mapa final'!#REF!),\"\")","v":{"$error":"#REF!"}},{"$f":"IF(AND('[1]Mapa final'!#REF!=\"Baja\",'[1]Mapa final'!#REF!=\"Menor\"),CONCATENATE(\"R4C\",'[1]Mapa final'!#REF!),\"\")","v":{"$error":"#REF!"}},{"$f":"IF(AND('[1]Mapa final'!$AA$13=\"Baja\",'[1]Mapa final'!$AC$13=\"Moderado\"),CONCATENATE(\"R4C\",'[1]Mapa final'!$Q$13),\"\")","v":{"$error":"#REF!"}},{"$f":"IF(AND('[1]Mapa final'!#REF!=\"Baja\",'[1]Mapa final'!#REF!=\"Moderado\"),CONCATENATE(\"R4C\",'[1]Mapa final'!#REF!),\"\")","v":{"$error":"#REF!"}},{"$f":"IF(AND('[1]Mapa final'!#REF!=\"Baja\",'[1]Mapa final'!#REF!=\"Moderado\"),CONCATENATE(\"R4C\",'[1]Mapa final'!#REF!),\"\")","v":{"$error":"#REF!"}},{"$f":"IF(AND('[1]Mapa final'!#REF!=\"Baja\",'[1]Mapa final'!#REF!=\"Moderado\"),CONCATENATE(\"R4C\",'[1]Mapa final'!#REF!),\"\")","v":{"$error":"#REF!"}},{"$f":"IF(AND('[1]Mapa final'!#REF!=\"Baja\",'[1]Mapa final'!#REF!=\"Moderado\"),CONCATENATE(\"R4C\",'[1]Mapa final'!#REF!),\"\")","v":{"$error":"#REF!"}},{"$f":"IF(AND('[1]Mapa final'!#REF!=\"Baja\",'[1]Mapa final'!#REF!=\"Moderado\"),CONCATENATE(\"R4C\",'[1]Mapa final'!#REF!),\"\")","v":{"$error":"#REF!"}},{"$f":"IF(AND('[1]Mapa final'!$AA$13=\"Baja\",'[1]Mapa final'!$AC$13=\"Mayor\"),CONCATENATE(\"R4C\",'[1]Mapa final'!$Q$13),\"\")","v":{"$error":"#REF!"}},{"$f":"IF(AND('[1]Mapa final'!#REF!=\"Baja\",'[1]Mapa final'!#REF!=\"Mayor\"),CONCATENATE(\"R4C\",'[1]Mapa final'!#REF!),\"\")","v":{"$error":"#REF!"}},{"$f":"IF(AND('[1]Mapa final'!#REF!=\"Baja\",'[1]Mapa final'!#REF!=\"Mayor\"),CONCATENATE(\"R4C\",'[1]Mapa final'!#REF!),\"\")","v":{"$error":"#REF!"}},{"$f":"IF(AND('[1]Mapa final'!#REF!=\"Baja\",'[1]Mapa final'!#REF!=\"Mayor\"),CONCATENATE(\"R4C\",'[1]Mapa final'!#REF!),\"\")","v":{"$error":"#REF!"}},{"$f":"IF(AND('[1]Mapa final'!#REF!=\"Baja\",'[1]Mapa final'!#REF!=\"Mayor\"),CONCATENATE(\"R4C\",'[1]Mapa final'!#REF!),\"\")","v":{"$error":"#REF!"}},{"$f":"IF(AND('[1]Mapa final'!#REF!=\"Baja\",'[1]Mapa final'!#REF!=\"Mayor\"),CONCATENATE(\"R4C\",'[1]Mapa final'!#REF!),\"\")","v":{"$error":"#REF!"}},{"$f":"IF(AND('[1]Mapa final'!$AA$13=\"Baja\",'[1]Mapa final'!$AC$13=\"Catastrófico\"),CONCATENATE(\"R4C\",'[1]Mapa final'!$Q$13),\"\")","v":{"$error":"#REF!"}},{"$f":"IF(AND('[1]Mapa final'!#REF!=\"Baja\",'[1]Mapa final'!#REF!=\"Catastrófico\"),CONCATENATE(\"R4C\",'[1]Mapa final'!#REF!),\"\")","v":{"$error":"#REF!"}},{"$f":"IF(AND('[1]Mapa final'!#REF!=\"Baja\",'[1]Mapa final'!#REF!=\"Catastrófico\"),CONCATENATE(\"R4C\",'[1]Mapa final'!#REF!),\"\")","v":{"$error":"#REF!"}},{"$f":"IF(AND('[1]Mapa final'!#REF!=\"Baja\",'[1]Mapa final'!#REF!=\"Catastrófico\"),CONCATENATE(\"R4C\",'[1]Mapa final'!#REF!),\"\")","v":{"$error":"#REF!"}},{"$f":"IF(AND('[1]Mapa final'!#REF!=\"Baja\",'[1]Mapa final'!#REF!=\"Catastrófico\"),CONCATENATE(\"R4C\",'[1]Mapa final'!#REF!),\"\")","v":{"$error":"#REF!"}},{"$f":"IF(AND('[1]Mapa final'!#REF!=\"Baja\",'[1]Mapa final'!#REF!=\"Catastrófico\"),CONCATENATE(\"R4C\",'[1]Mapa final'!#REF!),\"\")","v":{"$error":"#REF!"}}]
[null,null,null,null,null,null,null,null,null,{"$f":"IF(AND('[1]Mapa final'!$AA$14=\"Baja\",'[1]Mapa final'!$AC$14=\"Leve\"),CONCATENATE(\"R5C\",'[1]Mapa final'!$Q$14),\"\")","v":{"$error":"#REF!"}},{"$f":"IF(AND('[1]Mapa final'!#REF!=\"Baja\",'[1]Mapa final'!#REF!=\"Leve\"),CONCATENATE(\"R5C\",'[1]Mapa final'!#REF!),\"\")","v":{"$error":"#REF!"}},{"$f":"IF(AND('[1]Mapa final'!#REF!=\"Baja\",'[1]Mapa final'!#REF!=\"Leve\"),CONCATENATE(\"R5C\",'[1]Mapa final'!#REF!),\"\")","v":{"$error":"#REF!"}},{"$f":"IF(AND('[1]Mapa final'!#REF!=\"Baja\",'[1]Mapa final'!#REF!=\"Leve\"),CONCATENATE(\"R5C\",'[1]Mapa final'!#REF!),\"\")","v":{"$error":"#REF!"}},{"$f":"IF(AND('[1]Mapa final'!#REF!=\"Baja\",'[1]Mapa final'!#REF!=\"Leve\"),CONCATENATE(\"R5C\",'[1]Mapa final'!#REF!),\"\")","v":{"$error":"#REF!"}},{"$f":"IF(AND('[1]Mapa final'!#REF!=\"Baja\",'[1]Mapa final'!#REF!=\"Leve\"),CONCATENATE(\"R5C\",'[1]Mapa final'!#REF!),\"\")","v":{"$error":"#REF!"}},{"$f":"IF(AND('[1]Mapa final'!$AA$14=\"Baja\",'[1]Mapa final'!$AC$14=\"Menor\"),CONCATENATE(\"R5C\",'[1]Mapa final'!$Q$14),\"\")","v":{"$error":"#REF!"}},{"$f":"IF(AND('[1]Mapa final'!#REF!=\"Baja\",'[1]Mapa final'!#REF!=\"Menor\"),CONCATENATE(\"R5C\",'[1]Mapa final'!#REF!),\"\")","v":{"$error":"#REF!"}},{"$f":"IF(AND('[1]Mapa final'!#REF!=\"Baja\",'[1]Mapa final'!#REF!=\"Menor\"),CONCATENATE(\"R5C\",'[1]Mapa final'!#REF!),\"\")","v":{"$error":"#REF!"}},{"$f":"IF(AND('[1]Mapa final'!#REF!=\"Baja\",'[1]Mapa final'!#REF!=\"Menor\"),CONCATENATE(\"R5C\",'[1]Mapa final'!#REF!),\"\")","v":{"$error":"#REF!"}},{"$f":"IF(AND('[1]Mapa final'!#REF!=\"Baja\",'[1]Mapa final'!#REF!=\"Menor\"),CONCATENATE(\"R5C\",'[1]Mapa final'!#REF!),\"\")","v":{"$error":"#REF!"}},{"$f":"IF(AND('[1]Mapa final'!#REF!=\"Baja\",'[1]Mapa final'!#REF!=\"Menor\"),CONCATENATE(\"R5C\",'[1]Mapa final'!#REF!),\"\")","v":{"$error":"#REF!"}},{"$f":"IF(AND('[1]Mapa final'!$AA$14=\"Baja\",'[1]Mapa final'!$AC$14=\"Moderado\"),CONCATENATE(\"R5C\",'[1]Mapa final'!$Q$14),\"\")","v":{"$error":"#REF!"}},{"$f":"IF(AND('[1]Mapa final'!#REF!=\"Baja\",'[1]Mapa final'!#REF!=\"Moderado\"),CONCATENATE(\"R5C\",'[1]Mapa final'!#REF!),\"\")","v":{"$error":"#REF!"}},{"$f":"IF(AND('[1]Mapa final'!#REF!=\"Baja\",'[1]Mapa final'!#REF!=\"Moderado\"),CONCATENATE(\"R5C\",'[1]Mapa final'!#REF!),\"\")","v":{"$error":"#REF!"}},{"$f":"IF(AND('[1]Mapa final'!#REF!=\"Baja\",'[1]Mapa final'!#REF!=\"Moderado\"),CONCATENATE(\"R5C\",'[1]Mapa final'!#REF!),\"\")","v":{"$error":"#REF!"}},{"$f":"IF(AND('[1]Mapa final'!#REF!=\"Baja\",'[1]Mapa final'!#REF!=\"Moderado\"),CONCATENATE(\"R5C\",'[1]Mapa final'!#REF!),\"\")","v":{"$error":"#REF!"}},{"$f":"IF(AND('[1]Mapa final'!#REF!=\"Baja\",'[1]Mapa final'!#REF!=\"Moderado\"),CONCATENATE(\"R5C\",'[1]Mapa final'!#REF!),\"\")","v":{"$error":"#REF!"}},{"$f":"IF(AND('[1]Mapa final'!$AA$14=\"Baja\",'[1]Mapa final'!$AC$14=\"Mayor\"),CONCATENATE(\"R5C\",'[1]Mapa final'!$Q$14),\"\")","v":{"$error":"#REF!"}},{"$f":"IF(AND('[1]Mapa final'!#REF!=\"Baja\",'[1]Mapa final'!#REF!=\"Mayor\"),CONCATENATE(\"R5C\",'[1]Mapa final'!#REF!),\"\")","v":{"$error":"#REF!"}},{"$f":"IF(AND('[1]Mapa final'!#REF!=\"Baja\",'[1]Mapa final'!#REF!=\"Mayor\"),CONCATENATE(\"R5C\",'[1]Mapa final'!#REF!),\"\")","v":{"$error":"#REF!"}},{"$f":"IF(AND('[1]Mapa final'!#REF!=\"Baja\",'[1]Mapa final'!#REF!=\"Mayor\"),CONCATENATE(\"R5C\",'[1]Mapa final'!#REF!),\"\")","v":{"$error":"#REF!"}},{"$f":"IF(AND('[1]Mapa final'!#REF!=\"Baja\",'[1]Mapa final'!#REF!=\"Mayor\"),CONCATENATE(\"R5C\",'[1]Mapa final'!#REF!),\"\")","v":{"$error":"#REF!"}},{"$f":"IF(AND('[1]Mapa final'!#REF!=\"Baja\",'[1]Mapa final'!#REF!=\"Mayor\"),CONCATENATE(\"R5C\",'[1]Mapa final'!#REF!),\"\")","v":{"$error":"#REF!"}},{"$f":"IF(AND('[1]Mapa final'!$AA$14=\"Baja\",'[1]Mapa final'!$AC$14=\"Catastrófico\"),CONCATENATE(\"R5C\",'[1]Mapa final'!$Q$14),\"\")","v":{"$error":"#REF!"}},{"$f":"IF(AND('[1]Mapa final'!#REF!=\"Baja\",'[1]Mapa final'!#REF!=\"Catastrófico\"),CONCATENATE(\"R5C\",'[1]Mapa final'!#REF!),\"\")","v":{"$error":"#REF!"}},{"$f":"IF(AND('[1]Mapa final'!#REF!=\"Baja\",'[1]Mapa final'!#REF!=\"Catastrófico\"),CONCATENATE(\"R5C\",'[1]Mapa final'!#REF!),\"\")","v":{"$error":"#REF!"}},{"$f":"IF(AND('[1]Mapa final'!#REF!=\"Baja\",'[1]Mapa final'!#REF!=\"Catastrófico\"),CONCATENATE(\"R5C\",'[1]Mapa final'!#REF!),\"\")","v":{"$error":"#REF!"}},{"$f":"IF(AND('[1]Mapa final'!#REF!=\"Baja\",'[1]Mapa final'!#REF!=\"Catastrófico\"),CONCATENATE(\"R5C\",'[1]Mapa final'!#REF!),\"\")","v":{"$error":"#REF!"}},{"$f":"IF(AND('[1]Mapa final'!#REF!=\"Baja\",'[1]Mapa final'!#REF!=\"Catastrófico\"),CONCATENATE(\"R5C\",'[1]Mapa final'!#REF!),\"\")","v":{"$error":"#REF!"}}]
[null,null,null,null,null,null,null,null,null,{"$f":"IF(AND('[1]Mapa final'!$AB$17=\"Baja\",'[1]Mapa final'!$AD$17=\"Leve\"),CONCATENATE(\"R6C\",'[1]Mapa final'!$R$17),\"\")","v":{"$error":"#REF!"}},{"$f":"IF(AND('[1]Mapa final'!#REF!=\"Baja\",'[1]Mapa final'!#REF!=\"Leve\"),CONCATENATE(\"R6C\",'[1]Mapa final'!#REF!),\"\")","v":{"$error":"#REF!"}},{"$f":"IF(AND('[1]Mapa final'!#REF!=\"Baja\",'[1]Mapa final'!#REF!=\"Leve\"),CONCATENATE(\"R6C\",'[1]Mapa final'!#REF!),\"\")","v":{"$error":"#REF!"}},{"$f":"IF(AND('[1]Mapa final'!#REF!=\"Baja\",'[1]Mapa final'!#REF!=\"Leve\"),CONCATENATE(\"R6C\",'[1]Mapa final'!#REF!),\"\")","v":{"$error":"#REF!"}},{"$f":"IF(AND('[1]Mapa final'!#REF!=\"Baja\",'[1]Mapa final'!#REF!=\"Leve\"),CONCATENATE(\"R6C\",'[1]Mapa final'!#REF!),\"\")","v":{"$error":"#REF!"}},{"$f":"IF(AND('[1]Mapa final'!#REF!=\"Baja\",'[1]Mapa final'!#REF!=\"Leve\"),CONCATENATE(\"R6C\",'[1]Mapa final'!#REF!),\"\")","v":{"$error":"#REF!"}},{"$f":"IF(AND('[1]Mapa final'!$AB$17=\"Baja\",'[1]Mapa final'!$AD$17=\"Menor\"),CONCATENATE(\"R6C\",'[1]Mapa final'!$R$17),\"\")","v":{"$error":"#REF!"}},{"$f":"IF(AND('[1]Mapa final'!#REF!=\"Baja\",'[1]Mapa final'!#REF!=\"Menor\"),CONCATENATE(\"R6C\",'[1]Mapa final'!#REF!),\"\")","v":{"$error":"#REF!"}},{"$f":"IF(AND('[1]Mapa final'!#REF!=\"Baja\",'[1]Mapa final'!#REF!=\"Menor\"),CONCATENATE(\"R6C\",'[1]Mapa final'!#REF!),\"\")","v":{"$error":"#REF!"}},{"$f":"IF(AND('[1]Mapa final'!#REF!=\"Baja\",'[1]Mapa final'!#REF!=\"Menor\"),CONCATENATE(\"R6C\",'[1]Mapa final'!#REF!),\"\")","v":{"$error":"#REF!"}},{"$f":"IF(AND('[1]Mapa final'!#REF!=\"Baja\",'[1]Mapa final'!#REF!=\"Menor\"),CONCATENATE(\"R6C\",'[1]Mapa final'!#REF!),\"\")","v":{"$error":"#REF!"}},{"$f":"IF(AND('[1]Mapa final'!#REF!=\"Baja\",'[1]Mapa final'!#REF!=\"Menor\"),CONCATENATE(\"R6C\",'[1]Mapa final'!#REF!),\"\")","v":{"$error":"#REF!"}},{"$f":"IF(AND('[1]Mapa final'!$AB$17=\"Baja\",'[1]Mapa final'!$AD$17=\"Moderado\"),CONCATENATE(\"R6C\",'[1]Mapa final'!$R$17),\"\")","v":{"$error":"#REF!"}},{"$f":"IF(AND('[1]Mapa final'!#REF!=\"Baja\",'[1]Mapa final'!#REF!=\"Moderado\"),CONCATENATE(\"R6C\",'[1]Mapa final'!#REF!),\"\")","v":{"$error":"#REF!"}},{"$f":"IF(AND('[1]Mapa final'!#REF!=\"Baja\",'[1]Mapa final'!#REF!=\"Moderado\"),CONCATENATE(\"R6C\",'[1]Mapa final'!#REF!),\"\")","v":{"$error":"#REF!"}},{"$f":"IF(AND('[1]Mapa final'!#REF!=\"Baja\",'[1]Mapa final'!#REF!=\"Moderado\"),CONCATENATE(\"R6C\",'[1]Mapa final'!#REF!),\"\")","v":{"$error":"#REF!"}},{"$f":"IF(AND('[1]Mapa final'!#REF!=\"Baja\",'[1]Mapa final'!#REF!=\"Moderado\"),CONCATENATE(\"R6C\",'[1]Mapa final'!#REF!),\"\")","v":{"$error":"#REF!"}},{"$f":"IF(AND('[1]Mapa final'!#REF!=\"Baja\",'[1]Mapa final'!#REF!=\"Moderado\"),CONCATENATE(\"R6C\",'[1]Mapa final'!#REF!),\"\")","v":{"$error":"#REF!"}},{"$f":"IF(AND('[1]Mapa final'!$AB$17=\"Baja\",'[1]Mapa final'!$AD$17=\"Mayor\"),CONCATENATE(\"R6C\",'[1]Mapa final'!$R$17),\"\")","v":{"$error":"#REF!"}},{"$f":"IF(AND('[1]Mapa final'!#REF!=\"Baja\",'[1]Mapa final'!#REF!=\"Mayor\"),CONCATENATE(\"R6C\",'[1]Mapa final'!#REF!),\"\")","v":{"$error":"#REF!"}},{"$f":"IF(AND('[1]Mapa final'!#REF!=\"Baja\",'[1]Mapa final'!#REF!=\"Mayor\"),CONCATENATE(\"R6C\",'[1]Mapa final'!#REF!),\"\")","v":{"$error":"#REF!"}},{"$f":"IF(AND('[1]Mapa final'!#REF!=\"Baja\",'[1]Mapa final'!#REF!=\"Mayor\"),CONCATENATE(\"R6C\",'[1]Mapa final'!#REF!),\"\")","v":{"$error":"#REF!"}},{"$f":"IF(AND('[1]Mapa final'!#REF!=\"Baja\",'[1]Mapa final'!#REF!=\"Mayor\"),CONCATENATE(\"R6C\",'[1]Mapa final'!#REF!),\"\")","v":{"$error":"#REF!"}},{"$f":"IF(AND('[1]Mapa final'!#REF!=\"Baja\",'[1]Mapa final'!#REF!=\"Mayor\"),CONCATENATE(\"R6C\",'[1]Mapa final'!#REF!),\"\")","v":{"$error":"#REF!"}},{"$f":"IF(AND('[1]Mapa final'!$AB$17=\"Baja\",'[1]Mapa final'!$AD$17=\"Catastrófico\"),CONCATENATE(\"R6C\",'[1]Mapa final'!$R$17),\"\")","v":{"$error":"#REF!"}},{"$f":"IF(AND('[1]Mapa final'!#REF!=\"Baja\",'[1]Mapa final'!#REF!=\"Catastrófico\"),CONCATENATE(\"R6C\",'[1]Mapa final'!#REF!),\"\")","v":{"$error":"#REF!"}},{"$f":"IF(AND('[1]Mapa final'!#REF!=\"Baja\",'[1]Mapa final'!#REF!=\"Catastrófico\"),CONCATENATE(\"R6C\",'[1]Mapa final'!#REF!),\"\")","v":{"$error":"#REF!"}},{"$f":"IF(AND('[1]Mapa final'!#REF!=\"Baja\",'[1]Mapa final'!#REF!=\"Catastrófico\"),CONCATENATE(\"R6C\",'[1]Mapa final'!#REF!),\"\")","v":{"$error":"#REF!"}},{"$f":"IF(AND('[1]Mapa final'!#REF!=\"Baja\",'[1]Mapa final'!#REF!=\"Catastrófico\"),CONCATENATE(\"R6C\",'[1]Mapa final'!#REF!),\"\")","v":{"$error":"#REF!"}},{"$f":"IF(AND('[1]Mapa final'!#REF!=\"Baja\",'[1]Mapa final'!#REF!=\"Catastrófico\"),CONCATENATE(\"R6C\",'[1]Mapa final'!#REF!),\"\")","v":{"$error":"#REF!"}}]
[null,null,null,null,null,null,null,null,null,{"$f":"IF(AND('[1]Mapa final'!$AA$18=\"Baja\",'[1]Mapa final'!$AC$18=\"Leve\"),CONCATENATE(\"R7C\",'[1]Mapa final'!$Q$18),\"\")","v":{"$error":"#REF!"}},{"$f":"IF(AND('[1]Mapa final'!#REF!=\"Baja\",'[1]Mapa final'!#REF!=\"Leve\"),CONCATENATE(\"R7C\",'[1]Mapa final'!#REF!),\"\")","v":{"$error":"#REF!"}},{"$f":"IF(AND('[1]Mapa final'!#REF!=\"Baja\",'[1]Mapa final'!#REF!=\"Leve\"),CONCATENATE(\"R7C\",'[1]Mapa final'!#REF!),\"\")","v":{"$error":"#REF!"}},{"$f":"IF(AND('[1]Mapa final'!#REF!=\"Baja\",'[1]Mapa final'!#REF!=\"Leve\"),CONCATENATE(\"R7C\",'[1]Mapa final'!#REF!),\"\")","v":{"$error":"#REF!"}},{"$f":"IF(AND('[1]Mapa final'!#REF!=\"Baja\",'[1]Mapa final'!#REF!=\"Leve\"),CONCATENATE(\"R7C\",'[1]Mapa final'!#REF!),\"\")","v":{"$error":"#REF!"}},{"$f":"IF(AND('[1]Mapa final'!#REF!=\"Baja\",'[1]Mapa final'!#REF!=\"Leve\"),CONCATENATE(\"R7C\",'[1]Mapa final'!#REF!),\"\")","v":{"$error":"#REF!"}},{"$f":"IF(AND('[1]Mapa final'!$AA$18=\"Baja\",'[1]Mapa final'!$AC$18=\"Menor\"),CONCATENATE(\"R7C\",'[1]Mapa final'!$Q$18),\"\")","v":{"$error":"#REF!"}},{"$f":"IF(AND('[1]Mapa final'!#REF!=\"Baja\",'[1]Mapa final'!#REF!=\"Menor\"),CONCATENATE(\"R7C\",'[1]Mapa final'!#REF!),\"\")","v":{"$error":"#REF!"}},{"$f":"IF(AND('[1]Mapa final'!#REF!=\"Baja\",'[1]Mapa final'!#REF!=\"Menor\"),CONCATENATE(\"R7C\",'[1]Mapa final'!#REF!),\"\")","v":{"$error":"#REF!"}},{"$f":"IF(AND('[1]Mapa final'!#REF!=\"Baja\",'[1]Mapa final'!#REF!=\"Menor\"),CONCATENATE(\"R7C\",'[1]Mapa final'!#REF!),\"\")","v":{"$error":"#REF!"}},{"$f":"IF(AND('[1]Mapa final'!#REF!=\"Baja\",'[1]Mapa final'!#REF!=\"Menor\"),CONCATENATE(\"R7C\",'[1]Mapa final'!#REF!),\"\")","v":{"$error":"#REF!"}},{"$f":"IF(AND('[1]Mapa final'!#REF!=\"Baja\",'[1]Mapa final'!#REF!=\"Menor\"),CONCATENATE(\"R7C\",'[1]Mapa final'!#REF!),\"\")","v":{"$error":"#REF!"}},{"$f":"IF(AND('[1]Mapa final'!$AA$18=\"Baja\",'[1]Mapa final'!$AC$18=\"Moderado\"),CONCATENATE(\"R7C\",'[1]Mapa final'!$Q$18),\"\")","v":{"$error":"#REF!"}},{"$f":"IF(AND('[1]Mapa final'!#REF!=\"Baja\",'[1]Mapa final'!#REF!=\"Moderado\"),CONCATENATE(\"R7C\",'[1]Mapa final'!#REF!),\"\")","v":{"$error":"#REF!"}},{"$f":"IF(AND('[1]Mapa final'!#REF!=\"Baja\",'[1]Mapa final'!#REF!=\"Moderado\"),CONCATENATE(\"R7C\",'[1]Mapa final'!#REF!),\"\")","v":{"$error":"#REF!"}},{"$f":"IF(AND('[1]Mapa final'!#REF!=\"Baja\",'[1]Mapa final'!#REF!=\"Moderado\"),CONCATENATE(\"R7C\",'[1]Mapa final'!#REF!),\"\")","v":{"$error":"#REF!"}},{"$f":"IF(AND('[1]Mapa final'!#REF!=\"Baja\",'[1]Mapa final'!#REF!=\"Moderado\"),CONCATENATE(\"R7C\",'[1]Mapa final'!#REF!),\"\")","v":{"$error":"#REF!"}},{"$f":"IF(AND('[1]Mapa final'!#REF!=\"Baja\",'[1]Mapa final'!#REF!=\"Moderado\"),CONCATENATE(\"R7C\",'[1]Mapa final'!#REF!),\"\")","v":{"$error":"#REF!"}},{"$f":"IF(AND('[1]Mapa final'!$AA$18=\"Baja\",'[1]Mapa final'!$AC$18=\"Mayor\"),CONCATENATE(\"R7C\",'[1]Mapa final'!$Q$18),\"\")","v":{"$error":"#REF!"}},{"$f":"IF(AND('[1]Mapa final'!#REF!=\"Baja\",'[1]Mapa final'!#REF!=\"Mayor\"),CONCATENATE(\"R7C\",'[1]Mapa final'!#REF!),\"\")","v":{"$error":"#REF!"}},{"$f":"IF(AND('[1]Mapa final'!#REF!=\"Baja\",'[1]Mapa final'!#REF!=\"Mayor\"),CONCATENATE(\"R7C\",'[1]Mapa final'!#REF!),\"\")","v":{"$error":"#REF!"}},{"$f":"IF(AND('[1]Mapa final'!#REF!=\"Baja\",'[1]Mapa final'!#REF!=\"Mayor\"),CONCATENATE(\"R7C\",'[1]Mapa final'!#REF!),\"\")","v":{"$error":"#REF!"}},{"$f":"IF(AND('[1]Mapa final'!#REF!=\"Baja\",'[1]Mapa final'!#REF!=\"Mayor\"),CONCATENATE(\"R7C\",'[1]Mapa final'!#REF!),\"\")","v":{"$error":"#REF!"}},{"$f":"IF(AND('[1]Mapa final'!#REF!=\"Baja\",'[1]Mapa final'!#REF!=\"Mayor\"),CONCATENATE(\"R7C\",'[1]Mapa final'!#REF!),\"\")","v":{"$error":"#REF!"}},{"$f":"IF(AND('[1]Mapa final'!$AA$18=\"Baja\",'[1]Mapa final'!$AC$18=\"Catastrófico\"),CONCATENATE(\"R7C\",'[1]Mapa final'!$Q$18),\"\")","v":{"$error":"#REF!"}},{"$f":"IF(AND('[1]Mapa final'!#REF!=\"Baja\",'[1]Mapa final'!#REF!=\"Catastrófico\"),CONCATENATE(\"R7C\",'[1]Mapa final'!#REF!),\"\")","v":{"$error":"#REF!"}},{"$f":"IF(AND('[1]Mapa final'!#REF!=\"Baja\",'[1]Mapa final'!#REF!=\"Catastrófico\"),CONCATENATE(\"R7C\",'[1]Mapa final'!#REF!),\"\")","v":{"$error":"#REF!"}},{"$f":"IF(AND('[1]Mapa final'!#REF!=\"Baja\",'[1]Mapa final'!#REF!=\"Catastrófico\"),CONCATENATE(\"R7C\",'[1]Mapa final'!#REF!),\"\")","v":{"$error":"#REF!"}},{"$f":"IF(AND('[1]Mapa final'!#REF!=\"Baja\",'[1]Mapa final'!#REF!=\"Catastrófico\"),CONCATENATE(\"R7C\",'[1]Mapa final'!#REF!),\"\")","v":{"$error":"#REF!"}},{"$f":"IF(AND('[1]Mapa final'!#REF!=\"Baja\",'[1]Mapa final'!#REF!=\"Catastrófico\"),CONCATENATE(\"R7C\",'[1]Mapa final'!#REF!),\"\")","v":{"$error":"#REF!"}}]
[null,null,null,null,null,null,null,null,null,{"$f":"IF(AND('[1]Mapa final'!$AA$19=\"Baja\",'[1]Mapa final'!$AC$19=\"Leve\"),CONCATENATE(\"R8C\",'[1]Mapa final'!$Q$19),\"\")","v":{"$error":"#REF!"}},{"$f":"IF(AND('[1]Mapa final'!#REF!=\"Baja\",'[1]Mapa final'!#REF!=\"Leve\"),CONCATENATE(\"R8C\",'[1]Mapa final'!#REF!),\"\")","v":{"$error":"#REF!"}},{"$f":"IF(AND('[1]Mapa final'!#REF!=\"Baja\",'[1]Mapa final'!#REF!=\"Leve\"),CONCATENATE(\"R8C\",'[1]Mapa final'!#REF!),\"\")","v":{"$error":"#REF!"}},{"$f":"IF(AND('[1]Mapa final'!#REF!=\"Baja\",'[1]Mapa final'!#REF!=\"Leve\"),CONCATENATE(\"R8C\",'[1]Mapa final'!#REF!),\"\")","v":{"$error":"#REF!"}},{"$f":"IF(AND('[1]Mapa final'!#REF!=\"Baja\",'[1]Mapa final'!#REF!=\"Leve\"),CONCATENATE(\"R8C\",'[1]Mapa final'!#REF!),\"\")","v":{"$error":"#REF!"}},{"$f":"IF(AND('[1]Mapa final'!#REF!=\"Baja\",'[1]Mapa final'!#REF!=\"Leve\"),CONCATENATE(\"R8C\",'[1]Mapa final'!#REF!),\"\")","v":{"$error":"#REF!"}},{"$f":"IF(AND('[1]Mapa final'!$AA$19=\"Baja\",'[1]Mapa final'!$AC$19=\"Menor\"),CONCATENATE(\"R8C\",'[1]Mapa final'!$Q$19),\"\")","v":{"$error":"#REF!"}},{"$f":"IF(AND('[1]Mapa final'!#REF!=\"Baja\",'[1]Mapa final'!#REF!=\"Menor\"),CONCATENATE(\"R8C\",'[1]Mapa final'!#REF!),\"\")","v":{"$error":"#REF!"}},{"$f":"IF(AND('[1]Mapa final'!#REF!=\"Baja\",'[1]Mapa final'!#REF!=\"Menor\"),CONCATENATE(\"R8C\",'[1]Mapa final'!#REF!),\"\")","v":{"$error":"#REF!"}},{"$f":"IF(AND('[1]Mapa final'!#REF!=\"Baja\",'[1]Mapa final'!#REF!=\"Menor\"),CONCATENATE(\"R8C\",'[1]Mapa final'!#REF!),\"\")","v":{"$error":"#REF!"}},{"$f":"IF(AND('[1]Mapa final'!#REF!=\"Baja\",'[1]Mapa final'!#REF!=\"Menor\"),CONCATENATE(\"R8C\",'[1]Mapa final'!#REF!),\"\")","v":{"$error":"#REF!"}},{"$f":"IF(AND('[1]Mapa final'!#REF!=\"Baja\",'[1]Mapa final'!#REF!=\"Menor\"),CONCATENATE(\"R8C\",'[1]Mapa final'!#REF!),\"\")","v":{"$error":"#REF!"}},{"$f":"IF(AND('[1]Mapa final'!$AA$19=\"Baja\",'[1]Mapa final'!$AC$19=\"Moderado\"),CONCATENATE(\"R8C\",'[1]Mapa final'!$Q$19),\"\")","v":{"$error":"#REF!"}},{"$f":"IF(AND('[1]Mapa final'!#REF!=\"Baja\",'[1]Mapa final'!#REF!=\"Moderado\"),CONCATENATE(\"R8C\",'[1]Mapa final'!#REF!),\"\")","v":{"$error":"#REF!"}},{"$f":"IF(AND('[1]Mapa final'!#REF!=\"Baja\",'[1]Mapa final'!#REF!=\"Moderado\"),CONCATENATE(\"R8C\",'[1]Mapa final'!#REF!),\"\")","v":{"$error":"#REF!"}},{"$f":"IF(AND('[1]Mapa final'!#REF!=\"Baja\",'[1]Mapa final'!#REF!=\"Moderado\"),CONCATENATE(\"R8C\",'[1]Mapa final'!#REF!),\"\")","v":{"$error":"#REF!"}},{"$f":"IF(AND('[1]Mapa final'!#REF!=\"Baja\",'[1]Mapa final'!#REF!=\"Moderado\"),CONCATENATE(\"R8C\",'[1]Mapa final'!#REF!),\"\")","v":{"$error":"#REF!"}},{"$f":"IF(AND('[1]Mapa final'!#REF!=\"Baja\",'[1]Mapa final'!#REF!=\"Moderado\"),CONCATENATE(\"R8C\",'[1]Mapa final'!#REF!),\"\")","v":{"$error":"#REF!"}},{"$f":"IF(AND('[1]Mapa final'!$AA$19=\"Baja\",'[1]Mapa final'!$AC$19=\"Mayor\"),CONCATENATE(\"R8C\",'[1]Mapa final'!$Q$19),\"\")","v":{"$error":"#REF!"}},{"$f":"IF(AND('[1]Mapa final'!#REF!=\"Baja\",'[1]Mapa final'!#REF!=\"Mayor\"),CONCATENATE(\"R8C\",'[1]Mapa final'!#REF!),\"\")","v":{"$error":"#REF!"}},{"$f":"IF(AND('[1]Mapa final'!#REF!=\"Baja\",'[1]Mapa final'!#REF!=\"Mayor\"),CONCATENATE(\"R8C\",'[1]Mapa final'!#REF!),\"\")","v":{"$error":"#REF!"}},{"$f":"IF(AND('[1]Mapa final'!#REF!=\"Baja\",'[1]Mapa final'!#REF!=\"Mayor\"),CONCATENATE(\"R8C\",'[1]Mapa final'!#REF!),\"\")","v":{"$error":"#REF!"}},{"$f":"IF(AND('[1]Mapa final'!#REF!=\"Baja\",'[1]Mapa final'!#REF!=\"Mayor\"),CONCATENATE(\"R8C\",'[1]Mapa final'!#REF!),\"\")","v":{"$error":"#REF!"}},{"$f":"IF(AND('[1]Mapa final'!#REF!=\"Baja\",'[1]Mapa final'!#REF!=\"Mayor\"),CONCATENATE(\"R8C\",'[1]Mapa final'!#REF!),\"\")","v":{"$error":"#REF!"}},{"$f":"IF(AND('[1]Mapa final'!$AA$19=\"Baja\",'[1]Mapa final'!$AC$19=\"Catastrófico\"),CONCATENATE(\"R8C\",'[1]Mapa final'!$Q$19),\"\")","v":{"$error":"#REF!"}},{"$f":"IF(AND('[1]Mapa final'!#REF!=\"Baja\",'[1]Mapa final'!#REF!=\"Catastrófico\"),CONCATENATE(\"R8C\",'[1]Mapa final'!#REF!),\"\")","v":{"$error":"#REF!"}},{"$f":"IF(AND('[1]Mapa final'!#REF!=\"Baja\",'[1]Mapa final'!#REF!=\"Catastrófico\"),CONCATENATE(\"R8C\",'[1]Mapa final'!#REF!),\"\")","v":{"$error":"#REF!"}},{"$f":"IF(AND('[1]Mapa final'!#REF!=\"Baja\",'[1]Mapa final'!#REF!=\"Catastrófico\"),CONCATENATE(\"R8C\",'[1]Mapa final'!#REF!),\"\")","v":{"$error":"#REF!"}},{"$f":"IF(AND('[1]Mapa final'!#REF!=\"Baja\",'[1]Mapa final'!#REF!=\"Catastrófico\"),CONCATENATE(\"R8C\",'[1]Mapa final'!#REF!),\"\")","v":{"$error":"#REF!"}},{"$f":"IF(AND('[1]Mapa final'!#REF!=\"Baja\",'[1]Mapa final'!#REF!=\"Catastrófico\"),CONCATENATE(\"R8C\",'[1]Mapa final'!#REF!),\"\")","v":{"$error":"#REF!"}}]
[null,null,null,null,null,null,null,null,null,{"$f":"IF(AND('[1]Mapa final'!$AA$20=\"Baja\",'[1]Mapa final'!$AC$20=\"Leve\"),CONCATENATE(\"R9C\",'[1]Mapa final'!$Q$20),\"\")","v":{"$error":"#REF!"}},{"$f":"IF(AND('[1]Mapa final'!#REF!=\"Baja\",'[1]Mapa final'!#REF!=\"Leve\"),CONCATENATE(\"R9C\",'[1]Mapa final'!#REF!),\"\")","v":{"$error":"#REF!"}},{"$f":"IF(AND('[1]Mapa final'!#REF!=\"Baja\",'[1]Mapa final'!#REF!=\"Leve\"),CONCATENATE(\"R9C\",'[1]Mapa final'!#REF!),\"\")","v":{"$error":"#REF!"}},{"$f":"IF(AND('[1]Mapa final'!#REF!=\"Baja\",'[1]Mapa final'!#REF!=\"Leve\"),CONCATENATE(\"R9C\",'[1]Mapa final'!#REF!),\"\")","v":{"$error":"#REF!"}},{"$f":"IF(AND('[1]Mapa final'!#REF!=\"Baja\",'[1]Mapa final'!#REF!=\"Leve\"),CONCATENATE(\"R9C\",'[1]Mapa final'!#REF!),\"\")","v":{"$error":"#REF!"}},{"$f":"IF(AND('[1]Mapa final'!#REF!=\"Baja\",'[1]Mapa final'!#REF!=\"Leve\"),CONCATENATE(\"R9C\",'[1]Mapa final'!#REF!),\"\")","v":{"$error":"#REF!"}},{"$f":"IF(AND('[1]Mapa final'!$AA$20=\"Baja\",'[1]Mapa final'!$AC$20=\"Menor\"),CONCATENATE(\"R9C\",'[1]Mapa final'!$Q$20),\"\")","v":{"$error":"#REF!"}},{"$f":"IF(AND('[1]Mapa final'!#REF!=\"Baja\",'[1]Mapa final'!#REF!=\"Menor\"),CONCATENATE(\"R9C\",'[1]Mapa final'!#REF!),\"\")","v":{"$error":"#REF!"}},{"$f":"IF(AND('[1]Mapa final'!#REF!=\"Baja\",'[1]Mapa final'!#REF!=\"Menor\"),CONCATENATE(\"R9C\",'[1]Mapa final'!#REF!),\"\")","v":{"$error":"#REF!"}},{"$f":"IF(AND('[1]Mapa final'!#REF!=\"Baja\",'[1]Mapa final'!#REF!=\"Menor\"),CONCATENATE(\"R9C\",'[1]Mapa final'!#REF!),\"\")","v":{"$error":"#REF!"}},{"$f":"IF(AND('[1]Mapa final'!#REF!=\"Baja\",'[1]Mapa final'!#REF!=\"Menor\"),CONCATENATE(\"R9C\",'[1]Mapa final'!#REF!),\"\")","v":{"$error":"#REF!"}},{"$f":"IF(AND('[1]Mapa final'!#REF!=\"Baja\",'[1]Mapa final'!#REF!=\"Menor\"),CONCATENATE(\"R9C\",'[1]Mapa final'!#REF!),\"\")","v":{"$error":"#REF!"}},{"$f":"IF(AND('[1]Mapa final'!$AA$20=\"Baja\",'[1]Mapa final'!$AC$20=\"Moderado\"),CONCATENATE(\"R9C\",'[1]Mapa final'!$Q$20),\"\")","v":{"$error":"#REF!"}},{"$f":"IF(AND('[1]Mapa final'!#REF!=\"Baja\",'[1]Mapa final'!#REF!=\"Moderado\"),CONCATENATE(\"R9C\",'[1]Mapa final'!#REF!),\"\")","v":{"$error":"#REF!"}},{"$f":"IF(AND('[1]Mapa final'!#REF!=\"Baja\",'[1]Mapa final'!#REF!=\"Moderado\"),CONCATENATE(\"R9C\",'[1]Mapa final'!#REF!),\"\")","v":{"$error":"#REF!"}},{"$f":"IF(AND('[1]Mapa final'!#REF!=\"Baja\",'[1]Mapa final'!#REF!=\"Moderado\"),CONCATENATE(\"R9C\",'[1]Mapa final'!#REF!),\"\")","v":{"$error":"#REF!"}},{"$f":"IF(AND('[1]Mapa final'!#REF!=\"Baja\",'[1]Mapa final'!#REF!=\"Moderado\"),CONCATENATE(\"R9C\",'[1]Mapa final'!#REF!),\"\")","v":{"$error":"#REF!"}},{"$f":"IF(AND('[1]Mapa final'!#REF!=\"Baja\",'[1]Mapa final'!#REF!=\"Moderado\"),CONCATENATE(\"R9C\",'[1]Mapa final'!#REF!),\"\")","v":{"$error":"#REF!"}},{"$f":"IF(AND('[1]Mapa final'!$AA$20=\"Baja\",'[1]Mapa final'!$AC$20=\"Mayor\"),CONCATENATE(\"R9C\",'[1]Mapa final'!$Q$20),\"\")","v":{"$error":"#REF!"}},{"$f":"IF(AND('[1]Mapa final'!#REF!=\"Baja\",'[1]Mapa final'!#REF!=\"Mayor\"),CONCATENATE(\"R9C\",'[1]Mapa final'!#REF!),\"\")","v":{"$error":"#REF!"}},{"$f":"IF(AND('[1]Mapa final'!#REF!=\"Baja\",'[1]Mapa final'!#REF!=\"Mayor\"),CONCATENATE(\"R9C\",'[1]Mapa final'!#REF!),\"\")","v":{"$error":"#REF!"}},{"$f":"IF(AND('[1]Mapa final'!#REF!=\"Baja\",'[1]Mapa final'!#REF!=\"Mayor\"),CONCATENATE(\"R9C\",'[1]Mapa final'!#REF!),\"\")","v":{"$error":"#REF!"}},{"$f":"IF(AND('[1]Mapa final'!#REF!=\"Baja\",'[1]Mapa final'!#REF!=\"Mayor\"),CONCATENATE(\"R9C\",'[1]Mapa final'!#REF!),\"\")","v":{"$error":"#REF!"}},{"$f":"IF(AND('[1]Mapa final'!#REF!=\"Baja\",'[1]Mapa final'!#REF!=\"Mayor\"),CONCATENATE(\"R9C\",'[1]Mapa final'!#REF!),\"\")","v":{"$error":"#REF!"}},{"$f":"IF(AND('[1]Mapa final'!$AA$20=\"Baja\",'[1]Mapa final'!$AC$20=\"Catastrófico\"),CONCATENATE(\"R9C\",'[1]Mapa final'!$Q$20),\"\")","v":{"$error":"#REF!"}},{"$f":"IF(AND('[1]Mapa final'!#REF!=\"Baja\",'[1]Mapa final'!#REF!=\"Catastrófico\"),CONCATENATE(\"R9C\",'[1]Mapa final'!#REF!),\"\")","v":{"$error":"#REF!"}},{"$f":"IF(AND('[1]Mapa final'!#REF!=\"Baja\",'[1]Mapa final'!#REF!=\"Catastrófico\"),CONCATENATE(\"R9C\",'[1]Mapa final'!#REF!),\"\")","v":{"$error":"#REF!"}},{"$f":"IF(AND('[1]Mapa final'!#REF!=\"Baja\",'[1]Mapa final'!#REF!=\"Catastrófico\"),CONCATENATE(\"R9C\",'[1]Mapa final'!#REF!),\"\")","v":{"$error":"#REF!"}},{"$f":"IF(AND('[1]Mapa final'!#REF!=\"Baja\",'[1]Mapa final'!#REF!=\"Catastrófico\"),CONCATENATE(\"R9C\",'[1]Mapa final'!#REF!),\"\")","v":{"$error":"#REF!"}},{"$f":"IF(AND('[1]Mapa final'!#REF!=\"Baja\",'[1]Mapa final'!#REF!=\"Catastrófico\"),CONCATENATE(\"R9C\",'[1]Mapa final'!#REF!),\"\")","v":{"$error":"#REF!"}}]
[null,null,null,null,null,null,null,null,null,{"$f":"IF(AND('[1]Mapa final'!$AA$21=\"Baja\",'[1]Mapa final'!$AC$21=\"Leve\"),CONCATENATE(\"R10C\",'[1]Mapa final'!$Q$21),\"\")","v":{"$error":"#REF!"}},{"$f":"IF(AND('[1]Mapa final'!#REF!=\"Baja\",'[1]Mapa final'!#REF!=\"Leve\"),CONCATENATE(\"R10C\",'[1]Mapa final'!#REF!),\"\")","v":{"$error":"#REF!"}},{"$f":"IF(AND('[1]Mapa final'!#REF!=\"Baja\",'[1]Mapa final'!#REF!=\"Leve\"),CONCATENATE(\"R10C\",'[1]Mapa final'!#REF!),\"\")","v":{"$error":"#REF!"}},{"$f":"IF(AND('[1]Mapa final'!#REF!=\"Baja\",'[1]Mapa final'!#REF!=\"Leve\"),CONCATENATE(\"R10C\",'[1]Mapa final'!#REF!),\"\")","v":{"$error":"#REF!"}},{"$f":"IF(AND('[1]Mapa final'!#REF!=\"Baja\",'[1]Mapa final'!#REF!=\"Leve\"),CONCATENATE(\"R10C\",'[1]Mapa final'!#REF!),\"\")","v":{"$error":"#REF!"}},{"$f":"IF(AND('[1]Mapa final'!#REF!=\"Baja\",'[1]Mapa final'!#REF!=\"Leve\"),CONCATENATE(\"R10C\",'[1]Mapa final'!#REF!),\"\")","v":{"$error":"#REF!"}},{"$f":"IF(AND('[1]Mapa final'!$AA$21=\"Baja\",'[1]Mapa final'!$AC$21=\"Menor\"),CONCATENATE(\"R10C\",'[1]Mapa final'!$Q$21),\"\")","v":{"$error":"#REF!"}},{"$f":"IF(AND('[1]Mapa final'!#REF!=\"Baja\",'[1]Mapa final'!#REF!=\"Menor\"),CONCATENATE(\"R10C\",'[1]Mapa final'!#REF!),\"\")","v":{"$error":"#REF!"}},{"$f":"IF(AND('[1]Mapa final'!#REF!=\"Baja\",'[1]Mapa final'!#REF!=\"Menor\"),CONCATENATE(\"R10C\",'[1]Mapa final'!#REF!),\"\")","v":{"$error":"#REF!"}},{"$f":"IF(AND('[1]Mapa final'!#REF!=\"Baja\",'[1]Mapa final'!#REF!=\"Menor\"),CONCATENATE(\"R10C\",'[1]Mapa final'!#REF!),\"\")","v":{"$error":"#REF!"}},{"$f":"IF(AND('[1]Mapa final'!#REF!=\"Baja\",'[1]Mapa final'!#REF!=\"Menor\"),CONCATENATE(\"R10C\",'[1]Mapa final'!#REF!),\"\")","v":{"$error":"#REF!"}},{"$f":"IF(AND('[1]Mapa final'!#REF!=\"Baja\",'[1]Mapa final'!#REF!=\"Menor\"),CONCATENATE(\"R10C\",'[1]Mapa final'!#REF!),\"\")","v":{"$error":"#REF!"}},{"$f":"IF(AND('[1]Mapa final'!$AA$21=\"Baja\",'[1]Mapa final'!$AC$21=\"Moderado\"),CONCATENATE(\"R10C\",'[1]Mapa final'!$Q$21),\"\")","v":{"$error":"#REF!"}},{"$f":"IF(AND('[1]Mapa final'!#REF!=\"Baja\",'[1]Mapa final'!#REF!=\"Moderado\"),CONCATENATE(\"R10C\",'[1]Mapa final'!#REF!),\"\")","v":{"$error":"#REF!"}},{"$f":"IF(AND('[1]Mapa final'!#REF!=\"Baja\",'[1]Mapa final'!#REF!=\"Moderado\"),CONCATENATE(\"R10C\",'[1]Mapa final'!#REF!),\"\")","v":{"$error":"#REF!"}},{"$f":"IF(AND('[1]Mapa final'!#REF!=\"Baja\",'[1]Mapa final'!#REF!=\"Moderado\"),CONCATENATE(\"R10C\",'[1]Mapa final'!#REF!),\"\")","v":{"$error":"#REF!"}},{"$f":"IF(AND('[1]Mapa final'!#REF!=\"Baja\",'[1]Mapa final'!#REF!=\"Moderado\"),CONCATENATE(\"R10C\",'[1]Mapa final'!#REF!),\"\")","v":{"$error":"#REF!"}},{"$f":"IF(AND('[1]Mapa final'!#REF!=\"Baja\",'[1]Mapa final'!#REF!=\"Moderado\"),CONCATENATE(\"R10C\",'[1]Mapa final'!#REF!),\"\")","v":{"$error":"#REF!"}},{"$f":"IF(AND('[1]Mapa final'!$AA$21=\"Baja\",'[1]Mapa final'!$AC$21=\"Mayor\"),CONCATENATE(\"R10C\",'[1]Mapa final'!$Q$21),\"\")","v":{"$error":"#REF!"}},{"$f":"IF(AND('[1]Mapa final'!#REF!=\"Baja\",'[1]Mapa final'!#REF!=\"Mayor\"),CONCATENATE(\"R10C\",'[1]Mapa final'!#REF!),\"\")","v":{"$error":"#REF!"}},{"$f":"IF(AND('[1]Mapa final'!#REF!=\"Baja\",'[1]Mapa final'!#REF!=\"Mayor\"),CONCATENATE(\"R10C\",'[1]Mapa final'!#REF!),\"\")","v":{"$error":"#REF!"}},{"$f":"IF(AND('[1]Mapa final'!#REF!=\"Baja\",'[1]Mapa final'!#REF!=\"Mayor\"),CONCATENATE(\"R10C\",'[1]Mapa final'!#REF!),\"\")","v":{"$error":"#REF!"}},{"$f":"IF(AND('[1]Mapa final'!#REF!=\"Baja\",'[1]Mapa final'!#REF!=\"Mayor\"),CONCATENATE(\"R10C\",'[1]Mapa final'!#REF!),\"\")","v":{"$error":"#REF!"}},{"$f":"IF(AND('[1]Mapa final'!#REF!=\"Baja\",'[1]Mapa final'!#REF!=\"Mayor\"),CONCATENATE(\"R10C\",'[1]Mapa final'!#REF!),\"\")","v":{"$error":"#REF!"}},{"$f":"IF(AND('[1]Mapa final'!$AA$21=\"Baja\",'[1]Mapa final'!$AC$21=\"Catastrófico\"),CONCATENATE(\"R10C\",'[1]Mapa final'!$Q$21),\"\")","v":{"$error":"#REF!"}},{"$f":"IF(AND('[1]Mapa final'!#REF!=\"Baja\",'[1]Mapa final'!#REF!=\"Catastrófico\"),CONCATENATE(\"R10C\",'[1]Mapa final'!#REF!),\"\")","v":{"$error":"#REF!"}},{"$f":"IF(AND('[1]Mapa final'!#REF!=\"Baja\",'[1]Mapa final'!#REF!=\"Catastrófico\"),CONCATENATE(\"R10C\",'[1]Mapa final'!#REF!),\"\")","v":{"$error":"#REF!"}},{"$f":"IF(AND('[1]Mapa final'!#REF!=\"Baja\",'[1]Mapa final'!#REF!=\"Catastrófico\"),CONCATENATE(\"R10C\",'[1]Mapa final'!#REF!),\"\")","v":{"$error":"#REF!"}},{"$f":"IF(AND('[1]Mapa final'!#REF!=\"Baja\",'[1]Mapa final'!#REF!=\"Catastrófico\"),CONCATENATE(\"R10C\",'[1]Mapa final'!#REF!),\"\")","v":{"$error":"#REF!"}},{"$f":"IF(AND('[1]Mapa final'!#REF!=\"Baja\",'[1]Mapa final'!#REF!=\"Catastrófico\"),CONCATENATE(\"R10C\",'[1]Mapa final'!#REF!),\"\")","v":{"$error":"#REF!"}}]
[null,null,null,null,"Muy Baja\n20%",null,null,null,null,{"$f":"IF(AND('[1]Mapa final'!$AA$9=\"Muy Baja\",'[1]Mapa final'!$AC$9=\"Leve\"),CONCATENATE(\"R1C\",'[1]Mapa final'!$Q$9),\"\")","v":{"$error":"#REF!"}},{"$f":"IF(AND('[1]Mapa final'!#REF!=\"Muy Baja\",'[1]Mapa final'!#REF!=\"Leve\"),CONCATENATE(\"R1C\",'[1]Mapa final'!#REF!),\"\")","v":{"$error":"#REF!"}},{"$f":"IF(AND('[1]Mapa final'!#REF!=\"Muy Baja\",'[1]Mapa final'!#REF!=\"Leve\"),CONCATENATE(\"R1C\",'[1]Mapa final'!#REF!),\"\")","v":{"$error":"#REF!"}},{"$f":"IF(AND('[1]Mapa final'!#REF!=\"Muy Baja\",'[1]Mapa final'!#REF!=\"Leve\"),CONCATENATE(\"R1C\",'[1]Mapa final'!#REF!),\"\")","v":{"$error":"#REF!"}},{"$f":"IF(AND('[1]Mapa final'!#REF!=\"Muy Baja\",'[1]Mapa final'!#REF!=\"Leve\"),CONCATENATE(\"R1C\",'[1]Mapa final'!#REF!),\"\")","v":{"$error":"#REF!"}},{"$f":"IF(AND('[1]Mapa final'!#REF!=\"Muy Baja\",'[1]Mapa final'!#REF!=\"Leve\"),CONCATENATE(\"R1C\",'[1]Mapa final'!#REF!),\"\")","v":{"$error":"#REF!"}},{"$f":"IF(AND('[1]Mapa final'!$AA$9=\"Muy Baja\",'[1]Mapa final'!$AC$9=\"Menor\"),CONCATENATE(\"R1C\",'[1]Mapa final'!$Q$9),\"\")","v":{"$error":"#REF!"}},{"$f":"IF(AND('[1]Mapa final'!#REF!=\"Muy Baja\",'[1]Mapa final'!#REF!=\"Menor\"),CONCATENATE(\"R1C\",'[1]Mapa final'!#REF!),\"\")","v":{"$error":"#REF!"}},{"$f":"IF(AND('[1]Mapa final'!#REF!=\"Muy Baja\",'[1]Mapa final'!#REF!=\"Menor\"),CONCATENATE(\"R1C\",'[1]Mapa final'!#REF!),\"\")","v":{"$error":"#REF!"}},{"$f":"IF(AND('[1]Mapa final'!#REF!=\"Muy Baja\",'[1]Mapa final'!#REF!=\"Menor\"),CONCATENATE(\"R1C\",'[1]Mapa final'!#REF!),\"\")","v":{"$error":"#REF!"}},{"$f":"IF(AND('[1]Mapa final'!#REF!=\"Muy Baja\",'[1]Mapa final'!#REF!=\"Menor\"),CONCATENATE(\"R1C\",'[1]Mapa final'!#REF!),\"\")","v":{"$error":"#REF!"}},{"$f":"IF(AND('[1]Mapa final'!#REF!=\"Muy Baja\",'[1]Mapa final'!#REF!=\"Menor\"),CONCATENATE(\"R1C\",'[1]Mapa final'!#REF!),\"\")","v":{"$error":"#REF!"}},{"$f":"IF(AND('[1]Mapa final'!$AA$9=\"Muy Baja\",'[1]Mapa final'!$AC$9=\"Moderado\"),CONCATENATE(\"R1C\",'[1]Mapa final'!$Q$9),\"\")","v":{"$error":"#REF!"}},{"$f":"IF(AND('[1]Mapa final'!#REF!=\"Muy Baja\",'[1]Mapa final'!#REF!=\"Moderado\"),CONCATENATE(\"R1C\",'[1]Mapa final'!#REF!),\"\")","v":{"$error":"#REF!"}},{"$f":"IF(AND('[1]Mapa final'!#REF!=\"Muy Baja\",'[1]Mapa final'!#REF!=\"Moderado\"),CONCATENATE(\"R1C\",'[1]Mapa final'!#REF!),\"\")","v":{"$error":"#REF!"}},{"$f":"IF(AND('[1]Mapa final'!#REF!=\"Muy Baja\",'[1]Mapa final'!#REF!=\"Moderado\"),CONCATENATE(\"R1C\",'[1]Mapa final'!#REF!),\"\")","v":{"$error":"#REF!"}},{"$f":"IF(AND('[1]Mapa final'!#REF!=\"Muy Baja\",'[1]Mapa final'!#REF!=\"Moderado\"),CONCATENATE(\"R1C\",'[1]Mapa final'!#REF!),\"\")","v":{"$error":"#REF!"}},{"$f":"IF(AND('[1]Mapa final'!#REF!=\"Muy Baja\",'[1]Mapa final'!#REF!=\"Moderado\"),CONCATENATE(\"R1C\",'[1]Mapa final'!#REF!),\"\")","v":{"$error":"#REF!"}},{"$f":"IF(AND('[1]Mapa final'!$AA$9=\"Muy Baja\",'[1]Mapa final'!$AC$9=\"Mayor\"),CONCATENATE(\"R1C\",'[1]Mapa final'!$Q$9),\"\")","v":{"$error":"#REF!"}},{"$f":"IF(AND('[1]Mapa final'!#REF!=\"Muy Baja\",'[1]Mapa final'!#REF!=\"Mayor\"),CONCATENATE(\"R1C\",'[1]Mapa final'!#REF!),\"\")","v":{"$error":"#REF!"}},{"$f":"IF(AND('[1]Mapa final'!#REF!=\"Muy Baja\",'[1]Mapa final'!#REF!=\"Mayor\"),CONCATENATE(\"R1C\",'[1]Mapa final'!#REF!),\"\")","v":{"$error":"#REF!"}},{"$f":"IF(AND('[1]Mapa final'!#REF!=\"Muy Baja\",'[1]Mapa final'!#REF!=\"Mayor\"),CONCATENATE(\"R1C\",'[1]Mapa final'!#REF!),\"\")","v":{"$error":"#REF!"}},{"$f":"IF(AND('[1]Mapa final'!#REF!=\"Muy Baja\",'[1]Mapa final'!#REF!=\"Mayor\"),CONCATENATE(\"R1C\",'[1]Mapa final'!#REF!),\"\")","v":{"$error":"#REF!"}},{"$f":"IF(AND('[1]Mapa final'!#REF!=\"Muy Baja\",'[1]Mapa final'!#REF!=\"Mayor\"),CONCATENATE(\"R1C\",'[1]Mapa final'!#REF!),\"\")","v":{"$error":"#REF!"}},{"$f":"IF(AND('[1]Mapa final'!$AA$9=\"Muy Baja\",'[1]Mapa final'!$AC$9=\"Catastrófico\"),CONCATENATE(\"R1C\",'[1]Mapa final'!$Q$9),\"\")","v":{"$error":"#REF!"}},{"$f":"IF(AND('[1]Mapa final'!#REF!=\"Muy Baja\",'[1]Mapa final'!#REF!=\"Catastrófico\"),CONCATENATE(\"R1C\",'[1]Mapa final'!#REF!),\"\")","v":{"$error":"#REF!"}},{"$f":"IF(AND('[1]Mapa final'!#REF!=\"Muy Baja\",'[1]Mapa final'!#REF!=\"Catastrófico\"),CONCATENATE(\"R1C\",'[1]Mapa final'!#REF!),\"\")","v":{"$error":"#REF!"}},{"$f":"IF(AND('[1]Mapa final'!#REF!=\"Muy Baja\",'[1]Mapa final'!#REF!=\"Catastrófico\"),CONCATENATE(\"R1C\",'[1]Mapa final'!#REF!),\"\")","v":{"$error":"#REF!"}},{"$f":"IF(AND('[1]Mapa final'!#REF!=\"Muy Baja\",'[1]Mapa final'!#REF!=\"Catastrófico\"),CONCATENATE(\"R1C\",'[1]Mapa final'!#REF!),\"\")","v":{"$error":"#REF!"}},{"$f":"IF(AND('[1]Mapa final'!#REF!=\"Muy Baja\",'[1]Mapa final'!#REF!=\"Catastrófico\"),CONCATENATE(\"R1C\",'[1]Mapa final'!#REF!),\"\")","v":{"$error":"#REF!"}}]
[null,null,null,null,null,null,null,null,null,{"$f":"IF(AND('[1]Mapa final'!$AA$10=\"Muy Baja\",'[1]Mapa final'!$AC$10=\"Leve\"),CONCATENATE(\"R2C\",'[1]Mapa final'!$Q$10),\"\")","v":{"$error":"#REF!"}},{"$f":"IF(AND('[1]Mapa final'!#REF!=\"Muy Baja\",'[1]Mapa final'!#REF!=\"Leve\"),CONCATENATE(\"R2C\",'[1]Mapa final'!#REF!),\"\")","v":{"$error":"#REF!"}},{"$f":"IF(AND('[1]Mapa final'!#REF!=\"Muy Baja\",'[1]Mapa final'!#REF!=\"Leve\"),CONCATENATE(\"R2C\",'[1]Mapa final'!#REF!),\"\")","v":{"$error":"#REF!"}},{"$f":"IF(AND('[1]Mapa final'!#REF!=\"Muy Baja\",'[1]Mapa final'!#REF!=\"Leve\"),CONCATENATE(\"R2C\",'[1]Mapa final'!#REF!),\"\")","v":{"$error":"#REF!"}},{"$f":"IF(AND('[1]Mapa final'!#REF!=\"Muy Baja\",'[1]Mapa final'!#REF!=\"Leve\"),CONCATENATE(\"R2C\",'[1]Mapa final'!#REF!),\"\")","v":{"$error":"#REF!"}},{"$f":"IF(AND('[1]Mapa final'!#REF!=\"Muy Baja\",'[1]Mapa final'!#REF!=\"Leve\"),CONCATENATE(\"R2C\",'[1]Mapa final'!#REF!),\"\")","v":{"$error":"#REF!"}},{"$f":"IF(AND('[1]Mapa final'!$AA$10=\"Muy Baja\",'[1]Mapa final'!$AC$10=\"Menor\"),CONCATENATE(\"R2C\",'[1]Mapa final'!$Q$10),\"\")","v":{"$error":"#REF!"}},{"$f":"IF(AND('[1]Mapa final'!#REF!=\"Muy Baja\",'[1]Mapa final'!#REF!=\"Menor\"),CONCATENATE(\"R2C\",'[1]Mapa final'!#REF!),\"\")","v":{"$error":"#REF!"}},{"$f":"IF(AND('[1]Mapa final'!#REF!=\"Muy Baja\",'[1]Mapa final'!#REF!=\"Menor\"),CONCATENATE(\"R2C\",'[1]Mapa final'!#REF!),\"\")","v":{"$error":"#REF!"}},{"$f":"IF(AND('[1]Mapa final'!#REF!=\"Muy Baja\",'[1]Mapa final'!#REF!=\"Menor\"),CONCATENATE(\"R2C\",'[1]Mapa final'!#REF!),\"\")","v":{"$error":"#REF!"}},{"$f":"IF(AND('[1]Mapa final'!#REF!=\"Muy Baja\",'[1]Mapa final'!#REF!=\"Menor\"),CONCATENATE(\"R2C\",'[1]Mapa final'!#REF!),\"\")","v":{"$error":"#REF!"}},{"$f":"IF(AND('[1]Mapa final'!#REF!=\"Muy Baja\",'[1]Mapa final'!#REF!=\"Menor\"),CONCATENATE(\"R2C\",'[1]Mapa final'!#REF!),\"\")","v":{"$error":"#REF!"}},{"$f":"IF(AND('[1]Mapa final'!$AA$10=\"Muy Baja\",'[1]Mapa final'!$AC$10=\"Moderado\"),CONCATENATE(\"R2C\",'[1]Mapa final'!$Q$10),\"\")","v":{"$error":"#REF!"}},{"$f":"IF(AND('[1]Mapa final'!#REF!=\"Muy Baja\",'[1]Mapa final'!#REF!=\"Moderado\"),CONCATENATE(\"R2C\",'[1]Mapa final'!#REF!),\"\")","v":{"$error":"#REF!"}},{"$f":"IF(AND('[1]Mapa final'!#REF!=\"Muy Baja\",'[1]Mapa final'!#REF!=\"Moderado\"),CONCATENATE(\"R2C\",'[1]Mapa final'!#REF!),\"\")","v":{"$error":"#REF!"}},{"$f":"IF(AND('[1]Mapa final'!#REF!=\"Muy Baja\",'[1]Mapa final'!#REF!=\"Moderado\"),CONCATENATE(\"R2C\",'[1]Mapa final'!#REF!),\"\")","v":{"$error":"#REF!"}},{"$f":"IF(AND('[1]Mapa final'!#REF!=\"Muy Baja\",'[1]Mapa final'!#REF!=\"Moderado\"),CONCATENATE(\"R2C\",'[1]Mapa final'!#REF!),\"\")","v":{"$error":"#REF!"}},{"$f":"IF(AND('[1]Mapa final'!#REF!=\"Muy Baja\",'[1]Mapa final'!#REF!=\"Moderado\"),CONCATENATE(\"R2C\",'[1]Mapa final'!#REF!),\"\")","v":{"$error":"#REF!"}},{"$f":"IF(AND('[1]Mapa final'!$AA$10=\"Muy Baja\",'[1]Mapa final'!$AC$10=\"Mayor\"),CONCATENATE(\"R2C\",'[1]Mapa final'!$Q$10),\"\")","v":{"$error":"#REF!"}},{"$f":"IF(AND('[1]Mapa final'!#REF!=\"Muy Baja\",'[1]Mapa final'!#REF!=\"Mayor\"),CONCATENATE(\"R2C\",'[1]Mapa final'!#REF!),\"\")","v":{"$error":"#REF!"}},{"$f":"IF(AND('[1]Mapa final'!#REF!=\"Muy Baja\",'[1]Mapa final'!#REF!=\"Mayor\"),CONCATENATE(\"R2C\",'[1]Mapa final'!#REF!),\"\")","v":{"$error":"#REF!"}},{"$f":"IF(AND('[1]Mapa final'!#REF!=\"Muy Baja\",'[1]Mapa final'!#REF!=\"Mayor\"),CONCATENATE(\"R2C\",'[1]Mapa final'!#REF!),\"\")","v":{"$error":"#REF!"}},{"$f":"IF(AND('[1]Mapa final'!#REF!=\"Muy Baja\",'[1]Mapa final'!#REF!=\"Mayor\"),CONCATENATE(\"R2C\",'[1]Mapa final'!#REF!),\"\")","v":{"$error":"#REF!"}},{"$f":"IF(AND('[1]Mapa final'!#REF!=\"Muy Baja\",'[1]Mapa final'!#REF!=\"Mayor\"),CONCATENATE(\"R2C\",'[1]Mapa final'!#REF!),\"\")","v":{"$error":"#REF!"}},{"$f":"IF(AND('[1]Mapa final'!$AA$10=\"Muy Baja\",'[1]Mapa final'!$AC$10=\"Catastrófico\"),CONCATENATE(\"R2C\",'[1]Mapa final'!$Q$10),\"\")","v":{"$error":"#REF!"}},{"$f":"IF(AND('[1]Mapa final'!#REF!=\"Muy Baja\",'[1]Mapa final'!#REF!=\"Catastrófico\"),CONCATENATE(\"R2C\",'[1]Mapa final'!#REF!),\"\")","v":{"$error":"#REF!"}},{"$f":"IF(AND('[1]Mapa final'!#REF!=\"Muy Baja\",'[1]Mapa final'!#REF!=\"Catastrófico\"),CONCATENATE(\"R2C\",'[1]Mapa final'!#REF!),\"\")","v":{"$error":"#REF!"}},{"$f":"IF(AND('[1]Mapa final'!#REF!=\"Muy Baja\",'[1]Mapa final'!#REF!=\"Catastrófico\"),CONCATENATE(\"R2C\",'[1]Mapa final'!#REF!),\"\")","v":{"$error":"#REF!"}},{"$f":"IF(AND('[1]Mapa final'!#REF!=\"Muy Baja\",'[1]Mapa final'!#REF!=\"Catastrófico\"),CONCATENATE(\"R2C\",'[1]Mapa final'!#REF!),\"\")","v":{"$error":"#REF!"}},{"$f":"IF(AND('[1]Mapa final'!#REF!=\"Muy Baja\",'[1]Mapa final'!#REF!=\"Catastrófico\"),CONCATENATE(\"R2C\",'[1]Mapa final'!#REF!),\"\")","v":{"$error":"#REF!"}}]
[null,null,null,null,null,null,null,null,null,{"$f":"IF(AND('[1]Mapa final'!$AA$11=\"Muy Baja\",'[1]Mapa final'!$AC$11=\"Leve\"),CONCATENATE(\"R3C\",'[1]Mapa final'!$Q$11),\"\")","v":{"$error":"#REF!"}},{"$f":"IF(AND('[1]Mapa final'!#REF!=\"Muy Baja\",'[1]Mapa final'!#REF!=\"Leve\"),CONCATENATE(\"R3C\",'[1]Mapa final'!#REF!),\"\")","v":{"$error":"#REF!"}},{"$f":"IF(AND('[1]Mapa final'!#REF!=\"Muy Baja\",'[1]Mapa final'!#REF!=\"Leve\"),CONCATENATE(\"R3C\",'[1]Mapa final'!#REF!),\"\")","v":{"$error":"#REF!"}},{"$f":"IF(AND('[1]Mapa final'!#REF!=\"Muy Baja\",'[1]Mapa final'!#REF!=\"Leve\"),CONCATENATE(\"R3C\",'[1]Mapa final'!#REF!),\"\")","v":{"$error":"#REF!"}},{"$f":"IF(AND('[1]Mapa final'!#REF!=\"Muy Baja\",'[1]Mapa final'!#REF!=\"Leve\"),CONCATENATE(\"R3C\",'[1]Mapa final'!#REF!),\"\")","v":{"$error":"#REF!"}},{"$f":"IF(AND('[1]Mapa final'!#REF!=\"Muy Baja\",'[1]Mapa final'!#REF!=\"Leve\"),CONCATENATE(\"R3C\",'[1]Mapa final'!#REF!),\"\")","v":{"$error":"#REF!"}},{"$f":"IF(AND('[1]Mapa final'!$AA$11=\"Muy Baja\",'[1]Mapa final'!$AC$11=\"Menor\"),CONCATENATE(\"R3C\",'[1]Mapa final'!$Q$11),\"\")","v":{"$error":"#REF!"}},{"$f":"IF(AND('[1]Mapa final'!#REF!=\"Muy Baja\",'[1]Mapa final'!#REF!=\"Menor\"),CONCATENATE(\"R3C\",'[1]Mapa final'!#REF!),\"\")","v":{"$error":"#REF!"}},{"$f":"IF(AND('[1]Mapa final'!#REF!=\"Muy Baja\",'[1]Mapa final'!#REF!=\"Menor\"),CONCATENATE(\"R3C\",'[1]Mapa final'!#REF!),\"\")","v":{"$error":"#REF!"}},{"$f":"IF(AND('[1]Mapa final'!#REF!=\"Muy Baja\",'[1]Mapa final'!#REF!=\"Menor\"),CONCATENATE(\"R3C\",'[1]Mapa final'!#REF!),\"\")","v":{"$error":"#REF!"}},{"$f":"IF(AND('[1]Mapa final'!#REF!=\"Muy Baja\",'[1]Mapa final'!#REF!=\"Menor\"),CONCATENATE(\"R3C\",'[1]Mapa final'!#REF!),\"\")","v":{"$error":"#REF!"}},{"$f":"IF(AND('[1]Mapa final'!#REF!=\"Muy Baja\",'[1]Mapa final'!#REF!=\"Menor\"),CONCATENATE(\"R3C\",'[1]Mapa final'!#REF!),\"\")","v":{"$error":"#REF!"}},{"$f":"IF(AND('[1]Mapa final'!$AA$11=\"Muy Baja\",'[1]Mapa final'!$AC$11=\"Moderado\"),CONCATENATE(\"R3C\",'[1]Mapa final'!$Q$11),\"\")","v":{"$error":"#REF!"}},{"$f":"IF(AND('[1]Mapa final'!#REF!=\"Muy Baja\",'[1]Mapa final'!#REF!=\"Moderado\"),CONCATENATE(\"R3C\",'[1]Mapa final'!#REF!),\"\")","v":{"$error":"#REF!"}},{"$f":"IF(AND('[1]Mapa final'!#REF!=\"Muy Baja\",'[1]Mapa final'!#REF!=\"Moderado\"),CONCATENATE(\"R3C\",'[1]Mapa final'!#REF!),\"\")","v":{"$error":"#REF!"}},{"$f":"IF(AND('[1]Mapa final'!#REF!=\"Muy Baja\",'[1]Mapa final'!#REF!=\"Moderado\"),CONCATENATE(\"R3C\",'[1]Mapa final'!#REF!),\"\")","v":{"$error":"#REF!"}},{"$f":"IF(AND('[1]Mapa final'!#REF!=\"Muy Baja\",'[1]Mapa final'!#REF!=\"Moderado\"),CONCATENATE(\"R3C\",'[1]Mapa final'!#REF!),\"\")","v":{"$error":"#REF!"}},{"$f":"IF(AND('[1]Mapa final'!#REF!=\"Muy Baja\",'[1]Mapa final'!#REF!=\"Moderado\"),CONCATENATE(\"R3C\",'[1]Mapa final'!#REF!),\"\")","v":{"$error":"#REF!"}},{"$f":"IF(AND('[1]Mapa final'!$AA$11=\"Muy Baja\",'[1]Mapa final'!$AC$11=\"Mayor\"),CONCATENATE(\"R3C\",'[1]Mapa final'!$Q$11),\"\")","v":{"$error":"#REF!"}},{"$f":"IF(AND('[1]Mapa final'!#REF!=\"Muy Baja\",'[1]Mapa final'!#REF!=\"Mayor\"),CONCATENATE(\"R3C\",'[1]Mapa final'!#REF!),\"\")","v":{"$error":"#REF!"}},{"$f":"IF(AND('[1]Mapa final'!#REF!=\"Muy Baja\",'[1]Mapa final'!#REF!=\"Mayor\"),CONCATENATE(\"R3C\",'[1]Mapa final'!#REF!),\"\")","v":{"$error":"#REF!"}},{"$f":"IF(AND('[1]Mapa final'!#REF!=\"Muy Baja\",'[1]Mapa final'!#REF!=\"Mayor\"),CONCATENATE(\"R3C\",'[1]Mapa final'!#REF!),\"\")","v":{"$error":"#REF!"}},{"$f":"IF(AND('[1]Mapa final'!#REF!=\"Muy Baja\",'[1]Mapa final'!#REF!=\"Mayor\"),CONCATENATE(\"R3C\",'[1]Mapa final'!#REF!),\"\")","v":{"$error":"#REF!"}},{"$f":"IF(AND('[1]Mapa final'!#REF!=\"Muy Baja\",'[1]Mapa final'!#REF!=\"Mayor\"),CONCATENATE(\"R3C\",'[1]Mapa final'!#REF!),\"\")","v":{"$error":"#REF!"}},{"$f":"IF(AND('[1]Mapa final'!$AA$11=\"Muy Baja\",'[1]Mapa final'!$AC$11=\"Catastrófico\"),CONCATENATE(\"R3C\",'[1]Mapa final'!$Q$11),\"\")","v":{"$error":"#REF!"}},{"$f":"IF(AND('[1]Mapa final'!#REF!=\"Muy Baja\",'[1]Mapa final'!#REF!=\"Catastrófico\"),CONCATENATE(\"R3C\",'[1]Mapa final'!#REF!),\"\")","v":{"$error":"#REF!"}},{"$f":"IF(AND('[1]Mapa final'!#REF!=\"Muy Baja\",'[1]Mapa final'!#REF!=\"Catastrófico\"),CONCATENATE(\"R3C\",'[1]Mapa final'!#REF!),\"\")","v":{"$error":"#REF!"}},{"$f":"IF(AND('[1]Mapa final'!#REF!=\"Muy Baja\",'[1]Mapa final'!#REF!=\"Catastrófico\"),CONCATENATE(\"R3C\",'[1]Mapa final'!#REF!),\"\")","v":{"$error":"#REF!"}},{"$f":"IF(AND('[1]Mapa final'!#REF!=\"Muy Baja\",'[1]Mapa final'!#REF!=\"Catastrófico\"),CONCATENATE(\"R3C\",'[1]Mapa final'!#REF!),\"\")","v":{"$error":"#REF!"}},{"$f":"IF(AND('[1]Mapa final'!#REF!=\"Muy Baja\",'[1]Mapa final'!#REF!=\"Catastrófico\"),CONCATENATE(\"R3C\",'[1]Mapa final'!#REF!),\"\")","v":{"$error":"#REF!"}}]
[null,null,null,null,null,null,null,null,null,{"$f":"IF(AND('[1]Mapa final'!$AA$13=\"Muy Baja\",'[1]Mapa final'!$AC$13=\"Leve\"),CONCATENATE(\"R4C\",'[1]Mapa final'!$Q$13),\"\")","v":{"$error":"#REF!"}},{"$f":"IF(AND('[1]Mapa final'!#REF!=\"Muy Baja\",'[1]Mapa final'!#REF!=\"Leve\"),CONCATENATE(\"R4C\",'[1]Mapa final'!#REF!),\"\")","v":{"$error":"#REF!"}},{"$f":"IF(AND('[1]Mapa final'!#REF!=\"Muy Baja\",'[1]Mapa final'!#REF!=\"Leve\"),CONCATENATE(\"R4C\",'[1]Mapa final'!#REF!),\"\")","v":{"$error":"#REF!"}},{"$f":"IF(AND('[1]Mapa final'!#REF!=\"Muy Baja\",'[1]Mapa final'!#REF!=\"Leve\"),CONCATENATE(\"R4C\",'[1]Mapa final'!#REF!),\"\")","v":{"$error":"#REF!"}},{"$f":"IF(AND('[1]Mapa final'!#REF!=\"Muy Baja\",'[1]Mapa final'!#REF!=\"Leve\"),CONCATENATE(\"R4C\",'[1]Mapa final'!#REF!),\"\")","v":{"$error":"#REF!"}},{"$f":"IF(AND('[1]Mapa final'!#REF!=\"Muy Baja\",'[1]Mapa final'!#REF!=\"Leve\"),CONCATENATE(\"R4C\",'[1]Mapa final'!#REF!),\"\")","v":{"$error":"#REF!"}},{"$f":"IF(AND('[1]Mapa final'!$AA$13=\"Muy Baja\",'[1]Mapa final'!$AC$13=\"Menor\"),CONCATENATE(\"R4C\",'[1]Mapa final'!$Q$13),\"\")","v":{"$error":"#REF!"}},{"$f":"IF(AND('[1]Mapa final'!#REF!=\"Muy Baja\",'[1]Mapa final'!#REF!=\"Menor\"),CONCATENATE(\"R4C\",'[1]Mapa final'!#REF!),\"\")","v":{"$error":"#REF!"}},{"$f":"IF(AND('[1]Mapa final'!#REF!=\"Muy Baja\",'[1]Mapa final'!#REF!=\"Menor\"),CONCATENATE(\"R4C\",'[1]Mapa final'!#REF!),\"\")","v":{"$error":"#REF!"}},{"$f":"IF(AND('[1]Mapa final'!#REF!=\"Muy Baja\",'[1]Mapa final'!#REF!=\"Menor\"),CONCATENATE(\"R4C\",'[1]Mapa final'!#REF!),\"\")","v":{"$error":"#REF!"}},{"$f":"IF(AND('[1]Mapa final'!#REF!=\"Muy Baja\",'[1]Mapa final'!#REF!=\"Menor\"),CONCATENATE(\"R4C\",'[1]Mapa final'!#REF!),\"\")","v":{"$error":"#REF!"}},{"$f":"IF(AND('[1]Mapa final'!#REF!=\"Muy Baja\",'[1]Mapa final'!#REF!=\"Menor\"),CONCATENATE(\"R4C\",'[1]Mapa final'!#REF!),\"\")","v":{"$error":"#REF!"}},{"$f":"IF(AND('[1]Mapa final'!$AA$13=\"Muy Baja\",'[1]Mapa final'!$AC$13=\"Moderado\"),CONCATENATE(\"R4C\",'[1]Mapa final'!$Q$13),\"\")","v":{"$error":"#REF!"}},{"$f":"IF(AND('[1]Mapa final'!#REF!=\"Muy Baja\",'[1]Mapa final'!#REF!=\"Moderado\"),CONCATENATE(\"R4C\",'[1]Mapa final'!#REF!),\"\")","v":{"$error":"#REF!"}},{"$f":"IF(AND('[1]Mapa final'!#REF!=\"Muy Baja\",'[1]Mapa final'!#REF!=\"Moderado\"),CONCATENATE(\"R4C\",'[1]Mapa final'!#REF!),\"\")","v":{"$error":"#REF!"}},{"$f":"IF(AND('[1]Mapa final'!#REF!=\"Muy Baja\",'[1]Mapa final'!#REF!=\"Moderado\"),CONCATENATE(\"R4C\",'[1]Mapa final'!#REF!),\"\")","v":{"$error":"#REF!"}},{"$f":"IF(AND('[1]Mapa final'!#REF!=\"Muy Baja\",'[1]Mapa final'!#REF!=\"Moderado\"),CONCATENATE(\"R4C\",'[1]Mapa final'!#REF!),\"\")","v":{"$error":"#REF!"}},{"$f":"IF(AND('[1]Mapa final'!#REF!=\"Muy Baja\",'[1]Mapa final'!#REF!=\"Moderado\"),CONCATENATE(\"R4C\",'[1]Mapa final'!#REF!),\"\")","v":{"$error":"#REF!"}},{"$f":"IF(AND('[1]Mapa final'!$AA$13=\"Muy Baja\",'[1]Mapa final'!$AC$13=\"Mayor\"),CONCATENATE(\"R4C\",'[1]Mapa final'!$Q$13),\"\")","v":{"$error":"#REF!"}},{"$f":"IF(AND('[1]Mapa final'!#REF!=\"Muy Baja\",'[1]Mapa final'!#REF!=\"Mayor\"),CONCATENATE(\"R4C\",'[1]Mapa final'!#REF!),\"\")","v":{"$error":"#REF!"}},{"$f":"IF(AND('[1]Mapa final'!#REF!=\"Muy Baja\",'[1]Mapa final'!#REF!=\"Mayor\"),CONCATENATE(\"R4C\",'[1]Mapa final'!#REF!),\"\")","v":{"$error":"#REF!"}},{"$f":"IF(AND('[1]Mapa final'!#REF!=\"Muy Baja\",'[1]Mapa final'!#REF!=\"Mayor\"),CONCATENATE(\"R4C\",'[1]Mapa final'!#REF!),\"\")","v":{"$error":"#REF!"}},{"$f":"IF(AND('[1]Mapa final'!#REF!=\"Muy Baja\",'[1]Mapa final'!#REF!=\"Mayor\"),CONCATENATE(\"R4C\",'[1]Mapa final'!#REF!),\"\")","v":{"$error":"#REF!"}},{"$f":"IF(AND('[1]Mapa final'!#REF!=\"Muy Baja\",'[1]Mapa final'!#REF!=\"Mayor\"),CONCATENATE(\"R4C\",'[1]Mapa final'!#REF!),\"\")","v":{"$error":"#REF!"}},{"$f":"IF(AND('[1]Mapa final'!$AA$13=\"Muy Baja\",'[1]Mapa final'!$AC$13=\"Catastrófico\"),CONCATENATE(\"R4C\",'[1]Mapa final'!$Q$13),\"\")","v":{"$error":"#REF!"}},{"$f":"IF(AND('[1]Mapa final'!#REF!=\"Muy Baja\",'[1]Mapa final'!#REF!=\"Catastrófico\"),CONCATENATE(\"R4C\",'[1]Mapa final'!#REF!),\"\")","v":{"$error":"#REF!"}},{"$f":"IF(AND('[1]Mapa final'!#REF!=\"Muy Baja\",'[1]Mapa final'!#REF!=\"Catastrófico\"),CONCATENATE(\"R4C\",'[1]Mapa final'!#REF!),\"\")","v":{"$error":"#REF!"}},{"$f":"IF(AND('[1]Mapa final'!#REF!=\"Muy Baja\",'[1]Mapa final'!#REF!=\"Catastrófico\"),CONCATENATE(\"R4C\",'[1]Mapa final'!#REF!),\"\")","v":{"$error":"#REF!"}},{"$f":"IF(AND('[1]Mapa final'!#REF!=\"Muy Baja\",'[1]Mapa final'!#REF!=\"Catastrófico\"),CONCATENATE(\"R4C\",'[1]Mapa final'!#REF!),\"\")","v":{"$error":"#REF!"}},{"$f":"IF(AND('[1]Mapa final'!#REF!=\"Muy Baja\",'[1]Mapa final'!#REF!=\"Catastrófico\"),CONCATENATE(\"R4C\",'[1]Mapa final'!#REF!),\"\")","v":{"$error":"#REF!"}}]
[null,null,null,null,null,null,null,null,null,{"$f":"IF(AND('[1]Mapa final'!$AA$14=\"Muy Baja\",'[1]Mapa final'!$AC$14=\"Leve\"),CONCATENATE(\"R5C\",'[1]Mapa final'!$Q$14),\"\")","v":{"$error":"#REF!"}},{"$f":"IF(AND('[1]Mapa final'!#REF!=\"Muy Baja\",'[1]Mapa final'!#REF!=\"Leve\"),CONCATENATE(\"R5C\",'[1]Mapa final'!#REF!),\"\")","v":{"$error":"#REF!"}},{"$f":"IF(AND('[1]Mapa final'!#REF!=\"Muy Baja\",'[1]Mapa final'!#REF!=\"Leve\"),CONCATENATE(\"R5C\",'[1]Mapa final'!#REF!),\"\")","v":{"$error":"#REF!"}},{"$f":"IF(AND('[1]Mapa final'!#REF!=\"Muy Baja\",'[1]Mapa final'!#REF!=\"Leve\"),CONCATENATE(\"R5C\",'[1]Mapa final'!#REF!),\"\")","v":{"$error":"#REF!"}},{"$f":"IF(AND('[1]Mapa final'!#REF!=\"Muy Baja\",'[1]Mapa final'!#REF!=\"Leve\"),CONCATENATE(\"R5C\",'[1]Mapa final'!#REF!),\"\")","v":{"$error":"#REF!"}},{"$f":"IF(AND('[1]Mapa final'!#REF!=\"Muy Baja\",'[1]Mapa final'!#REF!=\"Leve\"),CONCATENATE(\"R5C\",'[1]Mapa final'!#REF!),\"\")","v":{"$error":"#REF!"}},{"$f":"IF(AND('[1]Mapa final'!$AA$14=\"Muy Baja\",'[1]Mapa final'!$AC$14=\"Menor\"),CONCATENATE(\"R5C\",'[1]Mapa final'!$Q$14),\"\")","v":{"$error":"#REF!"}},{"$f":"IF(AND('[1]Mapa final'!#REF!=\"Muy Baja\",'[1]Mapa final'!#REF!=\"Menor\"),CONCATENATE(\"R5C\",'[1]Mapa final'!#REF!),\"\")","v":{"$error":"#REF!"}},{"$f":"IF(AND('[1]Mapa final'!#REF!=\"Muy Baja\",'[1]Mapa final'!#REF!=\"Menor\"),CONCATENATE(\"R5C\",'[1]Mapa final'!#REF!),\"\")","v":{"$error":"#REF!"}},{"$f":"IF(AND('[1]Mapa final'!#REF!=\"Muy Baja\",'[1]Mapa final'!#REF!=\"Menor\"),CONCATENATE(\"R5C\",'[1]Mapa final'!#REF!),\"\")","v":{"$error":"#REF!"}},{"$f":"IF(AND('[1]Mapa final'!#REF!=\"Muy Baja\",'[1]Mapa final'!#REF!=\"Menor\"),CONCATENATE(\"R5C\",'[1]Mapa final'!#REF!),\"\")","v":{"$error":"#REF!"}},{"$f":"IF(AND('[1]Mapa final'!#REF!=\"Muy Baja\",'[1]Mapa final'!#REF!=\"Menor\"),CONCATENATE(\"R5C\",'[1]Mapa final'!#REF!),\"\")","v":{"$error":"#REF!"}},{"$f":"IF(AND('[1]Mapa final'!$AA$14=\"Muy Baja\",'[1]Mapa final'!$AC$14=\"Moderado\"),CONCATENATE(\"R5C\",'[1]Mapa final'!$Q$14),\"\")","v":{"$error":"#REF!"}},{"$f":"IF(AND('[1]Mapa final'!#REF!=\"Muy Baja\",'[1]Mapa final'!#REF!=\"Moderado\"),CONCATENATE(\"R5C\",'[1]Mapa final'!#REF!),\"\")","v":{"$error":"#REF!"}},{"$f":"IF(AND('[1]Mapa final'!#REF!=\"Muy Baja\",'[1]Mapa final'!#REF!=\"Moderado\"),CONCATENATE(\"R5C\",'[1]Mapa final'!#REF!),\"\")","v":{"$error":"#REF!"}},{"$f":"IF(AND('[1]Mapa final'!#REF!=\"Muy Baja\",'[1]Mapa final'!#REF!=\"Moderado\"),CONCATENATE(\"R5C\",'[1]Mapa final'!#REF!),\"\")","v":{"$error":"#REF!"}},{"$f":"IF(AND('[1]Mapa final'!#REF!=\"Muy Baja\",'[1]Mapa final'!#REF!=\"Moderado\"),CONCATENATE(\"R5C\",'[1]Mapa final'!#REF!),\"\")","v":{"$error":"#REF!"}},{"$f":"IF(AND('[1]Mapa final'!#REF!=\"Muy Baja\",'[1]Mapa final'!#REF!=\"Moderado\"),CONCATENATE(\"R5C\",'[1]Mapa final'!#REF!),\"\")","v":{"$error":"#REF!"}},{"$f":"IF(AND('[1]Mapa final'!$AA$14=\"Muy Baja\",'[1]Mapa final'!$AC$14=\"Mayor\"),CONCATENATE(\"R5C\",'[1]Mapa final'!$Q$14),\"\")","v":{"$error":"#REF!"}},{"$f":"IF(AND('[1]Mapa final'!#REF!=\"Muy Baja\",'[1]Mapa final'!#REF!=\"Mayor\"),CONCATENATE(\"R5C\",'[1]Mapa final'!#REF!),\"\")","v":{"$error":"#REF!"}},{"$f":"IF(AND('[1]Mapa final'!#REF!=\"Muy Baja\",'[1]Mapa final'!#REF!=\"Mayor\"),CONCATENATE(\"R5C\",'[1]Mapa final'!#REF!),\"\")","v":{"$error":"#REF!"}},{"$f":"IF(AND('[1]Mapa final'!#REF!=\"Muy Baja\",'[1]Mapa final'!#REF!=\"Mayor\"),CONCATENATE(\"R5C\",'[1]Mapa final'!#REF!),\"\")","v":{"$error":"#REF!"}},{"$f":"IF(AND('[1]Mapa final'!#REF!=\"Muy Baja\",'[1]Mapa final'!#REF!=\"Mayor\"),CONCATENATE(\"R5C\",'[1]Mapa final'!#REF!),\"\")","v":{"$error":"#REF!"}},{"$f":"IF(AND('[1]Mapa final'!#REF!=\"Muy Baja\",'[1]Mapa final'!#REF!=\"Mayor\"),CONCATENATE(\"R5C\",'[1]Mapa final'!#REF!),\"\")","v":{"$error":"#REF!"}},{"$f":"IF(AND('[1]Mapa final'!$AA$14=\"Muy Baja\",'[1]Mapa final'!$AC$14=\"Catastrófico\"),CONCATENATE(\"R5C\",'[1]Mapa final'!$Q$14),\"\")","v":{"$error":"#REF!"}},{"$f":"IF(AND('[1]Mapa final'!#REF!=\"Muy Baja\",'[1]Mapa final'!#REF!=\"Catastrófico\"),CONCATENATE(\"R5C\",'[1]Mapa final'!#REF!),\"\")","v":{"$error":"#REF!"}},{"$f":"IF(AND('[1]Mapa final'!#REF!=\"Muy Baja\",'[1]Mapa final'!#REF!=\"Catastrófico\"),CONCATENATE(\"R5C\",'[1]Mapa final'!#REF!),\"\")","v":{"$error":"#REF!"}},{"$f":"IF(AND('[1]Mapa final'!#REF!=\"Muy Baja\",'[1]Mapa final'!#REF!=\"Catastrófico\"),CONCATENATE(\"R5C\",'[1]Mapa final'!#REF!),\"\")","v":{"$error":"#REF!"}},{"$f":"IF(AND('[1]Mapa final'!#REF!=\"Muy Baja\",'[1]Mapa final'!#REF!=\"Catastrófico\"),CONCATENATE(\"R5C\",'[1]Mapa final'!#REF!),\"\")","v":{"$error":"#REF!"}},{"$f":"IF(AND('[1]Mapa final'!#REF!=\"Muy Baja\",'[1]Mapa final'!#REF!=\"Catastrófico\"),CONCATENATE(\"R5C\",'[1]Mapa final'!#REF!),\"\")","v":{"$error":"#REF!"}}]
[null,null,null,null,null,null,null,null,null,{"$f":"IF(AND('[1]Mapa final'!$AB$17=\"Muy Baja\",'[1]Mapa final'!$AD$17=\"Leve\"),CONCATENATE(\"R6C\",'[1]Mapa final'!$R$17),\"\")","v":{"$error":"#REF!"}},{"$f":"IF(AND('[1]Mapa final'!#REF!=\"Muy Baja\",'[1]Mapa final'!#REF!=\"Leve\"),CONCATENATE(\"R6C\",'[1]Mapa final'!#REF!),\"\")","v":{"$error":"#REF!"}},{"$f":"IF(AND('[1]Mapa final'!#REF!=\"Muy Baja\",'[1]Mapa final'!#REF!=\"Leve\"),CONCATENATE(\"R6C\",'[1]Mapa final'!#REF!),\"\")","v":{"$error":"#REF!"}},{"$f":"IF(AND('[1]Mapa final'!#REF!=\"Muy Baja\",'[1]Mapa final'!#REF!=\"Leve\"),CONCATENATE(\"R6C\",'[1]Mapa final'!#REF!),\"\")","v":{"$error":"#REF!"}},{"$f":"IF(AND('[1]Mapa final'!#REF!=\"Muy Baja\",'[1]Mapa final'!#REF!=\"Leve\"),CONCATENATE(\"R6C\",'[1]Mapa final'!#REF!),\"\")","v":{"$error":"#REF!"}},{"$f":"IF(AND('[1]Mapa final'!#REF!=\"Muy Baja\",'[1]Mapa final'!#REF!=\"Leve\"),CONCATENATE(\"R6C\",'[1]Mapa final'!#REF!),\"\")","v":{"$error":"#REF!"}},{"$f":"IF(AND('[1]Mapa final'!$AB$17=\"Muy Baja\",'[1]Mapa final'!$AD$17=\"Menor\"),CONCATENATE(\"R6C\",'[1]Mapa final'!$R$17),\"\")","v":{"$error":"#REF!"}},{"$f":"IF(AND('[1]Mapa final'!#REF!=\"Muy Baja\",'[1]Mapa final'!#REF!=\"Menor\"),CONCATENATE(\"R6C\",'[1]Mapa final'!#REF!),\"\")","v":{"$error":"#REF!"}},{"$f":"IF(AND('[1]Mapa final'!#REF!=\"Muy Baja\",'[1]Mapa final'!#REF!=\"Menor\"),CONCATENATE(\"R6C\",'[1]Mapa final'!#REF!),\"\")","v":{"$error":"#REF!"}},{"$f":"IF(AND('[1]Mapa final'!#REF!=\"Muy Baja\",'[1]Mapa final'!#REF!=\"Menor\"),CONCATENATE(\"R6C\",'[1]Mapa final'!#REF!),\"\")","v":{"$error":"#REF!"}},{"$f":"IF(AND('[1]Mapa final'!#REF!=\"Muy Baja\",'[1]Mapa final'!#REF!=\"Menor\"),CONCATENATE(\"R6C\",'[1]Mapa final'!#REF!),\"\")","v":{"$error":"#REF!"}},{"$f":"IF(AND('[1]Mapa final'!#REF!=\"Muy Baja\",'[1]Mapa final'!#REF!=\"Menor\"),CONCATENATE(\"R6C\",'[1]Mapa final'!#REF!),\"\")","v":{"$error":"#REF!"}},{"$f":"IF(AND('[1]Mapa final'!$AB$17=\"Muy Baja\",'[1]Mapa final'!$AD$17=\"Moderado\"),CONCATENATE(\"R6C\",'[1]Mapa final'!$R$17),\"\")","v":{"$error":"#REF!"}},{"$f":"IF(AND('[1]Mapa final'!#REF!=\"Muy Baja\",'[1]Mapa final'!#REF!=\"Moderado\"),CONCATENATE(\"R6C\",'[1]Mapa final'!#REF!),\"\")","v":{"$error":"#REF!"}},{"$f":"IF(AND('[1]Mapa final'!#REF!=\"Muy Baja\",'[1]Mapa final'!#REF!=\"Moderado\"),CONCATENATE(\"R6C\",'[1]Mapa final'!#REF!),\"\")","v":{"$error":"#REF!"}},{"$f":"IF(AND('[1]Mapa final'!#REF!=\"Muy Baja\",'[1]Mapa final'!#REF!=\"Moderado\"),CONCATENATE(\"R6C\",'[1]Mapa final'!#REF!),\"\")","v":{"$error":"#REF!"}},{"$f":"IF(AND('[1]Mapa final'!#REF!=\"Muy Baja\",'[1]Mapa final'!#REF!=\"Moderado\"),CONCATENATE(\"R6C\",'[1]Mapa final'!#REF!),\"\")","v":{"$error":"#REF!"}},{"$f":"IF(AND('[1]Mapa final'!#REF!=\"Muy Baja\",'[1]Mapa final'!#REF!=\"Moderado\"),CONCATENATE(\"R6C\",'[1]Mapa final'!#REF!),\"\")","v":{"$error":"#REF!"}},{"$f":"IF(AND('[1]Mapa final'!$AB$17=\"Muy Baja\",'[1]Mapa final'!$AD$17=\"Mayor\"),CONCATENATE(\"R6C\",'[1]Mapa final'!$R$17),\"\")","v":{"$error":"#REF!"}},{"$f":"IF(AND('[1]Mapa final'!#REF!=\"Muy Baja\",'[1]Mapa final'!#REF!=\"Mayor\"),CONCATENATE(\"R6C\",'[1]Mapa final'!#REF!),\"\")","v":{"$error":"#REF!"}},{"$f":"IF(AND('[1]Mapa final'!#REF!=\"Muy Baja\",'[1]Mapa final'!#REF!=\"Mayor\"),CONCATENATE(\"R6C\",'[1]Mapa final'!#REF!),\"\")","v":{"$error":"#REF!"}},{"$f":"IF(AND('[1]Mapa final'!#REF!=\"Muy Baja\",'[1]Mapa final'!#REF!=\"Mayor\"),CONCATENATE(\"R6C\",'[1]Mapa final'!#REF!),\"\")","v":{"$error":"#REF!"}},{"$f":"IF(AND('[1]Mapa final'!#REF!=\"Muy Baja\",'[1]Mapa final'!#REF!=\"Mayor\"),CONCATENATE(\"R6C\",'[1]Mapa final'!#REF!),\"\")","v":{"$error":"#REF!"}},{"$f":"IF(AND('[1]Mapa final'!#REF!=\"Muy Baja\",'[1]Mapa final'!#REF!=\"Mayor\"),CONCATENATE(\"R6C\",'[1]Mapa final'!#REF!),\"\")","v":{"$error":"#REF!"}},{"$f":"IF(AND('[1]Mapa final'!$AB$17=\"Muy Baja\",'[1]Mapa final'!$AD$17=\"Catastrófico\"),CONCATENATE(\"R6C\",'[1]Mapa final'!$R$17),\"\")","v":{"$error":"#REF!"}},{"$f":"IF(AND('[1]Mapa final'!#REF!=\"Muy Baja\",'[1]Mapa final'!#REF!=\"Catastrófico\"),CONCATENATE(\"R6C\",'[1]Mapa final'!#REF!),\"\")","v":{"$error":"#REF!"}},{"$f":"IF(AND('[1]Mapa final'!#REF!=\"Muy Baja\",'[1]Mapa final'!#REF!=\"Catastrófico\"),CONCATENATE(\"R6C\",'[1]Mapa final'!#REF!),\"\")","v":{"$error":"#REF!"}},{"$f":"IF(AND('[1]Mapa final'!#REF!=\"Muy Baja\",'[1]Mapa final'!#REF!=\"Catastrófico\"),CONCATENATE(\"R6C\",'[1]Mapa final'!#REF!),\"\")","v":{"$error":"#REF!"}},{"$f":"IF(AND('[1]Mapa final'!#REF!=\"Muy Baja\",'[1]Mapa final'!#REF!=\"Catastrófico\"),CONCATENATE(\"R6C\",'[1]Mapa final'!#REF!),\"\")","v":{"$error":"#REF!"}},{"$f":"IF(AND('[1]Mapa final'!#REF!=\"Muy Baja\",'[1]Mapa final'!#REF!=\"Catastrófico\"),CONCATENATE(\"R6C\",'[1]Mapa final'!#REF!),\"\")","v":{"$error":"#REF!"}}]
[null,null,null,null,null,null,null,null,null,{"$f":"IF(AND('[1]Mapa final'!$AA$18=\"Muy Baja\",'[1]Mapa final'!$AC$18=\"Leve\"),CONCATENATE(\"R7C\",'[1]Mapa final'!$Q$18),\"\")","v":{"$error":"#REF!"}},{"$f":"IF(AND('[1]Mapa final'!#REF!=\"Muy Baja\",'[1]Mapa final'!#REF!=\"Leve\"),CONCATENATE(\"R7C\",'[1]Mapa final'!#REF!),\"\")","v":{"$error":"#REF!"}},{"$f":"IF(AND('[1]Mapa final'!#REF!=\"Muy Baja\",'[1]Mapa final'!#REF!=\"Leve\"),CONCATENATE(\"R7C\",'[1]Mapa final'!#REF!),\"\")","v":{"$error":"#REF!"}},{"$f":"IF(AND('[1]Mapa final'!#REF!=\"Muy Baja\",'[1]Mapa final'!#REF!=\"Leve\"),CONCATENATE(\"R7C\",'[1]Mapa final'!#REF!),\"\")","v":{"$error":"#REF!"}},{"$f":"IF(AND('[1]Mapa final'!#REF!=\"Muy Baja\",'[1]Mapa final'!#REF!=\"Leve\"),CONCATENATE(\"R7C\",'[1]Mapa final'!#REF!),\"\")","v":{"$error":"#REF!"}},{"$f":"IF(AND('[1]Mapa final'!#REF!=\"Muy Baja\",'[1]Mapa final'!#REF!=\"Leve\"),CONCATENATE(\"R7C\",'[1]Mapa final'!#REF!),\"\")","v":{"$error":"#REF!"}},{"$f":"IF(AND('[1]Mapa final'!$AA$18=\"Muy Baja\",'[1]Mapa final'!$AC$18=\"Menor\"),CONCATENATE(\"R7C\",'[1]Mapa final'!$Q$18),\"\")","v":{"$error":"#REF!"}},{"$f":"IF(AND('[1]Mapa final'!#REF!=\"Muy Baja\",'[1]Mapa final'!#REF!=\"Menor\"),CONCATENATE(\"R7C\",'[1]Mapa final'!#REF!),\"\")","v":{"$error":"#REF!"}},{"$f":"IF(AND('[1]Mapa final'!#REF!=\"Muy Baja\",'[1]Mapa final'!#REF!=\"Menor\"),CONCATENATE(\"R7C\",'[1]Mapa final'!#REF!),\"\")","v":{"$error":"#REF!"}},{"$f":"IF(AND('[1]Mapa final'!#REF!=\"Muy Baja\",'[1]Mapa final'!#REF!=\"Menor\"),CONCATENATE(\"R7C\",'[1]Mapa final'!#REF!),\"\")","v":{"$error":"#REF!"}},{"$f":"IF(AND('[1]Mapa final'!#REF!=\"Muy Baja\",'[1]Mapa final'!#REF!=\"Menor\"),CONCATENATE(\"R7C\",'[1]Mapa final'!#REF!),\"\")","v":{"$error":"#REF!"}},{"$f":"IF(AND('[1]Mapa final'!#REF!=\"Muy Baja\",'[1]Mapa final'!#REF!=\"Menor\"),CONCATENATE(\"R7C\",'[1]Mapa final'!#REF!),\"\")","v":{"$error":"#REF!"}},{"$f":"IF(AND('[1]Mapa final'!$AA$18=\"Muy Baja\",'[1]Mapa final'!$AC$18=\"Moderado\"),CONCATENATE(\"R7C\",'[1]Mapa final'!$Q$18),\"\")","v":{"$error":"#REF!"}},{"$f":"IF(AND('[1]Mapa final'!#REF!=\"Muy Baja\",'[1]Mapa final'!#REF!=\"Moderado\"),CONCATENATE(\"R7C\",'[1]Mapa final'!#REF!),\"\")","v":{"$error":"#REF!"}},{"$f":"IF(AND('[1]Mapa final'!#REF!=\"Muy Baja\",'[1]Mapa final'!#REF!=\"Moderado\"),CONCATENATE(\"R7C\",'[1]Mapa final'!#REF!),\"\")","v":{"$error":"#REF!"}},{"$f":"IF(AND('[1]Mapa final'!#REF!=\"Muy Baja\",'[1]Mapa final'!#REF!=\"Moderado\"),CONCATENATE(\"R7C\",'[1]Mapa final'!#REF!),\"\")","v":{"$error":"#REF!"}},{"$f":"IF(AND('[1]Mapa final'!#REF!=\"Muy Baja\",'[1]Mapa final'!#REF!=\"Moderado\"),CONCATENATE(\"R7C\",'[1]Mapa final'!#REF!),\"\")","v":{"$error":"#REF!"}},{"$f":"IF(AND('[1]Mapa final'!#REF!=\"Muy Baja\",'[1]Mapa final'!#REF!=\"Moderado\"),CONCATENATE(\"R7C\",'[1]Mapa final'!#REF!),\"\")","v":{"$error":"#REF!"}},{"$f":"IF(AND('[1]Mapa final'!$AA$18=\"Muy Baja\",'[1]Mapa final'!$AC$18=\"Mayor\"),CONCATENATE(\"R7C\",'[1]Mapa final'!$Q$18),\"\")","v":{"$error":"#REF!"}},{"$f":"IF(AND('[1]Mapa final'!#REF!=\"Muy Baja\",'[1]Mapa final'!#REF!=\"Mayor\"),CONCATENATE(\"R7C\",'[1]Mapa final'!#REF!),\"\")","v":{"$error":"#REF!"}},{"$f":"IF(AND('[1]Mapa final'!#REF!=\"Muy Baja\",'[1]Mapa final'!#REF!=\"Mayor\"),CONCATENATE(\"R7C\",'[1]Mapa final'!#REF!),\"\")","v":{"$error":"#REF!"}},{"$f":"IF(AND('[1]Mapa final'!#REF!=\"Muy Baja\",'[1]Mapa final'!#REF!=\"Mayor\"),CONCATENATE(\"R7C\",'[1]Mapa final'!#REF!),\"\")","v":{"$error":"#REF!"}},{"$f":"IF(AND('[1]Mapa final'!#REF!=\"Muy Baja\",'[1]Mapa final'!#REF!=\"Mayor\"),CONCATENATE(\"R7C\",'[1]Mapa final'!#REF!),\"\")","v":{"$error":"#REF!"}},{"$f":"IF(AND('[1]Mapa final'!#REF!=\"Muy Baja\",'[1]Mapa final'!#REF!=\"Mayor\"),CONCATENATE(\"R7C\",'[1]Mapa final'!#REF!),\"\")","v":{"$error":"#REF!"}},{"$f":"IF(AND('[1]Mapa final'!$AA$18=\"Muy Baja\",'[1]Mapa final'!$AC$18=\"Catastrófico\"),CONCATENATE(\"R7C\",'[1]Mapa final'!$Q$18),\"\")","v":{"$error":"#REF!"}},{"$f":"IF(AND('[1]Mapa final'!#REF!=\"Muy Baja\",'[1]Mapa final'!#REF!=\"Catastrófico\"),CONCATENATE(\"R7C\",'[1]Mapa final'!#REF!),\"\")","v":{"$error":"#REF!"}},{"$f":"IF(AND('[1]Mapa final'!#REF!=\"Muy Baja\",'[1]Mapa final'!#REF!=\"Catastrófico\"),CONCATENATE(\"R7C\",'[1]Mapa final'!#REF!),\"\")","v":{"$error":"#REF!"}},{"$f":"IF(AND('[1]Mapa final'!#REF!=\"Muy Baja\",'[1]Mapa final'!#REF!=\"Catastrófico\"),CONCATENATE(\"R7C\",'[1]Mapa final'!#REF!),\"\")","v":{"$error":"#REF!"}},{"$f":"IF(AND('[1]Mapa final'!#REF!=\"Muy Baja\",'[1]Mapa final'!#REF!=\"Catastrófico\"),CONCATENATE(\"R7C\",'[1]Mapa final'!#REF!),\"\")","v":{"$error":"#REF!"}},{"$f":"IF(AND('[1]Mapa final'!#REF!=\"Muy Baja\",'[1]Mapa final'!#REF!=\"Catastrófico\"),CONCATENATE(\"R7C\",'[1]Mapa final'!#REF!),\"\")","v":{"$error":"#REF!"}}]
[null,null,null,null,null,null,null,null,null,{"$f":"IF(AND('[1]Mapa final'!$AA$19=\"Muy Baja\",'[1]Mapa final'!$AC$19=\"Leve\"),CONCATENATE(\"R8C\",'[1]Mapa final'!$Q$19),\"\")","v":{"$error":"#REF!"}},{"$f":"IF(AND('[1]Mapa final'!#REF!=\"Muy Baja\",'[1]Mapa final'!#REF!=\"Leve\"),CONCATENATE(\"R8C\",'[1]Mapa final'!#REF!),\"\")","v":{"$error":"#REF!"}},{"$f":"IF(AND('[1]Mapa final'!#REF!=\"Muy Baja\",'[1]Mapa final'!#REF!=\"Leve\"),CONCATENATE(\"R8C\",'[1]Mapa final'!#REF!),\"\")","v":{"$error":"#REF!"}},{"$f":"IF(AND('[1]Mapa final'!#REF!=\"Muy Baja\",'[1]Mapa final'!#REF!=\"Leve\"),CONCATENATE(\"R8C\",'[1]Mapa final'!#REF!),\"\")","v":{"$error":"#REF!"}},{"$f":"IF(AND('[1]Mapa final'!#REF!=\"Muy Baja\",'[1]Mapa final'!#REF!=\"Leve\"),CONCATENATE(\"R8C\",'[1]Mapa final'!#REF!),\"\")","v":{"$error":"#REF!"}},{"$f":"IF(AND('[1]Mapa final'!#REF!=\"Muy Baja\",'[1]Mapa final'!#REF!=\"Leve\"),CONCATENATE(\"R8C\",'[1]Mapa final'!#REF!),\"\")","v":{"$error":"#REF!"}},{"$f":"IF(AND('[1]Mapa final'!$AA$19=\"Muy Baja\",'[1]Mapa final'!$AC$19=\"Menor\"),CONCATENATE(\"R8C\",'[1]Mapa final'!$Q$19),\"\")","v":{"$error":"#REF!"}},{"$f":"IF(AND('[1]Mapa final'!#REF!=\"Muy Baja\",'[1]Mapa final'!#REF!=\"Menor\"),CONCATENATE(\"R8C\",'[1]Mapa final'!#REF!),\"\")","v":{"$error":"#REF!"}},{"$f":"IF(AND('[1]Mapa final'!#REF!=\"Muy Baja\",'[1]Mapa final'!#REF!=\"Menor\"),CONCATENATE(\"R8C\",'[1]Mapa final'!#REF!),\"\")","v":{"$error":"#REF!"}},{"$f":"IF(AND('[1]Mapa final'!#REF!=\"Muy Baja\",'[1]Mapa final'!#REF!=\"Menor\"),CONCATENATE(\"R8C\",'[1]Mapa final'!#REF!),\"\")","v":{"$error":"#REF!"}},{"$f":"IF(AND('[1]Mapa final'!#REF!=\"Muy Baja\",'[1]Mapa final'!#REF!=\"Menor\"),CONCATENATE(\"R8C\",'[1]Mapa final'!#REF!),\"\")","v":{"$error":"#REF!"}},{"$f":"IF(AND('[1]Mapa final'!#REF!=\"Muy Baja\",'[1]Mapa final'!#REF!=\"Menor\"),CONCATENATE(\"R8C\",'[1]Mapa final'!#REF!),\"\")","v":{"$error":"#REF!"}},{"$f":"IF(AND('[1]Mapa final'!$AA$19=\"Muy Baja\",'[1]Mapa final'!$AC$19=\"Moderado\"),CONCATENATE(\"R8C\",'[1]Mapa final'!$Q$19),\"\")","v":{"$error":"#REF!"}},{"$f":"IF(AND('[1]Mapa final'!#REF!=\"Muy Baja\",'[1]Mapa final'!#REF!=\"Moderado\"),CONCATENATE(\"R8C\",'[1]Mapa final'!#REF!),\"\")","v":{"$error":"#REF!"}},{"$f":"IF(AND('[1]Mapa final'!#REF!=\"Muy Baja\",'[1]Mapa final'!#REF!=\"Moderado\"),CONCATENATE(\"R8C\",'[1]Mapa final'!#REF!),\"\")","v":{"$error":"#REF!"}},{"$f":"IF(AND('[1]Mapa final'!#REF!=\"Muy Baja\",'[1]Mapa final'!#REF!=\"Moderado\"),CONCATENATE(\"R8C\",'[1]Mapa final'!#REF!),\"\")","v":{"$error":"#REF!"}},{"$f":"IF(AND('[1]Mapa final'!#REF!=\"Muy Baja\",'[1]Mapa final'!#REF!=\"Moderado\"),CONCATENATE(\"R8C\",'[1]Mapa final'!#REF!),\"\")","v":{"$error":"#REF!"}},{"$f":"IF(AND('[1]Mapa final'!#REF!=\"Muy Baja\",'[1]Mapa final'!#REF!=\"Moderado\"),CONCATENATE(\"R8C\",'[1]Mapa final'!#REF!),\"\")","v":{"$error":"#REF!"}},{"$f":"IF(AND('[1]Mapa final'!$AA$19=\"Muy Baja\",'[1]Mapa final'!$AC$19=\"Mayor\"),CONCATENATE(\"R8C\",'[1]Mapa final'!$Q$19),\"\")","v":{"$error":"#REF!"}},{"$f":"IF(AND('[1]Mapa final'!#REF!=\"Muy Baja\",'[1]Mapa final'!#REF!=\"Mayor\"),CONCATENATE(\"R8C\",'[1]Mapa final'!#REF!),\"\")","v":{"$error":"#REF!"}},{"$f":"IF(AND('[1]Mapa final'!#REF!=\"Muy Baja\",'[1]Mapa final'!#REF!=\"Mayor\"),CONCATENATE(\"R8C\",'[1]Mapa final'!#REF!),\"\")","v":{"$error":"#REF!"}},{"$f":"IF(AND('[1]Mapa final'!#REF!=\"Muy Baja\",'[1]Mapa final'!#REF!=\"Mayor\"),CONCATENATE(\"R8C\",'[1]Mapa final'!#REF!),\"\")","v":{"$error":"#REF!"}},{"$f":"IF(AND('[1]Mapa final'!#REF!=\"Muy Baja\",'[1]Mapa final'!#REF!=\"Mayor\"),CONCATENATE(\"R8C\",'[1]Mapa final'!#REF!),\"\")","v":{"$error":"#REF!"}},{"$f":"IF(AND('[1]Mapa final'!#REF!=\"Muy Baja\",'[1]Mapa final'!#REF!=\"Mayor\"),CONCATENATE(\"R8C\",'[1]Mapa final'!#REF!),\"\")","v":{"$error":"#REF!"}},{"$f":"IF(AND('[1]Mapa final'!$AA$19=\"Muy Baja\",'[1]Mapa final'!$AC$19=\"Catastrófico\"),CONCATENATE(\"R8C\",'[1]Mapa final'!$Q$19),\"\")","v":{"$error":"#REF!"}},{"$f":"IF(AND('[1]Mapa final'!#REF!=\"Muy Baja\",'[1]Mapa final'!#REF!=\"Catastrófico\"),CONCATENATE(\"R8C\",'[1]Mapa final'!#REF!),\"\")","v":{"$error":"#REF!"}},{"$f":"IF(AND('[1]Mapa final'!#REF!=\"Muy Baja\",'[1]Mapa final'!#REF!=\"Catastrófico\"),CONCATENATE(\"R8C\",'[1]Mapa final'!#REF!),\"\")","v":{"$error":"#REF!"}},{"$f":"IF(AND('[1]Mapa final'!#REF!=\"Muy Baja\",'[1]Mapa final'!#REF!=\"Catastrófico\"),CONCATENATE(\"R8C\",'[1]Mapa final'!#REF!),\"\")","v":{"$error":"#REF!"}},{"$f":"IF(AND('[1]Mapa final'!#REF!=\"Muy Baja\",'[1]Mapa final'!#REF!=\"Catastrófico\"),CONCATENATE(\"R8C\",'[1]Mapa final'!#REF!),\"\")","v":{"$error":"#REF!"}},{"$f":"IF(AND('[1]Mapa final'!#REF!=\"Muy Baja\",'[1]Mapa final'!#REF!=\"Catastrófico\"),CONCATENATE(\"R8C\",'[1]Mapa final'!#REF!),\"\")","v":{"$error":"#REF!"}}]
[null,null,null,null,null,null,null,null,null,{"$f":"IF(AND('[1]Mapa final'!$AA$20=\"Muy Baja\",'[1]Mapa final'!$AC$20=\"Leve\"),CONCATENATE(\"R9C\",'[1]Mapa final'!$Q$20),\"\")","v":{"$error":"#REF!"}},{"$f":"IF(AND('[1]Mapa final'!#REF!=\"Muy Baja\",'[1]Mapa final'!#REF!=\"Leve\"),CONCATENATE(\"R9C\",'[1]Mapa final'!#REF!),\"\")","v":{"$error":"#REF!"}},{"$f":"IF(AND('[1]Mapa final'!#REF!=\"Muy Baja\",'[1]Mapa final'!#REF!=\"Leve\"),CONCATENATE(\"R9C\",'[1]Mapa final'!#REF!),\"\")","v":{"$error":"#REF!"}},{"$f":"IF(AND('[1]Mapa final'!#REF!=\"Muy Baja\",'[1]Mapa final'!#REF!=\"Leve\"),CONCATENATE(\"R9C\",'[1]Mapa final'!#REF!),\"\")","v":{"$error":"#REF!"}},{"$f":"IF(AND('[1]Mapa final'!#REF!=\"Muy Baja\",'[1]Mapa final'!#REF!=\"Leve\"),CONCATENATE(\"R9C\",'[1]Mapa final'!#REF!),\"\")","v":{"$error":"#REF!"}},{"$f":"IF(AND('[1]Mapa final'!#REF!=\"Muy Baja\",'[1]Mapa final'!#REF!=\"Leve\"),CONCATENATE(\"R9C\",'[1]Mapa final'!#REF!),\"\")","v":{"$error":"#REF!"}},{"$f":"IF(AND('[1]Mapa final'!$AA$20=\"Muy Baja\",'[1]Mapa final'!$AC$20=\"Menor\"),CONCATENATE(\"R9C\",'[1]Mapa final'!$Q$20),\"\")","v":{"$error":"#REF!"}},{"$f":"IF(AND('[1]Mapa final'!#REF!=\"Muy Baja\",'[1]Mapa final'!#REF!=\"Menor\"),CONCATENATE(\"R9C\",'[1]Mapa final'!#REF!),\"\")","v":{"$error":"#REF!"}},{"$f":"IF(AND('[1]Mapa final'!#REF!=\"Muy Baja\",'[1]Mapa final'!#REF!=\"Menor\"),CONCATENATE(\"R9C\",'[1]Mapa final'!#REF!),\"\")","v":{"$error":"#REF!"}},{"$f":"IF(AND('[1]Mapa final'!#REF!=\"Muy Baja\",'[1]Mapa final'!#REF!=\"Menor\"),CONCATENATE(\"R9C\",'[1]Mapa final'!#REF!),\"\")","v":{"$error":"#REF!"}},{"$f":"IF(AND('[1]Mapa final'!#REF!=\"Muy Baja\",'[1]Mapa final'!#REF!=\"Menor\"),CONCATENATE(\"R9C\",'[1]Mapa final'!#REF!),\"\")","v":{"$error":"#REF!"}},{"$f":"IF(AND('[1]Mapa final'!#REF!=\"Muy Baja\",'[1]Mapa final'!#REF!=\"Menor\"),CONCATENATE(\"R9C\",'[1]Mapa final'!#REF!),\"\")","v":{"$error":"#REF!"}},{"$f":"IF(AND('[1]Mapa final'!$AA$20=\"Muy Baja\",'[1]Mapa final'!$AC$20=\"Moderado\"),CONCATENATE(\"R9C\",'[1]Mapa final'!$Q$20),\"\")","v":{"$error":"#REF!"}},{"$f":"IF(AND('[1]Mapa final'!#REF!=\"Muy Baja\",'[1]Mapa final'!#REF!=\"Moderado\"),CONCATENATE(\"R9C\",'[1]Mapa final'!#REF!),\"\")","v":{"$error":"#REF!"}},{"$f":"IF(AND('[1]Mapa final'!#REF!=\"Muy Baja\",'[1]Mapa final'!#REF!=\"Moderado\"),CONCATENATE(\"R9C\",'[1]Mapa final'!#REF!),\"\")","v":{"$error":"#REF!"}},{"$f":"IF(AND('[1]Mapa final'!#REF!=\"Muy Baja\",'[1]Mapa final'!#REF!=\"Moderado\"),CONCATENATE(\"R9C\",'[1]Mapa final'!#REF!),\"\")","v":{"$error":"#REF!"}},{"$f":"IF(AND('[1]Mapa final'!#REF!=\"Muy Baja\",'[1]Mapa final'!#REF!=\"Moderado\"),CONCATENATE(\"R9C\",'[1]Mapa final'!#REF!),\"\")","v":{"$error":"#REF!"}},{"$f":"IF(AND('[1]Mapa final'!#REF!=\"Muy Baja\",'[1]Mapa final'!#REF!=\"Moderado\"),CONCATENATE(\"R9C\",'[1]Mapa final'!#REF!),\"\")","v":{"$error":"#REF!"}},{"$f":"IF(AND('[1]Mapa final'!$AA$20=\"Muy Baja\",'[1]Mapa final'!$AC$20=\"Mayor\"),CONCATENATE(\"R9C\",'[1]Mapa final'!$Q$20),\"\")","v":{"$error":"#REF!"}},{"$f":"IF(AND('[1]Mapa final'!#REF!=\"Muy Baja\",'[1]Mapa final'!#REF!=\"Mayor\"),CONCATENATE(\"R9C\",'[1]Mapa final'!#REF!),\"\")","v":{"$error":"#REF!"}},{"$f":"IF(AND('[1]Mapa final'!#REF!=\"Muy Baja\",'[1]Mapa final'!#REF!=\"Mayor\"),CONCATENATE(\"R9C\",'[1]Mapa final'!#REF!),\"\")","v":{"$error":"#REF!"}},{"$f":"IF(AND('[1]Mapa final'!#REF!=\"Muy Baja\",'[1]Mapa final'!#REF!=\"Mayor\"),CONCATENATE(\"R9C\",'[1]Mapa final'!#REF!),\"\")","v":{"$error":"#REF!"}},{"$f":"IF(AND('[1]Mapa final'!#REF!=\"Muy Baja\",'[1]Mapa final'!#REF!=\"Mayor\"),CONCATENATE(\"R9C\",'[1]Mapa final'!#REF!),\"\")","v":{"$error":"#REF!"}},{"$f":"IF(AND('[1]Mapa final'!#REF!=\"Muy Baja\",'[1]Mapa final'!#REF!=\"Mayor\"),CONCATENATE(\"R9C\",'[1]Mapa final'!#REF!),\"\")","v":{"$error":"#REF!"}},{"$f":"IF(AND('[1]Mapa final'!$AA$20=\"Muy Baja\",'[1]Mapa final'!$AC$20=\"Catastrófico\"),CONCATENATE(\"R9C\",'[1]Mapa final'!$Q$20),\"\")","v":{"$error":"#REF!"}},{"$f":"IF(AND('[1]Mapa final'!#REF!=\"Muy Baja\",'[1]Mapa final'!#REF!=\"Catastrófico\"),CONCATENATE(\"R9C\",'[1]Mapa final'!#REF!),\"\")","v":{"$error":"#REF!"}},{"$f":"IF(AND('[1]Mapa final'!#REF!=\"Muy Baja\",'[1]Mapa final'!#REF!=\"Catastrófico\"),CONCATENATE(\"R9C\",'[1]Mapa final'!#REF!),\"\")","v":{"$error":"#REF!"}},{"$f":"IF(AND('[1]Mapa final'!#REF!=\"Muy Baja\",'[1]Mapa final'!#REF!=\"Catastrófico\"),CONCATENATE(\"R9C\",'[1]Mapa final'!#REF!),\"\")","v":{"$error":"#REF!"}},{"$f":"IF(AND('[1]Mapa final'!#REF!=\"Muy Baja\",'[1]Mapa final'!#REF!=\"Catastrófico\"),CONCATENATE(\"R9C\",'[1]Mapa final'!#REF!),\"\")","v":{"$error":"#REF!"}},{"$f":"IF(AND('[1]Mapa final'!#REF!=\"Muy Baja\",'[1]Mapa final'!#REF!=\"Catastrófico\"),CONCATENATE(\"R9C\",'[1]Mapa final'!#REF!),\"\")","v":{"$error":"#REF!"}}]
[null,null,null,null,null,null,null,null,null,{"$f":"IF(AND('[1]Mapa final'!$AA$21=\"Muy Baja\",'[1]Mapa final'!$AC$21=\"Leve\"),CONCATENATE(\"R10C\",'[1]Mapa final'!$Q$21),\"\")","v":{"$error":"#REF!"}},{"$f":"IF(AND('[1]Mapa final'!#REF!=\"Muy Baja\",'[1]Mapa final'!#REF!=\"Leve\"),CONCATENATE(\"R10C\",'[1]Mapa final'!#REF!),\"\")","v":{"$error":"#REF!"}},{"$f":"IF(AND('[1]Mapa final'!#REF!=\"Muy Baja\",'[1]Mapa final'!#REF!=\"Leve\"),CONCATENATE(\"R10C\",'[1]Mapa final'!#REF!),\"\")","v":{"$error":"#REF!"}},{"$f":"IF(AND('[1]Mapa final'!#REF!=\"Muy Baja\",'[1]Mapa final'!#REF!=\"Leve\"),CONCATENATE(\"R10C\",'[1]Mapa final'!#REF!),\"\")","v":{"$error":"#REF!"}},{"$f":"IF(AND('[1]Mapa final'!#REF!=\"Muy Baja\",'[1]Mapa final'!#REF!=\"Leve\"),CONCATENATE(\"R10C\",'[1]Mapa final'!#REF!),\"\")","v":{"$error":"#REF!"}},{"$f":"IF(AND('[1]Mapa final'!#REF!=\"Muy Baja\",'[1]Mapa final'!#REF!=\"Leve\"),CONCATENATE(\"R10C\",'[1]Mapa final'!#REF!),\"\")","v":{"$error":"#REF!"}},{"$f":"IF(AND('[1]Mapa final'!$AA$21=\"Muy Baja\",'[1]Mapa final'!$AC$21=\"Menor\"),CONCATENATE(\"R10C\",'[1]Mapa final'!$Q$21),\"\")","v":{"$error":"#REF!"}},{"$f":"IF(AND('[1]Mapa final'!#REF!=\"Muy Baja\",'[1]Mapa final'!#REF!=\"Menor\"),CONCATENATE(\"R10C\",'[1]Mapa final'!#REF!),\"\")","v":{"$error":"#REF!"}},{"$f":"IF(AND('[1]Mapa final'!#REF!=\"Muy Baja\",'[1]Mapa final'!#REF!=\"Menor\"),CONCATENATE(\"R10C\",'[1]Mapa final'!#REF!),\"\")","v":{"$error":"#REF!"}},{"$f":"IF(AND('[1]Mapa final'!#REF!=\"Muy Baja\",'[1]Mapa final'!#REF!=\"Menor\"),CONCATENATE(\"R10C\",'[1]Mapa final'!#REF!),\"\")","v":{"$error":"#REF!"}},{"$f":"IF(AND('[1]Mapa final'!#REF!=\"Muy Baja\",'[1]Mapa final'!#REF!=\"Menor\"),CONCATENATE(\"R10C\",'[1]Mapa final'!#REF!),\"\")","v":{"$error":"#REF!"}},{"$f":"IF(AND('[1]Mapa final'!#REF!=\"Muy Baja\",'[1]Mapa final'!#REF!=\"Menor\"),CONCATENATE(\"R10C\",'[1]Mapa final'!#REF!),\"\")","v":{"$error":"#REF!"}},{"$f":"IF(AND('[1]Mapa final'!$AA$21=\"Muy Baja\",'[1]Mapa final'!$AC$21=\"Moderado\"),CONCATENATE(\"R10C\",'[1]Mapa final'!$Q$21),\"\")","v":{"$error":"#REF!"}},{"$f":"IF(AND('[1]Mapa final'!#REF!=\"Muy Baja\",'[1]Mapa final'!#REF!=\"Moderado\"),CONCATENATE(\"R10C\",'[1]Mapa final'!#REF!),\"\")","v":{"$error":"#REF!"}},{"$f":"IF(AND('[1]Mapa final'!#REF!=\"Muy Baja\",'[1]Mapa final'!#REF!=\"Moderado\"),CONCATENATE(\"R10C\",'[1]Mapa final'!#REF!),\"\")","v":{"$error":"#REF!"}},{"$f":"IF(AND('[1]Mapa final'!#REF!=\"Muy Baja\",'[1]Mapa final'!#REF!=\"Moderado\"),CONCATENATE(\"R10C\",'[1]Mapa final'!#REF!),\"\")","v":{"$error":"#REF!"}},{"$f":"IF(AND('[1]Mapa final'!#REF!=\"Muy Baja\",'[1]Mapa final'!#REF!=\"Moderado\"),CONCATENATE(\"R10C\",'[1]Mapa final'!#REF!),\"\")","v":{"$error":"#REF!"}},{"$f":"IF(AND('[1]Mapa final'!#REF!=\"Muy Baja\",'[1]Mapa final'!#REF!=\"Moderado\"),CONCATENATE(\"R10C\",'[1]Mapa final'!#REF!),\"\")","v":{"$error":"#REF!"}},{"$f":"IF(AND('[1]Mapa final'!$AA$21=\"Muy Baja\",'[1]Mapa final'!$AC$21=\"Mayor\"),CONCATENATE(\"R10C\",'[1]Mapa final'!$Q$21),\"\")","v":{"$error":"#REF!"}},{"$f":"IF(AND('[1]Mapa final'!#REF!=\"Muy Baja\",'[1]Mapa final'!#REF!=\"Mayor\"),CONCATENATE(\"R10C\",'[1]Mapa final'!#REF!),\"\")","v":{"$error":"#REF!"}},{"$f":"IF(AND('[1]Mapa final'!#REF!=\"Muy Baja\",'[1]Mapa final'!#REF!=\"Mayor\"),CONCATENATE(\"R10C\",'[1]Mapa final'!#REF!),\"\")","v":{"$error":"#REF!"}},{"$f":"IF(AND('[1]Mapa final'!#REF!=\"Muy Baja\",'[1]Mapa final'!#REF!=\"Mayor\"),CONCATENATE(\"R10C\",'[1]Mapa final'!#REF!),\"\")","v":{"$error":"#REF!"}},{"$f":"IF(AND('[1]Mapa final'!#REF!=\"Muy Baja\",'[1]Mapa final'!#REF!=\"Mayor\"),CONCATENATE(\"R10C\",'[1]Mapa final'!#REF!),\"\")","v":{"$error":"#REF!"}},{"$f":"IF(AND('[1]Mapa final'!#REF!=\"Muy Baja\",'[1]Mapa final'!#REF!=\"Mayor\"),CONCATENATE(\"R10C\",'[1]Mapa final'!#REF!),\"\")","v":{"$error":"#REF!"}},{"$f":"IF(AND('[1]Mapa final'!$AA$21=\"Muy Baja\",'[1]Mapa final'!$AC$21=\"Catastrófico\"),CONCATENATE(\"R10C\",'[1]Mapa final'!$Q$21),\"\")","v":{"$error":"#REF!"}},{"$f":"IF(AND('[1]Mapa final'!#REF!=\"Muy Baja\",'[1]Mapa final'!#REF!=\"Catastrófico\"),CONCATENATE(\"R10C\",'[1]Mapa final'!#REF!),\"\")","v":{"$error":"#REF!"}},{"$f":"IF(AND('[1]Mapa final'!#REF!=\"Muy Baja\",'[1]Mapa final'!#REF!=\"Catastrófico\"),CONCATENATE(\"R10C\",'[1]Mapa final'!#REF!),\"\")","v":{"$error":"#REF!"}},{"$f":"IF(AND('[1]Mapa final'!#REF!=\"Muy Baja\",'[1]Mapa final'!#REF!=\"Catastrófico\"),CONCATENATE(\"R10C\",'[1]Mapa final'!#REF!),\"\")","v":{"$error":"#REF!"}},{"$f":"IF(AND('[1]Mapa final'!#REF!=\"Muy Baja\",'[1]Mapa final'!#REF!=\"Catastrófico\"),CONCATENATE(\"R10C\",'[1]Mapa final'!#REF!),\"\")","v":{"$error":"#REF!"}},{"$f":"IF(AND('[1]Mapa final'!#REF!=\"Muy Baja\",'[1]Mapa final'!#REF!=\"Catastrófico\"),CONCATENATE(\"R10C\",'[1]Mapa final'!#REF!),\"\")","v":{"$error":"#REF!"}}]
[null,null,null,null,null,null,null,null,null,"Leve\n20%",null,null,null,null,null,"Menor\n40%",null,null,null,null,null,"Moderado\n60%",null,null,null,null,null,"Mayor\n80%",null,null,null,null,null,"Catastrófico\n100%"]

{"sheet":"Tabla probabilidad","index":4,"n_rows":8,"n_cols":4,"rows_kept":8,"cut":false,"hidden":false,"merged":[[0,1,0,3]]}
[null,"Tabla Criterios para definir el nivel de probabilidad"]
[]
[null,null,"Frecuencia de la Actividad","Probabilidad"]
[null,"Muy Baja","La actividad que conlleva el riesgo se ejecuta como máximos 2 veces por año",0.2]
[null,"Baja","La actividad que conlleva el riesgo se ejecuta de 3 a 24 veces por año",0.4]
[null,"Media","La actividad que conlleva el riesgo se ejecuta de 24 a 500 veces por año",0.6]
[null,"Alta","La actividad que conlleva el riesgo se ejecuta mínimo 500 veces al año y máximo 5000 veces por año",0.8]
[null,"Muy Alta","La actividad que conlleva el riesgo se ejecuta más de 5000 veces por año",1]

{"sheet":"Tabla Impacto","index":5,"n_rows":224,"n_cols":8,"rows_kept":224,"cut":false,"hidden":false,"merged":[[0,1,0,3]]}
[null,"Tabla Criterios para definir el nivel de impacto"]
[]
[null,null,"Afectación Económica (o presupuestal)","Pérdida Reputacional"]
["Insignificante","Leve 20%","Afectación menor a 10 SMLMV","El riesgo afecta la imagen de alguna área de la organización"]
["Menor","Menor-40% ","Entre 10 y 50 SMLMV","El riesgo afecta la imagen de la entidad internamente, de conocimiento general nivel interno, de junta directiva y accionistas y/o de provedores"]
["Moderado","Moderado 60%","Entre 50 y 100 SMLMV","El riesgo afecta la imagen de la entidad con algunos usuarios de relevancia frente al logro de los objetivos"]
["Mayor","Mayor 80%","Entre 100 y 500 SMLMV","El riesgo afecta la imagen de de la entidad con efecto publicitario sostenido a nivel de sector administrativo, nivel departamental o municipal"]
["Catastrófico","Catastrófico 100%","Mayor a 500 SMLMV","El riesgo afecta la imagen de la entidad a nivel nacional, con efecto publicitarios sostenible a nivel país"]
[]
[null,null,"Afectación_Económica_o_presupuestal"]
[null,"Afectación_Económica_o_presupuestal","     Afectación menor a 10 SMLMV .","     El riesgo afecta la imagen de alguna área de la organización"]
[null,"Pérdida_Reputacional","     Entre 10 y 50 SMLMV ","     El riesgo afecta la imagen de la entidad internamente, de conocimiento general, nivel interno, de junta dircetiva y accionistas y/o de provedores"]
[null,"El riesgo afecta la imagen de la entidad internamente, de conocimiento general, nivel interno, de junta dircetiva y accionistas y/o de provedores ","     Entre 50 y 100 SMLMV ","     El riesgo afecta la imagen de la entidad con algunos usuarios de relevancia frente al logro de los objetivos"]
[null,null,"     Entre 100 y 500 SMLMV ","     El riesgo afecta la imagen de de la entidad con efecto publicitario sostenido a nivel de sector administrativo, nivel departamental o municipal"]
[null,null,"     Mayor a 500 SMLMV ","     El riesgo afecta la imagen de la entidad a nivel nacional, con efecto publicitarios sostenible a nivel país"]
[null,null,"Pérdida_Reputacional"]
[null,null,"     El riesgo afecta la imagen de alguna área de la organización"]
[null,null,"     El riesgo afecta la imagen de la entidad internamente, de conocimiento general, nivel interno, de junta dircetiva y accionistas y/o de provedores"]
[null,null,"     El riesgo afecta la imagen de la entidad con algunos usuarios de relevancia frente al logro de los objetivos"]
[null,null,"     El riesgo afecta la imagen de de la entidad con efecto publicitario sostenido a nivel de sector administrativo, nivel departamental o municipal"]
[null,null,"     El riesgo afecta la imagen de la entidad a nivel nacional, con efecto publicitarios sostenible a nivel país"]
[]
[]
[]
[]
[]
[]
[]
[]
[]
[]
[]
[]
[]
[]
[]
[]
[]
[]
[]
[]
[]
[]
[]
[]
[]
[]
[]
[]
[]
[]
[]
[]
[]
[]
[]
[]
[]
[]
[]
[]
[]
[]
[]
[]
[]
[]
[]
[]
[]
[]
[]
[]
[]
[]
[]
[]
[]
[]
[]
[]
[]
[]
[]
[]
[]
[]
[]
[]
[]
[]
[]
[]
[]
[]
[]
[]
[]
[]
[]
[]
[]
[]
[]
[]
[]
[]
[]
[]
[]
[]
[]
[]
[]
[]
[]
[]
[]
[]
[]
[]
[]
[]
[]
[]
[]
[]
[]
[]
[]
[]
[]
[]
[]
[]
[]
[]
[]
[]
[]
[]
[]
[]
[]
[]
[]
[]
[]
[]
[]
[]
[]
[]
[]
[]
[]
[]
[]
[]
[]
[]
[]
[]
[]
[]
[]
[]
[]
[]
[]
[]
[]
[]
[]
[]
[]
[]
[]
[]
[]
[]
[]
[]
[]
[]
[]
[]
[]
[]
[]
[]
[]
[]
[]
[]
[]
[]
[]
[]
[]
[]
[]
[]
[]
[]
[]
[]
[]
[null,"Criterios","Subcriterios","Criterios","Subcriterios"]
[null,"Afectación Económica o presupuestal","Afectación menor a 10 SMLMV .","Afectación Económica o presupuestal",null,{"$f":"IF(NOT(ISBLANK(D210)),D210,IF(NOT(ISBLANK(E210)),\"     \"&E210,FALSE))","v":"Afectación Económica o presupuestal"},"Afectación Económica o presupuestal",{"$f":"IF(NOT(ISERROR(MATCH(G210,ANCHORARRAY(B221),0))),F223&\"Por favor no seleccionar los criterios de impacto\",G210)","v":"Afectación Económica o presupuestal"}]
[null,"Afectación Económica o presupuestal","Entre 10 y 50 SMLMV ",null,"Afectación menor a 10 SMLMV .","     Afectación menor a 10 SMLMV ."]
[null,"Afectación Económica o presupuestal","Entre 50 y 100 SMLMV ",null,"Entre 10 y 50 SMLMV ","     Entre 10 y 50 SMLMV "]
[null,"Afectación Económica o presupuestal","Entre 100 y 500 SMLMV ",null,"Entre 50 y 100 SMLMV ","     Entre 50 y 100 SMLMV "]
[null,"Afectación Económica o presupuestal","Mayor a 500 SMLMV ",null,"Entre 100 y 500 SMLMV ","     Entre 100 y 500 SMLMV "]
[null,"Pérdida Reputacional","El riesgo afecta la imagen de alguna área de la organización",null,"Mayor a 500 SMLMV ","     Mayor a 500 SMLMV "]
[null,"Pérdida Reputacional","El riesgo afecta la imagen de la entidad internamente, de conocimiento general, nivel interno, de junta dircetiva y accionistas y/o de provedores","Pérdida Reputacional",null,"Pérdida Reputacional"]
[null,"Pérdida Reputacional","El riesgo afecta la imagen de la entidad con algunos usuarios de relevancia frente al logro de los objetivos",null,"El riesgo afecta la imagen de alguna área de la organización","     El riesgo afecta la imagen de alguna área de la organización"]
[null,"Pérdida Reputacional","El riesgo afecta la imagen de de la entidad con efecto publicitario sostenido a nivel de sector administrativo, nivel departamental o municipal",null,"El riesgo afecta la imagen de la entidad internamente, de conocimiento general, nivel interno, de junta dircetiva y accionistas y/o de provedores","     El riesgo afecta la imagen de la entidad internamente, de conocimiento general, nivel interno, de junta dircetiva y accionistas y/o de provedores"]
[null,"Pérdida Reputacional","El riesgo afecta la imagen de la entidad a nivel nacional, con efecto publicitarios sostenible a nivel país",null,"El riesgo afecta la imagen de la entidad con algunos usuarios de relevancia frente al logro de los objetivos","     El riesgo afecta la imagen de la entidad con algunos usuarios de relevancia frente al logro de los objetivos"]
[null,null,null,null,"El riesgo afecta la imagen de de la entidad con efecto publicitario sostenido a nivel de sector administrativo, nivel departamental o municipal","     El riesgo afecta la imagen de de la entidad con efecto publicitario sostenido a nivel de sector administrativo, nivel departamental o municipal"]
[null,{"$f":"IFERROR(__xludf.DUMMYFUNCTION(\"ARRAY_CONSTRAIN(ARRAYFORMULA(UNIQUE('Tabla Impacto'!$B$209:$B$219)), 3, 1)\"),\"Criterios\")","v":"Criterios"},null,null,"El riesgo afecta la imagen de la entidad a nivel nacional, con efecto publicitarios sostenible a nivel país","     El riesgo afecta la imagen de la entidad a nivel nacional, con efecto publicitarios sostenible a nivel país"]
[null,{"$f":"IFERROR(__xludf.DUMMYFUNCTION(\"\"\"COMPUTED_VALUE\"\"\"),\"Afectación Económica o presupuestal\")","v":"Afectación Económica o presupuestal"}]
[null,{"$f":"IFERROR(__xludf.DUMMYFUNCTION(\"\"\"COMPUTED_VALUE\"\"\"),\"Pérdida Reputacional\")","v":"Pérdida Reputacional"},null,null,null,"❌"]
[null,null,null,null,null,"✔"]

{"sheet":"Tabla Valoración controles","index":6,"n_rows":72,"n_cols":6,"rows_kept":72,"cut":false,"hidden":true,"merged":[[14,1,14,5],[10,2,11,2],[12,2,13,2],[0,1,0,5],[2,1,2,3],[3,1,7,1],[3,2,5,2],[6,2,7,2],[8,1,13,1],[8,2,9,2]]}
[null,"Tabla Atributos de para el diseño del control"]
[]
[null,"Características",null,null,"Descripción","Peso"]
[null,"Atributos de Eficiencia","Tipo","Preventivo","Va hacia las causas del riesgo, aseguran el resultado final esperado.",0.25]
[null,null,null,"Detectivo","Detecta que algo ocurre y devuelve el proceso a los controles preventivos.\nSe pueden generar reprocesos.",0.15]
[null,null,null,"Correctivo","Dado que permiten reducir el impacto de la materialización del riesgo, tienen un costo en su implementación.",0.1]
[null,null,"Implementación","Automático","Son actividades de procesamiento o validación de información que se ejecutan por un sistema y/o aplicativo de manera automática sin la intervención de personas para su realización.",0.25]
[null,null,null,"Manual","Controles que son ejecutados por una persona., tiene implícito el error humano.",0.15]
[null,"*Atributos de Formalización","Documentación","Documentado","Controles que están documentados en el proceso, ya sea en manuales, procedimientos, flujogramas o cualquier otro documento propio del proceso.","-"]
[null,null,null,"Sin Documentar","Identifica a los controles que pese a que se ejecutan en el proceso no se encuentran documentados en ningún documento propio del proceso","-"]
[null,null,"Frecuencia","Continua","Este atributo identifica a los controles que se ejecutan siempre que se realiza la actividad originadora del riesgo.","-"]
[null,null,null,"Aleatoria","Este atributo identifica a los controles que no siempre se ejecutan cuando se realiza la actividad originadora del riesgo","-"]
[null,null,"Evidencia","Con Registro","El control deja un registro que permite evidenciar la ejecución del control","-"]
[null,null,null,"Sin Registro","El control no deja registro de la ejecución del control","-"]
[null,"*Nota 1: Los atributos de formalización se recogerán de manera informativa, con el fin de conocer el entorno del control y complementar el análisis con elementos cualitativos; éstos no tienen una incidencia directa en su efectividad. "]
[]
[]
[]
["i)Daños Activos Fisicos,",null,null,null,"Afectación económica o presupuestal"]
["ii)Ejecucion y Administracion de procesos",null,null,null,"Afectación menor a 10 SMLMV"]
["iii)Fallas Tecnologicas",null,null,null,"Entre 10 y 50 SMLMV"]
["iv)Fraude Externo",null,null,null,"Entre 50 y 100 SMLMV"]
["v)Fraude Interno",null,null,null,"Entre 100 y 500 SMLMV"]
["vi)Relaciones Laborales",null,null,null,"Mayor a 500 SMLMV"]
["vii)Usuarios, productos y practicas organizacionales",null,null,null,"Pérdida reputacional "]
[null,null,null,null,"El riesgo afecta la imagen de alguna área de la organización"]
[null,null,null,null,"El riesgo afecta la imagen de la entidad internamente, de conocimiento general nivel interno, de junta directiva y accionistas y/o de provedores"]
["Impacto ",null,null,null,"El riesgo afecta la imagen de la entidad con algunos usuarios de relevancia frente al logro de los objetivos"]
["Económico",null,null,null,"El riesgo afecta la imagen de de la entidad con efecto publicitario sostenido a nivel de sector administrativo, nivel departamental o municipal"]
["Reputacional ",null,null,null,"El riesgo afecta la imagen de la entidad a nivel nacional, con efecto publicitarios sostenible a nivel país"]
["Económico y reputacional "]
[]
[]
[null,null,null,null,"Automático"]
[null,null,null,null,"Manual"]
["TIPO"]
["Preventivo",null,null,null,"Documentado"]
["Detectivo",null,null,null,"Sin Documentar"]
["Correctivo"]
[]
[null,null,null,null,"Con Registro"]
["Continua",null,null,null,"Sin Registro"]
["Aleatoria"]
[]
["Tratamiento",null,null,null,"Estado "]
["Aceptar",null,null,null,"Finalizado "]
["Evitar",null,null,null,"En curso "]
["Reducir (compartir)"]
["Reducir (mitigar)"]
[]
[]
[]
[]
["Tipo"]
["Estratégico",null,"Procesos"]
["Operativo",null,"Gestión de la Planeación"]
["Financiero",null,"Gestión de las Comunicaciones"]
["Cumplimiento",null,"Gestión de Tecnología de Información y Comunicaciones"]
["Tecnología",null,"Gestión de Cooperación y Asuntos Internacionales"]
["Corrupción",null,"Generación de Datos e Información Hidrometeorológica y Ambiental para la Toma de Decisiones"]
["Seguridad digital",null,"Generación de Conocimiento e Investigación"]
[null,null,"Servicios"]
[null,null,"Gestión a la Atención al Ciudadano"]
[null,null,"Gestión de Servicios Administrativos"]
[null,null,"Gestión de Almacén e Inventarios"]
[null,null,"Gestión Jurídica y Contractual"]
[null,null,"Gestión del Desarrollo del Talento Humano"]
[null,null,"Gestión Financiera"]
[null,null,"Gestión Documental"]
[null,null,"Gestión del Control Disciplinario Interno"]
[null,null,"Evaluación y el Mejoramiento Continuo"]
[null,null,"Gestión del SGI"]

{"sheet":"Opciones Tratamiento","index":7,"n_rows":19,"n_cols":5,"rows_kept":19,"cut":false,"hidden":true,"merged":[]}
[]
[null,"Aceptar",null,null,"Económico"]
[null,"Evitar",null,null,"Reputacional"]
[null,"Reducir (compartir)",null,null,"Económico y Reputacional"]
[null,"Reducir (mitigar)"]
[]
[]
[null,"Plan de accion (solo para la opción reducir)"]
[null,"Finalizado"]
[null,"En curso"]
[]
[]
[null,"Daños Activos Fisicos"]
[null,"Ejecucion y Administracion de procesos"]
[null,"Fallas Tecnologicas"]
[null,"Fraude Externo"]
[null,"Fraude Interno"]
[null,"Relaciones Laborales"]
[null,"Usuarios, productos y practicas , organizacionales"]

{"sheet":"Hoja1","index":8,"n_rows":21,"n_cols":1,"rows_kept":21,"cut":false,"hidden":true,"merged":[]}
[]
[]
["Preventivo"]
["Detectivo"]
["Correctivo"]
["Automático"]
["Manual"]
["Documentado"]
["Sin Documentar"]
["Continua"]
["Aleatoria"]
["Registro Sustancial"]
["Registro Material"]
["Sin registro"]
[]
["Reducir"]
["Aceptar"]
["Evitar"]
[]
["Finalizado"]
["En curso"]